Workbook

Sheet Dis
B2: 407 ETR
B4: DISCLAIMER
B55: The Financial Model and its contents are confidential (“Confidential Information”). The use or disclosure of any of the Confidential Information, in any manner whatsoever other than in connection with your internal analysis, may cause irreparable damage to Cintra. You hereby agree that you will not disclose any Confidential Information to any third party, including any consultant and or advisor (“Representative”) unless such Representative has executed a form of agreement which states that such Representative agrees to be bound by the terms of this Disclaimer, as if it were a direct signatory hereto.
B57: Cintra retains all intellectual property rights in relation to this Financial Model, including copyright, and Cintra retain all rights to all confidential information (but excluding any third party intellectual property rights).
B59: 2017 Cintra Servicios de Infraestructuras, S.A.

Sheet Summary
W3: =+J5 -> Base Case | Y3: =+TODAY()+1 -> 2018-06-01
J5: =+Oper!G5 -> Base Case | L5: 2017-12-31
J6: Valuation [APV] - MEUR @ Cintra share | L6: =+Valuation!O44 -> 8,695
J7: Implicit Ke | L7: =+IF(Scenario=1,Inputs!N198,Inputs!O198) -> 6.4%
J8: Valuation [DDM] - MEUR @ Cintra share | L8: =+Valuation!O53 -> 8,695
J9: Ke | L9: =+Valuation!H52 -> 6.4%
C13: CASH FLOW AVAILABLE FOR DEBT SERVICE | J13: DEBT SERVICE | Q13: DSRA | S13: Other Reserve Accounts | U13: FREE CASH FLOW | W13: Equity distributions | Y13: Accumulated Cash
C14: Revenues (MCAD) | D14: OPEX (MCAD) | E14: Taxes (MCAD) | F14: CAPEX (MCAD) | G14: Working Capital (MCAD) | H14: CFADS (MCAD) | J14: Drawdowns (MCAD) | K14: Interests and fees (MCAD) | L14: Repayment (MCAD) | M14: Total Debt Service (MCAD) | N14: Financial Income (MCAD) | O14: Outstanding Debt (MCAD) | Q14: DSRA net movements (MCAD) | S14: Other Reserve Accounts movements | U14: Shareholders' Free Cash Flow (MCAD) | W14: Equity distributions/ (injections) | Y14: Accumulated Cash (MCAD)
B15: 2016 | C15: =+TRANSPOSE(D106:CH106) -> 0 | D15: =+TRANSPOSE(D107:CH107) -> 0 | E15: =+TRANSPOSE(D108:CH108) -> 0 | F15: =+TRANSPOSE(D109:CH109) -> 0 | G15: =+TRANSPOSE(D110:CH110) -> 0 | H15: =+SUM(C15:G15) -> 0 | J15: =+TRANSPOSE(D114:CH116) -> 0 | K15: 0 | L15: 0 | M15: =+SUM(K15:L15) -> 0 | N15: =+TRANSPOSE(D117:CH117) -> 0 | O15: =+TRANSPOSE(D118:CH118) -> 0 | Q15: =+TRANSPOSE(D121:CH121) -> 0 | S15: =+TRANSPOSE(D122:CH122) -> 0 | U15: =+S15+Q15+N15+M15+J15+H15 -> 0 | W15: =+TRANSPOSE(D124:CH124) -> 0 | Y15: =+TRANSPOSE(D125:CH125) -> 764.1
B16: =+B15+1 -> 2017 | C16: 1,307.7 | D16: -145.6 | E16: -189.1 | F16: -156.8 | G16: -94.3 | H16: =+SUM(C16:G16) -> 721.8 | J16: 800.0 | K16: -365.2 | L16: -456.0 | M16: =+SUM(K16:L16) -> -821.1 | N16: 20.3 | O16: 8,684.3 | Q16: -43.2 | S16: -7.7 | U16: =+S16+Q16+N16+M16+J16+H16 -> 670.0 | W16: 885.0 | Y16: 549.1
B17: =+B16+1 -> 2018 | C17: 1,378.8 | D17: -146.1 | E17: -198.6 | F17: -122.8 | G17: -0.0 | H17: 911.2 | J17: 282.4 | K17: -400.2 | L17: -18.2 | M17: -418.5 | N17: 25.4 | O17: 8,948.5 | Q17: -19.6 | S17: -10.8 | U17: 770.1 | W17: 947.0 | Y17: 372.3
B18: 2019 | C18: 1,445.8 | D18: -146.6 | E18: -211.7 | F18: -96.2 | G18: 0 | H18: 991.3 | J18: 591.1 | K18: -408.4 | L18: -319.0 | M18: -727.4 | N18: 22.4 | O18: 9,220.6 | Q18: -15.4 | S18: -1.1 | U18: 861.0 | W18: 1,013.2 | Y18: 220.1
B19: 2020 | C19: 1,513.8 | D19: -147.1 | E19: -222.6 | F19: -75.3 | G19: -0.0 | H19: 1,068.8 | J19: 1,020.0 | K19: -429.0 | L19: -739.6 | M19: -1,168.5 | N19: 19.7 | O19: 9,501.0 | Q19: -5.2 | S19: -9.6 | U19: 925.2 | W19: 1,084.2 | Y19: 61.1
B20: 2021 | C20: 1,600.6 | D20: -150.3 | E20: -239.1 | F20: -79.1 | G20: 0 | H20: 1,132.2 | J20: 762.6 | K20: -447.0 | L20: -320.6 | M20: -767.6 | N20: 16.8 | O20: 9,943.1 | Q20: -28.0 | S20: -10.4 | U20: 1,105.6 | W20: 1,106.6 | Y20: 60.0
B21: 2022 | C21: 1,696.1 | D21: -153.5 | E21: -257.6 | F21: -83.0 | G21: 0 | H21: 1,201.9 | J21: 483.9 | K21: -466.7 | L21: -21.4 | M21: -488.1 | N21: 17.6 | O21: 10,405.6 | Q21: -27.9 | S21: -8.9 | U21: 1,178.5 | W21: 1,158.0 | Y21: 80.6
B22: 2023 | C22: 1,797.5 | D22: -156.9 | E22: -276.3 | F22: -87.1 | G22: -0.0 | H22: 1,277.2 | J22: 756.2 | K22: -492.0 | L22: -272.3 | M22: -764.4 | N22: 18.7 | O22: 10,889.5 | Q22: -15.7 | S22: -7.6 | U22: 1,264.5 | W22: 1,211.7 | Y22: 133.4
B23: 2024 | C23: 1,904.8 | D23: -160.2 | E23: -296.5 | F23: -91.4 | G23: 0 | H23: 1,356.6 | J23: 529.6 | K23: -517.6 | L23: -23.2 | M23: -540.9 | N23: 20.3 | O23: 11,395.8 | Q23: -34.6 | S23: -5.8 | U23: 1,325.2 | W23: 1,267.9 | Y23: 190.7
B24: 2025 | C24: 2,018.5 | D24: -163.7 | E24: -315.8 | F24: -95.9 | G24: 0 | H24: 1,443.1 | J24: 907.1 | K24: -553.6 | L24: -377.3 | M24: -930.9 | N24: 22.2 | O24: 11,925.6 | Q24: -31.0 | S24: -4.8 | U24: 1,405.8 | W24: 1,360.1 | Y24: 236.5
B25: 2026 | C25: 2,130.3 | D25: -167.1 | E25: -338.3 | F25: -93.3 | G25: 0 | H25: 1,531.6 | J25: 770.0 | K25: -573.3 | L25: -375.2 | M25: -948.6 | N25: 23.8 | O25: 12,320.4 | Q25: -13.6 | S25: -4.7 | U25: 1,358.6 | W25: 1,406.7 | Y25: 188.3
B26: 2027 | C26: 2,246.2 | D26: -170.5 | E26: -359.9 | F26: -90.7 | G26: 0 | H26: 1,625.1 | J26: 434.1 | K26: -600.1 | L26: -26.3 | M26: -626.4 | N26: 23.2 | O26: 12,728.2 | Q26: -32.1 | S26: -5.9 | U26: 1,418.1 | W26: 1,455.0 | Y26: 151.3
B27: 2028 | C27: 2,368.2 | D27: -174.1 | E27: -382.4 | F27: -88.2 | G27: -0.0 | H27: 1,723.6 | J27: 848.7 | K27: -630.5 | L27: -427.4 | M27: -1,057.9 | N27: 23.3 | O27: 13,149.4 | Q27: -1.7 | S27: -8.1 | U27: 1,527.8 | W27: 1,505.0 | Y27: 174.2
B28: 2029 | C28: 2,497.0 | D28: -177.7 | E28: -409.9 | F28: -85.7 | G28: 0.0 | H28: 1,823.7 | J28: 463.8 | K28: -649.4 | L28: -28.6 | M28: -678.0 | N28: 23.9 | O28: 13,584.5 | Q28: -33.3 | S28: -9.3 | U28: 1,590.7 | W28: 1,556.6 | Y28: 208.3
B29: 2030 | C29: 2,632.7 | D29: -181.4 | E29: -438.1 | F29: -83.4 | G29: -0.0 | H29: 1,929.9 | J29: 869.2 | K29: -673.4 | L29: -419.7 | M29: -1,093.1 | N29: 25.5 | O29: 14,034.0 | Q29: -18.8 | S29: -9.3 | U29: 1,703.3 | W29: 1,610.1 | Y29: 301.5
B30: 2031 | C30: 2,748.2 | D30: -185.1 | E30: -463.6 | F30: -84.5 | G30: -0.0 | H30: 2,015.1 | J30: 327.9 | K30: -683.0 | L30: -31.2 | M30: -714.2 | N30: 27.9 | O30: 14,330.8 | Q30: -22.8 | S30: -8.7 | U30: 1,625.1 | W30: 1,657.2 | Y30: 269.4
B31: 2032 | C31: 2,861.8 | D31: -188.9 | E31: -486.6 | F31: -85.6 | G31: -0.0 | H31: 2,100.7 | J31: 585.5 | K31: -702.2 | L31: -282.5 | M31: -984.7 | N31: 27.9 | O31: 14,633.8 | Q31: -9.8 | S31: -9.7 | U31: 1,709.9 | W31: 1,705.7 | Y31: 273.5
B32: 2033 | C32: 2,979.9 | D32: -192.8 | E32: -511.0 | F32: -86.8 | G32: 0.0 | H32: 2,189.3 | J32: 343.4 | K32: -721.1 | L32: -34.0 | M32: -755.0 | N32: 28.3 | O32: 14,943.2 | Q32: -25.9 | S32: -10.3 | U32: 1,769.9 | W32: 1,755.7 | Y32: 287.7
B33: 2034 | C33: 3,102.9 | D33: -196.8 | E33: -535.0 | F33: -87.9 | G33: -0.0 | H33: 2,283.2 | J33: 691.4 | K33: -746.9 | L33: -375.5 | M33: -1,122.3 | N33: 29.4 | O33: 15,259.1 | Q33: -13.8 | S33: -12.8 | U33: 1,854.9 | W33: 1,807.1 | Y33: 335.5
B34: 2035 | C34: 3,231.2 | D34: -200.8 | E34: -566.6 | F34: -89.1 | G34: 0.0 | H34: 2,374.7 | J34: 839.6 | K34: -750.1 | L34: -517.0 | M34: -1,267.1 | N34: 30.8 | O34: 15,581.7 | Q34: -25.1 | S34: -13.0 | U34: 1,939.9 | W34: 1,860.1 | Y34: 415.4
B35: 2036 | C35: 3,361.0 | D35: -205.0 | E35: -595.9 | F35: -92.5 | G35: 0.0 | H35: 2,467.6 | J35: 163.7 | K35: -762.9 | L35: -38.7 | M35: -801.6 | N35: 33.2 | O35: 15,706.6 | Q35: -8.0 | S35: -13.5 | U35: 1,841.3 | W35: 1,907.6 | Y35: 349.1
B36: 2037 | C36: 3,495.4 | D36: -209.4 | E36: -626.6 | F36: -96.1 | G36: 0 | H36: 2,563.4 | J36: 157.1 | K36: -780.2 | L36: -31.2 | M36: -811.4 | N36: 32.3 | O36: 15,832.6 | Q36: -8.1 | S36: -14.1 | U36: 1,919.2 | W36: 1,956.3 | Y36: 312.0
B37: 2038 | C37: 3,635.1 | D37: -213.8 | E37: -662.7 | F37: -99.7 | G37: -0.0 | H37: 2,659.0 | J37: 167.3 | K37: -781.1 | L37: -40.3 | M37: -821.4 | N37: 32.0 | O37: 15,959.6 | Q37: 37.5 | S37: -16.4 | U37: 2,057.9 | W37: 2,006.3 | Y37: 363.7
B38: 2039 | C38: 3,780.7 | D38: -218.3 | E38: -711.0 | F38: -103.6 | G38: 0.0 | H38: 2,747.8 | J38: 293.0 | K38: -740.8 | L38: -165.0 | M38: -905.8 | N38: 32.6 | O38: 16,087.6 | Q38: -6.1 | S38: -12.7 | U38: 2,148.9 | W38: 2,057.5 | Y38: 455.1
B39: 2040 | C39: 3,931.7 | D39: -222.9 | E39: -747.8 | F39: -107.5 | G39: 0.0 | H39: 2,853.5 | J39: 479.0 | K39: -750.1 | L39: -350.0 | M39: -1,100.1 | N39: 34.8 | O39: 16,216.6 | Q39: -0.7 | S39: -11.6 | U39: 2,254.9 | W39: 2,110.1 | Y39: 599.9
B40: 2041 | C40: 4,072.9 | D40: -227.6 | E40: -784.3 | F40: -107.7 | G40: 0.0 | H40: 2,953.2 | J40: 400.0 | K40: -748.1 | L40: -400.0 | M40: -1,148.1 | N40: 38.0 | O40: 16,216.6 | Q40: 13.5 | S40: -11.6 | U40: 2,245.0 | W40: 2,201.2 | Y40: 643.7
B41: 2042 | C41: 4,215.4 | D41: -232.5 | E41: -820.5 | F41: -108.0 | G41: -0.0 | H41: 3,054.4 | J41: 0 | K41: -749.5 | L41: 0 | M41: -749.5 | N41: 38.8 | O41: 16,216.6 | Q41: -12.5 | S41: -11.6 | U41: 2,319.7 | W41: 2,296.2 | Y41: 667.2
B42: 2043 | C42: 4,362.9 | D42: -237.4 | E42: -854.6 | F42: -108.2 | G42: 0 | H42: 3,162.7 | J42: 500.0 | K42: -764.1 | L42: -500.0 | M42: -1,264.1 | N42: 39.8 | O42: 16,216.6 | Q42: 11.3 | S42: -13.9 | U42: 2,435.8 | W42: 2,395.4 | Y42: 707.6
B43: 2044 | C43: 4,515.2 | D43: -242.5 | E43: -895.4 | F43: -108.4 | G43: 0.0 | H43: 3,268.9 | J43: 150.0 | K43: -758.1 | L43: -150.0 | M43: -908.1 | N43: 40.6 | O43: 16,216.6 | Q43: -8.3 | S43: -5.1 | U43: 2,537.9 | W43: 2,498.8 | Y43: 746.7
B44: 2045 | C44: 4,673.0 | D44: -247.7 | E44: -935.1 | F44: -108.6 | G44: 0 | H44: 3,381.6 | J44: 500.0 | K44: -762.5 | L44: -500.0 | M44: -1,262.5 | N44: 41.7 | O44: 16,216.6 | Q44: 3.2 | S44: -15.4 | U44: 2,648.6 | W44: 2,606.6 | Y44: 788.6
B45: 2046 | C45: 4,842.0 | D45: -252.7 | E45: -977.5 | F45: -110.8 | G45: -0.0 | H45: 3,501.1 | J45: 500.0 | K45: -768.9 | L45: -500.0 | M45: -1,268.9 | N45: 42.7 | O45: 16,216.6 | Q45: 14.9 | S45: -16.2 | U45: 2,773.7 | W45: 2,722.3 | Y45: 840.0
B46: 2047 | C46: 5,018.8 | D46: -257.7 | E46: -1,022.5 | F46: -113.0 | G46: 0.0 | H46: 3,625.5 | J46: 0 | K46: -771.6 | L46: 0 | M46: -771.6 | N46: 43.8 | O46: 16,216.6 | Q46: -20.0 | S46: -15.5 | U46: 2,862.2 | W46: 2,843.1 | Y46: 859.2
B47: 2048 | C47: 5,201.7 | D47: -262.9 | E47: -1,064.5 | F47: -115.3 | G47: 0 | H47: 3,759.0 | J47: 800.0 | K47: -791.6 | L47: -800.0 | M47: -1,591.6 | N47: 44.9 | O47: 16,216.6 | Q47: 26.0 | S47: -18.2 | U47: 3,020.1 | W47: 2,969.2 | Y47: 910.1
B48: 2049 | C48: 5,391.3 | D48: -268.1 | E48: -1,116.7 | F48: -117.6 | G48: 0 | H48: 3,888.9 | J48: 0 | K48: -779.6 | L48: 0 | M48: -779.6 | N48: 45.8 | O48: 16,216.6 | Q48: 0 | S48: -18.0 | U48: 3,137.1 | W48: 3,100.9 | Y48: 946.3
B49: 2050 | C49: 5,588.0 | D49: -273.5 | E49: -1,167.5 | F49: -119.9 | G49: 0 | H49: 4,027.1 | J49: 0 | K49: -779.6 | L49: 0 | M49: -779.6 | N49: 46.8 | O49: 16,216.6 | Q49: -10.0 | S49: -15.3 | U49: 3,269.0 | W49: 3,238.5 | Y49: 976.8
B50: 2051 | C50: 5,763.7 | D50: -279.0 | E50: -1,208.2 | F50: -122.3 | G50: 0 | H50: 4,154.2 | J50: 400.0 | K50: -790.9 | L50: -400.0 | M50: -1,190.9 | N50: 48.0 | O50: 16,216.6 | Q50: 8.0 | S50: -16.5 | U50: 3,402.7 | W50: 3,354.4 | Y50: 1,025.1
B51: 2052 | C51: 5,937.5 | D51: -284.5 | E51: -1,253.3 | F51: -124.8 | G51: 0 | H51: 4,274.9 | J51: 200.0 | K51: -877.5 | L51: -200.0 | M51: -1,077.5 | N51: 49.1 | O51: 16,216.6 | Q51: 7.5 | S51: -17.1 | U51: 3,436.9 | W51: 3,474.4 | Y51: 987.6
B52: 2053 | C52: 6,116.4 | D52: -290.2 | E52: -1,300.2 | F52: -127.3 | G52: 0 | H52: 4,398.7 | J52: 0 | K52: -784.3 | L52: 0 | M52: -784.3 | N52: 48.5 | O52: 16,216.6 | Q52: 0 | S52: -22.3 | U52: 3,640.6 | W52: 3,598.7 | Y52: 1,029.5
B53: 2054 | C53: 6,300.7 | D53: -296.0 | E53: -1,367.5 | F53: -129.8 | G53: 0 | H53: 4,507.4 | J53: 0 | K53: -784.3 | L53: 0 | M53: -784.3 | N53: 49.8 | O53: 16,216.6 | Q53: 0 | S53: -19.8 | U53: 3,753.1 | W53: 3,727.5 | Y53: 1,055.1
B54: 2055 | C54: 6,491.0 | D54: -301.9 | E54: -1,424.3 | F54: -132.4 | G54: 0 | H54: 4,632.3 | J54: 0 | K54: -784.3 | L54: 0 | M54: -784.3 | N54: 50.7 | O54: 16,216.6 | Q54: 0 | S54: -18.3 | U54: 3,880.4 | W54: 3,860.9 | Y54: 1,074.6
B55: 2056 | C55: 6,686.4 | D55: -308.0 | E55: -1,474.4 | F55: -135.0 | G55: 0 | H55: 4,769.0 | J55: 0 | K55: -784.3 | L55: 0 | M55: -784.3 | N55: 51.5 | O55: 16,216.6 | Q55: 0 | S55: -18.9 | U55: 4,017.3 | W55: 3,943.1 | Y55: 1,148.8
B56: 2057 | C56: 6,887.9 | D56: -314.1 | E56: -1,526.4 | F56: -137.7 | G56: 0 | H56: 4,909.6 | J56: 0 | K56: -784.3 | L56: 0 | M56: -784.3 | N56: 53.3 | O56: 16,216.6 | Q56: 0 | S56: -19.5 | U56: 4,159.1 | W56: 4,027.2 | Y56: 1,280.8
B57: 2058 | C57: 7,095.5 | D57: -320.4 | E57: -1,580.3 | F57: -140.5 | G57: 0 | H57: 5,054.3 | J57: 0 | K57: -784.3 | L57: 0 | M57: -784.3 | N57: 56.4 | O57: 16,216.6 | Q57: -187.3 | S57: -18.7 | U57: 4,120.4 | W57: 4,113.0 | Y57: 1,288.2
B58: 2059 | C58: 7,309.8 | D58: -326.8 | E58: -1,630.3 | F58: -143.3 | G58: 0.0 | H58: 5,209.3 | J58: 0 | K58: -806.7 | L58: -164.9 | M58: -971.7 | N58: 60.6 | O58: 16,051.7 | Q58: -26.5 | S58: -21.1 | U58: 4,250.7 | W58: 4,200.6 | Y58: 1,338.2
B59: 2060 | C59: 7,529.8 | D59: -333.4 | E59: -1,689.6 | F59: -146.2 | G59: 0 | H59: 5,360.7 | J59: 0 | K59: -797.6 | L59: -200.6 | M59: -998.2 | N59: 62.6 | O59: 15,851.1 | Q59: -29.2 | S59: -21.9 | U59: 4,374.1 | W59: 4,290.1 | Y59: 1,422.1
B60: 2061 | C60: 7,756.7 | D60: -340.0 | E60: -1,751.3 | F60: -149.1 | G60: 0 | H60: 5,516.3 | J60: 0 | K60: -786.5 | L60: -240.8 | M60: -1,027.4 | N60: 65.3 | O60: 15,610.2 | Q60: -29.3 | S60: -22.5 | U60: 4,502.3 | W60: 4,476.6 | Y60: 1,447.9
B61: 2062 | C61: 7,990.6 | D61: -346.8 | E61: -1,815.1 | F61: -152.1 | G61: 0 | H61: 5,676.5 | J61: 0 | K61: -773.4 | L61: -283.3 | M61: -1,056.7 | N61: 66.8 | O61: 15,326.9 | Q61: -30.9 | S61: -23.2 | U61: 4,632.6 | W61: 4,671.2 | Y61: 1,409.3
B62: 2063 | C62: 8,231.9 | D62: -353.8 | E62: -1,881.1 | F62: -155.1 | G62: 0.0 | H62: 5,841.9 | J62: 0 | K62: -758.1 | L62: -329.4 | M62: -1,087.6 | N62: 67.2 | O62: 14,997.5 | Q62: -29.6 | S62: -23.8 | U62: 4,768.1 | W62: 4,874.3 | Y62: 1,303.1
B63: 2064 | C63: 8,479.7 | D63: -360.9 | E63: -1,948.9 | F63: -158.2 | G63: 0.0 | H63: 6,011.8 | J63: 0 | K63: -740.5 | L63: -376.7 | M63: -1,117.1 | N63: 66.1 | O63: 14,620.8 | Q63: 293.0 | S63: -24.0 | U63: 5,229.7 | W63: 5,086.1 | Y63: 1,446.7
B64: 2065 | C64: 8,735.3 | D64: -368.1 | E64: -2,016.8 | F64: -161.4 | G64: 0.0 | H64: 6,189.0 | J64: 0 | K64: -728.7 | L64: -95.5 | M64: -824.1 | N64: 63.6 | O64: 14,525.4 | Q64: -24.1 | S64: -24.6 | U64: 5,379.8 | W64: 5,307.2 | Y64: 1,519.2
B65: 2066 | C65: 8,998.6 | D65: -375.4 | E65: -2,086.4 | F65: -164.6 | G65: -0.0 | H65: 6,372.2 | J65: 0 | K65: -723.1 | L65: -125.1 | M65: -848.2 | N65: 66.0 | O65: 14,400.3 | Q65: -25.3 | S65: -25.4 | U65: 5,539.3 | W65: 5,463.3 | Y65: 1,595.2
B66: 2067 | C66: 9,270.4 | D66: -382.9 | E66: -2,158.6 | F66: -167.9 | G66: 0 | H66: 6,560.9 | J66: 0 | K66: -716.1 | L66: -157.4 | M66: -873.5 | N66: 68.6 | O66: 14,242.9 | Q66: -24.2 | S66: -26.2 | U66: 5,705.6 | W66: 5,624.0 | Y66: 1,676.8
B67: 2068 | C67: 9,549.5 | D67: -390.6 | E67: -2,233.1 | F67: -171.3 | G67: 0 | H67: 6,754.5 | J67: 0 | K67: -707.4 | L67: -190.4 | M67: -897.8 | N67: 71.2 | O67: 14,052.5 | Q67: -26.7 | S67: -27.0 | U67: 5,874.2 | W67: 5,789.3 | Y67: 1,761.7
B68: 2069 | C68: 9,837.4 | D68: -398.4 | E68: -2,310.5 | F68: -174.7 | G68: 0 | H68: 6,953.8 | J68: 0 | K68: -696.9 | L68: -227.5 | M68: -924.5 | N68: 74.0 | O68: 13,825.0 | Q68: -26.8 | S68: -27.9 | U68: 6,048.5 | W68: 5,959.6 | Y68: 1,850.6
B69: 2070 | C69: 10,133.9 | D69: -406.4 | E69: -2,390.6 | F69: -178.2 | G69: 0 | H69: 7,158.8 | J69: 0 | K69: -684.6 | L69: -266.7 | M69: -951.3 | N69: 76.8 | O69: 13,558.3 | Q69: -28.3 | S69: -28.9 | U69: 6,227.2 | W69: 6,134.8 | Y69: 1,942.9
B70: 2071 | C70: 10,440.0 | D70: -414.5 | E70: -2,473.8 | F70: -181.8 | G70: 0 | H70: 7,369.9 | J70: 0 | K70: -670.2 | L70: -309.4 | M70: -979.6 | N70: 79.8 | O70: 13,248.9 | Q70: -27.0 | S70: -29.7 | U70: 6,413.5 | W70: 6,315.9 | Y70: 2,040.5
B71: 2072 | C71: 10,754.4 | D71: -422.8 | E71: -2,559.7 | F71: -185.4 | G71: 0 | H71: 7,586.5 | J71: 0 | K71: -653.6 | L71: -353.0 | M71: -1,006.6 | N71: 82.9 | O71: 12,895.9 | Q71: -29.8 | S71: -30.7 | U71: 6,602.4 | W71: 6,502.3 | Y71: 2,140.6
B72: 2073 | C72: 11,078.5 | D72: -431.3 | E72: -2,648.8 | F72: -189.1 | G72: 0 | H72: 7,809.4 | J72: 0 | K72: -634.8 | L72: -401.6 | M72: -1,036.3 | N72: 86.1 | O72: 12,494.4 | Q72: -29.9 | S72: -31.7 | U72: 6,797.5 | W72: 6,694.1 | Y72: 2,244.0
B73: 2074 | C73: 11,412.6 | D73: -439.9 | E73: -2,741.2 | F73: -192.9 | G73: 0 | H73: 8,038.6 | J73: 0 | K73: -613.4 | L73: -452.9 | M73: -1,066.3 | N73: 89.4 | O73: 12,041.5 | Q73: -31.5 | S73: -32.8 | U73: 6,997.5 | W73: 6,891.7 | Y73: 2,349.8
B74: 2075 | C74: 11,757.3 | D74: -448.7 | E74: -2,837.1 | F74: -196.7 | G74: 0 | H74: 8,274.8 | J74: 0 | K74: -589.4 | L74: -508.4 | M74: -1,097.8 | N74: 92.8 | O74: 11,533.1 | Q74: -30.1 | S74: -33.8 | U74: 7,205.9 | W74: 7,095.0 | Y74: 2,460.6
B75: 2076 | C75: 12,111.4 | D75: -457.6 | E75: -2,936.1 | F75: -200.7 | G75: 0 | H75: 8,516.9 | J75: 0 | K75: -562.5 | L75: -565.3 | M75: -1,127.9 | N75: 96.3 | O75: 10,967.7 | Q75: -33.2 | S75: -35.0 | U75: 7,417.2 | W75: 7,299.2 | Y75: 2,578.7
B76: 2077 | C76: 12,476.4 | D76: -466.8 | E76: -3,039.0 | F76: -204.7 | G76: 0 | H76: 8,766.0 | J76: 0 | K76: -532.7 | L76: -628.3 | M76: -1,161.0 | N76: 100.1 | O76: 10,339.4 | Q76: -33.3 | S76: -36.1 | U76: 7,635.6 | W76: 7,509.2 | Y76: 2,705.1
B77: 2078 | C77: 12,852.6 | D77: -476.1 | E77: -3,145.6 | F77: -208.8 | G77: 0 | H77: 9,022.1 | J77: 0 | K77: -499.6 | L77: -694.7 | M77: -1,194.3 | N77: 104.0 | O77: 9,644.7 | Q77: -35.1 | S77: -37.4 | U77: 7,859.3 | W77: 7,725.2 | Y77: 2,839.3
B78: 2079 | C78: 13,240.9 | D78: -485.7 | E78: -3,256.3 | F78: -213.0 | G78: 0 | H78: 9,285.9 | J78: 0 | K78: -463.1 | L78: -766.3 | M78: -1,229.4 | N78: 108.1 | O78: 8,878.3 | Q78: -33.5 | S78: -38.5 | U78: 8,092.6 | W78: 7,947.4 | Y78: 2,984.5
B79: 2080 | C79: 13,639.6 | D79: -495.4 | E79: -3,370.7 | F79: -217.2 | G79: 0 | H79: 9,556.3 | J79: 0 | K79: -422.9 | L79: -840.0 | M79: -1,262.9 | N79: 112.4 | O79: 8,038.4 | Q79: -36.9 | S79: -39.8 | U79: 8,329.1 | W79: 8,176.1 | Y79: 3,137.5
B80: 2081 | C80: 14,050.8 | D80: -505.3 | E80: -3,489.6 | F80: -221.6 | G80: 0 | H80: =+SUM(C80:G80) -> 9,834.4 | J80: 0 | K80: -378.9 | L80: -920.9 | M80: =+SUM(K80:L80) -> -1,299.8 | N80: 117.0 | O80: 7,117.5 | Q80: -37.0 | S80: -41.2 | U80: =+S80+Q80+N80+M80+J80+H80 -> 8,573.4 | W80: 8,413.9 | Y80: 3,297.0
B81: =+B80+1 -> 2082 | C81: 14,474.5 | D81: -515.4 | E81: -3,612.8 | F81: -226.0 | G81: 0 | H81: 10,120.4 | J81: 0 | K81: -330.7 | L81: -1,006.1 | M81: -1,336.8 | N81: 121.8 | O81: 6,111.4 | Q81: -39.0 | S81: -42.6 | U81: 8,823.7 | W81: 8,658.7 | Y81: 3,462.1
B82: 2083 | C82: 14,911.7 | D82: -525.7 | E82: -3,740.8 | F82: -230.5 | G82: -0.0 | H82: 10,414.8 | J82: 0 | K82: -278.1 | L82: -1,097.7 | M82: -1,375.8 | N82: 126.7 | O82: 5,013.7 | Q82: -37.2 | S82: -43.9 | U82: 9,084.6 | W82: 8,910.6 | Y82: 3,636.1
B83: 2084 | C83: 15,360.9 | D83: -536.2 | E83: -3,873.0 | F83: -235.1 | G83: 0 | H83: 10,716.5 | J83: 0 | K83: -220.9 | L83: -1,192.1 | M83: -1,413.0 | N83: 131.8 | O83: 3,821.6 | Q83: -41.0 | S83: -45.5 | U83: 9,348.9 | W83: 9,169.8 | Y83: 3,815.2
B84: 2085 | C84: 15,823.9 | D84: -546.9 | E84: -4,010.4 | F84: -239.8 | G84: -0.0 | H84: 11,026.8 | J84: 0 | K84: -158.7 | L84: -1,295.3 | M84: -1,454.0 | N84: 137.1 | O84: 2,526.3 | Q84: -41.1 | S84: -47.0 | U84: 9,621.8 | W84: 9,436.5 | Y84: 4,000.5
B85: 2086 | C85: 16,301.1 | D85: -557.9 | E85: -4,152.8 | F85: -244.6 | G85: -0.0 | H85: 11,345.8 | J85: 0 | K85: -91.2 | L85: -1,403.9 | M85: -1,495.1 | N85: 142.6 | O85: 1,122.4 | Q85: 344.7 | S85: -47.6 | U85: 10,290.5 | W85: 10,025.4 | Y85: 4,265.6
B86: 2087 | C86: 16,793.6 | D86: -569.0 | E86: -4,296.5 | F86: -249.5 | G86: 0 | H86: 11,678.5 | J86: 0 | K86: -28.1 | L86: -1,122.4 | M86: -1,150.4 | N86: 142.0 | O86: 0.0 | Q86: 1,150.4 | S86: 22.5 | U86: 11,843.0 | W86: 10,651.0 | Y86: 5,457.6
B87: 2088 | C87: 17,299.4 | D87: -580.4 | E87: -4,434.6 | F87: -254.5 | G87: 0 | H87: 12,029.9 | J87: 0 | K87: -0.0 | L87: 0 | M87: -0.0 | N87: 142.4 | O87: 0.0 | Q87: -0.0 | S87: -47.0 | U87: 12,125.3 | W87: 11,315.6 | Y87: 6,267.3
B88: 2089 | C88: 17,821.0 | D88: -592.0 | E88: -4,573.8 | F88: -259.6 | G88: 0 | H88: 12,395.5 | J88: 0 | K88: -0.0 | L88: 0 | M88: -0.0 | N88: 159.5 | O88: 0.0 | Q88: 0 | S88: -47.9 | U88: 12,507.1 | W88: 12,021.7 | Y88: 6,752.8
B89: 2090 | C89: 18,358.4 | D89: -603.9 | E89: -4,715.5 | F89: -264.8 | G89: 0 | H89: 12,774.3 | J89: 0 | K89: -0.0 | L89: 0 | M89: -0.0 | N89: 170.2 | O89: 0.0 | Q89: 0 | S89: -48.8 | U89: 12,895.6 | W89: 12,771.8 | Y89: 6,876.5
B90: 2091 | C90: 18,913.0 | D90: -615.9 | E90: -4,859.8 | F90: -270.1 | G90: 0 | H90: 13,167.2 | J90: 0 | K90: -0.0 | L90: 0 | M90: -0.0 | N90: 173.6 | O90: 0.0 | Q90: 0 | S90: -49.3 | U90: 13,291.6 | W90: 13,779.9 | Y90: 6,388.2
B91: 2092 | C91: 19,482.7 | D91: -628.3 | E91: -5,004.6 | F91: -275.5 | G91: 0 | H91: 13,574.4 | J91: 0 | K91: -0.0 | L91: 0 | M91: -0.0 | N91: 164.8 | O91: 0.0 | Q91: 0 | S91: -49.9 | U91: 13,689.3 | W91: 14,867.6 | Y91: 5,210.0
B92: 2093 | C92: 20,070.1 | D92: -640.8 | E92: -5,150.6 | F92: -281.0 | G92: 0 | H92: 13,997.7 | J92: 0 | K92: -0.0 | L92: 0 | M92: -0.0 | N92: 142.3 | O92: 0.0 | Q92: 0 | S92: -50.3 | U92: 14,089.7 | W92: 16,041.1 | Y92: 3,258.6
B93: 2094 | C93: 20,675.5 | D93: -653.6 | E93: -5,297.1 | F93: -286.6 | G93: 0 | H93: 14,438.1 | J93: 0 | K93: -0.0 | L93: 0 | M93: -0.0 | N93: 104.2 | O93: 0.0 | Q93: 0 | S93: 26.8 | U93: 14,569.2 | W93: 17,307.2 | Y93: 520.6
B94: 2095 | C94: 21,300.1 | D94: -666.7 | E94: -5,444.1 | F94: -292.3 | G94: 0 | H94: 14,897.0 | J94: 0 | K94: -0.0 | L94: 0 | M94: -0.0 | N94: 48.9 | O94: 0.0 | Q94: 0 | S94: 23.9 | U94: 14,969.9 | W94: 15,430.4 | Y94: 60.0
B95: 2096 | C95: 21,941.7 | D95: -680.0 | E95: -5,607.4 | F95: -298.2 | G95: 0 | H95: 15,356.1 | J95: 0 | K95: -0.0 | L95: 0 | M95: -0.0 | N95: 39.2 | O95: 0.0 | Q95: 0 | S95: 74.5 | U95: 15,469.9 | W95: 15,469.9 | Y95: 60.0
B96: 2097 | C96: 26,396.5 | D96: -693.6 | E96: -5,095.7 | F96: -304.2 | G96: -531.9 | H96: 19,771.1 | J96: 0 | K96: -0.0 | L96: 0 | M96: -0.0 | N96: 37.8 | O96: 0.0 | Q96: 0.0 | S96: 1,817.8 | U96: 21,626.6 | W96: 21,686.6 | Y96: 0
B97: 2098 | C97: 0 | D97: 0 | E97: 0 | F97: 0 | G97: 0 | H97: 0 | J97: 0 | K97: 0 | L97: 0 | M97: 0 | N97: 0 | O97: 0 | Q97: 0 | S97: 0 | U97: 0 | W97: 0 | Y97: 0
C98: =+SUM(C15:C97) -> 692,388.6 | D98: -28,205.3 | E98: -161,095.5 | F98: -12,775.5 | G98: -626.2 | H98: 489,686.0 | J98: =+SUM(J15:J97) -> 17,016.6 | K98: =+SUM(K15:K97) -> -44,721.1 | L98: =+SUM(L15:L97) -> -25,356.9 | M98: =+SUM(M15:M97) -> -70,078.0 | N98: =+SUM(N15:N97) -> 5,305.4 | O98: N.A | Q98: =+SUM(Q15:Q97) -> 415.0 | S98: =+SUM(S15:S97) -> 243.6 | U98: =+SUM(U15:U97) -> 442,588.6 | W98: =+SUM(W15:W49) -> 63,262.8 | Y98: =+SUM(Y15:Y49) -> 15,438.8
D105: 2016 | E105: =+D105+1 -> 2017 | F105: =+E105+1 -> 2018 | G105: 2019 | H105: 2020 | I105: 2021 | J105: 2022 | K105: 2023 | L105: 2024 | M105: 2025 | N105: 2026 | O105: 2027 | P105: 2028 | Q105: 2029 | R105: 2030 | S105: 2031 | T105: 2032 | U105: 2033 | V105: 2034 | W105: 2035 | X105: 2036 | Y105: 2037 | Z105: 2038 | AA105: 2039 | AB105: 2040 | AC105: 2041 | AD105: 2042 | AE105: 2043 | AF105: 2044 | AG105: 2045 | AH105: 2046 | AI105: 2047 | AJ105: 2048 | AK105: 2049 | AL105: 2050 | AM105: 2051 | AN105: 2052 | AO105: 2053 | AP105: 2054 | AQ105: 2055 | AR105: 2056 | AS105: 2057 | AT105: 2058 | AU105: 2059 | AV105: 2060 | AW105: 2061 | AX105: =+AW105+1 -> 2062 | AY105: =+AX105+1 -> 2063 | AZ105: =+AY105+1 -> 2064 | BA105: =+AZ105+1 -> 2065 | BB105: =+BA105+1 -> 2066 | BC105: =+BB105+1 -> 2067 | BD105: =+BC105+1 -> 2068 | BE105: =+BD105+1 -> 2069 | BF105: =+BE105+1 -> 2070 | BG105: =+BF105+1 -> 2071 | BH105: =+BG105+1 -> 2072 | BI105: =+BH105+1 -> 2073 | BJ105: =+BI105+1 -> 2074 | BK105: =+BJ105+1 -> 2075 | BL105: =+BK105+1 -> 2076 | BM105: =+BL105+1 -> 2077 | BN105: =+BM105+1 -> 2078 | BO105: =+BN105+1 -> 2079 | BP105: =+BO105+1 -> 2080 | BQ105: =+BP105+1 -> 2081 | BR105: =+BQ105+1 -> 2082 | BS105: =+BR105+1 -> 2083 | BT105: =+BS105+1 -> 2084 | BU105: =+BT105+1 -> 2085 | BV105: =+BU105+1 -> 2086 | BW105: =+BV105+1 -> 2087 | BX105: =+BW105+1 -> 2088 | BY105: =+BX105+1 -> 2089 | BZ105: =+BY105+1 -> 2090 | CA105: =+BZ105+1 -> 2091 | CB105: =+CA105+1 -> 2092 | CC105: =+CB105+1 -> 2093 | CD105: =+CC105+1 -> 2094 | CE105: =+CD105+1 -> 2095 | CF105: =+CE105+1 -> 2096 | CG105: =+CF105+1 -> 2097 | CH105: =+CG105+1 -> 2098
B106: Revenues | D106: =+CF!O19+CF!O20 -> 0 | E106: =+CF!P19+CF!P20 -> 1,308 | F106: =+CF!Q19+CF!Q20 -> 1,379 | G106: =+CF!R19+CF!R20 -> 1,446 | H106: =+CF!S19+CF!S20 -> 1,514 | I106: =+CF!T19+CF!T20 -> 1,601 | J106: =+CF!U19+CF!U20 -> 1,696 | K106: =+CF!V19+CF!V20 -> 1,797 | L106: =+CF!W19+CF!W20 -> 1,905 | M106: =+CF!X19+CF!X20 -> 2,019 | N106: =+CF!Y19+CF!Y20 -> 2,130 | O106: =+CF!Z19+CF!Z20 -> 2,246 | P106: =+CF!AA19+CF!AA20 -> 2,368 | Q106: =+CF!AB19+CF!AB20 -> 2,497 | R106: =+CF!AC19+CF!AC20 -> 2,633 | S106: =+CF!AD19+CF!AD20 -> 2,748 | T106: =+CF!AE19+CF!AE20 -> 2,862 | U106: =+CF!AF19+CF!AF20 -> 2,980 | V106: =+CF!AG19+CF!AG20 -> 3,103 | W106: =+CF!AH19+CF!AH20 -> 3,231 | X106: =+CF!AI19+CF!AI20 -> 3,361 | Y106: =+CF!AJ19+CF!AJ20 -> 3,495 | Z106: =+CF!AK19+CF!AK20 -> 3,635 | AA106: =+CF!AL19+CF!AL20 -> 3,781 | AB106: =+CF!AM19+CF!AM20 -> 3,932 | AC106: =+CF!AN19+CF!AN20 -> 4,073 | AD106: =+CF!AO19+CF!AO20 -> 4,215 | AE106: =+CF!AP19+CF!AP20 -> 4,363 | AF106: =+CF!AQ19+CF!AQ20 -> 4,515 | AG106: =+CF!AR19+CF!AR20 -> 4,673 | AH106: =+CF!AS19+CF!AS20 -> 4,842 | AI106: =+CF!AT19+CF!AT20 -> 5,019 | AJ106: =+CF!AU19+CF!AU20 -> 5,202 | AK106: =+CF!AV19+CF!AV20 -> 5,391 | AL106: =+CF!AW19+CF!AW20 -> 5,588 | AM106: =+CF!AX19+CF!AX20 -> 5,764 | AN106: =+CF!AY19+CF!AY20 -> 5,937 | AO106: =+CF!AZ19+CF!AZ20 -> 6,116 | AP106: =+CF!BA19+CF!BA20 -> 6,301 | AQ106: =+CF!BB19+CF!BB20 -> 6,491 | AR106: =+CF!BC19+CF!BC20 -> 6,686 | AS106: =+CF!BD19+CF!BD20 -> 6,888 | AT106: =+CF!BE19+CF!BE20 -> 7,096 | AU106: =+CF!BF19+CF!BF20 -> 7,310 | AV106: =+CF!BG19+CF!BG20 -> 7,530 | AW106: =+CF!BH19+CF!BH20 -> 7,757 | AX106: =+CF!BI19+CF!BI20 -> 7,991 | AY106: =+CF!BJ19+CF!BJ20 -> 8,232 | AZ106: =+CF!BK19+CF!BK20 -> 8,480 | BA106: =+CF!BL19+CF!BL20 -> 8,735 | BB106: =+CF!BM19+CF!BM20 -> 8,999 | BC106: =+CF!BN19+CF!BN20 -> 9,270 | BD106: =+CF!BO19+CF!BO20 -> 9,550 | BE106: =+CF!BP19+CF!BP20 -> 9,837 | BF106: =+CF!BQ19+CF!BQ20 -> 10,134 | BG106: =+CF!BR19+CF!BR20 -> 10,440 | BH106: =+CF!BS19+CF!BS20 -> 10,754 | BI106: =+CF!BT19+CF!BT20 -> 11,079 | BJ106: =+CF!BU19+CF!BU20 -> 11,413 | BK106: =+CF!BV19+CF!BV20 -> 11,757 | BL106: =+CF!BW19+CF!BW20 -> 12,111 | BM106: =+CF!BX19+CF!BX20 -> 12,476 | BN106: =+CF!BY19+CF!BY20 -> 12,853 | BO106: =+CF!BZ19+CF!BZ20 -> 13,241 | BP106: =+CF!CA19+CF!CA20 -> 13,640 | BQ106: =+CF!CB19+CF!CB20 -> 14,051 | BR106: =+CF!CC19+CF!CC20 -> 14,475 | BS106: =+CF!CD19+CF!CD20 -> 14,912 | BT106: =+CF!CE19+CF!CE20 -> 15,361 | BU106: =+CF!CF19+CF!CF20 -> 15,824 | BV106: =+CF!CG19+CF!CG20 -> 16,301 | BW106: =+CF!CH19+CF!CH20 -> 16,794 | BX106: =+CF!CI19+CF!CI20 -> 17,299 | BY106: =+CF!CJ19+CF!CJ20 -> 17,821 | BZ106: =+CF!CK19+CF!CK20 -> 18,358 | CA106: =+CF!CL19+CF!CL20 -> 18,913 | CB106: =+CF!CM19+CF!CM20 -> 19,483 | CC106: =+CF!CN19+CF!CN20 -> 20,070 | CD106: =+CF!CO19+CF!CO20 -> 20,675 | CE106: =+CF!CP19+CF!CP20 -> 21,300 | CF106: =+CF!CQ19+CF!CQ20 -> 21,942 | CG106: =+CF!CR19+CF!CR20 -> 26,396 | CH106: =+CF!CS19+CF!CS20 -> 0
B107: OPEX | D107: =+CF!O22 -> 0 | E107: =+CF!P22 -> -146 | F107: =+CF!Q22 -> -146 | G107: =+CF!R22 -> -147 | H107: =+CF!S22 -> -147 | I107: =+CF!T22 -> -150 | J107: =+CF!U22 -> -154 | K107: =+CF!V22 -> -157 | L107: =+CF!W22 -> -160 | M107: =+CF!X22 -> -164 | N107: =+CF!Y22 -> -167 | O107: =+CF!Z22 -> -171 | P107: =+CF!AA22 -> -174 | Q107: =+CF!AB22 -> -178 | R107: =+CF!AC22 -> -181 | S107: =+CF!AD22 -> -185 | T107: =+CF!AE22 -> -189 | U107: =+CF!AF22 -> -193 | V107: =+CF!AG22 -> -197 | W107: =+CF!AH22 -> -201 | X107: =+CF!AI22 -> -205 | Y107: =+CF!AJ22 -> -209 | Z107: =+CF!AK22 -> -214 | AA107: =+CF!AL22 -> -218 | AB107: =+CF!AM22 -> -223 | AC107: =+CF!AN22 -> -228 | AD107: =+CF!AO22 -> -232 | AE107: =+CF!AP22 -> -237 | AF107: =+CF!AQ22 -> -243 | AG107: =+CF!AR22 -> -248 | AH107: =+CF!AS22 -> -253 | AI107: =+CF!AT22 -> -258 | AJ107: =+CF!AU22 -> -263 | AK107: =+CF!AV22 -> -268 | AL107: =+CF!AW22 -> -273 | AM107: =+CF!AX22 -> -279 | AN107: =+CF!AY22 -> -285 | AO107: =+CF!AZ22 -> -290 | AP107: =+CF!BA22 -> -296 | AQ107: =+CF!BB22 -> -302 | AR107: =+CF!BC22 -> -308 | AS107: =+CF!BD22 -> -314 | AT107: =+CF!BE22 -> -320 | AU107: =+CF!BF22 -> -327 | AV107: =+CF!BG22 -> -333 | AW107: =+CF!BH22 -> -340 | AX107: =+CF!BI22 -> -347 | AY107: =+CF!BJ22 -> -354 | AZ107: =+CF!BK22 -> -361 | BA107: =+CF!BL22 -> -368 | BB107: =+CF!BM22 -> -375 | BC107: =+CF!BN22 -> -383 | BD107: =+CF!BO22 -> -391 | BE107: =+CF!BP22 -> -398 | BF107: =+CF!BQ22 -> -406 | BG107: =+CF!BR22 -> -415 | BH107: =+CF!BS22 -> -423 | BI107: =+CF!BT22 -> -431 | BJ107: =+CF!BU22 -> -440 | BK107: =+CF!BV22 -> -449 | BL107: =+CF!BW22 -> -458 | BM107: =+CF!BX22 -> -467 | BN107: =+CF!BY22 -> -476 | BO107: =+CF!BZ22 -> -486 | BP107: =+CF!CA22 -> -495 | BQ107: =+CF!CB22 -> -505 | BR107: =+CF!CC22 -> -515 | BS107: =+CF!CD22 -> -526 | BT107: =+CF!CE22 -> -536 | BU107: =+CF!CF22 -> -547 | BV107: =+CF!CG22 -> -558 | BW107: =+CF!CH22 -> -569 | BX107: =+CF!CI22 -> -580 | BY107: =+CF!CJ22 -> -592 | BZ107: =+CF!CK22 -> -604 | CA107: =+CF!CL22 -> -616 | CB107: =+CF!CM22 -> -628 | CC107: =+CF!CN22 -> -641 | CD107: =+CF!CO22 -> -654 | CE107: =+CF!CP22 -> -667 | CF107: =+CF!CQ22 -> -680 | CG107: =+CF!CR22 -> -694 | CH107: =+CF!CS22 -> 0
B108: Taxes | D108: =+CF!O30 -> 0 | E108: =+CF!P30 -> -189 | F108: =+CF!Q30 -> -199 | G108: =+CF!R30 -> -212 | H108: =+CF!S30 -> -223 | I108: =+CF!T30 -> -239 | J108: =+CF!U30 -> -258 | K108: =+CF!V30 -> -276 | L108: =+CF!W30 -> -297 | M108: =+CF!X30 -> -316 | N108: =+CF!Y30 -> -338 | O108: =+CF!Z30 -> -360 | P108: =+CF!AA30 -> -382 | Q108: =+CF!AB30 -> -410 | R108: =+CF!AC30 -> -438 | S108: =+CF!AD30 -> -464 | T108: =+CF!AE30 -> -487 | U108: =+CF!AF30 -> -511 | V108: =+CF!AG30 -> -535 | W108: =+CF!AH30 -> -567 | X108: =+CF!AI30 -> -596 | Y108: =+CF!AJ30 -> -627 | Z108: =+CF!AK30 -> -663 | AA108: =+CF!AL30 -> -711 | AB108: =+CF!AM30 -> -748 | AC108: =+CF!AN30 -> -784 | AD108: =+CF!AO30 -> -821 | AE108: =+CF!AP30 -> -855 | AF108: =+CF!AQ30 -> -895 | AG108: =+CF!AR30 -> -935 | AH108: =+CF!AS30 -> -977 | AI108: =+CF!AT30 -> -1,023 | AJ108: =+CF!AU30 -> -1,065 | AK108: =+CF!AV30 -> -1,117 | AL108: =+CF!AW30 -> -1,167 | AM108: =+CF!AX30 -> -1,208 | AN108: =+CF!AY30 -> -1,253 | AO108: =+CF!AZ30 -> -1,300 | AP108: =+CF!BA30 -> -1,367 | AQ108: =+CF!BB30 -> -1,424 | AR108: =+CF!BC30 -> -1,474 | AS108: =+CF!BD30 -> -1,526 | AT108: =+CF!BE30 -> -1,580 | AU108: =+CF!BF30 -> -1,630 | AV108: =+CF!BG30 -> -1,690 | AW108: =+CF!BH30 -> -1,751 | AX108: =+CF!BI30 -> -1,815 | AY108: =+CF!BJ30 -> -1,881 | AZ108: =+CF!BK30 -> -1,949 | BA108: =+CF!BL30 -> -2,017 | BB108: =+CF!BM30 -> -2,086 | BC108: =+CF!BN30 -> -2,159 | BD108: =+CF!BO30 -> -2,233 | BE108: =+CF!BP30 -> -2,310 | BF108: =+CF!BQ30 -> -2,391 | BG108: =+CF!BR30 -> -2,474 | BH108: =+CF!BS30 -> -2,560 | BI108: =+CF!BT30 -> -2,649 | BJ108: =+CF!BU30 -> -2,741 | BK108: =+CF!BV30 -> -2,837 | BL108: =+CF!BW30 -> -2,936 | BM108: =+CF!BX30 -> -3,039 | BN108: =+CF!BY30 -> -3,146 | BO108: =+CF!BZ30 -> -3,256 | BP108: =+CF!CA30 -> -3,371 | BQ108: =+CF!CB30 -> -3,490 | BR108: =+CF!CC30 -> -3,613 | BS108: =+CF!CD30 -> -3,741 | BT108: =+CF!CE30 -> -3,873 | BU108: =+CF!CF30 -> -4,010 | BV108: =+CF!CG30 -> -4,153 | BW108: =+CF!CH30 -> -4,297 | BX108: =+CF!CI30 -> -4,435 | BY108: =+CF!CJ30 -> -4,574 | BZ108: =+CF!CK30 -> -4,716 | CA108: =+CF!CL30 -> -4,860 | CB108: =+CF!CM30 -> -5,005 | CC108: =+CF!CN30 -> -5,151 | CD108: =+CF!CO30 -> -5,297 | CE108: =+CF!CP30 -> -5,444 | CF108: =+CF!CQ30 -> -5,607 | CG108: =+CF!CR30 -> -5,096 | CH108: =+CF!CS30 -> 0
B109: CAPEX | D109: =+CF!O24 -> 0 | E109: =+CF!P24 -> -157 | F109: =+CF!Q24 -> -123 | G109: =+CF!R24 -> -96 | H109: =+CF!S24 -> -75 | I109: =+CF!T24 -> -79 | J109: =+CF!U24 -> -83 | K109: =+CF!V24 -> -87 | L109: =+CF!W24 -> -91 | M109: =+CF!X24 -> -96 | N109: =+CF!Y24 -> -93 | O109: =+CF!Z24 -> -91 | P109: =+CF!AA24 -> -88 | Q109: =+CF!AB24 -> -86 | R109: =+CF!AC24 -> -83 | S109: =+CF!AD24 -> -84 | T109: =+CF!AE24 -> -86 | U109: =+CF!AF24 -> -87 | V109: =+CF!AG24 -> -88 | W109: =+CF!AH24 -> -89 | X109: =+CF!AI24 -> -93 | Y109: =+CF!AJ24 -> -96 | Z109: =+CF!AK24 -> -100 | AA109: =+CF!AL24 -> -104 | AB109: =+CF!AM24 -> -108 | AC109: =+CF!AN24 -> -108 | AD109: =+CF!AO24 -> -108 | AE109: =+CF!AP24 -> -108 | AF109: =+CF!AQ24 -> -108 | AG109: =+CF!AR24 -> -109 | AH109: =+CF!AS24 -> -111 | AI109: =+CF!AT24 -> -113 | AJ109: =+CF!AU24 -> -115 | AK109: =+CF!AV24 -> -118 | AL109: =+CF!AW24 -> -120 | AM109: =+CF!AX24 -> -122 | AN109: =+CF!AY24 -> -125 | AO109: =+CF!AZ24 -> -127 | AP109: =+CF!BA24 -> -130 | AQ109: =+CF!BB24 -> -132 | AR109: =+CF!BC24 -> -135 | AS109: =+CF!BD24 -> -138 | AT109: =+CF!BE24 -> -141 | AU109: =+CF!BF24 -> -143 | AV109: =+CF!BG24 -> -146 | AW109: =+CF!BH24 -> -149 | AX109: =+CF!BI24 -> -152 | AY109: =+CF!BJ24 -> -155 | AZ109: =+CF!BK24 -> -158 | BA109: =+CF!BL24 -> -161 | BB109: =+CF!BM24 -> -165 | BC109: =+CF!BN24 -> -168 | BD109: =+CF!BO24 -> -171 | BE109: =+CF!BP24 -> -175 | BF109: =+CF!BQ24 -> -178 | BG109: =+CF!BR24 -> -182 | BH109: =+CF!BS24 -> -185 | BI109: =+CF!BT24 -> -189 | BJ109: =+CF!BU24 -> -193 | BK109: =+CF!BV24 -> -197 | BL109: =+CF!BW24 -> -201 | BM109: =+CF!BX24 -> -205 | BN109: =+CF!BY24 -> -209 | BO109: =+CF!BZ24 -> -213 | BP109: =+CF!CA24 -> -217 | BQ109: =+CF!CB24 -> -222 | BR109: =+CF!CC24 -> -226 | BS109: =+CF!CD24 -> -231 | BT109: =+CF!CE24 -> -235 | BU109: =+CF!CF24 -> -240 | BV109: =+CF!CG24 -> -245 | BW109: =+CF!CH24 -> -250 | BX109: =+CF!CI24 -> -254 | BY109: =+CF!CJ24 -> -260 | BZ109: =+CF!CK24 -> -265 | CA109: =+CF!CL24 -> -270 | CB109: =+CF!CM24 -> -275 | CC109: =+CF!CN24 -> -281 | CD109: =+CF!CO24 -> -287 | CE109: =+CF!CP24 -> -292 | CF109: =+CF!CQ24 -> -298 | CG109: =+CF!CR24 -> -304 | CH109: =+CF!CS24 -> 0
B110: Working Capital | D110: =+CF!O26 -> 0 | E110: =+CF!P26 -> -94 | F110: =+CF!Q26 -> -0 | G110: =+CF!R26 -> 0 | H110: =+CF!S26 -> -0 | I110: =+CF!T26 -> 0 | J110: =+CF!U26 -> 0 | K110: =+CF!V26 -> -0 | L110: =+CF!W26 -> 0 | M110: =+CF!X26 -> 0 | N110: =+CF!Y26 -> 0 | O110: =+CF!Z26 -> 0 | P110: =+CF!AA26 -> -0 | Q110: =+CF!AB26 -> 0 | R110: =+CF!AC26 -> -0 | S110: =+CF!AD26 -> -0 | T110: =+CF!AE26 -> -0 | U110: =+CF!AF26 -> 0 | V110: =+CF!AG26 -> -0 | W110: =+CF!AH26 -> 0 | X110: =+CF!AI26 -> 0 | Y110: =+CF!AJ26 -> 0 | Z110: =+CF!AK26 -> -0 | AA110: =+CF!AL26 -> 0 | AB110: =+CF!AM26 -> 0 | AC110: =+CF!AN26 -> 0 | AD110: =+CF!AO26 -> -0 | AE110: =+CF!AP26 -> 0 | AF110: =+CF!AQ26 -> 0 | AG110: =+CF!AR26 -> 0 | AH110: =+CF!AS26 -> -0 | AI110: =+CF!AT26 -> 0 | AJ110: =+CF!AU26 -> 0 | AK110: =+CF!AV26 -> 0 | AL110: =+CF!AW26 -> 0 | AM110: =+CF!AX26 -> 0 | AN110: =+CF!AY26 -> 0 | AO110: =+CF!AZ26 -> 0 | AP110: =+CF!BA26 -> 0 | AQ110: =+CF!BB26 -> 0 | AR110: =+CF!BC26 -> 0 | AS110: =+CF!BD26 -> 0 | AT110: =+CF!BE26 -> 0 | AU110: =+CF!BF26 -> 0 | AV110: =+CF!BG26 -> 0 | AW110: =+CF!BH26 -> 0 | AX110: =+CF!BI26 -> 0 | AY110: =+CF!BJ26 -> 0 | AZ110: =+CF!BK26 -> 0 | BA110: =+CF!BL26 -> 0 | BB110: =+CF!BM26 -> -0 | BC110: =+CF!BN26 -> 0 | BD110: =+CF!BO26 -> 0 | BE110: =+CF!BP26 -> 0 | BF110: =+CF!BQ26 -> 0 | BG110: =+CF!BR26 -> 0 | BH110: =+CF!BS26 -> 0 | BI110: =+CF!BT26 -> 0 | BJ110: =+CF!BU26 -> 0 | BK110: =+CF!BV26 -> 0 | BL110: =+CF!BW26 -> 0 | BM110: =+CF!BX26 -> 0 | BN110: =+CF!BY26 -> 0 | BO110: =+CF!BZ26 -> 0 | BP110: =+CF!CA26 -> 0 | BQ110: =+CF!CB26 -> 0 | BR110: =+CF!CC26 -> 0 | BS110: =+CF!CD26 -> -0 | BT110: =+CF!CE26 -> 0 | BU110: =+CF!CF26 -> -0 | BV110: =+CF!CG26 -> -0 | BW110: =+CF!CH26 -> 0 | BX110: =+CF!CI26 -> 0 | BY110: =+CF!CJ26 -> 0 | BZ110: =+CF!CK26 -> 0 | CA110: =+CF!CL26 -> 0 | CB110: =+CF!CM26 -> 0 | CC110: =+CF!CN26 -> 0 | CD110: =+CF!CO26 -> 0 | CE110: =+CF!CP26 -> 0 | CF110: =+CF!CQ26 -> 0 | CG110: =+CF!CR26 -> -532 | CH110: =+CF!CS26 -> 0
B111: CFADS | D111: =+SUM(D106:D110) -> 0 | E111: =+SUM(E106:E110) -> 722 | F111: 911 | G111: 991 | H111: 1,069 | I111: 1,132 | J111: 1,202 | K111: 1,277 | L111: 1,357 | M111: 1,443 | N111: 1,532 | O111: 1,625 | P111: 1,724 | Q111: 1,824 | R111: 1,930 | S111: 2,015 | T111: 2,101 | U111: 2,189 | V111: 2,283 | W111: 2,375 | X111: 2,468 | Y111: 2,563 | Z111: 2,659 | AA111: 2,748 | AB111: 2,854 | AC111: 2,953 | AD111: 3,054 | AE111: 3,163 | AF111: 3,269 | AG111: 3,382 | AH111: 3,501 | AI111: 3,626 | AJ111: 3,759 | AK111: 3,889 | AL111: 4,027 | AM111: 4,154 | AN111: 4,275 | AO111: 4,399 | AP111: 4,507 | AQ111: 4,632 | AR111: 4,769 | AS111: 4,910 | AT111: 5,054 | AU111: 5,209 | AV111: 5,361 | AW111: 5,516 | AX111: =+SUM(AX106:AX110) -> 5,677 | AY111: =+SUM(AY106:AY110) -> 5,842 | AZ111: =+SUM(AZ106:AZ110) -> 6,012 | BA111: =+SUM(BA106:BA110) -> 6,189 | BB111: =+SUM(BB106:BB110) -> 6,372 | BC111: =+SUM(BC106:BC110) -> 6,561 | BD111: =+SUM(BD106:BD110) -> 6,755 | BE111: =+SUM(BE106:BE110) -> 6,954 | BF111: =+SUM(BF106:BF110) -> 7,159 | BG111: =+SUM(BG106:BG110) -> 7,370 | BH111: =+SUM(BH106:BH110) -> 7,587 | BI111: =+SUM(BI106:BI110) -> 7,809 | BJ111: =+SUM(BJ106:BJ110) -> 8,039 | BK111: =+SUM(BK106:BK110) -> 8,275 | BL111: =+SUM(BL106:BL110) -> 8,517 | BM111: =+SUM(BM106:BM110) -> 8,766 | BN111: =+SUM(BN106:BN110) -> 9,022 | BO111: =+SUM(BO106:BO110) -> 9,286 | BP111: =+SUM(BP106:BP110) -> 9,556 | BQ111: =+SUM(BQ106:BQ110) -> 9,834 | BR111: =+SUM(BR106:BR110) -> 10,120 | BS111: =+SUM(BS106:BS110) -> 10,415 | BT111: =+SUM(BT106:BT110) -> 10,717 | BU111: =+SUM(BU106:BU110) -> 11,027 | BV111: =+SUM(BV106:BV110) -> 11,346 | BW111: =+SUM(BW106:BW110) -> 11,679 | BX111: =+SUM(BX106:BX110) -> 12,030 | BY111: =+SUM(BY106:BY110) -> 12,396 | BZ111: =+SUM(BZ106:BZ110) -> 12,774 | CA111: =+SUM(CA106:CA110) -> 13,167 | CB111: =+SUM(CB106:CB110) -> 13,574 | CC111: =+SUM(CC106:CC110) -> 13,998 | CD111: =+SUM(CD106:CD110) -> 14,438 | CE111: =+SUM(CE106:CE110) -> 14,897 | CF111: =+SUM(CF106:CF110) -> 15,356 | CG111: =+SUM(CG106:CG110) -> 19,771 | CH111: =+SUM(CH106:CH110) -> 0
B113: Debt
B114: Drawdowns | D114: =+CF!O36 -> 0 | E114: =+CF!P36 -> 800 | F114: =+CF!Q36 -> 282.3933299 | G114: =+CF!R36 -> 591.1407447 | H114: =+CF!S36 -> 1019.978058 | I114: =+CF!T36 -> 762.5879966 | J114: =+CF!U36 -> 483.9104032 | K114: =+CF!V36 -> 756.2328839 | L114: =+CF!W36 -> 529.5778431 | M114: =+CF!X36 -> 907.1199356 | N114: =+CF!Y36 -> 770.0039183 | O114: =+CF!Z36 -> 434.1093653 | P114: =+CF!AA36 -> 848.6816222 | Q114: =+CF!AB36 -> 463.7572281 | R114: =+CF!AC36 -> 869.2056512 | S114: =+CF!AD36 -> 327.9192331 | T114: =+CF!AE36 -> 585.5330141 | U114: =+CF!AF36 -> 343.3528089 | V114: =+CF!AG36 -> 691.3717776 | W114: =+CF!AH36 -> 839.6267145 | X114: =+CF!AI36 -> 163.6742614 | Y114: =+CF!AJ36 -> 157.14675 | Z114: =+CF!AK36 -> 167.2687883 | AA114: =+CF!AL36 -> 292.9971034 | AB114: =+CF!AM36 -> 479.0209752 | AC114: =+CF!AN36 -> 400 | AD114: =+CF!AO36 -> 0 | AE114: =+CF!AP36 -> 500 | AF114: =+CF!AQ36 -> 150 | AG114: =+CF!AR36 -> 500 | AH114: =+CF!AS36 -> 500 | AI114: =+CF!AT36 -> 0 | AJ114: =+CF!AU36 -> 800 | AK114: =+CF!AV36 -> 0 | AL114: =+CF!AW36 -> 0 | AM114: =+CF!AX36 -> 400 | AN114: =+CF!AY36 -> 200 | AO114: =+CF!AZ36 -> 0 | AP114: =+CF!BA36 -> 0 | AQ114: =+CF!BB36 -> 0 | AR114: =+CF!BC36 -> 0 | AS114: =+CF!BD36 -> 0 | AT114: =+CF!BE36 -> 0 | AU114: =+CF!BF36 -> 0 | AV114: =+CF!BG36 -> 0 | AW114: =+CF!BH36 -> 0 | AX114: =+CF!BI36 -> 0 | AY114: =+CF!BJ36 -> 0 | AZ114: =+CF!BK36 -> 0 | BA114: =+CF!BL36 -> 0 | BB114: =+CF!BM36 -> 0 | BC114: =+CF!BN36 -> 0 | BD114: =+CF!BO36 -> 0 | BE114: =+CF!BP36 -> 0 | BF114: =+CF!BQ36 -> 0 | BG114: =+CF!BR36 -> 0 | BH114: =+CF!BS36 -> 0 | BI114: =+CF!BT36 -> 0 | BJ114: =+CF!BU36 -> 0 | BK114: =+CF!BV36 -> 0 | BL114: =+CF!BW36 -> 0 | BM114: =+CF!BX36 -> 0 | BN114: =+CF!BY36 -> 0 | BO114: =+CF!BZ36 -> 0 | BP114: =+CF!CA36 -> 0 | BQ114: =+CF!CB36 -> 0 | BR114: =+CF!CC36 -> 0 | BS114: =+CF!CD36 -> 0 | BT114: =+CF!CE36 -> 0 | BU114: =+CF!CF36 -> 0 | BV114: =+CF!CG36 -> 0 | BW114: =+CF!CH36 -> 0 | BX114: =+CF!CI36 -> 0 | BY114: =+CF!CJ36 -> 0 | BZ114: =+CF!CK36 -> 0 | CA114: =+CF!CL36 -> 0 | CB114: =+CF!CM36 -> 0 | CC114: =+CF!CN36 -> 0 | CD114: =+CF!CO36 -> 0 | CE114: =+CF!CP36 -> 0 | CF114: =+CF!CQ36 -> 0 | CG114: =+CF!CR36 -> 0 | CH114: =+CF!CS36 -> 0
B115: Interests and fees | D115: =+SUM(CF!O37:O37) -> 0 | E115: =+SUM(CF!P37:P37) -> -365 | F115: =+SUM(CF!Q37:Q37) -> -400 | G115: =+SUM(CF!R37:R37) -> -408 | H115: =+SUM(CF!S37:S37) -> -429 | I115: =+SUM(CF!T37:T37) -> -447 | J115: =+SUM(CF!U37:U37) -> -467 | K115: =+SUM(CF!V37:V37) -> -492 | L115: =+SUM(CF!W37:W37) -> -518 | M115: =+SUM(CF!X37:X37) -> -554 | N115: =+SUM(CF!Y37:Y37) -> -573 | O115: =+SUM(CF!Z37:Z37) -> -600 | P115: =+SUM(CF!AA37:AA37) -> -630 | Q115: =+SUM(CF!AB37:AB37) -> -649 | R115: =+SUM(CF!AC37:AC37) -> -673 | S115: =+SUM(CF!AD37:AD37) -> -683 | T115: =+SUM(CF!AE37:AE37) -> -702 | U115: =+SUM(CF!AF37:AF37) -> -721 | V115: =+SUM(CF!AG37:AG37) -> -747 | W115: =+SUM(CF!AH37:AH37) -> -750 | X115: =+SUM(CF!AI37:AI37) -> -763 | Y115: =+SUM(CF!AJ37:AJ37) -> -780 | Z115: =+SUM(CF!AK37:AK37) -> -781 | AA115: =+SUM(CF!AL37:AL37) -> -741 | AB115: =+SUM(CF!AM37:AM37) -> -750 | AC115: =+SUM(CF!AN37:AN37) -> -748 | AD115: =+SUM(CF!AO37:AO37) -> -749 | AE115: =+SUM(CF!AP37:AP37) -> -764 | AF115: =+SUM(CF!AQ37:AQ37) -> -758 | AG115: =+SUM(CF!AR37:AR37) -> -762 | AH115: =+SUM(CF!AS37:AS37) -> -769 | AI115: =+SUM(CF!AT37:AT37) -> -772 | AJ115: =+SUM(CF!AU37:AU37) -> -792 | AK115: =+SUM(CF!AV37:AV37) -> -780 | AL115: =+SUM(CF!AW37:AW37) -> -780 | AM115: =+SUM(CF!AX37:AX37) -> -791 | AN115: =+SUM(CF!AY37:AY37) -> -877 | AO115: =+SUM(CF!AZ37:AZ37) -> -784 | AP115: =+SUM(CF!BA37:BA37) -> -784 | AQ115: =+SUM(CF!BB37:BB37) -> -784 | AR115: =+SUM(CF!BC37:BC37) -> -784 | AS115: =+SUM(CF!BD37:BD37) -> -784 | AT115: =+SUM(CF!BE37:BE37) -> -784 | AU115: =+SUM(CF!BF37:BF37) -> -807 | AV115: =+SUM(CF!BG37:BG37) -> -798 | AW115: =+SUM(CF!BH37:BH37) -> -787 | AX115: =+SUM(CF!BI37:BI37) -> -773 | AY115: =+SUM(CF!BJ37:BJ37) -> -758 | AZ115: =+SUM(CF!BK37:BK37) -> -740 | BA115: =+SUM(CF!BL37:BL37) -> -729 | BB115: =+SUM(CF!BM37:BM37) -> -723 | BC115: =+SUM(CF!BN37:BN37) -> -716 | BD115: =+SUM(CF!BO37:BO37) -> -707 | BE115: =+SUM(CF!BP37:BP37) -> -697 | BF115: =+SUM(CF!BQ37:BQ37) -> -685 | BG115: =+SUM(CF!BR37:BR37) -> -670 | BH115: =+SUM(CF!BS37:BS37) -> -654 | BI115: =+SUM(CF!BT37:BT37) -> -635 | BJ115: =+SUM(CF!BU37:BU37) -> -613 | BK115: =+SUM(CF!BV37:BV37) -> -589 | BL115: =+SUM(CF!BW37:BW37) -> -563 | BM115: =+SUM(CF!BX37:BX37) -> -533 | BN115: =+SUM(CF!BY37:BY37) -> -500 | BO115: =+SUM(CF!BZ37:BZ37) -> -463 | BP115: =+SUM(CF!CA37:CA37) -> -423 | BQ115: =+SUM(CF!CB37:CB37) -> -379 | BR115: =+SUM(CF!CC37:CC37) -> -331 | BS115: =+SUM(CF!CD37:CD37) -> -278 | BT115: =+SUM(CF!CE37:CE37) -> -221 | BU115: =+SUM(CF!CF37:CF37) -> -159 | BV115: =+SUM(CF!CG37:CG37) -> -91 | BW115: =+SUM(CF!CH37:CH37) -> -28 | BX115: =+SUM(CF!CI37:CI37) -> -0 | BY115: =+SUM(CF!CJ37:CJ37) -> -0 | BZ115: =+SUM(CF!CK37:CK37) -> -0 | CA115: =+SUM(CF!CL37:CL37) -> -0 | CB115: =+SUM(CF!CM37:CM37) -> -0 | CC115: =+SUM(CF!CN37:CN37) -> -0 | CD115: =+SUM(CF!CO37:CO37) -> -0 | CE115: =+SUM(CF!CP37:CP37) -> -0 | CF115: =+SUM(CF!CQ37:CQ37) -> -0 | CG115: =+SUM(CF!CR37:CR37) -> -0 | CH115: =+SUM(CF!CS37:CS37) -> 0
B116: Repayment | D116: =+CF!O38 -> 0 | E116: =+CF!P38 -> -455.9908996 | F116: =+CF!Q38 -> -18.22697293 | G116: =+CF!R38 -> -318.9771513 | H116: =+CF!S38 -> -739.5751235 | I116: =+CF!T38 -> -320.5658236 | J116: =+CF!U38 -> -21.41362853 | K116: =+CF!V38 -> -272.3131177 | L116: =+CF!W38 -> -23.24276593 | M116: =+CF!X38 -> -377.3312634 | N116: =+CF!Y38 -> -375.2402103 | O116: =+CF!Z38 -> -26.32363236 | P116: =+CF!AA38 -> -427.4443082 | Q116: =+CF!AB38 -> -28.6246073 | R116: =+CF!AC38 -> -419.7193608 | S116: =+CF!AD38 -> -31.16782264 | T116: =+CF!AE38 -> -282.5253315 | U116: =+CF!AF38 -> -33.95695611 | V116: =+CF!AG38 -> -375.4530757 | W116: =+CF!AH38 -> -517.0476454 | X116: =+CF!AI38 -> -38.70027976 | Y116: =+CF!AJ38 -> -31.17307911 | Z116: =+CF!AK38 -> -40.28743146 | AA116: =+CF!AL38 -> -165 | AB116: =+CF!AM38 -> -350 | AC116: =+CF!AN38 -> -400 | AD116: =+CF!AO38 -> 0 | AE116: =+CF!AP38 -> -500 | AF116: =+CF!AQ38 -> -150 | AG116: =+CF!AR38 -> -500 | AH116: =+CF!AS38 -> -500 | AI116: =+CF!AT38 -> 0 | AJ116: =+CF!AU38 -> -800 | AK116: =+CF!AV38 -> 0 | AL116: =+CF!AW38 -> 0 | AM116: =+CF!AX38 -> -400 | AN116: =+CF!AY38 -> -200 | AO116: =+CF!AZ38 -> 0 | AP116: =+CF!BA38 -> 0 | AQ116: =+CF!BB38 -> 0 | AR116: =+CF!BC38 -> 0 | AS116: =+CF!BD38 -> 0 | AT116: =+CF!BE38 -> 0 | AU116: =+CF!BF38 -> -164.9466313 | AV116: =+CF!BG38 -> -200.6097733 | AW116: =+CF!BH38 -> -240.8366459 | AX116: =+CF!BI38 -> -283.2702926 | AY116: =+CF!BJ38 -> -329.4453724 | AZ116: =+CF!BK38 -> -376.6564336 | BA116: =+CF!BL38 -> -95.48221426 | BB116: =+CF!BM38 -> -125.0510134 | BC116: =+CF!BN38 -> -157.4343125 | BD116: =+CF!BO38 -> -190.3778921 | BE116: =+CF!BP38 -> -227.514484 | BF116: =+CF!BQ38 -> -266.7137369 | BG116: =+CF!BR38 -> -309.3708151 | BH116: =+CF!BS38 -> -352.9605357 | BI116: =+CF!BT38 -> -401.5895496 | BJ116: =+CF!BU38 -> -452.8737059 | BK116: =+CF!BV38 -> -508.4007166 | BL116: =+CF!BW38 -> -565.3430966 | BM116: =+CF!BX38 -> -628.3444186 | BN116: =+CF!BY38 -> -694.7378792 | BO116: =+CF!BZ38 -> -766.3314707 | BP116: =+CF!CA38 -> -839.960717 | BQ116: =+CF!CB38 -> -920.8777297 | BR116: =+CF!CC38 -> -1006.101231 | BS116: =+CF!CD38 -> -1097.691442 | BT116: =+CF!CE38 -> -1192.108562 | BU116: =+CF!CF38 -> -1295.294699 | BV116: =+CF!CG38 -> -1403.918956 | BW116: =+CF!CH38 -> -1122.366079 | BX116: =+CF!CI38 -> 0 | BY116: =+CF!CJ38 -> 0 | BZ116: =+CF!CK38 -> 0 | CA116: =+CF!CL38 -> 0 | CB116: =+CF!CM38 -> 0 | CC116: =+CF!CN38 -> 0 | CD116: =+CF!CO38 -> 0 | CE116: =+CF!CP38 -> 0 | CF116: =+CF!CQ38 -> 0 | CG116: =+CF!CR38 -> 0 | CH116: =+CF!CS38 -> 0
B117: Financial Income | D117: =+CF!O34 -> 0 | E117: =+CF!P34 -> 20.25 | F117: =+CF!Q34 -> 25.37094135 | G117: =+CF!R34 -> 22.44232019 | H117: =+CF!S34 -> 19.72742536 | I117: =+CF!T34 -> 16.84341657 | J117: =+CF!U34 -> 17.59136032 | K117: =+CF!V34 -> 18.73786823 | L117: =+CF!W34 -> 20.26030424 | M117: =+CF!X34 -> 22.21384908 | N117: =+CF!Y34 -> 23.8445492 | O117: =+CF!Z34 -> 23.24746851 | P117: =+CF!AA34 -> 23.26737691 | Q117: =+CF!AB34 -> 23.92049487 | R117: =+CF!AC34 -> 25.45424478 | S117: =+CF!AD34 -> 27.88134044 | T117: =+CF!AE34 -> 27.8704706 | U117: =+CF!AF34 -> 28.34390787 | V117: =+CF!AG34 -> 29.35021854 | W117: =+CF!AH34 -> 30.83901817 | X117: =+CF!AI34 -> 33.19857378 | Y117: =+CF!AJ34 -> 32.304494 | Z117: =+CF!AK34 -> 32.00754638 | AA117: =+CF!AL34 -> 32.61945616 | AB117: =+CF!AM34 -> 34.82141692 | AC117: =+CF!AN34 -> 37.9653311 | AD117: =+CF!AO34 -> 38.80235022 | AE117: =+CF!AP34 -> 39.75346529 | AF117: =+CF!AQ34 -> 40.61303389 | AG117: =+CF!AR34 -> 41.66475009 | AH117: =+CF!AS34 -> 42.7474912 | AI117: =+CF!AT34 -> 43.80126898 | AJ117: =+CF!AU34 -> 44.89470398 | AK117: =+CF!AV34 -> 45.75659187 | AL117: =+CF!AW34 -> 46.84009045 | AM117: =+CF!AX34 -> 47.95664523 | AN117: =+CF!AY34 -> 49.09435907 | AO117: =+CF!AZ34 -> 48.53708002 | AP117: =+CF!BA34 -> 49.82136259 | AQ117: =+CF!BB34 -> 50.72987825 | AR117: =+CF!BC34 -> 51.48663277 | AS117: =+CF!BD34 -> 53.34672115 | AT117: =+CF!BE34 -> 56.37630468 | AU117: =+CF!BF34 -> 60.64418104 | AV117: =+CF!BG34 -> 62.59779025 | AW117: =+CF!BH34 -> 65.29791046 | AX117: =+CF!BI34 -> 66.84941959 | AY117: =+CF!BJ34 -> 67.15913607 | AZ117: =+CF!BK34 -> 66.10399386 | BA117: =+CF!BL34 -> 63.59598907 | BB117: =+CF!BM34 -> 66.02045187 | BC117: =+CF!BN34 -> 68.55476222 | BD117: =+CF!BO34 -> 71.19490181 | BE117: =+CF!BP34 -> 73.96729845 | BF117: =+CF!BQ34 -> 76.8410409 | BG117: =+CF!BR34 -> 79.83030002 | BH117: =+CF!BS34 -> 82.91699576 | BI117: =+CF!BT34 -> 86.12891655 | BJ117: =+CF!BU34 -> 89.42914655 | BK117: =+CF!BV34 -> 92.83142677 | BL117: =+CF!BW34 -> 96.32719374 | BM117: =+CF!BX34 -> 100.0512781 | BN117: =+CF!BY34 -> 103.9682254 | BO117: =+CF!BZ34 -> 108.0999252 | BP117: =+CF!CA34 -> 112.4434389 | BQ117: =+CF!CB34 -> 117.0394164 | BR117: =+CF!CC34 -> 121.7941324 | BS117: =+CF!CD34 -> 126.7270408 | BT117: =+CF!CE34 -> 131.8293366 | BU117: =+CF!CF34 -> 137.1410119 | BV117: =+CF!CG34 -> 142.6095057 | BW117: =+CF!CH34 -> 141.9681138 | BX117: =+CF!CI34 -> 142.3500969 | BY117: =+CF!CJ34 -> 159.4842826 | BZ117: =+CF!CK34 -> 170.1508356 | CA117: =+CF!CL34 -> 173.6029729 | CB117: =+CF!CM34 -> 164.8215421 | CC117: =+CF!CN34 -> 142.254247 | CD117: =+CF!CO34 -> 104.2329828 | CE117: =+CF!CP34 -> 48.93675658 | CF117: =+CF!CQ34 -> 39.24631582 | CG117: =+CF!CR34 -> 37.75538206 | CH117: =+CF!CS34 -> 0
B118: Outstanding Debt | E118: =+Fin!P27+Fin!P33 -> 8,684 | F118: =+Fin!Q27+Fin!Q33 -> 8,948 | G118: =+Fin!R27+Fin!R33 -> 9,221 | H118: =+Fin!S27+Fin!S33 -> 9,501 | I118: =+Fin!T27+Fin!T33 -> 9,943 | J118: =+Fin!U27+Fin!U33 -> 10,406 | K118: =+Fin!V27+Fin!V33 -> 10,889 | L118: =+Fin!W27+Fin!W33 -> 11,396 | M118: =+Fin!X27+Fin!X33 -> 11,926 | N118: =+Fin!Y27+Fin!Y33 -> 12,320 | O118: =+Fin!Z27+Fin!Z33 -> 12,728 | P118: =+Fin!AA27+Fin!AA33 -> 13,149 | Q118: =+Fin!AB27+Fin!AB33 -> 13,585 | R118: =+Fin!AC27+Fin!AC33 -> 14,034 | S118: =+Fin!AD27+Fin!AD33 -> 14,331 | T118: =+Fin!AE27+Fin!AE33 -> 14,634 | U118: =+Fin!AF27+Fin!AF33 -> 14,943 | V118: =+Fin!AG27+Fin!AG33 -> 15,259 | W118: =+Fin!AH27+Fin!AH33 -> 15,582 | X118: =+Fin!AI27+Fin!AI33 -> 15,707 | Y118: =+Fin!AJ27+Fin!AJ33 -> 15,833 | Z118: =+Fin!AK27+Fin!AK33 -> 15,960 | AA118: =+Fin!AL27+Fin!AL33 -> 16,088 | AB118: =+Fin!AM27+Fin!AM33 -> 16,217 | AC118: =+Fin!AN27+Fin!AN33 -> 16,217 | AD118: =+Fin!AO27+Fin!AO33 -> 16,217 | AE118: =+Fin!AP27+Fin!AP33 -> 16,217 | AF118: =+Fin!AQ27+Fin!AQ33 -> 16,217 | AG118: =+Fin!AR27+Fin!AR33 -> 16,217 | AH118: =+Fin!AS27+Fin!AS33 -> 16,217 | AI118: =+Fin!AT27+Fin!AT33 -> 16,217 | AJ118: =+Fin!AU27+Fin!AU33 -> 16,217 | AK118: =+Fin!AV27+Fin!AV33 -> 16,217 | AL118: =+Fin!AW27+Fin!AW33 -> 16,217 | AM118: =+Fin!AX27+Fin!AX33 -> 16,217 | AN118: =+Fin!AY27+Fin!AY33 -> 16,217 | AO118: =+Fin!AZ27+Fin!AZ33 -> 16,217 | AP118: =+Fin!BA27+Fin!BA33 -> 16,217 | AQ118: =+Fin!BB27+Fin!BB33 -> 16,217 | AR118: =+Fin!BC27+Fin!BC33 -> 16,217 | AS118: =+Fin!BD27+Fin!BD33 -> 16,217 | AT118: =+Fin!BE27+Fin!BE33 -> 16,217 | AU118: =+Fin!BF27+Fin!BF33 -> 16,052 | AV118: =+Fin!BG27+Fin!BG33 -> 15,851 | AW118: =+Fin!BH27+Fin!BH33 -> 15,610 | AX118: =+Fin!BI27+Fin!BI33 -> 15,327 | AY118: =+Fin!BJ27+Fin!BJ33 -> 14,998 | AZ118: =+Fin!BK27+Fin!BK33 -> 14,621 | BA118: =+Fin!BL27+Fin!BL33 -> 14,525 | BB118: =+Fin!BM27+Fin!BM33 -> 14,400 | BC118: =+Fin!BN27+Fin!BN33 -> 14,243 | BD118: =+Fin!BO27+Fin!BO33 -> 14,052 | BE118: =+Fin!BP27+Fin!BP33 -> 13,825 | BF118: =+Fin!BQ27+Fin!BQ33 -> 13,558 | BG118: =+Fin!BR27+Fin!BR33 -> 13,249 | BH118: =+Fin!BS27+Fin!BS33 -> 12,896 | BI118: =+Fin!BT27+Fin!BT33 -> 12,494 | BJ118: =+Fin!BU27+Fin!BU33 -> 12,041 | BK118: =+Fin!BV27+Fin!BV33 -> 11,533 | BL118: =+Fin!BW27+Fin!BW33 -> 10,968 | BM118: =+Fin!BX27+Fin!BX33 -> 10,339 | BN118: =+Fin!BY27+Fin!BY33 -> 9,645 | BO118: =+Fin!BZ27+Fin!BZ33 -> 8,878 | BP118: =+Fin!CA27+Fin!CA33 -> 8,038 | BQ118: =+Fin!CB27+Fin!CB33 -> 7,117 | BR118: =+Fin!CC27+Fin!CC33 -> 6,111 | BS118: =+Fin!CD27+Fin!CD33 -> 5,014 | BT118: =+Fin!CE27+Fin!CE33 -> 3,822 | BU118: =+Fin!CF27+Fin!CF33 -> 2,526 | BV118: =+Fin!CG27+Fin!CG33 -> 1,122 | BW118: =+Fin!CH27+Fin!CH33 -> 0 | BX118: =+Fin!CI27+Fin!CI33 -> 0 | BY118: =+Fin!CJ27+Fin!CJ33 -> 0 | BZ118: =+Fin!CK27+Fin!CK33 -> 0 | CA118: =+Fin!CL27+Fin!CL33 -> 0 | CB118: =+Fin!CM27+Fin!CM33 -> 0 | CC118: =+Fin!CN27+Fin!CN33 -> 0 | CD118: =+Fin!CO27+Fin!CO33 -> 0 | CE118: =+Fin!CP27+Fin!CP33 -> 0 | CF118: =+Fin!CQ27+Fin!CQ33 -> 0 | CG118: =+Fin!CR27+Fin!CR33 -> 0 | CH118: =+Fin!CS27+Fin!CS33 -> 0
B121: DSRA movements | D121: =+CF!O44 -> 0 | E121: =+CF!P44 -> -43.19874532 | F121: =+CF!Q44 -> -19.61854809 | G121: =+CF!R44 -> -15.38239019 | H121: =+CF!S44 -> -5.164724718 | I121: =+CF!T44 -> -28.046214 | J121: =+CF!U44 -> -27.90322396 | K121: =+CF!V44 -> -15.65674136 | L121: =+CF!W44 -> -34.59349986 | M121: =+CF!X44 -> -31.01025771 | N121: =+CF!Y44 -> -13.61283209 | O121: =+CF!Z44 -> -32.06977469 | P121: =+CF!AA44 -> -1.655897008 | Q121: =+CF!AB44 -> -33.32407198 | R121: =+CF!AC44 -> -18.84313549 | S121: =+CF!AD44 -> -22.83630618 | T121: =+CF!AE44 -> -9.812145574 | U121: =+CF!AF44 -> -25.86811466 | V121: =+CF!AG44 -> -13.78679995 | W121: =+CF!AH44 -> -25.0825244 | X121: =+CF!AI44 -> -8.020525285 | Y121: =+CF!AJ44 -> -8.110388457 | Z121: =+CF!AK44 -> 37.46902185 | AA121: =+CF!AL44 -> -6.059283305 | AB121: =+CF!AM44 -> -0.7261320202 | AC121: =+CF!AN44 -> 13.546 | AD121: =+CF!AO44 -> -12.5 | AE121: =+CF!AP44 -> 11.31 | AF121: =+CF!AQ44 -> -8.34 | AG121: =+CF!AR44 -> 3.18 | AH121: =+CF!AS44 -> 14.89 | AI121: =+CF!AT44 -> -20 | AJ121: =+CF!AU44 -> 26.02874532 | AK121: =+CF!AV44 -> 0 | AL121: =+CF!AW44 -> -10 | AM121: =+CF!AX44 -> 7.958 | AN121: =+CF!AY44 -> 7.47 | AO121: =+CF!AZ44 -> 0 | AP121: =+CF!BA44 -> 0 | AQ121: =+CF!BB44 -> 0 | AR121: =+CF!BC44 -> 0 | AS121: =+CF!BD44 -> 0 | AT121: =+CF!BE44 -> -187.3197422 | AU121: =+CF!BF44 -> -26.52423185 | AV121: =+CF!BG44 -> -29.19071218 | AW121: =+CF!BH44 -> -29.33097317 | AX121: =+CF!BI44 -> -30.85718824 | AY121: =+CF!BJ44 -> -29.55851607 | AZ121: =+CF!BK44 -> 292.9776856 | BA121: =+CF!BL44 -> -24.05546842 | BB121: =+CF!BM44 -> -25.32116603 | BC121: =+CF!BN44 -> -24.24827448 | BD121: =+CF!BO44 -> -26.6892825 | BE121: =+CF!BP44 -> -26.8435473 | BF121: =+CF!BQ44 -> -28.25496446 | BG121: =+CF!BR44 -> -27.03143681 | BH121: =+CF!BS44 -> -29.7652618 | BI121: =+CF!BT44 -> -29.92257486 | BJ121: =+CF!BU44 -> -31.49515011 | BK121: =+CF!BV44 -> -30.09878475 | BL121: =+CF!BW44 -> -33.15913405 | BM121: =+CF!BX44 -> -33.31640318 | BN121: =+CF!BY44 -> -35.06685774 | BO121: =+CF!BZ44 -> -33.4719416 | BP121: =+CF!CA44 -> -36.89605154 | BQ121: =+CF!CB44 -> -37.0490269 | BR121: =+CF!CC44 -> -38.99539507 | BS121: =+CF!CD44 -> -37.17211959 | BT121: =+CF!CE44 -> -41.00105531 | BU121: =+CF!CF44 -> -41.14391542 | BV121: =+CF!CG44 -> 344.7100026 | BW121: =+CF!CH44 -> 1150.425231 | BX121: =+CF!CI44 -> -3.183231456e-13 | BY121: =+CF!CJ44 -> 0 | BZ121: =+CF!CK44 -> 0 | CA121: =+CF!CL44 -> 0 | CB121: =+CF!CM44 -> 0 | CC121: =+CF!CN44 -> 0 | CD121: =+CF!CO44 -> 0 | CE121: =+CF!CP44 -> 0 | CF121: =+CF!CQ44 -> 0 | CG121: =+CF!CR44 -> 3.183231456e-13 | CH121: =+CF!CS44 -> 0
B122: Other Reserve Accounts movements | D122: =+CF!O42+CF!O43+CF!O45 -> 0 | E122: =+CF!P42+CF!P43+CF!P45 -> -7.7 | F122: =+CF!Q42+CF!Q43+CF!Q45 -> -10.76772982 | G122: =+CF!R42+CF!R43+CF!R45 -> -1.088240317 | H122: =+CF!S42+CF!S43+CF!S45 -> -9.625847039 | I122: =+CF!T42+CF!T43+CF!T45 -> -10.41234197 | J122: =+CF!U42+CF!U43+CF!U45 -> -8.856942581 | K122: =+CF!V42+CF!V43+CF!V45 -> -7.631929094 | L122: =+CF!W42+CF!W43+CF!W45 -> -5.754436554 | M122: =+CF!X42+CF!X43+CF!X45 -> -4.787676724 | N122: =+CF!Y42+CF!Y43+CF!Y45 -> -4.697974938 | O122: =+CF!Z42+CF!Z43+CF!Z45 -> -5.892673497 | P122: =+CF!AA42+CF!AA43+CF!AA45 -> -8.131284457 | Q122: =+CF!AB42+CF!AB43+CF!AB45 -> -9.296947642 | R122: =+CF!AC42+CF!AC43+CF!AC45 -> -9.286880587 | S122: =+CF!AD42+CF!AD43+CF!AD45 -> -8.737789273 | T122: =+CF!AE42+CF!AE43+CF!AE45 -> -9.725613686 | U122: =+CF!AF42+CF!AF43+CF!AF45 -> -10.27414485 | V122: =+CF!AG42+CF!AG43+CF!AG45 -> -12.84100174 | W122: =+CF!AH42+CF!AH43+CF!AH45 -> -13.00886936 | X122: =+CF!AI42+CF!AI43+CF!AI45 -> -13.54081607 | Y122: =+CF!AJ42+CF!AJ43+CF!AJ45 -> -14.134364 | Z122: =+CF!AK42+CF!AK43+CF!AK45 -> -16.40263269 | AA122: =+CF!AL42+CF!AL43+CF!AL45 -> -12.65761883 | AB122: =+CF!AM42+CF!AM43+CF!AM45 -> -11.61709205 | AC122: =+CF!AN42+CF!AN43+CF!AN45 -> -11.5831272 | AD122: =+CF!AO42+CF!AO43+CF!AO45 -> -11.61658469 | AE122: =+CF!AP42+CF!AP43+CF!AP45 -> -13.85366487 | AF122: =+CF!AQ42+CF!AQ43+CF!AQ45 -> -5.144601572 | AG122: =+CF!AR42+CF!AR43+CF!AR45 -> -15.39243062 | AH122: =+CF!AS42+CF!AS43+CF!AS45 -> -16.1841754 | AI122: =+CF!AT42+CF!AT43+CF!AT45 -> -15.53027399 | AJ122: =+CF!AU42+CF!AU43+CF!AU45 -> -18.20222757 | AK122: =+CF!AV42+CF!AV43+CF!AV45 -> -17.98953096 | AL122: =+CF!AW42+CF!AW43+CF!AW45 -> -15.34157516 | AM122: =+CF!AX42+CF!AX43+CF!AX45 -> -16.51616658 | AN122: =+CF!AY42+CF!AY43+CF!AY45 -> -17.10774659 | AO122: =+CF!AZ42+CF!AZ43+CF!AZ45 -> -22.32908739 | AP122: =+CF!BA42+CF!BA43+CF!BA45 -> -19.83922822 | AQ122: =+CF!BB42+CF!BB43+CF!BB45 -> -18.26060164 | AR122: =+CF!BC42+CF!BC43+CF!BC45 -> -18.87781327 | AS122: =+CF!BD42+CF!BD43+CF!BD45 -> -19.489634 | AT122: =+CF!BE42+CF!BE43+CF!BE45 -> -18.67008314 | AU122: =+CF!BF42+CF!BF43+CF!BF45 -> -21.10674175 | AV122: =+CF!BG42+CF!BG43+CF!BG45 -> -21.87923346 | AW122: =+CF!BH42+CF!BH43+CF!BH45 -> -22.52581154 | AX122: =+CF!BI42+CF!BI43+CF!BI45 -> -23.2276207 | AY122: =+CF!BJ42+CF!BJ43+CF!BJ45 -> -23.84035904 | AZ122: =+CF!BK42+CF!BK43+CF!BK45 -> -24.02608619 | BA122: =+CF!BL42+CF!BL43+CF!BL45 -> -24.59899433 | BB122: =+CF!BM42+CF!BM43+CF!BM45 -> -25.42987714 | BC122: =+CF!BN42+CF!BN43+CF!BN45 -> -26.16610336 | BD122: =+CF!BO42+CF!BO43+CF!BO45 -> -27.04831438 | BE122: =+CF!BP42+CF!BP43+CF!BP45 -> -27.92415866 | BF122: =+CF!BQ42+CF!BQ43+CF!BQ45 -> -28.87549848 | BG122: =+CF!BR42+CF!BR43+CF!BR45 -> -29.72021644 | BH122: =+CF!BS42+CF!BS43+CF!BS45 -> -30.73017975 | BI122: =+CF!BT42+CF!BT43+CF!BT45 -> -31.73382282 | BJ122: =+CF!BU42+CF!BU43+CF!BU45 -> -32.82339656 | BK122: =+CF!BV42+CF!BV43+CF!BV45 -> -33.79474904 | BL122: =+CF!BW42+CF!BW43+CF!BW45 -> -34.96023976 | BM122: =+CF!BX42+CF!BX43+CF!BX45 -> -36.12022596 | BN122: =+CF!BY42+CF!BY43+CF!BY45 -> -37.37869799 | BO122: =+CF!BZ42+CF!BZ43+CF!BZ45 -> -38.50578647 | BP122: =+CF!CA42+CF!CA43+CF!CA45 -> -39.8455829 | BQ122: =+CF!CB42+CF!CB43+CF!CB45 -> -41.17708915 | BR122: =+CF!CC42+CF!CC43+CF!CC45 -> -42.6207319 | BS122: =+CF!CD42+CF!CD43+CF!CD45 -> -43.9176488 | BT122: =+CF!CE42+CF!CE43+CF!CE45 -> -45.45548099 | BU122: =+CF!CF42+CF!CF43+CF!CF45 -> -46.98928206 | BV122: =+CF!CG42+CF!CG43+CF!CG45 -> -47.57552748 | BW122: =+CF!CH42+CF!CH43+CF!CH45 -> 22.53635019 | BX122: =+CF!CI42+CF!CI43+CF!CI45 -> -47.00676229 | BY122: =+CF!CJ42+CF!CJ43+CF!CJ45 -> -47.89324228 | BZ122: =+CF!CK42+CF!CK43+CF!CK45 -> -48.84821835 | CA122: =+CF!CL42+CF!CL43+CF!CL45 -> -49.2656968 | CB122: =+CF!CM42+CF!CM43+CF!CM45 -> -49.85801787 | CC122: =+CF!CN42+CF!CN43+CF!CN45 -> -50.30902355 | CD122: =+CF!CO42+CF!CO43+CF!CO45 -> 26.78623223 | CE122: =+CF!CP42+CF!CP43+CF!CP45 -> 23.93944528 | CF122: =+CF!CQ42+CF!CQ43+CF!CQ45 -> 74.54668805 | CG122: =+CF!CR42+CF!CR43+CF!CR45 -> 1817.769103 | CH122: =+CF!CS42+CF!CS43+CF!CS45 -> 0
B124: Equity Distributions/(injections) | D124: =-SUM(CF!O49:O51) -> 0 | E124: =-SUM(CF!P49:P51) -> 885 | F124: =-SUM(CF!Q49:Q51) -> 946.9500717 | G124: =-SUM(CF!R49:R51) -> 1013.236654 | H124: =-SUM(CF!S49:S51) -> 1084.163301 | I124: =-SUM(CF!T49:T51) -> 1106.643487 | J124: =-SUM(CF!U49:U51) -> 1157.977487 | K124: =-SUM(CF!V49:V51) -> 1211.692724 | L124: =-SUM(CF!W49:W51) -> 1267.899655 | M124: =-SUM(CF!X49:X51) -> 1360.055471 | N124: =-SUM(CF!Y49:Y51) -> 1406.738913 | O124: =-SUM(CF!Z49:Z51) -> 1455.024749 | P124: =-SUM(CF!AA49:AA51) -> 1504.96798 | Q124: =-SUM(CF!AB49:AB51) -> 1556.625495 | R124: =-SUM(CF!AC49:AC51) -> 1610.056138 | S124: =-SUM(CF!AD49:AD51) -> 1657.211874 | T124: =-SUM(CF!AE49:AE51) -> 1705.748721 | U124: =-SUM(CF!AF49:AF51) -> 1755.707127 | V124: =-SUM(CF!AG49:AG51) -> 1807.128727 | W124: =-SUM(CF!AH49:AH51) -> 1860.056376 | X124: =-SUM(CF!AI49:AI51) -> 1907.571964 | Y124: =-SUM(CF!AJ49:AJ51) -> 1956.301349 | Z124: =-SUM(CF!AK49:AK51) -> 2006.275538 | AA124: =-SUM(CF!AL49:AL51) -> 2057.526329 | AB124: =-SUM(CF!AM49:AM51) -> 2110.086334 | AC124: =-SUM(CF!AN49:AN51) -> 2201.185328 | AD124: =-SUM(CF!AO49:AO51) -> 2296.217349 | AE124: =-SUM(CF!AP49:AP51) -> 2395.352197 | AF124: =-SUM(CF!AQ49:AQ51) -> 2498.767006 | AG124: =-SUM(CF!AR49:AR51) -> 2606.646553 | AH124: =-SUM(CF!AS49:AS51) -> 2722.288291 | AI124: =-SUM(CF!AT49:AT51) -> 2843.060379 | AJ124: =-SUM(CF!AU49:AU51) -> 2969.190422 | AK124: =-SUM(CF!AV49:AV51) -> 3100.916121 | AL124: =-SUM(CF!AW49:AW51) -> 3238.485723 | AM124: =-SUM(CF!AX49:AX51) -> 3354.365667 | AN124: =-SUM(CF!AY49:AY51) -> 3474.392044 | AO124: =-SUM(CF!AZ49:AZ51) -> 3598.713222 | AP124: =-SUM(CF!BA49:BA51) -> 3727.482877 | AQ124: =-SUM(CF!BB49:BB51) -> 3860.860185 | AR124: =-SUM(CF!BC49:BC51) -> 3943.131748 | AS124: =-SUM(CF!BD49:BD51) -> 4027.156446 | AT124: =-SUM(CF!BE49:BE51) -> 4112.971638 | AU124: =-SUM(CF!BF49:BF51) -> 4200.615476 | AV124: =-SUM(CF!BG49:BG51) -> 4290.126928 | AW124: =-SUM(CF!BH49:BH51) -> 4476.615591 | AX124: =-SUM(CF!BI49:BI51) -> 4671.21078 | AY124: =-SUM(CF!BJ49:BJ51) -> 4874.264879 | AZ124: =-SUM(CF!BK49:BK51) -> 5086.14559 | BA124: =-SUM(CF!BL49:BL51) -> 5307.2366 | BB124: =-SUM(CF!BM49:BM51) -> 5463.305663 | BC124: =-SUM(CF!BN49:BN51) -> 5623.964224 | BD124: =-SUM(CF!BO49:BO51) -> 5789.347245 | BE124: =-SUM(CF!BP49:BP51) -> 5959.593659 | BF124: =-SUM(CF!BQ49:BQ51) -> 6134.846482 | BG124: =-SUM(CF!BR49:BR51) -> 6315.881147 | BH124: =-SUM(CF!BS49:BS51) -> 6502.258008 | BI124: =-SUM(CF!BT49:BT51) -> 6694.134708 | BJ124: =-SUM(CF!BU49:BU51) -> 6891.673544 | BK124: =-SUM(CF!BV49:BV51) -> 7095.041602 | BL124: =-SUM(CF!BW49:BW51) -> 7299.162315 | BM124: =-SUM(CF!BX49:BX51) -> 7509.155477 | BN124: =-SUM(CF!BY49:BY51) -> 7725.190034 | BO124: =-SUM(CF!BZ49:BZ51) -> 7947.439795 | BP124: =-SUM(CF!CA49:CA51) -> 8176.083568 | BQ124: =-SUM(CF!CB49:CB51) -> 8413.930012 | BR124: =-SUM(CF!CC49:CC51) -> 8658.695531 | BS124: =-SUM(CF!CD49:CD51) -> 8910.581404 | BT124: =-SUM(CF!CE49:CE51) -> 9169.794765 | BU124: =-SUM(CF!CF49:CF51) -> 9436.548775 | BV124: =-SUM(CF!CG49:CG51) -> 10025.3856 | BW124: =-SUM(CF!CH49:CH51) -> 10650.9656 | BX124: =-SUM(CF!CI49:CI51) -> 11315.58154 | BY124: =-SUM(CF!CJ49:CJ51) -> 12021.66925 | BZ124: =-SUM(CF!CK49:CK51) -> 12771.81655 | CA124: =-SUM(CF!CL49:CL51) -> 13779.90305 | CB124: =-SUM(CF!CM49:CM51) -> 14867.55838 | CC124: =-SUM(CF!CN49:CN51) -> 16041.06293 | CD124: =-SUM(CF!CO49:CO51) -> 17307.19285 | CE124: =-SUM(CF!CP49:CP51) -> 15430.43527 | CF124: =-SUM(CF!CQ49:CQ51) -> 15469.85144 | CG124: =-SUM(CF!CR49:CR51) -> 21686.61668 | CH124: =-SUM(CF!CS49:CS51) -> 0
B125: Accumulated Cash | C125: 375.7780975 | D125: =+CF!O55 -> 764.1019111 | E125: =+CF!P55 -> 549.0850878 | F125: =+CF!Q55 -> 372.2677518 | G125: =+CF!R55 -> 220.0523799 | H125: =+CF!S55 -> 61.06136848 | I125: =+CF!T55 -> 60 | J125: =+CF!U55 -> 80.56522896 | K125: =+CF!V55 -> 133.398359 | L125: =+CF!W55 -> 190.7276648 | M125: =+CF!X55 -> 236.4647362 | N125: =+CF!Y55 -> 188.2998947 | O125: =+CF!Z55 -> 151.3328667 | P125: =+CF!AA55 -> 174.2015832 | Q125: =+CF!AB55 -> 208.2680588 | R125: =+CF!AC55 -> 301.492826 | S125: =+CF!AD55 -> 269.3752382 | T125: =+CF!AE55 -> 273.5093427 | U125: =+CF!AF55 -> 287.6826163 | V125: =+CF!AG55 -> 335.4947964 | W125: =+CF!AH55 -> 415.3811829 | X125: =+CF!AI55 -> 349.1158526 | Y125: =+CF!AJ55 -> 312.0237196 | Z125: =+CF!AK55 -> 363.6855976 | AA125: =+CF!AL55 -> 455.0667334 | AB125: =+CF!AM55 -> 599.9192181 | AC125: =+CF!AN55 -> 643.7330472 | AD125: =+CF!AO55 -> 667.172216 | AE125: =+CF!AP55 -> 707.6069812 | AF125: =+CF!AQ55 -> 746.7081893 | AG125: =+CF!AR55 -> 788.6328142 | AH125: =+CF!AS55 -> 840.0275281 | AI125: =+CF!AT55 -> 859.1690041 | AJ125: =+CF!AU55 -> 910.0899161 | AK125: =+CF!AV55 -> 946.2753142 | AL125: =+CF!AW55 -> 976.7614781 | AM125: =+CF!AX55 -> 1025.089003 | AN125: =+CF!AY55 -> 987.5873046 | AO125: =+CF!AZ55 -> 1029.472345 | AP125: =+CF!BA55 -> 1055.0589 | AQ125: =+CF!BB55 -> 1074.636024 | AR125: =+CF!BC55 -> 1148.76263 | AS125: =+CF!BD55 -> 1280.752173 | AT125: =+CF!BE55 -> 1288.156166 | AU125: =+CF!BF55 -> 1338.205652 | AV125: =+CF!BG55 -> 1422.141717 | AW125: =+CF!BH55 -> 1447.860389 | AX125: =+CF!BI55 -> 1409.261404 | AY125: =+CF!BJ55 -> 1303.105419 | AZ125: =+CF!BK55 -> 1446.656778 | BA125: =+CF!BL55 -> 1519.225456 | BB125: =+CF!BM55 -> 1595.18993 | BC125: =+CF!BN55 -> 1676.782532 | BD125: =+CF!BO55 -> 1761.664767 | BE125: =+CF!BP55 -> 1850.584183 | BF125: =+CF!BQ55 -> 1942.916677 | BG125: =+CF!BR55 -> 2040.49981 | BH125: =+CF!BS55 -> 2140.600408 | BI125: =+CF!BT55 -> 2243.95551 | BJ125: =+CF!BU55 -> 2349.750974 | BK125: =+CF!BV55 -> 2460.645789 | BL125: =+CF!BW55 -> 2578.730632 | BM125: =+CF!BX55 -> 2705.141367 | BN125: =+CF!BY55 -> 2839.280804 | BO125: =+CF!BZ55 -> 2984.47876 | BP125: =+CF!CA55 -> 3137.536001 | BQ125: =+CF!CB55 -> 3297.045687 | BR125: =+CF!CC55 -> 3462.074977 | BS125: =+CF!CD55 -> 3636.100001 | BT125: =+CF!CE55 -> 3815.227228 | BU125: =+CF!CF55 -> 4000.51872 | BV125: =+CF!CG55 -> 4265.583596 | BW125: =+CF!CH55 -> 5457.644336 | BX125: =+CF!CI55 -> 6267.346856 | BY125: =+CF!CJ55 -> 6752.78126 | BZ125: =+CF!CK55 -> 6876.539907 | CA125: =+CF!CL55 -> 6388.20267 | CB125: =+CF!CM55 -> 5209.979895 | CC125: =+CF!CN55 -> 3258.607658 | CD125: =+CF!CO55 -> 520.5825785 | CE125: =+CF!CP55 -> 60 | CF125: =+CF!CQ55 -> 60 | CG125: =+CF!CR55 -> 0 | CH125: =+CF!CS55 -> 0
D126: =+D125-C125 -> 388.3238136 | E126: =+E125-D125 -> -215.0168233 | F126: -176.8173361 | G126: -152.2153718 | H126: -158.9910114 | I126: -1.061368477 | J126: 20.56522896 | K126: 52.83313 | L126: 57.3293058 | M126: 45.73707148 | N126: -48.16484152 | O126: -36.967028 | P126: 22.86871653 | Q126: 34.06647555 | R126: 93.22476715 | S126: -32.11758773 | T126: 4.134104475 | U126: 14.17327364 | V126: 47.81218003 | W126: 79.88638653 | X126: -66.26533025 | Y126: -37.09213309 | Z126: 51.66187805 | AA126: 91.3811358 | AB126: 144.8524847 | AC126: 43.81382916 | AD126: 23.43916873 | AE126: 40.43476525 | AF126: 39.10120807 | AG126: 41.92462494 | AH126: 51.39471388 | AI126: 19.14147602 | AJ126: 50.92091193 | AK126: 36.18539819 | AL126: 30.48616381 | AM126: 48.32752526 | AN126: -37.50169875 | AO126: 41.88504082 | AP126: 25.5865551 | AQ126: 19.57712392 | AR126: 74.12660585 | AS126: 131.9895428 | AT126: 7.403992641 | AU126: 50.04948656 | AV126: 83.93606487 | AW126: 25.71867181 | AX126: =+AX125-AW125 -> -38.59898465 | AY126: =+AY125-AX125 -> -106.1559857 | AZ126: =+AZ125-AY125 -> 143.5513597 | BA126: =+BA125-AZ125 -> 72.56867747 | BB126: =+BB125-BA125 -> 75.96447416 | BC126: =+BC125-BB125 -> 81.59260176 | BD126: =+BD125-BC125 -> 84.88223521 | BE126: =+BE125-BD125 -> 88.91941659 | BF126: =+BF125-BE125 -> 92.33249307 | BG126: =+BG125-BF125 -> 97.58313351 | BH126: =+BH125-BG125 -> 100.1005979 | BI126: =+BI125-BH125 -> 103.3551025 | BJ126: =+BJ125-BI125 -> 105.795464 | BK126: =+BK125-BJ125 -> 110.8948148 | BL126: =+BL125-BK125 -> 118.084843 | BM126: =+BM125-BL125 -> 126.4107347 | BN126: =+BN125-BM125 -> 134.1394373 | BO126: =+BO125-BN125 -> 145.1979559 | BP126: =+BP125-BO125 -> 153.0572408 | BQ126: =+BQ125-BP125 -> 159.5096855 | BR126: =+BR125-BQ125 -> 165.0292908 | BS126: =+BS125-BR125 -> 174.0250233 | BT126: =+BT125-BS125 -> 179.1272275 | BU126: =+BU125-BT125 -> 185.2914914 | BV126: =+BV125-BU125 -> 265.0648768 | BW126: =+BW125-BV125 -> 1192.060739 | BX126: =+BX125-BW125 -> 809.7025206 | BY126: =+BY125-BX125 -> 485.434404 | BZ126: =+BZ125-BY125 -> 123.7586463 | CA126: =+CA125-BZ125 -> -488.3372368 | CB126: =+CB125-CA125 -> -1178.222775 | CC126: =+CC125-CB125 -> -1951.372237 | CD126: =+CD125-CC125 -> -2738.025079 | CE126: =+CE125-CD125 -> -460.5825785 | CF126: =+CF125-CE125 -> 0 | CG126: =+CG125-CF125 -> -60 | CH126: =+CH125-CG125 -> 0

Sheet Inputs
B2: Project: | G2: 407ETR
B3: Worksheet: | G3: Inputs
B4: Model Integrity | G4: =+Mac!G4 -> 0 of 6 checks fail
B5: Scenario | G5: =+INDEX(N5:Q6,1,Scenario) -> Base Case | N5: Base Case | O5: Optimized Case | P5: Scenario 3 | Q5: Scenario 4
B9: Scenario selector | G9: 1 | H9: CTRL + Q
K11: Unit | L11: Value
B14: A. Macroeconomics and dates
B16: Concession End Date | K16: Date | L16: 2098-12-31
B17: Figures in Nominal Terms Until | K17: Date | L17: 2016-12-31
B18: CPI | K18: % | L18: =INDEX($N18:$Q18,1,Scenario) -> 2% | N18: 2% | O18: 2%
B19: Exchange rate (EUR/CAD) | K19: EUR/CAD | L19: =INDEX($N19:$Q19,1,Scenario) -> 1.5059 | N19: 1.51 | O19: 1.51
B20: Last actual year | L20: 2017
B22: B. Operating Assumptions
B24: Scenario
B25: Toll Revenues
A26: 1 | B26: 2018 | K26: MCAD | L26: =INDEX($N26:$Q26,1,Scenario) -> 1,283 | N26: 1,283.3 | O26: 1,283.3
A27: =+A26+1 -> 2 | B27: =+B26+3 -> 2021 | K27: MCAD | L27: 1,391 | N27: 1,390.8 | O27: 1,458.6
A28: =+A27+1 -> 3 | B28: =+B27+5 -> 2026 | K28: MCAD | L28: 1,685 | N28: 1,685.5 | O28: 1,952.7
A29: 4 | B29: 2031 | K29: MCAD | L29: 1,992 | N29: 1,992.1 | O29: 2,581.6
A30: 5 | B30: 2036 | K30: MCAD | L30: 2,211 | N30: 2,210.5 | O30: 2,968.2
A31: 6 | B31: 2041 | K31: MCAD | L31: 2,437 | N31: 2,437.4 | O31: 3,325.6
A32: 7 | B32: 2046 | K32: MCAD | L32: 2,622 | N32: 2,622.5 | O32: 3,639.0
A33: 8 | B33: 2051 | K33: MCAD | L33: 2,843 | N33: 2,842.6 | O33: 3,999.2
A34: 9 | B34: 2056 | K34: MCAD | L34: 2,988 | N34: 2,987.6 | O34: 4,100.2
A35: 10 | B35: 2061 | K35: MCAD | L35: 3,140 | N35: 3,140.0 | O35: 4,203.7
A36: 11 | B36: 2066 | K36: MCAD | L36: 3,300 | N36: 3,300.2 | O36: 4,309.9
A37: 12 | B37: 2071 | K37: MCAD | L37: 3,469 | N37: 3,468.5 | O37: 4,418.7
A38: 13 | B38: 2076 | K38: MCAD | L38: 3,645 | N38: 3,645.5 | O38: 4,530.3
A39: 14 | B39: 2081 | K39: MCAD | L39: 3,831 | N39: 3,831.4 | O39: 4,644.7
A40: 15 | B40: 2086 | K40: MCAD | L40: 4,027 | N40: 4,026.9 | O40: 4,762.0
A41: 16 | B41: 2091 | K41: MCAD | L41: 4,232 | N41: 4,232.3 | O41: 4,882.2
A42: 17 | B42: 2098 | K42: MCAD | L42: 4,538 | N42: 4,537.6 | O42: 5,055.7
B44: Contract Revenues
A45: 1 | B45: =+B26 -> 2018 | K45: MCAD | L45: =INDEX($N45:$Q45,1,Scenario) -> 17 | N45: 16.7 | O45: 16.7
A46: =+A45+1 -> 2 | B46: =+B27 -> 2021 | K46: MCAD | L46: 15 | N46: 15.0 | O46: 15.0
A47: =+A46+1 -> 3 | B47: 2026 | K47: MCAD | L47: 16 | N47: 16.4 | O47: 16.4
A48: 4 | B48: 2031 | K48: MCAD | L48: 16 | N48: 16.4 | O48: 16.4
A49: 5 | B49: 2036 | K49: MCAD | L49: 16 | N49: 16.4 | O49: 16.4
A50: 6 | B50: 2041 | K50: MCAD | L50: 16 | N50: 16.4 | O50: 16.4
A51: 7 | B51: 2046 | K51: MCAD | L51: 16 | N51: 16.4 | O51: 16.4
A52: 8 | B52: 2051 | K52: MCAD | L52: 16 | N52: 16.4 | O52: 16.4
A53: 9 | B53: 2056 | K53: MCAD | L53: 16 | N53: 16.4 | O53: 16.4
A54: 10 | B54: 2061 | K54: MCAD | L54: 16 | N54: 16.4 | O54: 16.4
A55: 11 | B55: 2066 | K55: MCAD | L55: 16 | N55: 16.4 | O55: 16.4
A56: 12 | B56: 2071 | K56: MCAD | L56: 16 | N56: 16.4 | O56: 16.4
A57: 13 | B57: 2076 | K57: MCAD | L57: 16 | N57: 16.4 | O57: 16.4
A58: 14 | B58: 2081 | K58: MCAD | L58: 16 | N58: 16.4 | O58: 16.4
A59: 15 | B59: 2086 | K59: MCAD | L59: 16 | N59: 16.4 | O59: 16.4
A60: 16 | B60: 2091 | K60: MCAD | L60: 16 | N60: 16.4 | O60: 16.4
A61: 17 | B61: 2098 | K61: MCAD | L61: 16 | N61: 16.4 | O61: 16.4
B63: OPEX
A64: 1 | B64: =+B26 -> 2018 | K64: MCAD | L64: =INDEX($N64:$Q64,1,Scenario) -> -141 | N64: -140.9 | O64: -140.9
A65: =+A64+1 -> 2 | B65: =+B27 -> 2021 | K65: MCAD | L65: -134 | N65: -134.2 | O65: -134.2
A66: =+A65+1 -> 3 | B66: 2026 | K66: MCAD | L66: -135 | N66: -135.2 | O66: -135.2
A67: 4 | B67: 2031 | K67: MCAD | L67: -136 | N67: -135.7 | O67: -135.7
A68: 5 | B68: 2036 | K68: MCAD | L68: -136 | N68: -136.1 | O68: -136.1
A69: 6 | B69: 2041 | K69: MCAD | L69: -137 | N69: -136.8 | O69: -136.8
A70: 7 | B70: 2046 | K70: MCAD | L70: -138 | N70: -137.7 | O70: -137.7
A71: 8 | B71: 2051 | K71: MCAD | L71: -138 | N71: -137.7 | O71: -137.7
A72: 9 | B72: 2056 | K72: MCAD | L72: -138 | N72: -137.7 | O72: -137.7
A73: 10 | B73: 2061 | K73: MCAD | L73: -138 | N73: -137.7 | O73: -137.7
A74: 11 | B74: 2066 | K74: MCAD | L74: -138 | N74: -137.7 | O74: -137.7
A75: 12 | B75: 2071 | K75: MCAD | L75: -138 | N75: -137.7 | O75: -137.7
A76: 13 | B76: 2076 | K76: MCAD | L76: -138 | N76: -137.7 | O76: -137.7
A77: 14 | B77: 2081 | K77: MCAD | L77: -138 | N77: -137.7 | O77: -137.7
A78: 15 | B78: 2086 | K78: MCAD | L78: -138 | N78: -137.7 | O78: -137.7
A79: 16 | B79: 2091 | K79: MCAD | L79: -138 | N79: -137.7 | O79: -137.7
A80: 17 | B80: 2098 | K80: MCAD | L80: -138 | N80: -137.7 | O80: -137.7
B82: CAPEX
A83: 1 | B83: =+B64 -> 2018 | K83: MCAD | L83: =INDEX($N83:$Q83,1,Scenario) -> -152 | N83: -151.8 | O83: -151.8
A84: =+A83+1 -> 2 | B84: =+B65 -> 2021 | K84: MCAD | L84: -69 | N84: -68.7 | O84: -68.7
A85: =+A84+1 -> 3 | B85: 2026 | K85: MCAD | L85: -79 | N85: -79.2 | O85: -79.2
A86: 4 | B86: 2031 | K86: MCAD | L86: -62 | N86: -62.4 | O86: -62.4
A87: 5 | B87: 2036 | K87: MCAD | L87: -60 | N87: -60.4 | O87: -60.4
A88: 6 | B88: 2041 | K88: MCAD | L88: -66 | N88: -66.0 | O88: -66.0
A89: 7 | B89: 2046 | K89: MCAD | L89: -60 | N89: -60.4 | O89: -60.4
A90: 8 | B90: 2051 | K90: MCAD | L90: -60 | N90: -60.4 | O90: -60.4
A91: 9 | B91: 2056 | K91: MCAD | L91: -60 | N91: -60.4 | O91: -60.4
A92: 10 | B92: 2061 | K92: MCAD | L92: -60 | N92: -60.4 | O92: -60.4
A93: 11 | B93: 2066 | K93: MCAD | L93: -60 | N93: -60.4 | O93: -60.4
A94: 12 | B94: 2071 | K94: MCAD | L94: -60 | N94: -60.4 | O94: -60.4
A95: 13 | B95: 2076 | K95: MCAD | L95: -60 | N95: -60.4 | O95: -60.4
A96: 14 | B96: 2081 | K96: MCAD | L96: -60 | N96: -60.4 | O96: -60.4
A97: 15 | B97: 2086 | K97: MCAD | L97: -60 | N97: -60.4 | O97: -60.4
A98: 16 | B98: 2091 | K98: MCAD | L98: -60 | N98: -60.4 | O98: -60.4
A99: 17 | B99: 2098 | K99: MCAD | L99: -60 | N99: -60.4 | O99: -60.4
B101: Sensitivities
B102: Revenues | K102: % | L102: =INDEX($N102:$Q102,1,Scenario) -> 100% | N102: 100% | O102: 100%
B103: OPEX | K103: % | L103: =INDEX($N103:$Q103,1,Scenario) -> 100% | N103: 100% | O103: 100%
B104: CAPEX | K104: % | L104: =INDEX($N104:$Q104,1,Scenario) -> 100% | N104: 100% | O104: 100%
B106: Interest Charge - Monthly Interest on Delinquent | K106: % | L106: =INDEX($N106:$Q106,1,Scenario) -> 2% | N106: 2% | O106: 2%
B107: PDA | K107: % | L107: =INDEX($N107:$Q107,1,Scenario) -> 3% | N107: 3% | O107: 3%
B109: C. Financing Assumptions
B111: Total debt target balance
A112: 1 | B112: =+B83 -> 2018 | K112: MCAD | L112: =INDEX($N112:$Q112,1,Scenario) -> 8,726 | N112: 8,726.0 | O112: 8,726.0
A113: =+A112+1 -> 2 | B113: 2021 | K113: MCAD | L113: 9,543 | N113: 9,542.7 | O113: 10,010.2
A114: =+A113+1 -> 3 | B114: 2026 | K114: MCAD | L114: 11,967 | N114: 11,967.3 | O114: 13,991.4
A115: 4 | B115: 2031 | K115: MCAD | L115: 14,076 | N115: 14,075.7 | O115: 18,539.3
A116: 5 | B116: 2036 | K116: MCAD | L116: 15,623 | N116: 15,623.4 | O116: 21,478.7
A117: 6 | B117: 2041 | K117: MCAD | L117: 16,258 | N117: 16,258.3 | O117: 22,726.6
A118: 7 | B118: 2046 | K118: MCAD | L118: 16,258 | N118: 16,258.3 | O118: 22,951.6
A119: 8 | B119: 2051 | K119: MCAD | L119: 16,258 | N119: 16,258.3 | O119: 22,951.6
A120: 9 | B120: 2056 | K120: MCAD | L120: 16,258 | N120: 16,258.3 | O120: 22,951.6
A121: 10 | B121: 2059 | K121: MCAD | L121: 16,258 | N121: =+N120 -> 16,258.3 | O121: =+O120 -> 22,951.6
B123: Last year of current debt | L123: 2053
B125: Debt Cost
B126: New debt cost (issues between 2017 - 2020) | K126: % | L126: =INDEX($N126:$Q126,1,Scenario) -> 4.00% | N126: 4.00% | O126: 4.00%
B127: New debt cost (issues between 2021 - 2025) | K127: % | L127: =INDEX($N127:$Q127,1,Scenario) -> 4.50% | N127: 4.50% | O127: 4.50%
B128: New debt cost (issues between 2026 onwards) | K128: % | L128: =INDEX($N128:$Q128,1,Scenario) -> 5.00% | N128: 5.00% | O128: 5.00%
B130: Reserve Accounts
B131: R&R Fund Requeriments | L131: 25.00%
B132: O&M Fund Requeriments | L132: 25.00%
B133: East Tolling Fund Requeriments | L133: 9
B134: East Tolling end-date | L134: 2,045
B135: Debt Service Fund target balance (2019) | L135: 68.95
B136: Working Capital Reserve Balance | L136: 10.00
B138: Interest Income Rate | L138: =INDEX($N138:$Q138,1,Scenario) -> 2.00% | N138: 2.00% | O138: 2.00%
B140: D. Tax Assumptions
B142: Corporate Tax Rate | L142: =INDEX($N142:$Q142,1,Scenario) -> 26.50% | N142: 26.50% | O142: 26.50%
B143: New assets average useful life (depreciation) | L143: =INDEX($N143:$Q143,1,Scenario) -> 20 | N143: 20 | O143: 20
B145: E. Shareholders distributions Assumptions
B147: Dividend
A148: 1 | B148: =+B83 -> 2018 | K148: MCAD | L148: =INDEX($N148:$Q148,1,Scenario) -> 885 | N148: 885.0 | O148: 885.0
A149: =+A148+1 -> 2 | B149: =+B84 -> 2021 | K149: MCAD | L149: 1,084 | N149: 1,084.2 | O149: 1,242.9
A150: =+A149+1 -> 3 | B150: 2026 | K150: MCAD | L150: 1,360 | N150: 1,360.1 | O150: 1,943.3
A151: 4 | B151: 2031 | K151: MCAD | L151: 1,610 | N151: 1,610.1 | O151: 2,374.9
A152: 5 | B152: 2036 | K152: MCAD | L152: 1,860 | N152: 1,860.1 | O152: 2,870.7
A153: 6 | B153: 2041 | K153: MCAD | L153: 2,110 | N153: 2,110.1 | O153: 2,920.9
A154: 7 | B154: 2046 | K154: MCAD | L154: 2,607 | N154: 2,606.6 | O154: 3,750.6
A155: 8 | B155: 2051 | K155: MCAD | L155: 3,238 | N155: 3,238.5 | O155: 4,670.4
A156: 9 | B156: 2056 | K156: MCAD | L156: 3,861 | N156: 3,860.9 | O156: 5,398.3
A157: 10 | B157: 2061 | K157: MCAD | L157: 4,290 | N157: 4,290.1 | O157: 5,862.1
A158: 11 | B158: 2066 | K158: MCAD | L158: 5,307 | N158: 5,307.2 | O158: 6,914.4
A159: 12 | B159: 2071 | K159: MCAD | L159: 6,135 | N159: 6,134.8 | O159: 7,782.4
A160: 13 | B160: 2076 | K160: MCAD | L160: 7,095 | N160: 7,095.0 | O160: 8,763.5
A161: 14 | B161: 2081 | K161: MCAD | L161: 8,176 | N161: 8,176.1 | O161: 9,830.9
A162: 15 | B162: 2086 | K162: MCAD | L162: 9,437 | N162: 9,436.5 | O162: 11,043.8
A163: 16 | B163: 2091 | K163: MCAD | L163: 12,772 | N163: 12,771.8 | O163: 14,855.6
A164: 17 | B164: 2098 | K164: MCAD | L164: 21,737 | N164: 21,737.4 | O164: 24,274.3
B166: Minimum cah requirement
A167: 1 | B167: =+B148 -> 2018 | K167: MCAD | L167: =INDEX($N167:$Q167,1,Scenario) -> 550 | N167: 550.0 | O167: 550.0
A168: =+A167+1 -> 2 | B168: =+B149 -> 2021 | K168: MCAD | L168: 60 | N168: 60.0 | O168: 60.0
A169: =+A168+1 -> 3 | B169: 2026 | K169: MCAD | L169: 60 | N169: 60.0 | O169: 60.0
A170: 4 | B170: 2031 | K170: MCAD | L170: 60 | N170: 60.0 | O170: 60.0
A171: 5 | B171: 2036 | K171: MCAD | L171: 60 | N171: 60.0 | O171: 60.0
A172: 6 | B172: 2041 | K172: MCAD | L172: 60 | N172: 60.0 | O172: 60.0
A173: 7 | B173: 2046 | K173: MCAD | L173: 60 | N173: 60.0 | O173: 60.0
A174: 8 | B174: 2051 | K174: MCAD | L174: 60 | N174: 60.0 | O174: 60.0
A175: 9 | B175: 2056 | K175: MCAD | L175: 60 | N175: 60.0 | O175: 60.0
A176: 10 | B176: 2061 | K176: MCAD | L176: 60 | N176: 60.0 | O176: 60.0
A177: 11 | B177: 2066 | K177: MCAD | L177: 60 | N177: 60.0 | O177: 60.0
A178: 12 | B178: 2071 | K178: MCAD | L178: 60 | N178: 60.0 | O178: 60.0
A179: 13 | B179: 2076 | K179: MCAD | L179: 60 | N179: 60.0 | O179: 60.0
A180: 14 | B180: 2081 | K180: MCAD | L180: 60 | N180: 60.0 | O180: 60.0
A181: 15 | B181: 2086 | K181: MCAD | L181: 60 | N181: 60.0 | O181: 60.0
A182: 16 | B182: 2091 | K182: MCAD | L182: 60 | N182: 60.0 | O182: 60.0
A183: 17 | B183: 2098 | K183: MCAD | L183: 60 | N183: 60.0 | O183: 60.0
B185: Minimum Cash Requirements
B186: Base | L186: 50
B187: Operating Expenses (excluding PDA) | L187: 25%
B188: Total Revenues | L188: 3%
B190: F. Valuation Assumptions
B192: APV
B193: Risk free | L193: =INDEX($N193:$Q193,1,Scenario) -> 2.71% | N193: 2.71% | O193: 2.71%
B194: Beta unlevered | L194: =INDEX($N194:$Q194,1,Scenario) -> 0.60 | N194: 0.60 | O194: 0.60
B195: Equity risk premium | L195: =INDEX($N195:$Q195,1,Scenario) -> 6.00% | N195: 6.00% | O195: 6.00%
B197: DDM
B198: Ke | L198: =INDEX($N198:$Q198,1,Scenario) -> 6.4% | N198: 6.4% | O198: 6.4%
B200: G. Financial Statements (2017 proforma)
B202: Income Statement
B204: Toll Revenues | K204: MCAD | L204: 1,252.1
B205: Contract Revenues | K205: MCAD | L205: 15.6
B206: Total Revenues | K206: MCAD | L206: =+SUM(L204:L205) -> 1,267.7
B208: Operating Expenses | K208: MCAD | L208: -139.0
B209: PDA | K209: MCAD | L209: -24.9
B210: Total Operating Expenses | K210: MCAD | L210: =+SUM(L208:L209) -> -163.9
B212: EBITDA | K212: MCAD | L212: =+L210+L206 -> 1,103.8
B214: Depreciation | K214: MCAD | L214: -105.8
B216: EBIT | K216: MCAD | L216: =+L212+L214 -> 998.0
B218: Interest Expense | K218: MCAD | L218: -374.8
B219: Interest Income | K219: MCAD | L219: 15.7
B220: Amortization of Reserves | K220: MCAD | L220: 0.7
B222: EBT | K222: MCAD | L222: =+SUM(L216,L218:L220) -> 639.6
B224: Income Tax | K224: MCAD | L224: -169.5
B226: Net Income | K226: MCAD | L226: =+L224+L222 -> 470.1
B229: Balance Sheet
B231: Current Assets | K231: MCAD | L231: =+SUM(L232:L238) -> 1,654.0
B232: General Fund | K232: MCAD | L232: 764.1
B233: Working Capital Reserve | K233: MCAD | L233: 10.0
B234: O&M and R&R Reserves | K234: MCAD | L234: 159.7
B235: Debt Service Fund | K235: MCAD | L235: 74.9
B236: Debt Service Reserve Funds | K236: MCAD | L236: 424.0
B237: Accounts Receivable, Trade | K237: MCAD | L237: 194.1
B238: Accounts Receivable, Others | K238: MCAD | L238: 27.3
B240: Non Current Assets | K240: MCAD | L240: =+L241 -> 3,945.0
B241: PP&E and Intangible | K241: MCAD | L241: 3,945.0
B242: TOTAL ASSETS | K242: MCAD | L242: =+L240+L231 -> 5,599.0
B244: Current Liabilities | K244: MCAD | L244: =+SUM(L245:L247) -> 251.7
B245: Accounts Payable, Trade | K245: MCAD | L245: 176.0
B246: Accounts Payable, Others | K246: MCAD | L246: 0.0
... 11 more rows

Sheet Oper
B2: Project: | G2: 407ETR
B3: Worksheet: | G3: Operating Figures
B4: Model Integrity | G4: =+Mac!G4 -> 0 of 6 checks fail
B5: Scenario | G5: =+Inputs!G5 -> Base Case
K7: Units | M7: Sum | P7: =+IFERROR(INDEX(Inputs!$A$26:$A$42,MATCH(P8,Inputs!$B$26:$B$42,0),1),Oper!O7) -> 1 | Q7: =+IFERROR(INDEX(Inputs!$A$26:$A$42,MATCH(Q8,Inputs!$B$26:$B$42,0),1),Oper!P7) -> 1 | R7: =+IFERROR(INDEX(Inputs!$A$26:$A$42,MATCH(R8,Inputs!$B$26:$B$42,0),1),Oper!Q7) -> 1 | S7: =+IFERROR(INDEX(Inputs!$A$26:$A$42,MATCH(S8,Inputs!$B$26:$B$42,0),1),Oper!R7) -> 2 | T7: =+IFERROR(INDEX(Inputs!$A$26:$A$42,MATCH(T8,Inputs!$B$26:$B$42,0),1),Oper!S7) -> 2 | U7: =+IFERROR(INDEX(Inputs!$A$26:$A$42,MATCH(U8,Inputs!$B$26:$B$42,0),1),Oper!T7) -> 2 | V7: =+IFERROR(INDEX(Inputs!$A$26:$A$42,MATCH(V8,Inputs!$B$26:$B$42,0),1),Oper!U7) -> 2 | W7: =+IFERROR(INDEX(Inputs!$A$26:$A$42,MATCH(W8,Inputs!$B$26:$B$42,0),1),Oper!V7) -> 2 | X7: =+IFERROR(INDEX(Inputs!$A$26:$A$42,MATCH(X8,Inputs!$B$26:$B$42,0),1),Oper!W7) -> 3 | Y7: =+IFERROR(INDEX(Inputs!$A$26:$A$42,MATCH(Y8,Inputs!$B$26:$B$42,0),1),Oper!X7) -> 3 | Z7: =+IFERROR(INDEX(Inputs!$A$26:$A$42,MATCH(Z8,Inputs!$B$26:$B$42,0),1),Oper!Y7) -> 3 | AA7: =+IFERROR(INDEX(Inputs!$A$26:$A$42,MATCH(AA8,Inputs!$B$26:$B$42,0),1),Oper!Z7) -> 3 | AB7: =+IFERROR(INDEX(Inputs!$A$26:$A$42,MATCH(AB8,Inputs!$B$26:$B$42,0),1),Oper!AA7) -> 3 | AC7: =+IFERROR(INDEX(Inputs!$A$26:$A$42,MATCH(AC8,Inputs!$B$26:$B$42,0),1),Oper!AB7) -> 4 | AD7: =+IFERROR(INDEX(Inputs!$A$26:$A$42,MATCH(AD8,Inputs!$B$26:$B$42,0),1),Oper!AC7) -> 4 | AE7: =+IFERROR(INDEX(Inputs!$A$26:$A$42,MATCH(AE8,Inputs!$B$26:$B$42,0),1),Oper!AD7) -> 4 | AF7: =+IFERROR(INDEX(Inputs!$A$26:$A$42,MATCH(AF8,Inputs!$B$26:$B$42,0),1),Oper!AE7) -> 4 | AG7: =+IFERROR(INDEX(Inputs!$A$26:$A$42,MATCH(AG8,Inputs!$B$26:$B$42,0),1),Oper!AF7) -> 4 | AH7: =+IFERROR(INDEX(Inputs!$A$26:$A$42,MATCH(AH8,Inputs!$B$26:$B$42,0),1),Oper!AG7) -> 5 | AI7: =+IFERROR(INDEX(Inputs!$A$26:$A$42,MATCH(AI8,Inputs!$B$26:$B$42,0),1),Oper!AH7) -> 5 | AJ7: =+IFERROR(INDEX(Inputs!$A$26:$A$42,MATCH(AJ8,Inputs!$B$26:$B$42,0),1),Oper!AI7) -> 5 | AK7: =+IFERROR(INDEX(Inputs!$A$26:$A$42,MATCH(AK8,Inputs!$B$26:$B$42,0),1),Oper!AJ7) -> 5 | AL7: =+IFERROR(INDEX(Inputs!$A$26:$A$42,MATCH(AL8,Inputs!$B$26:$B$42,0),1),Oper!AK7) -> 5 | AM7: =+IFERROR(INDEX(Inputs!$A$26:$A$42,MATCH(AM8,Inputs!$B$26:$B$42,0),1),Oper!AL7) -> 6 | AN7: =+IFERROR(INDEX(Inputs!$A$26:$A$42,MATCH(AN8,Inputs!$B$26:$B$42,0),1),Oper!AM7) -> 6 | AO7: =+IFERROR(INDEX(Inputs!$A$26:$A$42,MATCH(AO8,Inputs!$B$26:$B$42,0),1),Oper!AN7) -> 6 | AP7: =+IFERROR(INDEX(Inputs!$A$26:$A$42,MATCH(AP8,Inputs!$B$26:$B$42,0),1),Oper!AO7) -> 6 | AQ7: =+IFERROR(INDEX(Inputs!$A$26:$A$42,MATCH(AQ8,Inputs!$B$26:$B$42,0),1),Oper!AP7) -> 6 | AR7: =+IFERROR(INDEX(Inputs!$A$26:$A$42,MATCH(AR8,Inputs!$B$26:$B$42,0),1),Oper!AQ7) -> 7 | AS7: =+IFERROR(INDEX(Inputs!$A$26:$A$42,MATCH(AS8,Inputs!$B$26:$B$42,0),1),Oper!AR7) -> 7 | AT7: =+IFERROR(INDEX(Inputs!$A$26:$A$42,MATCH(AT8,Inputs!$B$26:$B$42,0),1),Oper!AS7) -> 7 | AU7: =+IFERROR(INDEX(Inputs!$A$26:$A$42,MATCH(AU8,Inputs!$B$26:$B$42,0),1),Oper!AT7) -> 7 | AV7: =+IFERROR(INDEX(Inputs!$A$26:$A$42,MATCH(AV8,Inputs!$B$26:$B$42,0),1),Oper!AU7) -> 7 | AW7: =+IFERROR(INDEX(Inputs!$A$26:$A$42,MATCH(AW8,Inputs!$B$26:$B$42,0),1),Oper!AV7) -> 8 | AX7: =+IFERROR(INDEX(Inputs!$A$26:$A$42,MATCH(AX8,Inputs!$B$26:$B$42,0),1),Oper!AW7) -> 8 | AY7: =+IFERROR(INDEX(Inputs!$A$26:$A$42,MATCH(AY8,Inputs!$B$26:$B$42,0),1),Oper!AX7) -> 8 | AZ7: =+IFERROR(INDEX(Inputs!$A$26:$A$42,MATCH(AZ8,Inputs!$B$26:$B$42,0),1),Oper!AY7) -> 8 | BA7: =+IFERROR(INDEX(Inputs!$A$26:$A$42,MATCH(BA8,Inputs!$B$26:$B$42,0),1),Oper!AZ7) -> 8 | BB7: =+IFERROR(INDEX(Inputs!$A$26:$A$42,MATCH(BB8,Inputs!$B$26:$B$42,0),1),Oper!BA7) -> 9 | BC7: =+IFERROR(INDEX(Inputs!$A$26:$A$42,MATCH(BC8,Inputs!$B$26:$B$42,0),1),Oper!BB7) -> 9 | BD7: =+IFERROR(INDEX(Inputs!$A$26:$A$42,MATCH(BD8,Inputs!$B$26:$B$42,0),1),Oper!BC7) -> 9 | BE7: =+IFERROR(INDEX(Inputs!$A$26:$A$42,MATCH(BE8,Inputs!$B$26:$B$42,0),1),Oper!BD7) -> 9 | BF7: =+IFERROR(INDEX(Inputs!$A$26:$A$42,MATCH(BF8,Inputs!$B$26:$B$42,0),1),Oper!BE7) -> 9 | BG7: =+IFERROR(INDEX(Inputs!$A$26:$A$42,MATCH(BG8,Inputs!$B$26:$B$42,0),1),Oper!BF7) -> 10 | BH7: =+IFERROR(INDEX(Inputs!$A$26:$A$42,MATCH(BH8,Inputs!$B$26:$B$42,0),1),Oper!BG7) -> 10 | BI7: =+IFERROR(INDEX(Inputs!$A$26:$A$42,MATCH(BI8,Inputs!$B$26:$B$42,0),1),Oper!BH7) -> 10 | BJ7: =+IFERROR(INDEX(Inputs!$A$26:$A$42,MATCH(BJ8,Inputs!$B$26:$B$42,0),1),Oper!BI7) -> 10 | BK7: =+IFERROR(INDEX(Inputs!$A$26:$A$42,MATCH(BK8,Inputs!$B$26:$B$42,0),1),Oper!BJ7) -> 10 | BL7: =+IFERROR(INDEX(Inputs!$A$26:$A$42,MATCH(BL8,Inputs!$B$26:$B$42,0),1),Oper!BK7) -> 11 | BM7: =+IFERROR(INDEX(Inputs!$A$26:$A$42,MATCH(BM8,Inputs!$B$26:$B$42,0),1),Oper!BL7) -> 11 | BN7: =+IFERROR(INDEX(Inputs!$A$26:$A$42,MATCH(BN8,Inputs!$B$26:$B$42,0),1),Oper!BM7) -> 11 | BO7: =+IFERROR(INDEX(Inputs!$A$26:$A$42,MATCH(BO8,Inputs!$B$26:$B$42,0),1),Oper!BN7) -> 11 | BP7: =+IFERROR(INDEX(Inputs!$A$26:$A$42,MATCH(BP8,Inputs!$B$26:$B$42,0),1),Oper!BO7) -> 11 | BQ7: =+IFERROR(INDEX(Inputs!$A$26:$A$42,MATCH(BQ8,Inputs!$B$26:$B$42,0),1),Oper!BP7) -> 12 | BR7: =+IFERROR(INDEX(Inputs!$A$26:$A$42,MATCH(BR8,Inputs!$B$26:$B$42,0),1),Oper!BQ7) -> 12 | BS7: =+IFERROR(INDEX(Inputs!$A$26:$A$42,MATCH(BS8,Inputs!$B$26:$B$42,0),1),Oper!BR7) -> 12 | BT7: =+IFERROR(INDEX(Inputs!$A$26:$A$42,MATCH(BT8,Inputs!$B$26:$B$42,0),1),Oper!BS7) -> 12 | BU7: =+IFERROR(INDEX(Inputs!$A$26:$A$42,MATCH(BU8,Inputs!$B$26:$B$42,0),1),Oper!BT7) -> 12 | BV7: =+IFERROR(INDEX(Inputs!$A$26:$A$42,MATCH(BV8,Inputs!$B$26:$B$42,0),1),Oper!BU7) -> 13 | BW7: =+IFERROR(INDEX(Inputs!$A$26:$A$42,MATCH(BW8,Inputs!$B$26:$B$42,0),1),Oper!BV7) -> 13 | BX7: =+IFERROR(INDEX(Inputs!$A$26:$A$42,MATCH(BX8,Inputs!$B$26:$B$42,0),1),Oper!BW7) -> 13 | BY7: =+IFERROR(INDEX(Inputs!$A$26:$A$42,MATCH(BY8,Inputs!$B$26:$B$42,0),1),Oper!BX7) -> 13 | BZ7: =+IFERROR(INDEX(Inputs!$A$26:$A$42,MATCH(BZ8,Inputs!$B$26:$B$42,0),1),Oper!BY7) -> 13 | CA7: =+IFERROR(INDEX(Inputs!$A$26:$A$42,MATCH(CA8,Inputs!$B$26:$B$42,0),1),Oper!BZ7) -> 14 | CB7: =+IFERROR(INDEX(Inputs!$A$26:$A$42,MATCH(CB8,Inputs!$B$26:$B$42,0),1),Oper!CA7) -> 14 | CC7: =+IFERROR(INDEX(Inputs!$A$26:$A$42,MATCH(CC8,Inputs!$B$26:$B$42,0),1),Oper!CB7) -> 14 | CD7: =+IFERROR(INDEX(Inputs!$A$26:$A$42,MATCH(CD8,Inputs!$B$26:$B$42,0),1),Oper!CC7) -> 14 | CE7: =+IFERROR(INDEX(Inputs!$A$26:$A$42,MATCH(CE8,Inputs!$B$26:$B$42,0),1),Oper!CD7) -> 14 | CF7: =+IFERROR(INDEX(Inputs!$A$26:$A$42,MATCH(CF8,Inputs!$B$26:$B$42,0),1),Oper!CE7) -> 15 | CG7: =+IFERROR(INDEX(Inputs!$A$26:$A$42,MATCH(CG8,Inputs!$B$26:$B$42,0),1),Oper!CF7) -> 15 | CH7: =+IFERROR(INDEX(Inputs!$A$26:$A$42,MATCH(CH8,Inputs!$B$26:$B$42,0),1),Oper!CG7) -> 15 | CI7: =+IFERROR(INDEX(Inputs!$A$26:$A$42,MATCH(CI8,Inputs!$B$26:$B$42,0),1),Oper!CH7) -> 15 | CJ7: =+IFERROR(INDEX(Inputs!$A$26:$A$42,MATCH(CJ8,Inputs!$B$26:$B$42,0),1),Oper!CI7) -> 15 | CK7: =+IFERROR(INDEX(Inputs!$A$26:$A$42,MATCH(CK8,Inputs!$B$26:$B$42,0),1),Oper!CJ7) -> 16 | CL7: =+IFERROR(INDEX(Inputs!$A$26:$A$42,MATCH(CL8,Inputs!$B$26:$B$42,0),1),Oper!CK7) -> 16 | CM7: =+IFERROR(INDEX(Inputs!$A$26:$A$42,MATCH(CM8,Inputs!$B$26:$B$42,0),1),Oper!CL7) -> 16 | CN7: =+IFERROR(INDEX(Inputs!$A$26:$A$42,MATCH(CN8,Inputs!$B$26:$B$42,0),1),Oper!CM7) -> 16 | CO7: =+IFERROR(INDEX(Inputs!$A$26:$A$42,MATCH(CO8,Inputs!$B$26:$B$42,0),1),Oper!CN7) -> 16 | CP7: =+IFERROR(INDEX(Inputs!$A$26:$A$42,MATCH(CP8,Inputs!$B$26:$B$42,0),1),Oper!CO7) -> 16 | CQ7: =+IFERROR(INDEX(Inputs!$A$26:$A$42,MATCH(CQ8,Inputs!$B$26:$B$42,0),1),Oper!CP7) -> 16 | CR7: =+IFERROR(INDEX(Inputs!$A$26:$A$42,MATCH(CR8,Inputs!$B$26:$B$42,0),1),Oper!CQ7) -> 17
B8: Year | K8: Year | O8: =+YEAR(O9) -> 2017 | P8: =+YEAR(P9) -> 2018 | Q8: 2019 | R8: 2020 | S8: 2021 | T8: 2022 | U8: 2023 | V8: 2024 | W8: 2025 | X8: 2026 | Y8: 2027 | Z8: 2028 | AA8: 2029 | AB8: 2030 | AC8: 2031 | AD8: 2032 | AE8: 2033 | AF8: 2034 | AG8: 2035 | AH8: 2036 | AI8: 2037 | AJ8: 2038 | AK8: 2039 | AL8: 2040 | AM8: 2041 | AN8: 2042 | AO8: 2043 | AP8: 2044 | AQ8: 2045 | AR8: 2046 | AS8: 2047 | AT8: 2048 | AU8: 2049 | AV8: 2050 | AW8: 2051 | AX8: 2052 | AY8: 2053 | AZ8: 2054 | BA8: 2055 | BB8: 2056 | BC8: 2057 | BD8: 2058 | BE8: 2059 | BF8: 2060 | BG8: 2061 | BH8: 2062 | BI8: 2063 | BJ8: 2064 | BK8: 2065 | BL8: 2066 | BM8: 2067 | BN8: 2068 | BO8: 2069 | BP8: 2070 | BQ8: 2071 | BR8: 2072 | BS8: 2073 | BT8: 2074 | BU8: 2075 | BV8: 2076 | BW8: 2077 | BX8: 2078 | BY8: 2079 | BZ8: 2080 | CA8: 2081 | CB8: =+YEAR(CB9) -> 2082 | CC8: 2083 | CD8: 2084 | CE8: 2085 | CF8: 2086 | CG8: 2087 | CH8: 2088 | CI8: 2089 | CJ8: 2090 | CK8: 2091 | CL8: 2092 | CM8: 2093 | CN8: 2094 | CO8: 2095 | CP8: 2096 | CQ8: 2097 | CR8: 2098
B9: Period start date | K9: Date | O9: 2017-01-01 | P9: =+O10+1 -> 2018-01-01 | Q9: 2019-01-01 | R9: 2020-01-01 | S9: 2021-01-01 | T9: 2022-01-01 | U9: 2023-01-01 | V9: 2024-01-01 | W9: 2025-01-01 | X9: 2026-01-01 | Y9: 2027-01-01 | Z9: 2028-01-01 | AA9: 2029-01-01 | AB9: 2030-01-01 | AC9: 2031-01-01 | AD9: 2032-01-01 | AE9: 2033-01-01 | AF9: 2034-01-01 | AG9: 2035-01-01 | AH9: 2036-01-01 | AI9: 2037-01-01 | AJ9: 2038-01-01 | AK9: 2039-01-01 | AL9: 2040-01-01 | AM9: 2041-01-01 | AN9: 2042-01-01 | AO9: 2043-01-01 | AP9: 2044-01-01 | AQ9: 2045-01-01 | AR9: 2046-01-01 | AS9: 2047-01-01 | AT9: 2048-01-01 | AU9: 2049-01-01 | AV9: =+AU10+1 -> 2050-01-01 | AW9: 2051-01-01 | AX9: 2052-01-01 | AY9: 2053-01-01 | AZ9: 2054-01-01 | BA9: 2055-01-01 | BB9: 2056-01-01 | BC9: 2057-01-01 | BD9: 2058-01-01 | BE9: 2059-01-01 | BF9: 2060-01-01 | BG9: 2061-01-01 | BH9: 2062-01-01 | BI9: 2063-01-01 | BJ9: 2064-01-01 | BK9: 2065-01-01 | BL9: 2066-01-01 | BM9: 2067-01-01 | BN9: 2068-01-01 | BO9: 2069-01-01 | BP9: 2070-01-01 | BQ9: 2071-01-01 | BR9: 2072-01-01 | BS9: 2073-01-01 | BT9: 2074-01-01 | BU9: 2075-01-01 | BV9: 2076-01-01 | BW9: 2077-01-01 | BX9: 2078-01-01 | BY9: 2079-01-01 | BZ9: 2080-01-01 | CA9: 2081-01-01 | CB9: =+CA10+1 -> 2082-01-01 | CC9: 2083-01-01 | CD9: 2084-01-01 | CE9: 2085-01-01 | CF9: 2086-01-01 | CG9: 2087-01-01 | CH9: 2088-01-01 | CI9: 2089-01-01 | CJ9: 2090-01-01 | CK9: 2091-01-01 | CL9: 2092-01-01 | CM9: 2093-01-01 | CN9: 2094-01-01 | CO9: 2095-01-01 | CP9: 2096-01-01 | CQ9: 2097-01-01 | CR9: 2098-01-01
B10: Period end date | K10: Date | O10: =+EOMONTH(O9,11) -> 2017-12-31 | P10: 2018-12-31 | Q10: 2019-12-31 | R10: 2020-12-31 | S10: 2021-12-31 | T10: 2022-12-31 | U10: 2023-12-31 | V10: 2024-12-31 | W10: 2025-12-31 | X10: 2026-12-31 | Y10: 2027-12-31 | Z10: 2028-12-31 | AA10: 2029-12-31 | AB10: 2030-12-31 | AC10: 2031-12-31 | AD10: 2032-12-31 | AE10: 2033-12-31 | AF10: 2034-12-31 | AG10: 2035-12-31 | AH10: 2036-12-31 | AI10: 2037-12-31 | AJ10: 2038-12-31 | AK10: 2039-12-31 | AL10: 2040-12-31 | AM10: 2041-12-31 | AN10: 2042-12-31 | AO10: 2043-12-31 | AP10: 2044-12-31 | AQ10: 2045-12-31 | AR10: 2046-12-31 | AS10: 2047-12-31 | AT10: 2048-12-31 | AU10: =+EOMONTH(AU9,11) -> 2049-12-31 | AV10: 2050-12-31 | AW10: 2051-12-31 | AX10: 2052-12-31 | AY10: 2053-12-31 | AZ10: 2054-12-31 | BA10: 2055-12-31 | BB10: 2056-12-31 | BC10: 2057-12-31 | BD10: 2058-12-31 | BE10: 2059-12-31 | BF10: 2060-12-31 | BG10: 2061-12-31 | BH10: 2062-12-31 | BI10: 2063-12-31 | BJ10: 2064-12-31 | BK10: 2065-12-31 | BL10: 2066-12-31 | BM10: 2067-12-31 | BN10: 2068-12-31 | BO10: 2069-12-31 | BP10: 2070-12-31 | BQ10: 2071-12-31 | BR10: 2072-12-31 | BS10: 2073-12-31 | BT10: 2074-12-31 | BU10: 2075-12-31 | BV10: 2076-12-31 | BW10: 2077-12-31 | BX10: 2078-12-31 | BY10: 2079-12-31 | BZ10: 2080-12-31 | CA10: =+EOMONTH(CA9,11) -> 2081-12-31 | CB10: 2082-12-31 | CC10: 2083-12-31 | CD10: 2084-12-31 | CE10: 2085-12-31 | CF10: 2086-12-31 | CG10: 2087-12-31 | CH10: 2088-12-31 | CI10: 2089-12-31 | CJ10: 2090-12-31 | CK10: 2091-12-31 | CL10: 2092-12-31 | CM10: 2093-12-31 | CN10: 2094-12-31 | CO10: 2095-12-31 | CP10: 2096-12-31 | CQ10: 2097-12-31 | CR10: 2098-12-31
B12: Concession Period Flag | K12: Flag | O12: =+IF(O$10<=Inputs!$L$16,1,0) -> 1 | P12: =+IF(P$10<=Inputs!$L$16,1,0) -> 1 | Q12: =+IF(Q$10<=Inputs!$L$16,1,0) -> 1 | R12: =+IF(R$10<=Inputs!$L$16,1,0) -> 1 | S12: =+IF(S$10<=Inputs!$L$16,1,0) -> 1 | T12: =+IF(T$10<=Inputs!$L$16,1,0) -> 1 | U12: =+IF(U$10<=Inputs!$L$16,1,0) -> 1 | V12: =+IF(V$10<=Inputs!$L$16,1,0) -> 1 | W12: =+IF(W$10<=Inputs!$L$16,1,0) -> 1 | X12: =+IF(X$10<=Inputs!$L$16,1,0) -> 1 | Y12: =+IF(Y$10<=Inputs!$L$16,1,0) -> 1 | Z12: =+IF(Z$10<=Inputs!$L$16,1,0) -> 1 | AA12: =+IF(AA$10<=Inputs!$L$16,1,0) -> 1 | AB12: =+IF(AB$10<=Inputs!$L$16,1,0) -> 1 | AC12: =+IF(AC$10<=Inputs!$L$16,1,0) -> 1 | AD12: =+IF(AD$10<=Inputs!$L$16,1,0) -> 1 | AE12: =+IF(AE$10<=Inputs!$L$16,1,0) -> 1 | AF12: =+IF(AF$10<=Inputs!$L$16,1,0) -> 1 | AG12: =+IF(AG$10<=Inputs!$L$16,1,0) -> 1 | AH12: =+IF(AH$10<=Inputs!$L$16,1,0) -> 1 | AI12: =+IF(AI$10<=Inputs!$L$16,1,0) -> 1 | AJ12: =+IF(AJ$10<=Inputs!$L$16,1,0) -> 1 | AK12: =+IF(AK$10<=Inputs!$L$16,1,0) -> 1 | AL12: =+IF(AL$10<=Inputs!$L$16,1,0) -> 1 | AM12: =+IF(AM$10<=Inputs!$L$16,1,0) -> 1 | AN12: =+IF(AN$10<=Inputs!$L$16,1,0) -> 1 | AO12: =+IF(AO$10<=Inputs!$L$16,1,0) -> 1 | AP12: =+IF(AP$10<=Inputs!$L$16,1,0) -> 1 | AQ12: =+IF(AQ$10<=Inputs!$L$16,1,0) -> 1 | AR12: =+IF(AR$10<=Inputs!$L$16,1,0) -> 1 | AS12: =+IF(AS$10<=Inputs!$L$16,1,0) -> 1 | AT12: =+IF(AT$10<=Inputs!$L$16,1,0) -> 1 | AU12: =+IF(AU$10<=Inputs!$L$16,1,0) -> 1 | AV12: =+IF(AV$10<=Inputs!$L$16,1,0) -> 1 | AW12: =+IF(AW$10<=Inputs!$L$16,1,0) -> 1 | AX12: =+IF(AX$10<=Inputs!$L$16,1,0) -> 1 | AY12: =+IF(AY$10<=Inputs!$L$16,1,0) -> 1 | AZ12: =+IF(AZ$10<=Inputs!$L$16,1,0) -> 1 | BA12: =+IF(BA$10<=Inputs!$L$16,1,0) -> 1 | BB12: =+IF(BB$10<=Inputs!$L$16,1,0) -> 1 | BC12: =+IF(BC$10<=Inputs!$L$16,1,0) -> 1 | BD12: =+IF(BD$10<=Inputs!$L$16,1,0) -> 1 | BE12: =+IF(BE$10<=Inputs!$L$16,1,0) -> 1 | BF12: =+IF(BF$10<=Inputs!$L$16,1,0) -> 1 | BG12: =+IF(BG$10<=Inputs!$L$16,1,0) -> 1 | BH12: =+IF(BH$10<=Inputs!$L$16,1,0) -> 1 | BI12: =+IF(BI$10<=Inputs!$L$16,1,0) -> 1 | BJ12: =+IF(BJ$10<=Inputs!$L$16,1,0) -> 1 | BK12: =+IF(BK$10<=Inputs!$L$16,1,0) -> 1 | BL12: =+IF(BL$10<=Inputs!$L$16,1,0) -> 1 | BM12: =+IF(BM$10<=Inputs!$L$16,1,0) -> 1 | BN12: =+IF(BN$10<=Inputs!$L$16,1,0) -> 1 | BO12: =+IF(BO$10<=Inputs!$L$16,1,0) -> 1 | BP12: =+IF(BP$10<=Inputs!$L$16,1,0) -> 1 | BQ12: =+IF(BQ$10<=Inputs!$L$16,1,0) -> 1 | BR12: =+IF(BR$10<=Inputs!$L$16,1,0) -> 1 | BS12: =+IF(BS$10<=Inputs!$L$16,1,0) -> 1 | BT12: =+IF(BT$10<=Inputs!$L$16,1,0) -> 1 | BU12: =+IF(BU$10<=Inputs!$L$16,1,0) -> 1 | BV12: =+IF(BV$10<=Inputs!$L$16,1,0) -> 1 | BW12: =+IF(BW$10<=Inputs!$L$16,1,0) -> 1 | BX12: =+IF(BX$10<=Inputs!$L$16,1,0) -> 1 | BY12: =+IF(BY$10<=Inputs!$L$16,1,0) -> 1 | BZ12: =+IF(BZ$10<=Inputs!$L$16,1,0) -> 1 | CA12: =+IF(CA$10<=Inputs!$L$16,1,0) -> 1 | CB12: =+IF(CB$10<=Inputs!$L$16,1,0) -> 1 | CC12: =+IF(CC$10<=Inputs!$L$16,1,0) -> 1 | CD12: =+IF(CD$10<=Inputs!$L$16,1,0) -> 1 | CE12: =+IF(CE$10<=Inputs!$L$16,1,0) -> 1 | CF12: =+IF(CF$10<=Inputs!$L$16,1,0) -> 1 | CG12: =+IF(CG$10<=Inputs!$L$16,1,0) -> 1 | CH12: =+IF(CH$10<=Inputs!$L$16,1,0) -> 1 | CI12: =+IF(CI$10<=Inputs!$L$16,1,0) -> 1 | CJ12: =+IF(CJ$10<=Inputs!$L$16,1,0) -> 1 | CK12: =+IF(CK$10<=Inputs!$L$16,1,0) -> 1 | CL12: =+IF(CL$10<=Inputs!$L$16,1,0) -> 1 | CM12: =+IF(CM$10<=Inputs!$L$16,1,0) -> 1 | CN12: =+IF(CN$10<=Inputs!$L$16,1,0) -> 1 | CO12: =+IF(CO$10<=Inputs!$L$16,1,0) -> 1 | CP12: =+IF(CP$10<=Inputs!$L$16,1,0) -> 1 | CQ12: =+IF(CQ$10<=Inputs!$L$16,1,0) -> 1 | CR12: =+IF(CR$10<=Inputs!$L$16,1,0) -> 1
B13: Days in the period | K13: Days | O13: =+O10-O9+1 -> 365 | P13: 365 | Q13: 365 | R13: =+R10-R9+1 -> 366 | S13: 365 | T13: 365 | U13: 365 | V13: 366 | W13: 365 | X13: 365 | Y13: 365 | Z13: 366 | AA13: 365 | AB13: 365 | AC13: 365 | AD13: 366 | AE13: 365 | AF13: 365 | AG13: 365 | AH13: 366 | AI13: 365 | AJ13: 365 | AK13: 365 | AL13: 366 | AM13: 365 | AN13: 365 | AO13: 365 | AP13: 366 | AQ13: 365 | AR13: 365 | AS13: 365 | AT13: 366 | AU13: 365 | AV13: 365 | AW13: 365 | AX13: 366 | AY13: 365 | AZ13: 365 | BA13: 365 | BB13: 366 | BC13: 365 | BD13: 365 | BE13: 365 | BF13: 366 | BG13: 365 | BH13: 365 | BI13: 365 | BJ13: 366 | BK13: 365 | BL13: 365 | BM13: 365 | BN13: 366 | BO13: 365 | BP13: 365 | BQ13: 365 | BR13: 366 | BS13: 365 | BT13: 365 | BU13: 365 | BV13: 366 | BW13: 365 | BX13: 365 | BY13: 365 | BZ13: 366 | CA13: 365 | CB13: 365 | CC13: 365 | CD13: =+CD10-CD9+1 -> 366 | CE13: 365 | CF13: 365 | CG13: 365 | CH13: 366 | CI13: 365 | CJ13: 365 | CK13: 365 | CL13: 366 | CM13: 365 | CN13: 365 | CO13: 365 | CP13: 366 | CQ13: 365 | CR13: 365
B15: Summary
B17: Revenues | K17: MCAD | M17: =SUM(O17:GJ17) -> 713,485 | O17: =+O40 -> 0 | P17: 1,358.2 | Q17: 1,433.6 | R17: =+R40 -> 1,501.5 | S17: 1,572.0 | T17: 1,665.1 | U17: 1,764.5 | V17: 1,870.1 | W17: 1,981.7 | X17: 2,100.1 | Y17: 2,214.7 | Z17: 2,335.2 | AA17: 2,462.0 | AB17: 2,595.9 | AC17: 2,737.1 | AD17: 2,851.7 | AE17: 2,969.3 | AF17: 3,091.8 | AG17: 3,219.5 | AH17: 3,352.6 | AI17: 3,486.6 | AJ17: 3,626.0 | AK17: 3,771.0 | AL17: 3,922.0 | AM17: 4,078.6 | AN17: 4,222.0 | AO17: 4,369.6 | AP17: 4,522.5 | AQ17: 4,680.3 | AR17: 4,843.9 | AS17: 5,020.3 | AT17: 5,203.7 | AU17: 5,393.2 | AV17: 5,589.9 | AW17: 5,793.9 | AX17: 5,970.4 | AY17: 6,150.1 | AZ17: 6,335.4 | BA17: 6,526.4 | BB17: 6,723.5 | BC17: 6,925.8 | BD17: 7,134.6 | BE17: 7,349.7 | BF17: 7,571.7 | BG17: 7,799.5 | BH17: 8,034.7 | BI17: 8,276.9 | BJ17: 8,526.9 | BK17: 8,783.5 | BL17: 9,048.3 | BM17: 9,321.1 | BN17: 9,602.7 | BO17: 9,891.7 | BP17: 10,190.0 | BQ17: 10,497.2 | BR17: 10,814.4 | BS17: 11,139.8 | BT17: 11,475.7 | BU17: 11,821.8 | BV17: 12,179.0 | BW17: 12,545.5 | BX17: 12,923.8 | BY17: 13,313.5 | BZ17: 13,715.8 | CA17: 14,128.7 | CB17: 14,554.7 | CC17: 14,993.6 | CD17: =+CD40 -> 15,446.7 | CE17: 15,911.7 | CF17: 16,391.5 | CG17: 16,885.9 | CH17: 17,396.2 | CI17: 17,919.8 | CJ17: 18,460.3 | CK17: 19,017.1 | CL17: 19,591.8 | CM17: 20,181.6 | CN17: 20,790.3 | CO17: 21,417.3 | CP17: 22,064.6 | CQ17: 22,728.9 | CR17: 23,414.4
B18: O&M | K18: MCAD | M18: =SUM(O18:GJ18) -> (49,495) | O18: =+O51 -> 0 | P18: (172.2) | Q18: (188.6) | R18: =+R51 -> (191.2) | S18: (193.8) | T18: (199.7) | U18: (205.9) | V18: (212.4) | W18: (219.1) | X18: (226.1) | Y18: (232.9) | Z18: (240.0) | AA18: (247.3) | AB18: (254.9) | AC18: (262.8) | AD18: (270.0) | AE18: (277.3) | AF18: (284.9) | AG18: (292.6) | AH18: (300.7) | AI18: (308.9) | AJ18: (317.4) | AK18: (326.1) | AL18: (335.1) | AM18: (344.4) | AN18: (353.5) | AO18: (362.7) | AP18: (372.3) | AQ18: (382.1) | AR18: (392.1) | AS18: (402.4) | AT18: (412.9) | AU18: (423.7) | AV18: (434.9) | AW18: (446.3) | AX18: (457.1) | AY18: (468.0) | AZ18: (479.2) | BA18: (490.8) | BB18: (502.6) | BC18: (514.7) | BD18: (527.1) | BE18: (539.8) | BF18: (552.8) | BG18: (566.2) | BH18: (579.9) | BI18: (593.9) | BJ18: (608.3) | BK18: (623.1) | BL18: (638.2) | BM18: (653.7) | BN18: (669.7) | BO18: (686.0) | BP18: (702.7) | BQ18: (719.8) | BR18: (737.5) | BS18: (755.5) | BT18: (774.0) | BU18: (793.0) | BV18: (812.4) | BW18: (832.4) | BX18: (852.8) | BY18: (873.8) | BZ18: (895.4) | CA18: (917.5) | CB18: (940.1) | CC18: (963.4) | CD18: =+CD51 -> (987.2) | CE18: (1,011.6) | CF18: (1,036.7) | CG18: (1,062.5) | CH18: (1,088.9) | CI18: (1,115.9) | CJ18: (1,143.7) | CK18: (1,172.2) | CL18: (1,201.5) | CM18: (1,231.5) | CN18: (1,262.2) | CO18: (1,293.8) | CP18: (1,326.3) | CQ18: (1,359.5) | CR18: (1,393.6)
B19: Major Maintenance | K19: MCAD | M19: =SUM(O19:GJ19) -> (12,776) | O19: =+O59 -> 0 | P19: (156.8) | Q19: (122.8) | R19: =+R59 -> (96.2) | S19: (75.3) | T19: (79.1) | U19: (83.0) | V19: (87.1) | W19: (91.4) | X19: (95.9) | Y19: (93.3) | Z19: (90.7) | AA19: (88.2) | AB19: (85.7) | AC19: (83.4) | AD19: (84.5) | AE19: (85.6) | AF19: (86.8) | AG19: (87.9) | AH19: (89.1) | AI19: (92.5) | AJ19: (96.1) | AK19: (99.7) | AL19: (103.6) | AM19: (107.5) | AN19: (107.7) | AO19: (108.0) | AP19: (108.2) | AQ19: (108.4) | AR19: (108.6) | AS19: (110.8) | AT19: (113.0) | AU19: (115.3) | AV19: (117.6) | AW19: (119.9) | AX19: (122.3) | AY19: (124.8) | AZ19: (127.3) | BA19: (129.8) | BB19: (132.4) | BC19: (135.0) | BD19: (137.7) | BE19: (140.5) | BF19: (143.3) | BG19: (146.2) | BH19: (149.1) | BI19: (152.1) | BJ19: (155.1) | BK19: (158.2) | BL19: (161.4) | BM19: (164.6) | BN19: (167.9) | BO19: (171.3) | BP19: (174.7) | BQ19: (178.2) | BR19: (181.8) | BS19: (185.4) | BT19: (189.1) | BU19: (192.9) | BV19: (196.7) | BW19: (200.7) | BX19: (204.7) | BY19: (208.8) | BZ19: (213.0) | CA19: (217.2) | CB19: (221.6) | CC19: (226.0) | CD19: =+CD59 -> (230.5) | CE19: (235.1) | CF19: (239.8) | CG19: (244.6) | CH19: (249.5) | CI19: (254.5) | CJ19: (259.6) | CK19: (264.8) | CL19: (270.1) | CM19: (275.5) | CN19: (281.0) | CO19: (286.6) | CP19: (292.3) | CQ19: (298.2) | CR19: (304.2)
B21: Update Factor
B23: CPI (annual) | K23: % | O23: 1.40% | P23: 1.90% | Q23: =+Inputs!$L$18 -> 2.00% | R23: =+Inputs!$L$18 -> 2.00% | S23: =+Inputs!$L$18 -> 2.00% | T23: =+Inputs!$L$18 -> 2.00% | U23: =+Inputs!$L$18 -> 2.00% | V23: =+Inputs!$L$18 -> 2.00% | W23: =+Inputs!$L$18 -> 2.00% | X23: =+Inputs!$L$18 -> 2.00% | Y23: =+Inputs!$L$18 -> 2.00% | Z23: =+Inputs!$L$18 -> 2.00% | AA23: =+Inputs!$L$18 -> 2.00% | AB23: =+Inputs!$L$18 -> 2.00% | AC23: =+Inputs!$L$18 -> 2.00% | AD23: =+Inputs!$L$18 -> 2.00% | AE23: =+Inputs!$L$18 -> 2.00% | AF23: =+Inputs!$L$18 -> 2.00% | AG23: =+Inputs!$L$18 -> 2.00% | AH23: =+Inputs!$L$18 -> 2.00% | AI23: =+Inputs!$L$18 -> 2.00% | AJ23: =+Inputs!$L$18 -> 2.00% | AK23: =+Inputs!$L$18 -> 2.00% | AL23: =+Inputs!$L$18 -> 2.00% | AM23: =+Inputs!$L$18 -> 2.00% | AN23: =+Inputs!$L$18 -> 2.00% | AO23: =+Inputs!$L$18 -> 2.00% | AP23: =+Inputs!$L$18 -> 2.00% | AQ23: =+Inputs!$L$18 -> 2.00% | AR23: =+Inputs!$L$18 -> 2.00% | AS23: =+Inputs!$L$18 -> 2.00% | AT23: =+Inputs!$L$18 -> 2.00% | AU23: =+Inputs!$L$18 -> 2.00% | AV23: =+Inputs!$L$18 -> 2.00% | AW23: =+Inputs!$L$18 -> 2.00% | AX23: =+Inputs!$L$18 -> 2.00% | AY23: =+Inputs!$L$18 -> 2.00% | AZ23: =+Inputs!$L$18 -> 2.00% | BA23: =+Inputs!$L$18 -> 2.00% | BB23: =+Inputs!$L$18 -> 2.00% | BC23: =+Inputs!$L$18 -> 2.00% | BD23: =+Inputs!$L$18 -> 2.00% | BE23: =+Inputs!$L$18 -> 2.00% | BF23: =+Inputs!$L$18 -> 2.00% | BG23: =+Inputs!$L$18 -> 2.00% | BH23: =+Inputs!$L$18 -> 2.00% | BI23: =+Inputs!$L$18 -> 2.00% | BJ23: =+Inputs!$L$18 -> 2.00% | BK23: =+Inputs!$L$18 -> 2.00% | BL23: =+Inputs!$L$18 -> 2.00% | BM23: =+Inputs!$L$18 -> 2.00% | BN23: =+Inputs!$L$18 -> 2.00% | BO23: =+Inputs!$L$18 -> 2.00% | BP23: =+Inputs!$L$18 -> 2.00% | BQ23: =+Inputs!$L$18 -> 2.00% | BR23: =+Inputs!$L$18 -> 2.00% | BS23: =+Inputs!$L$18 -> 2.00% | BT23: =+Inputs!$L$18 -> 2.00% | BU23: =+Inputs!$L$18 -> 2.00% | BV23: =+Inputs!$L$18 -> 2.00% | BW23: =+Inputs!$L$18 -> 2.00% | BX23: =+Inputs!$L$18 -> 2.00% | BY23: =+Inputs!$L$18 -> 2.00% | BZ23: =+Inputs!$L$18 -> 2.00% | CA23: =+Inputs!$L$18 -> 2.00% | CB23: =+Inputs!$L$18 -> 2.00% | CC23: =+Inputs!$L$18 -> 2.00% | CD23: =+Inputs!$L$18 -> 2.00% | CE23: =+Inputs!$L$18 -> 2.00% | CF23: =+Inputs!$L$18 -> 2.00% | CG23: =+Inputs!$L$18 -> 2.00% | CH23: =+Inputs!$L$18 -> 2.00% | CI23: =+Inputs!$L$18 -> 2.00% | CJ23: =+Inputs!$L$18 -> 2.00% | CK23: =+Inputs!$L$18 -> 2.00% | CL23: =+Inputs!$L$18 -> 2.00% | CM23: =+Inputs!$L$18 -> 2.00% | CN23: =+Inputs!$L$18 -> 2.00% | CO23: =+Inputs!$L$18 -> 2.00% | CP23: =+Inputs!$L$18 -> 2.00% | CQ23: =+Inputs!$L$18 -> 2.00% | CR23: =+Inputs!$L$18 -> 2.00%
B24: Update Factor | K24: Factor | N24: 1 | O24: =IF(O10>Inputs!$L17,N$24*(1+O$23),1) -> 1.01 | P24: =IF(P10>Inputs!$L17,O$24*(1+P$23),1) -> 1.03 | Q24: =IF(Q10>Inputs!$L17,P$24*(1+Q$23),1) -> 1.05 | R24: =IF(R10>Inputs!$L17,Q$24*(1+R$23),1) -> 1.08 | S24: =IF(S10>Inputs!$L17,R$24*(1+S$23),1) -> 1.10 | T24: =IF(T10>Inputs!$L17,S$24*(1+T$23),1) -> 1.12 | U24: =IF(U10>Inputs!$L17,T$24*(1+U$23),1) -> 1.14 | V24: =IF(V10>Inputs!$L17,U$24*(1+V$23),1) -> 1.16 | W24: =IF(W10>Inputs!$L17,V$24*(1+W$23),1) -> 1.19 | X24: =IF(X10>Inputs!$L17,W$24*(1+X$23),1) -> 1.21 | Y24: =IF(Y10>Inputs!$L17,X$24*(1+Y$23),1) -> 1.23 | Z24: =IF(Z10>Inputs!$L17,Y$24*(1+Z$23),1) -> 1.26 | AA24: =IF(AA10>Inputs!$L17,Z$24*(1+AA$23),1) -> 1.28 | AB24: =IF(AB10>Inputs!$L17,AA$24*(1+AB$23),1) -> 1.31 | AC24: =IF(AC10>Inputs!$L17,AB$24*(1+AC$23),1) -> 1.34 | AD24: =IF(AD10>Inputs!$L17,AC$24*(1+AD$23),1) -> 1.36 | AE24: =IF(AE10>Inputs!$L17,AD$24*(1+AE$23),1) -> 1.39 | AF24: =IF(AF10>Inputs!$L17,AE$24*(1+AF$23),1) -> 1.42 | AG24: =IF(AG10>Inputs!$L17,AF$24*(1+AG$23),1) -> 1.45 | AH24: =IF(AH10>Inputs!$L17,AG$24*(1+AH$23),1) -> 1.48 | AI24: =IF(AI10>Inputs!$L17,AH$24*(1+AI$23),1) -> 1.51 | AJ24: =IF(AJ10>Inputs!$L17,AI$24*(1+AJ$23),1) -> 1.54 | AK24: =IF(AK10>Inputs!$L17,AJ$24*(1+AK$23),1) -> 1.57 | AL24: =IF(AL10>Inputs!$L17,AK$24*(1+AL$23),1) -> 1.60 | AM24: =IF(AM10>Inputs!$L17,AL$24*(1+AM$23),1) -> 1.63 | AN24: =IF(AN10>Inputs!$L17,AM$24*(1+AN$23),1) -> 1.66 | AO24: =IF(AO10>Inputs!$L17,AN$24*(1+AO$23),1) -> 1.70 | AP24: =IF(AP10>Inputs!$L17,AO$24*(1+AP$23),1) -> 1.73 | AQ24: =IF(AQ10>Inputs!$L17,AP$24*(1+AQ$23),1) -> 1.76 | AR24: =IF(AR10>Inputs!$L17,AQ$24*(1+AR$23),1) -> 1.80 | AS24: =IF(AS10>Inputs!$L17,AR$24*(1+AS$23),1) -> 1.83 | AT24: =IF(AT10>Inputs!$L17,AS$24*(1+AT$23),1) -> 1.87 | AU24: =IF(AU10>Inputs!$L17,AT$24*(1+AU$23),1) -> 1.91 | AV24: =IF(AV10>Inputs!$L17,AU$24*(1+AV$23),1) -> 1.95 | AW24: =IF(AW10>Inputs!$L17,AV$24*(1+AW$23),1) -> 1.99 | AX24: =IF(AX10>Inputs!$L17,AW$24*(1+AX$23),1) -> 2.03 | AY24: =IF(AY10>Inputs!$L17,AX$24*(1+AY$23),1) -> 2.07 | AZ24: =IF(AZ10>Inputs!$L17,AY$24*(1+AZ$23),1) -> 2.11 | BA24: =IF(BA10>Inputs!$L17,AZ$24*(1+BA$23),1) -> 2.15 | BB24: =IF(BB10>Inputs!$L17,BA$24*(1+BB$23),1) -> 2.19 | BC24: =IF(BC10>Inputs!$L17,BB$24*(1+BC$23),1) -> 2.24 | BD24: =IF(BD10>Inputs!$L17,BC$24*(1+BD$23),1) -> 2.28 | BE24: =IF(BE10>Inputs!$L17,BD$24*(1+BE$23),1) -> 2.33 | BF24: =IF(BF10>Inputs!$L17,BE$24*(1+BF$23),1) -> 2.37 | BG24: =IF(BG10>Inputs!$L17,BF$24*(1+BG$23),1) -> 2.42 | BH24: =IF(BH10>Inputs!$L17,BG$24*(1+BH$23),1) -> 2.47 | BI24: =IF(BI10>Inputs!$L17,BH$24*(1+BI$23),1) -> 2.52 | BJ24: =IF(BJ10>Inputs!$L17,BI$24*(1+BJ$23),1) -> 2.57 | BK24: =IF(BK10>Inputs!$L17,BJ$24*(1+BK$23),1) -> 2.62 | BL24: =IF(BL10>Inputs!$L17,BK$24*(1+BL$23),1) -> 2.67 | BM24: =IF(BM10>Inputs!$L17,BL$24*(1+BM$23),1) -> 2.73 | BN24: =IF(BN10>Inputs!$L17,BM$24*(1+BN$23),1) -> 2.78 | BO24: =IF(BO10>Inputs!$L17,BN$24*(1+BO$23),1) -> 2.84 | BP24: =IF(BP10>Inputs!$L17,BO$24*(1+BP$23),1) -> 2.89 | BQ24: =IF(BQ10>Inputs!$L17,BP$24*(1+BQ$23),1) -> 2.95 | BR24: =IF(BR10>Inputs!$L17,BQ$24*(1+BR$23),1) -> 3.01 | BS24: =IF(BS10>Inputs!$L17,BR$24*(1+BS$23),1) -> 3.07 | BT24: =IF(BT10>Inputs!$L17,BS$24*(1+BT$23),1) -> 3.13 | BU24: =IF(BU10>Inputs!$L17,BT$24*(1+BU$23),1) -> 3.19 | BV24: =IF(BV10>Inputs!$L17,BU$24*(1+BV$23),1) -> 3.26 | BW24: =IF(BW10>Inputs!$L17,BV$24*(1+BW$23),1) -> 3.32 | BX24: =IF(BX10>Inputs!$L17,BW$24*(1+BX$23),1) -> 3.39 | BY24: =IF(BY10>Inputs!$L17,BX$24*(1+BY$23),1) -> 3.46 | BZ24: =IF(BZ10>Inputs!$L17,BY$24*(1+BZ$23),1) -> 3.53 | CA24: =IF(CA10>Inputs!$L17,BZ$24*(1+CA$23),1) -> 3.60 | CB24: =IF(CB10>Inputs!$L17,CA$24*(1+CB$23),1) -> 3.67 | CC24: =IF(CC10>Inputs!$L17,CB$24*(1+CC$23),1) -> 3.74 | CD24: =IF(CD10>Inputs!$L17,CC$24*(1+CD$23),1) -> 3.82 | CE24: =IF(CE10>Inputs!$L17,CD$24*(1+CE$23),1) -> 3.89 | CF24: =IF(CF10>Inputs!$L17,CE$24*(1+CF$23),1) -> 3.97 | CG24: =IF(CG10>Inputs!$L17,CF$24*(1+CG$23),1) -> 4.05 | CH24: =IF(CH10>Inputs!$L17,CG$24*(1+CH$23),1) -> 4.13 | CI24: =IF(CI10>Inputs!$L17,CH$24*(1+CI$23),1) -> 4.22 | CJ24: =IF(CJ10>Inputs!$L17,CI$24*(1+CJ$23),1) -> 4.30 | CK24: =IF(CK10>Inputs!$L17,CJ$24*(1+CK$23),1) -> 4.39 | CL24: =IF(CL10>Inputs!$L17,CK$24*(1+CL$23),1) -> 4.47 | CM24: =IF(CM10>Inputs!$L17,CL$24*(1+CM$23),1) -> 4.56 | CN24: =IF(CN10>Inputs!$L17,CM$24*(1+CN$23),1) -> 4.65 | CO24: =IF(CO10>Inputs!$L17,CN$24*(1+CO$23),1) -> 4.75 | CP24: =IF(CP10>Inputs!$L17,CO$24*(1+CP$23),1) -> 4.84 | CQ24: =IF(CQ10>Inputs!$L17,CP$24*(1+CQ$23),1) -> 4.94 | CR24: =IF(CR10>Inputs!$L17,CQ$24*(1+CR$23),1) -> 5.04
B26: Revenues
B28: Sensitivity | H28: =+Inputs!L102 -> 100% | K28: %
B29: Real Revenues before Interest Charge | K29: MCAD | M29: =SUM(O29:GJ29) -> 242,512 | P29: =+IF(P$7<>O$7,INDEX(Inputs!$L$26:$L$42,P$7,1),O29*(1+P30)) -> 1,283.3 | Q29: =+IF(Q$7<>P$7,INDEX(Inputs!$L$26:$L$42,Q$7,1),P29*(1+Q30)) -> 1,318.2 | R29: =+IF(R$7<>Q$7,INDEX(Inputs!$L$26:$L$42,R$7,1),Q29*(1+R30)) -> 1,354.0 | S29: =+IF(S$7<>R$7,INDEX(Inputs!$L$26:$L$42,S$7,1),R29*(1+S30)) -> 1,390.8 | T29: =+IF(T$7<>S$7,INDEX(Inputs!$L$26:$L$42,T$7,1),S29*(1+T30)) -> 1,445.3 | U29: =+IF(U$7<>T$7,INDEX(Inputs!$L$26:$L$42,U$7,1),T29*(1+U30)) -> 1,501.9 | V29: =+IF(V$7<>U$7,INDEX(Inputs!$L$26:$L$42,V$7,1),U29*(1+V30)) -> 1,560.8 | W29: =+IF(W$7<>V$7,INDEX(Inputs!$L$26:$L$42,W$7,1),V29*(1+W30)) -> 1,621.9 | X29: =+IF(X$7<>W$7,INDEX(Inputs!$L$26:$L$42,X$7,1),W29*(1+X30)) -> 1,685.5 | Y29: =+IF(Y$7<>X$7,INDEX(Inputs!$L$26:$L$42,Y$7,1),X29*(1+Y30)) -> 1,742.8 | Z29: =+IF(Z$7<>Y$7,INDEX(Inputs!$L$26:$L$42,Z$7,1),Y29*(1+Z30)) -> 1,802.0 | AA29: =+IF(AA$7<>Z$7,INDEX(Inputs!$L$26:$L$42,AA$7,1),Z29*(1+AA30)) -> 1,863.3 | AB29: =+IF(AB$7<>AA$7,INDEX(Inputs!$L$26:$L$42,AB$7,1),AA29*(1+AB30)) -> 1,926.6 | AC29: =+IF(AC$7<>AB$7,INDEX(Inputs!$L$26:$L$42,AC$7,1),AB29*(1+AC30)) -> 1,992.1 | AD29: =+IF(AD$7<>AC$7,INDEX(Inputs!$L$26:$L$42,AD$7,1),AC29*(1+AD30)) -> 2,034.0 | AE29: =+IF(AE$7<>AD$7,INDEX(Inputs!$L$26:$L$42,AE$7,1),AD29*(1+AE30)) -> 2,076.8 | AF29: =+IF(AF$7<>AE$7,INDEX(Inputs!$L$26:$L$42,AF$7,1),AE29*(1+AF30)) -> 2,120.4 | AG29: =+IF(AG$7<>AF$7,INDEX(Inputs!$L$26:$L$42,AG$7,1),AF29*(1+AG30)) -> 2,165.0 | AH29: =+IF(AH$7<>AG$7,INDEX(Inputs!$L$26:$L$42,AH$7,1),AG29*(1+AH30)) -> 2,210.5 | AI29: =+IF(AI$7<>AH$7,INDEX(Inputs!$L$26:$L$42,AI$7,1),AH29*(1+AI30)) -> 2,254.1 | AJ29: =+IF(AJ$7<>AI$7,INDEX(Inputs!$L$26:$L$42,AJ$7,1),AI29*(1+AJ30)) -> 2,298.6 | AK29: =+IF(AK$7<>AJ$7,INDEX(Inputs!$L$26:$L$42,AK$7,1),AJ29*(1+AK30)) -> 2,344.0 | AL29: =+IF(AL$7<>AK$7,INDEX(Inputs!$L$26:$L$42,AL$7,1),AK29*(1+AL30)) -> 2,390.2 | AM29: =+IF(AM$7<>AL$7,INDEX(Inputs!$L$26:$L$42,AM$7,1),AL29*(1+AM30)) -> 2,437.4 | AN29: =+IF(AN$7<>AM$7,INDEX(Inputs!$L$26:$L$42,AN$7,1),AM29*(1+AN30)) -> 2,473.3 | AO29: =+IF(AO$7<>AN$7,INDEX(Inputs!$L$26:$L$42,AO$7,1),AN29*(1+AO30)) -> 2,509.8 | AP29: =+IF(AP$7<>AO$7,INDEX(Inputs!$L$26:$L$42,AP$7,1),AO29*(1+AP30)) -> 2,546.8 | AQ29: =+IF(AQ$7<>AP$7,INDEX(Inputs!$L$26:$L$42,AQ$7,1),AP29*(1+AQ30)) -> 2,584.4 | AR29: =+IF(AR$7<>AQ$7,INDEX(Inputs!$L$26:$L$42,AR$7,1),AQ29*(1+AR30)) -> 2,622.5 | AS29: =+IF(AS$7<>AR$7,INDEX(Inputs!$L$26:$L$42,AS$7,1),AR29*(1+AS30)) -> 2,665.1 | AT29: =+IF(AT$7<>AS$7,INDEX(Inputs!$L$26:$L$42,AT$7,1),AS29*(1+AT30)) -> 2,708.4 | AU29: =+IF(AU$7<>AT$7,INDEX(Inputs!$L$26:$L$42,AU$7,1),AT29*(1+AU30)) -> 2,752.4 | AV29: =+IF(AV$7<>AU$7,INDEX(Inputs!$L$26:$L$42,AV$7,1),AU29*(1+AV30)) -> 2,797.2 | AW29: =+IF(AW$7<>AV$7,INDEX(Inputs!$L$26:$L$42,AW$7,1),AV29*(1+AW30)) -> 2,842.6 | AX29: =+IF(AX$7<>AW$7,INDEX(Inputs!$L$26:$L$42,AX$7,1),AW29*(1+AX30)) -> 2,871.0 | AY29: =+IF(AY$7<>AX$7,INDEX(Inputs!$L$26:$L$42,AY$7,1),AX29*(1+AY30)) -> 2,899.8 | AZ29: =+IF(AZ$7<>AY$7,INDEX(Inputs!$L$26:$L$42,AZ$7,1),AY29*(1+AZ30)) -> 2,928.8 | BA29: =+IF(BA$7<>AZ$7,INDEX(Inputs!$L$26:$L$42,BA$7,1),AZ29*(1+BA30)) -> 2,958.0 | BB29: =+IF(BB$7<>BA$7,INDEX(Inputs!$L$26:$L$42,BB$7,1),BA29*(1+BB30)) -> 2,987.6 | BC29: =+IF(BC$7<>BB$7,INDEX(Inputs!$L$26:$L$42,BC$7,1),BB29*(1+BC30)) -> 3,017.5 | BD29: =+IF(BD$7<>BC$7,INDEX(Inputs!$L$26:$L$42,BD$7,1),BC29*(1+BD30)) -> 3,047.7 | BE29: =+IF(BE$7<>BD$7,INDEX(Inputs!$L$26:$L$42,BE$7,1),BD29*(1+BE30)) -> 3,078.1 | BF29: =+IF(BF$7<>BE$7,INDEX(Inputs!$L$26:$L$42,BF$7,1),BE29*(1+BF30)) -> 3,108.9 | BG29: =+IF(BG$7<>BF$7,INDEX(Inputs!$L$26:$L$42,BG$7,1),BF29*(1+BG30)) -> 3,140.0 | BH29: =+IF(BH$7<>BG$7,INDEX(Inputs!$L$26:$L$42,BH$7,1),BG29*(1+BH30)) -> 3,171.4 | BI29: =+IF(BI$7<>BH$7,INDEX(Inputs!$L$26:$L$42,BI$7,1),BH29*(1+BI30)) -> 3,203.1 | BJ29: =+IF(BJ$7<>BI$7,INDEX(Inputs!$L$26:$L$42,BJ$7,1),BI29*(1+BJ30)) -> 3,235.2 | BK29: =+IF(BK$7<>BJ$7,INDEX(Inputs!$L$26:$L$42,BK$7,1),BJ29*(1+BK30)) -> 3,267.5 | BL29: =+IF(BL$7<>BK$7,INDEX(Inputs!$L$26:$L$42,BL$7,1),BK29*(1+BL30)) -> 3,300.2 | BM29: =+IF(BM$7<>BL$7,INDEX(Inputs!$L$26:$L$42,BM$7,1),BL29*(1+BM30)) -> 3,333.2 | BN29: =+IF(BN$7<>BM$7,INDEX(Inputs!$L$26:$L$42,BN$7,1),BM29*(1+BN30)) -> 3,366.5 | BO29: =+IF(BO$7<>BN$7,INDEX(Inputs!$L$26:$L$42,BO$7,1),BN29*(1+BO30)) -> 3,400.2 | BP29: =+IF(BP$7<>BO$7,INDEX(Inputs!$L$26:$L$42,BP$7,1),BO29*(1+BP30)) -> 3,434.2 | BQ29: =+IF(BQ$7<>BP$7,INDEX(Inputs!$L$26:$L$42,BQ$7,1),BP29*(1+BQ30)) -> 3,468.5 | BR29: =+IF(BR$7<>BQ$7,INDEX(Inputs!$L$26:$L$42,BR$7,1),BQ29*(1+BR30)) -> 3,503.2 | BS29: =+IF(BS$7<>BR$7,INDEX(Inputs!$L$26:$L$42,BS$7,1),BR29*(1+BS30)) -> 3,538.3 | BT29: =+IF(BT$7<>BS$7,INDEX(Inputs!$L$26:$L$42,BT$7,1),BS29*(1+BT30)) -> 3,573.6 | BU29: =+IF(BU$7<>BT$7,INDEX(Inputs!$L$26:$L$42,BU$7,1),BT29*(1+BU30)) -> 3,609.4 | BV29: =+IF(BV$7<>BU$7,INDEX(Inputs!$L$26:$L$42,BV$7,1),BU29*(1+BV30)) -> 3,645.5 | BW29: =+IF(BW$7<>BV$7,INDEX(Inputs!$L$26:$L$42,BW$7,1),BV29*(1+BW30)) -> 3,681.9 | BX29: =+IF(BX$7<>BW$7,INDEX(Inputs!$L$26:$L$42,BX$7,1),BW29*(1+BX30)) -> 3,718.7 | BY29: =+IF(BY$7<>BX$7,INDEX(Inputs!$L$26:$L$42,BY$7,1),BX29*(1+BY30)) -> 3,755.9 | BZ29: =+IF(BZ$7<>BY$7,INDEX(Inputs!$L$26:$L$42,BZ$7,1),BY29*(1+BZ30)) -> 3,793.5 | CA29: =+IF(CA$7<>BZ$7,INDEX(Inputs!$L$26:$L$42,CA$7,1),BZ29*(1+CA30)) -> 3,831.4 | CB29: =+IF(CB$7<>CA$7,INDEX(Inputs!$L$26:$L$42,CB$7,1),CA29*(1+CB30)) -> 3,869.7 | CC29: =+IF(CC$7<>CB$7,INDEX(Inputs!$L$26:$L$42,CC$7,1),CB29*(1+CC30)) -> 3,908.4 | CD29: =+IF(CD$7<>CC$7,INDEX(Inputs!$L$26:$L$42,CD$7,1),CC29*(1+CD30)) -> 3,947.5 | CE29: =+IF(CE$7<>CD$7,INDEX(Inputs!$L$26:$L$42,CE$7,1),CD29*(1+CE30)) -> 3,987.0 | CF29: =+IF(CF$7<>CE$7,INDEX(Inputs!$L$26:$L$42,CF$7,1),CE29*(1+CF30)) -> 4,026.9 | CG29: =+IF(CG$7<>CF$7,INDEX(Inputs!$L$26:$L$42,CG$7,1),CF29*(1+CG30)) -> 4,067.1 | CH29: =+IF(CH$7<>CG$7,INDEX(Inputs!$L$26:$L$42,CH$7,1),CG29*(1+CH30)) -> 4,107.8 | CI29: =+IF(CI$7<>CH$7,INDEX(Inputs!$L$26:$L$42,CI$7,1),CH29*(1+CI30)) -> 4,148.9 | CJ29: =+IF(CJ$7<>CI$7,INDEX(Inputs!$L$26:$L$42,CJ$7,1),CI29*(1+CJ30)) -> 4,190.4 | CK29: =+IF(CK$7<>CJ$7,INDEX(Inputs!$L$26:$L$42,CK$7,1),CJ29*(1+CK30)) -> 4,232.3 | CL29: =+IF(CL$7<>CK$7,INDEX(Inputs!$L$26:$L$42,CL$7,1),CK29*(1+CL30)) -> 4,274.6 | CM29: =+IF(CM$7<>CL$7,INDEX(Inputs!$L$26:$L$42,CM$7,1),CL29*(1+CM30)) -> 4,317.3 | CN29: =+IF(CN$7<>CM$7,INDEX(Inputs!$L$26:$L$42,CN$7,1),CM29*(1+CN30)) -> 4,360.5 | CO29: =+IF(CO$7<>CN$7,INDEX(Inputs!$L$26:$L$42,CO$7,1),CN29*(1+CO30)) -> 4,404.1 | CP29: =+IF(CP$7<>CO$7,INDEX(Inputs!$L$26:$L$42,CP$7,1),CO29*(1+CP30)) -> 4,448.2 | CQ29: =+IF(CQ$7<>CP$7,INDEX(Inputs!$L$26:$L$42,CQ$7,1),CP29*(1+CQ30)) -> 4,492.6 | CR29: =+IF(CR$7<>CQ$7,INDEX(Inputs!$L$26:$L$42,CR$7,1),CQ29*(1+CR30)) -> 4,537.6
B30: Growth | Q30: =+POWER(INDEX(Inputs!$L$26:$L$42,P$7+1,1)/INDEX(Inputs!$L$26:$L$42,P$7,1),1/(INDEX(Inputs!$B$26:$B$42,P$7+1,1)-INDEX(Inputs!$B$26:$B$42,P$7,1)))-1 -> 2.7% | R30: =+POWER(INDEX(Inputs!$L$26:$L$42,Q$7+1,1)/INDEX(Inputs!$L$26:$L$42,Q$7,1),1/(INDEX(Inputs!$B$26:$B$42,Q$7+1,1)-INDEX(Inputs!$B$26:$B$42,Q$7,1)))-1 -> 2.7% | S30: =+POWER(INDEX(Inputs!$L$26:$L$42,R$7+1,1)/INDEX(Inputs!$L$26:$L$42,R$7,1),1/(INDEX(Inputs!$B$26:$B$42,R$7+1,1)-INDEX(Inputs!$B$26:$B$42,R$7,1)))-1 -> 2.7% | T30: =+POWER(INDEX(Inputs!$L$26:$L$42,S$7+1,1)/INDEX(Inputs!$L$26:$L$42,S$7,1),1/(INDEX(Inputs!$B$26:$B$42,S$7+1,1)-INDEX(Inputs!$B$26:$B$42,S$7,1)))-1 -> 3.9% | U30: =+POWER(INDEX(Inputs!$L$26:$L$42,T$7+1,1)/INDEX(Inputs!$L$26:$L$42,T$7,1),1/(INDEX(Inputs!$B$26:$B$42,T$7+1,1)-INDEX(Inputs!$B$26:$B$42,T$7,1)))-1 -> 3.9% | V30: =+POWER(INDEX(Inputs!$L$26:$L$42,U$7+1,1)/INDEX(Inputs!$L$26:$L$42,U$7,1),1/(INDEX(Inputs!$B$26:$B$42,U$7+1,1)-INDEX(Inputs!$B$26:$B$42,U$7,1)))-1 -> 3.9% | W30: =+POWER(INDEX(Inputs!$L$26:$L$42,V$7+1,1)/INDEX(Inputs!$L$26:$L$42,V$7,1),1/(INDEX(Inputs!$B$26:$B$42,V$7+1,1)-INDEX(Inputs!$B$26:$B$42,V$7,1)))-1 -> 3.9% | X30: =+POWER(INDEX(Inputs!$L$26:$L$42,W$7+1,1)/INDEX(Inputs!$L$26:$L$42,W$7,1),1/(INDEX(Inputs!$B$26:$B$42,W$7+1,1)-INDEX(Inputs!$B$26:$B$42,W$7,1)))-1 -> 3.9% | Y30: =+POWER(INDEX(Inputs!$L$26:$L$42,X$7+1,1)/INDEX(Inputs!$L$26:$L$42,X$7,1),1/(INDEX(Inputs!$B$26:$B$42,X$7+1,1)-INDEX(Inputs!$B$26:$B$42,X$7,1)))-1 -> 3.4% | Z30: =+POWER(INDEX(Inputs!$L$26:$L$42,Y$7+1,1)/INDEX(Inputs!$L$26:$L$42,Y$7,1),1/(INDEX(Inputs!$B$26:$B$42,Y$7+1,1)-INDEX(Inputs!$B$26:$B$42,Y$7,1)))-1 -> 3.4% | AA30: =+POWER(INDEX(Inputs!$L$26:$L$42,Z$7+1,1)/INDEX(Inputs!$L$26:$L$42,Z$7,1),1/(INDEX(Inputs!$B$26:$B$42,Z$7+1,1)-INDEX(Inputs!$B$26:$B$42,Z$7,1)))-1 -> 3.4% | AB30: =+POWER(INDEX(Inputs!$L$26:$L$42,AA$7+1,1)/INDEX(Inputs!$L$26:$L$42,AA$7,1),1/(INDEX(Inputs!$B$26:$B$42,AA$7+1,1)-INDEX(Inputs!$B$26:$B$42,AA$7,1)))-1 -> 3.4% | AC30: =+POWER(INDEX(Inputs!$L$26:$L$42,AB$7+1,1)/INDEX(Inputs!$L$26:$L$42,AB$7,1),1/(INDEX(Inputs!$B$26:$B$42,AB$7+1,1)-INDEX(Inputs!$B$26:$B$42,AB$7,1)))-1 -> 3.4% | AD30: =+POWER(INDEX(Inputs!$L$26:$L$42,AC$7+1,1)/INDEX(Inputs!$L$26:$L$42,AC$7,1),1/(INDEX(Inputs!$B$26:$B$42,AC$7+1,1)-INDEX(Inputs!$B$26:$B$42,AC$7,1)))-1 -> 2.1% | AE30: =+POWER(INDEX(Inputs!$L$26:$L$42,AD$7+1,1)/INDEX(Inputs!$L$26:$L$42,AD$7,1),1/(INDEX(Inputs!$B$26:$B$42,AD$7+1,1)-INDEX(Inputs!$B$26:$B$42,AD$7,1)))-1 -> 2.1% | AF30: =+POWER(INDEX(Inputs!$L$26:$L$42,AE$7+1,1)/INDEX(Inputs!$L$26:$L$42,AE$7,1),1/(INDEX(Inputs!$B$26:$B$42,AE$7+1,1)-INDEX(Inputs!$B$26:$B$42,AE$7,1)))-1 -> 2.1% | AG30: =+POWER(INDEX(Inputs!$L$26:$L$42,AF$7+1,1)/INDEX(Inputs!$L$26:$L$42,AF$7,1),1/(INDEX(Inputs!$B$26:$B$42,AF$7+1,1)-INDEX(Inputs!$B$26:$B$42,AF$7,1)))-1 -> 2.1% | AH30: =+POWER(INDEX(Inputs!$L$26:$L$42,AG$7+1,1)/INDEX(Inputs!$L$26:$L$42,AG$7,1),1/(INDEX(Inputs!$B$26:$B$42,AG$7+1,1)-INDEX(Inputs!$B$26:$B$42,AG$7,1)))-1 -> 2.1% | AI30: =+POWER(INDEX(Inputs!$L$26:$L$42,AH$7+1,1)/INDEX(Inputs!$L$26:$L$42,AH$7,1),1/(INDEX(Inputs!$B$26:$B$42,AH$7+1,1)-INDEX(Inputs!$B$26:$B$42,AH$7,1)))-1 -> 2.0% | AJ30: =+POWER(INDEX(Inputs!$L$26:$L$42,AI$7+1,1)/INDEX(Inputs!$L$26:$L$42,AI$7,1),1/(INDEX(Inputs!$B$26:$B$42,AI$7+1,1)-INDEX(Inputs!$B$26:$B$42,AI$7,1)))-1 -> 2.0% | AK30: =+POWER(INDEX(Inputs!$L$26:$L$42,AJ$7+1,1)/INDEX(Inputs!$L$26:$L$42,AJ$7,1),1/(INDEX(Inputs!$B$26:$B$42,AJ$7+1,1)-INDEX(Inputs!$B$26:$B$42,AJ$7,1)))-1 -> 2.0% | AL30: =+POWER(INDEX(Inputs!$L$26:$L$42,AK$7+1,1)/INDEX(Inputs!$L$26:$L$42,AK$7,1),1/(INDEX(Inputs!$B$26:$B$42,AK$7+1,1)-INDEX(Inputs!$B$26:$B$42,AK$7,1)))-1 -> 2.0% | AM30: =+POWER(INDEX(Inputs!$L$26:$L$42,AL$7+1,1)/INDEX(Inputs!$L$26:$L$42,AL$7,1),1/(INDEX(Inputs!$B$26:$B$42,AL$7+1,1)-INDEX(Inputs!$B$26:$B$42,AL$7,1)))-1 -> 2.0% | AN30: =+POWER(INDEX(Inputs!$L$26:$L$42,AM$7+1,1)/INDEX(Inputs!$L$26:$L$42,AM$7,1),1/(INDEX(Inputs!$B$26:$B$42,AM$7+1,1)-INDEX(Inputs!$B$26:$B$42,AM$7,1)))-1 -> 1.5% | AO30: =+POWER(INDEX(Inputs!$L$26:$L$42,AN$7+1,1)/INDEX(Inputs!$L$26:$L$42,AN$7,1),1/(INDEX(Inputs!$B$26:$B$42,AN$7+1,1)-INDEX(Inputs!$B$26:$B$42,AN$7,1)))-1 -> 1.5% | AP30: =+POWER(INDEX(Inputs!$L$26:$L$42,AO$7+1,1)/INDEX(Inputs!$L$26:$L$42,AO$7,1),1/(INDEX(Inputs!$B$26:$B$42,AO$7+1,1)-INDEX(Inputs!$B$26:$B$42,AO$7,1)))-1 -> 1.5% | AQ30: =+POWER(INDEX(Inputs!$L$26:$L$42,AP$7+1,1)/INDEX(Inputs!$L$26:$L$42,AP$7,1),1/(INDEX(Inputs!$B$26:$B$42,AP$7+1,1)-INDEX(Inputs!$B$26:$B$42,AP$7,1)))-1 -> 1.5% | AR30: =+POWER(INDEX(Inputs!$L$26:$L$42,AQ$7+1,1)/INDEX(Inputs!$L$26:$L$42,AQ$7,1),1/(INDEX(Inputs!$B$26:$B$42,AQ$7+1,1)-INDEX(Inputs!$B$26:$B$42,AQ$7,1)))-1 -> 1.5% | AS30: =+POWER(INDEX(Inputs!$L$26:$L$42,AR$7+1,1)/INDEX(Inputs!$L$26:$L$42,AR$7,1),1/(INDEX(Inputs!$B$26:$B$42,AR$7+1,1)-INDEX(Inputs!$B$26:$B$42,AR$7,1)))-1 -> 1.6% | AT30: =+POWER(INDEX(Inputs!$L$26:$L$42,AS$7+1,1)/INDEX(Inputs!$L$26:$L$42,AS$7,1),1/(INDEX(Inputs!$B$26:$B$42,AS$7+1,1)-INDEX(Inputs!$B$26:$B$42,AS$7,1)))-1 -> 1.6% | AU30: =+POWER(INDEX(Inputs!$L$26:$L$42,AT$7+1,1)/INDEX(Inputs!$L$26:$L$42,AT$7,1),1/(INDEX(Inputs!$B$26:$B$42,AT$7+1,1)-INDEX(Inputs!$B$26:$B$42,AT$7,1)))-1 -> 1.6% | AV30: =+POWER(INDEX(Inputs!$L$26:$L$42,AU$7+1,1)/INDEX(Inputs!$L$26:$L$42,AU$7,1),1/(INDEX(Inputs!$B$26:$B$42,AU$7+1,1)-INDEX(Inputs!$B$26:$B$42,AU$7,1)))-1 -> 1.6% | AW30: =+POWER(INDEX(Inputs!$L$26:$L$42,AV$7+1,1)/INDEX(Inputs!$L$26:$L$42,AV$7,1),1/(INDEX(Inputs!$B$26:$B$42,AV$7+1,1)-INDEX(Inputs!$B$26:$B$42,AV$7,1)))-1 -> 1.6% | AX30: =+POWER(INDEX(Inputs!$L$26:$L$42,AW$7+1,1)/INDEX(Inputs!$L$26:$L$42,AW$7,1),1/(INDEX(Inputs!$B$26:$B$42,AW$7+1,1)-INDEX(Inputs!$B$26:$B$42,AW$7,1)))-1 -> 1.0% | AY30: =+POWER(INDEX(Inputs!$L$26:$L$42,AX$7+1,1)/INDEX(Inputs!$L$26:$L$42,AX$7,1),1/(INDEX(Inputs!$B$26:$B$42,AX$7+1,1)-INDEX(Inputs!$B$26:$B$42,AX$7,1)))-1 -> 1.0% | AZ30: =+POWER(INDEX(Inputs!$L$26:$L$42,AY$7+1,1)/INDEX(Inputs!$L$26:$L$42,AY$7,1),1/(INDEX(Inputs!$B$26:$B$42,AY$7+1,1)-INDEX(Inputs!$B$26:$B$42,AY$7,1)))-1 -> 1.0% | BA30: =+POWER(INDEX(Inputs!$L$26:$L$42,AZ$7+1,1)/INDEX(Inputs!$L$26:$L$42,AZ$7,1),1/(INDEX(Inputs!$B$26:$B$42,AZ$7+1,1)-INDEX(Inputs!$B$26:$B$42,AZ$7,1)))-1 -> 1.0% | BB30: =+POWER(INDEX(Inputs!$L$26:$L$42,BA$7+1,1)/INDEX(Inputs!$L$26:$L$42,BA$7,1),1/(INDEX(Inputs!$B$26:$B$42,BA$7+1,1)-INDEX(Inputs!$B$26:$B$42,BA$7,1)))-1 -> 1.0% | BC30: =+POWER(INDEX(Inputs!$L$26:$L$42,BB$7+1,1)/INDEX(Inputs!$L$26:$L$42,BB$7,1),1/(INDEX(Inputs!$B$26:$B$42,BB$7+1,1)-INDEX(Inputs!$B$26:$B$42,BB$7,1)))-1 -> 1.0% | BD30: =+POWER(INDEX(Inputs!$L$26:$L$42,BC$7+1,1)/INDEX(Inputs!$L$26:$L$42,BC$7,1),1/(INDEX(Inputs!$B$26:$B$42,BC$7+1,1)-INDEX(Inputs!$B$26:$B$42,BC$7,1)))-1 -> 1.0% | BE30: =+POWER(INDEX(Inputs!$L$26:$L$42,BD$7+1,1)/INDEX(Inputs!$L$26:$L$42,BD$7,1),1/(INDEX(Inputs!$B$26:$B$42,BD$7+1,1)-INDEX(Inputs!$B$26:$B$42,BD$7,1)))-1 -> 1.0% | BF30: =+POWER(INDEX(Inputs!$L$26:$L$42,BE$7+1,1)/INDEX(Inputs!$L$26:$L$42,BE$7,1),1/(INDEX(Inputs!$B$26:$B$42,BE$7+1,1)-INDEX(Inputs!$B$26:$B$42,BE$7,1)))-1 -> 1.0% | BG30: =+POWER(INDEX(Inputs!$L$26:$L$42,BF$7+1,1)/INDEX(Inputs!$L$26:$L$42,BF$7,1),1/(INDEX(Inputs!$B$26:$B$42,BF$7+1,1)-INDEX(Inputs!$B$26:$B$42,BF$7,1)))-1 -> 1.0% | BH30: =+POWER(INDEX(Inputs!$L$26:$L$42,BG$7+1,1)/INDEX(Inputs!$L$26:$L$42,BG$7,1),1/(INDEX(Inputs!$B$26:$B$42,BG$7+1,1)-INDEX(Inputs!$B$26:$B$42,BG$7,1)))-1 -> 1.0% | BI30: =+POWER(INDEX(Inputs!$L$26:$L$42,BH$7+1,1)/INDEX(Inputs!$L$26:$L$42,BH$7,1),1/(INDEX(Inputs!$B$26:$B$42,BH$7+1,1)-INDEX(Inputs!$B$26:$B$42,BH$7,1)))-1 -> 1.0% | BJ30: =+POWER(INDEX(Inputs!$L$26:$L$42,BI$7+1,1)/INDEX(Inputs!$L$26:$L$42,BI$7,1),1/(INDEX(Inputs!$B$26:$B$42,BI$7+1,1)-INDEX(Inputs!$B$26:$B$42,BI$7,1)))-1 -> 1.0% | BK30: =+POWER(INDEX(Inputs!$L$26:$L$42,BJ$7+1,1)/INDEX(Inputs!$L$26:$L$42,BJ$7,1),1/(INDEX(Inputs!$B$26:$B$42,BJ$7+1,1)-INDEX(Inputs!$B$26:$B$42,BJ$7,1)))-1 -> 1.0% | BL30: =+POWER(INDEX(Inputs!$L$26:$L$42,BK$7+1,1)/INDEX(Inputs!$L$26:$L$42,BK$7,1),1/(INDEX(Inputs!$B$26:$B$42,BK$7+1,1)-INDEX(Inputs!$B$26:$B$42,BK$7,1)))-1 -> 1.0% | BM30: =+POWER(INDEX(Inputs!$L$26:$L$42,BL$7+1,1)/INDEX(Inputs!$L$26:$L$42,BL$7,1),1/(INDEX(Inputs!$B$26:$B$42,BL$7+1,1)-INDEX(Inputs!$B$26:$B$42,BL$7,1)))-1 -> 1.0% | BN30: =+POWER(INDEX(Inputs!$L$26:$L$42,BM$7+1,1)/INDEX(Inputs!$L$26:$L$42,BM$7,1),1/(INDEX(Inputs!$B$26:$B$42,BM$7+1,1)-INDEX(Inputs!$B$26:$B$42,BM$7,1)))-1 -> 1.0% | BO30: =+POWER(INDEX(Inputs!$L$26:$L$42,BN$7+1,1)/INDEX(Inputs!$L$26:$L$42,BN$7,1),1/(INDEX(Inputs!$B$26:$B$42,BN$7+1,1)-INDEX(Inputs!$B$26:$B$42,BN$7,1)))-1 -> 1.0% | BP30: =+POWER(INDEX(Inputs!$L$26:$L$42,BO$7+1,1)/INDEX(Inputs!$L$26:$L$42,BO$7,1),1/(INDEX(Inputs!$B$26:$B$42,BO$7+1,1)-INDEX(Inputs!$B$26:$B$42,BO$7,1)))-1 -> 1.0% | BQ30: =+POWER(INDEX(Inputs!$L$26:$L$42,BP$7+1,1)/INDEX(Inputs!$L$26:$L$42,BP$7,1),1/(INDEX(Inputs!$B$26:$B$42,BP$7+1,1)-INDEX(Inputs!$B$26:$B$42,BP$7,1)))-1 -> 1.0% | BR30: =+POWER(INDEX(Inputs!$L$26:$L$42,BQ$7+1,1)/INDEX(Inputs!$L$26:$L$42,BQ$7,1),1/(INDEX(Inputs!$B$26:$B$42,BQ$7+1,1)-INDEX(Inputs!$B$26:$B$42,BQ$7,1)))-1 -> 1.0% | BS30: =+POWER(INDEX(Inputs!$L$26:$L$42,BR$7+1,1)/INDEX(Inputs!$L$26:$L$42,BR$7,1),1/(INDEX(Inputs!$B$26:$B$42,BR$7+1,1)-INDEX(Inputs!$B$26:$B$42,BR$7,1)))-1 -> 1.0% | BT30: =+POWER(INDEX(Inputs!$L$26:$L$42,BS$7+1,1)/INDEX(Inputs!$L$26:$L$42,BS$7,1),1/(INDEX(Inputs!$B$26:$B$42,BS$7+1,1)-INDEX(Inputs!$B$26:$B$42,BS$7,1)))-1 -> 1.0% | BU30: =+POWER(INDEX(Inputs!$L$26:$L$42,BT$7+1,1)/INDEX(Inputs!$L$26:$L$42,BT$7,1),1/(INDEX(Inputs!$B$26:$B$42,BT$7+1,1)-INDEX(Inputs!$B$26:$B$42,BT$7,1)))-1 -> 1.0% | BV30: =+POWER(INDEX(Inputs!$L$26:$L$42,BU$7+1,1)/INDEX(Inputs!$L$26:$L$42,BU$7,1),1/(INDEX(Inputs!$B$26:$B$42,BU$7+1,1)-INDEX(Inputs!$B$26:$B$42,BU$7,1)))-1 -> 1.0% | BW30: =+POWER(INDEX(Inputs!$L$26:$L$42,BV$7+1,1)/INDEX(Inputs!$L$26:$L$42,BV$7,1),1/(INDEX(Inputs!$B$26:$B$42,BV$7+1,1)-INDEX(Inputs!$B$26:$B$42,BV$7,1)))-1 -> 1.0% | BX30: =+POWER(INDEX(Inputs!$L$26:$L$42,BW$7+1,1)/INDEX(Inputs!$L$26:$L$42,BW$7,1),1/(INDEX(Inputs!$B$26:$B$42,BW$7+1,1)-INDEX(Inputs!$B$26:$B$42,BW$7,1)))-1 -> 1.0% | BY30: =+POWER(INDEX(Inputs!$L$26:$L$42,BX$7+1,1)/INDEX(Inputs!$L$26:$L$42,BX$7,1),1/(INDEX(Inputs!$B$26:$B$42,BX$7+1,1)-INDEX(Inputs!$B$26:$B$42,BX$7,1)))-1 -> 1.0% | BZ30: =+POWER(INDEX(Inputs!$L$26:$L$42,BY$7+1,1)/INDEX(Inputs!$L$26:$L$42,BY$7,1),1/(INDEX(Inputs!$B$26:$B$42,BY$7+1,1)-INDEX(Inputs!$B$26:$B$42,BY$7,1)))-1 -> 1.0% | CA30: =+POWER(INDEX(Inputs!$L$26:$L$42,BZ$7+1,1)/INDEX(Inputs!$L$26:$L$42,BZ$7,1),1/(INDEX(Inputs!$B$26:$B$42,BZ$7+1,1)-INDEX(Inputs!$B$26:$B$42,BZ$7,1)))-1 -> 1.0% | CB30: =+POWER(INDEX(Inputs!$L$26:$L$42,CA$7+1,1)/INDEX(Inputs!$L$26:$L$42,CA$7,1),1/(INDEX(Inputs!$B$26:$B$42,CA$7+1,1)-INDEX(Inputs!$B$26:$B$42,CA$7,1)))-1 -> 1.0% | CC30: =+POWER(INDEX(Inputs!$L$26:$L$42,CB$7+1,1)/INDEX(Inputs!$L$26:$L$42,CB$7,1),1/(INDEX(Inputs!$B$26:$B$42,CB$7+1,1)-INDEX(Inputs!$B$26:$B$42,CB$7,1)))-1 -> 1.0% | CD30: =+POWER(INDEX(Inputs!$L$26:$L$42,CC$7+1,1)/INDEX(Inputs!$L$26:$L$42,CC$7,1),1/(INDEX(Inputs!$B$26:$B$42,CC$7+1,1)-INDEX(Inputs!$B$26:$B$42,CC$7,1)))-1 -> 1.0% | CE30: =+POWER(INDEX(Inputs!$L$26:$L$42,CD$7+1,1)/INDEX(Inputs!$L$26:$L$42,CD$7,1),1/(INDEX(Inputs!$B$26:$B$42,CD$7+1,1)-INDEX(Inputs!$B$26:$B$42,CD$7,1)))-1 -> 1.0% | CF30: =+POWER(INDEX(Inputs!$L$26:$L$42,CE$7+1,1)/INDEX(Inputs!$L$26:$L$42,CE$7,1),1/(INDEX(Inputs!$B$26:$B$42,CE$7+1,1)-INDEX(Inputs!$B$26:$B$42,CE$7,1)))-1 -> 1.0% | CG30: =+POWER(INDEX(Inputs!$L$26:$L$42,CF$7+1,1)/INDEX(Inputs!$L$26:$L$42,CF$7,1),1/(INDEX(Inputs!$B$26:$B$42,CF$7+1,1)-INDEX(Inputs!$B$26:$B$42,CF$7,1)))-1 -> 1.0% | CH30: =+POWER(INDEX(Inputs!$L$26:$L$42,CG$7+1,1)/INDEX(Inputs!$L$26:$L$42,CG$7,1),1/(INDEX(Inputs!$B$26:$B$42,CG$7+1,1)-INDEX(Inputs!$B$26:$B$42,CG$7,1)))-1 -> 1.0% | CI30: =+POWER(INDEX(Inputs!$L$26:$L$42,CH$7+1,1)/INDEX(Inputs!$L$26:$L$42,CH$7,1),1/(INDEX(Inputs!$B$26:$B$42,CH$7+1,1)-INDEX(Inputs!$B$26:$B$42,CH$7,1)))-1 -> 1.0% | CJ30: =+POWER(INDEX(Inputs!$L$26:$L$42,CI$7+1,1)/INDEX(Inputs!$L$26:$L$42,CI$7,1),1/(INDEX(Inputs!$B$26:$B$42,CI$7+1,1)-INDEX(Inputs!$B$26:$B$42,CI$7,1)))-1 -> 1.0% | CK30: =+POWER(INDEX(Inputs!$L$26:$L$42,CJ$7+1,1)/INDEX(Inputs!$L$26:$L$42,CJ$7,1),1/(INDEX(Inputs!$B$26:$B$42,CJ$7+1,1)-INDEX(Inputs!$B$26:$B$42,CJ$7,1)))-1 -> 1.0% | CL30: =+POWER(INDEX(Inputs!$L$26:$L$42,CK$7+1,1)/INDEX(Inputs!$L$26:$L$42,CK$7,1),1/(INDEX(Inputs!$B$26:$B$42,CK$7+1,1)-INDEX(Inputs!$B$26:$B$42,CK$7,1)))-1 -> 1.0% | CM30: =+POWER(INDEX(Inputs!$L$26:$L$42,CL$7+1,1)/INDEX(Inputs!$L$26:$L$42,CL$7,1),1/(INDEX(Inputs!$B$26:$B$42,CL$7+1,1)-INDEX(Inputs!$B$26:$B$42,CL$7,1)))-1 -> 1.0% | CN30: =+POWER(INDEX(Inputs!$L$26:$L$42,CM$7+1,1)/INDEX(Inputs!$L$26:$L$42,CM$7,1),1/(INDEX(Inputs!$B$26:$B$42,CM$7+1,1)-INDEX(Inputs!$B$26:$B$42,CM$7,1)))-1 -> 1.0% | CO30: =+POWER(INDEX(Inputs!$L$26:$L$42,CN$7+1,1)/INDEX(Inputs!$L$26:$L$42,CN$7,1),1/(INDEX(Inputs!$B$26:$B$42,CN$7+1,1)-INDEX(Inputs!$B$26:$B$42,CN$7,1)))-1 -> 1.0% | CP30: =+POWER(INDEX(Inputs!$L$26:$L$42,CO$7+1,1)/INDEX(Inputs!$L$26:$L$42,CO$7,1),1/(INDEX(Inputs!$B$26:$B$42,CO$7+1,1)-INDEX(Inputs!$B$26:$B$42,CO$7,1)))-1 -> 1.0% | CQ30: =+POWER(INDEX(Inputs!$L$26:$L$42,CP$7+1,1)/INDEX(Inputs!$L$26:$L$42,CP$7,1),1/(INDEX(Inputs!$B$26:$B$42,CP$7+1,1)-INDEX(Inputs!$B$26:$B$42,CP$7,1)))-1 -> 1.0% | CR30: =+POWER(INDEX(Inputs!$L$26:$L$42,CQ$7+1,1)/INDEX(Inputs!$L$26:$L$42,CQ$7,1),1/(INDEX(Inputs!$B$26:$B$42,CQ$7+1,1)-INDEX(Inputs!$B$26:$B$42,CQ$7,1)))-1 -> 1.0%
B31: Nominal Revenues before Interest Charge | K31: MCAD | M31: =SUM(O31:GJ31) -> 695,775 | P31: =P29*P$24*$H$28 -> 1,326.0 | Q31: 1,389.3 | R31: =R29*R$24*$H$28 -> 1,455.6 | S31: 1,525.0 | T31: 1,616.5 | U31: 1,713.4 | V31: 1,816.2 | W31: 1,925.1 | X31: 2,040.5 | Y31: 2,152.1 | Z31: 2,269.7 | AA31: 2,393.8 | AB31: 2,524.7 | AC31: 2,662.7 | AD31: 2,773.1 | AE31: 2,888.0 | AF31: 3,007.7 | AG31: 3,132.4 | AH31: 3,262.2 | AI31: 3,393.1 | AJ31: 3,529.2 | AK31: 3,670.8 | AL31: 3,818.1 | AM31: 3,971.3 | AN31: 4,110.5 | AO31: 4,254.6 | AP31: 4,403.7 | AQ31: 4,558.0 | AR31: 4,717.7 | AS31: 4,890.3 | AT31: 5,069.1 | AU31: 5,254.5 | AV31: 5,446.7 | AW31: 5,645.9 | AX31: 5,816.5 | AY31: 5,992.1 | AZ31: 6,173.1 | BA31: 6,359.5 | BB31: 6,551.6 | BC31: 6,749.4 | BD31: 6,953.2 | BE31: 7,163.2 | BF31: 7,379.6 | BG31: 7,602.4 | BH31: 7,832.0 | BI31: 8,068.5 | BJ31: 8,312.2 | BK31: 8,563.2 | BL31: 8,821.8 | BM31: 9,088.3 | BN31: 9,362.7 | BO31: 9,645.5 | BP31: 9,936.8 | BQ31: 10,236.9 | BR31: 10,546.0 | BS31: 10,864.5 | BT31: 11,192.6 | BU31: 11,530.6 | BV31: 11,878.9 | BW31: 12,237.6 | BX31: 12,607.2 | BY31: 12,987.9 | BZ31: 13,380.2 | CA31: 13,784.2 | CB31: 14,200.5 | CC31: 14,629.4 | CD31: =CD29*CD$24*$H$28 -> 15,071.2 | CE31: 15,526.3 | CF31: 15,995.2 | CG31: 16,478.3 | CH31: 16,975.9 | CI31: 17,488.6 | CJ31: 18,016.8 | CK31: 18,560.9 | CL31: 19,121.4 | CM31: 19,698.9 | CN31: 20,293.8 | CO31: 20,906.7 | CP31: 21,538.0 | CQ31: 22,188.5 | CR31: 22,858.6
B33: Net Interest Charge | K33: MCAD | M33: =SUM(O33:GJ33) -> 14,349 | P33: =+P82 -> 14.9 | Q33: 27.2 | R33: =+R82 -> 29.1 | S33: 30.5 | T33: 31.5 | U33: 33.4 | V33: 35.5 | W33: 37.5 | X33: 39.7 | Y33: 42.3 | Z33: 44.8 | AA33: 47.1 | AB33: 49.7 | AC33: 52.4 | AD33: 56.2 | AE33: 58.4 | AF33: 60.8 | AG33: 63.4 | AH33: 66.2 | AI33: 68.8 | AJ33: 71.6 | AK33: 74.5 | AL33: 77.7 | AM33: 80.6 | AN33: 84.2 | AO33: 87.2 | AP33: 90.5 | AQ33: 93.4 | AR33: 96.7 | AS33: 99.9 | AT33: 103.9 | AU33: 107.4 | AV33: 111.3 | AW33: 115.4 | AX33: 120.7 | AY33: 124.1 | AZ33: 127.8 | BA33: 131.7 | BB33: 136.0 | BC33: 139.8 | BD33: 144.0 | BE33: 148.3 | BF33: 153.2 | BG33: 157.4 | BH33: 162.2 | BI33: 167.0 | BJ33: 172.6 | BK33: 177.3 | BL33: 182.6 | BM33: 188.2 | BN33: 194.4 | BO33: 199.7 | BP33: 205.7 | BQ33: 211.9 | BR33: 219.0 | BS33: 225.0 | BT33: 231.7 | BU33: 238.7 | BV33: 246.6 | BW33: 253.4 | BX33: 261.0 | BY33: 268.9 | BZ33: 277.8 | CA33: 285.4 | CB33: 294.0 | CC33: 302.9 | CD33: =+CD82 -> 312.9 | CE33: 321.5 | CF33: 331.2 | CG33: 341.2 | CH33: 352.5 | CI33: 362.1 | CJ33: 373.0 | CK33: 384.3 | CL33: 397.0 | CM33: 407.9 | CN33: 420.2 | CO33: 432.8 | CP33: 447.2 | CQ33: 459.4 | CR33: 473.3
B34: Nominal Revenues post Interest Charge | K34: MCAD | M34: =SUM(O34:GJ34) -> 710,124 | P34: =P31+P33 -> 1,340.9 | Q34: 1,416.5 | R34: =R31+R33 -> 1,484.7 | S34: 1,555.5 | T34: 1,648.0 | U34: 1,746.8 | V34: 1,851.6 | W34: 1,962.5 | X34: 2,080.2 | Y34: 2,194.4 | Z34: 2,314.5 | AA34: 2,440.9 | AB34: 2,574.4 | AC34: 2,715.2 | AD34: 2,829.3 | AE34: 2,946.5 | AF34: 3,068.6 | AG34: 3,195.7 | AH34: 3,328.4 | AI34: 3,461.9 | AJ34: 3,600.8 | AK34: 3,745.3 | AL34: 3,895.8 | AM34: 4,051.9 | AN34: 4,194.7 | AO34: 4,341.8 | AP34: 4,494.2 | AQ34: 4,651.4 | AR34: 4,814.4 | AS34: 4,990.2 | AT34: 5,173.0 | AU34: 5,361.9 | AV34: 5,558.0 | AW34: 5,761.3 | AX34: 5,937.2 | AY34: 6,116.2 | AZ34: 6,300.9 | BA34: 6,491.2 | BB34: 6,687.6 | BC34: 6,889.2 | BD34: 7,097.2 | BE34: 7,311.5 | BF34: 7,532.8 | BG34: 7,759.8 | BH34: 7,994.2 | BI34: 8,235.6 | BJ34: 8,484.8 | BK34: 8,740.6 | BL34: 9,004.5 | BM34: 9,276.4 | BN34: 9,557.1 | BO34: 9,845.2 | BP34: 10,142.5 | BQ34: 10,448.8 | BR34: 10,765.0 | BS34: 11,089.5 | BT34: 11,424.4 | BU34: 11,769.4 | BV34: 12,125.5 | BW34: 12,491.0 | BX34: 12,868.2 | BY34: 13,256.8 | BZ34: 13,658.0 | CA34: 14,069.7 | CB34: 14,494.5 | CC34: 14,932.3 | CD34: =CD31+CD33 -> 15,384.1 | CE34: 15,847.8 | CF34: 16,326.4 | CG34: 16,819.4 | CH34: 17,328.4 | CI34: 17,850.7 | CJ34: 18,389.8 | CK34: 18,945.1 | CL34: 19,518.4 | CM34: 20,106.8 | CN34: 20,713.9 | CO34: 21,339.5 | CP34: 21,985.2 | CQ34: 22,647.9 | CR34: 23,331.8
B36: Real Contract Revenues from 407 East | K36: MCAD | M36: =SUM(O36:GJ36) -> 1,323 | P36: =+IF(P$7<>O$7,INDEX(Inputs!$L$45:$L$61,P$7,1),O36*(1+P37)) -> 16.7 | Q36: =+IF(Q$7<>P$7,INDEX(Inputs!$L$45:$L$61,Q$7,1),P36*(1+Q37)) -> 16.1 | R36: =+IF(R$7<>Q$7,INDEX(Inputs!$L$45:$L$61,R$7,1),Q36*(1+R37)) -> 15.6 | S36: =+IF(S$7<>R$7,INDEX(Inputs!$L$45:$L$61,S$7,1),R36*(1+S37)) -> 15.0 | T36: =+IF(T$7<>S$7,INDEX(Inputs!$L$45:$L$61,T$7,1),S36*(1+T37)) -> 15.3 | U36: =+IF(U$7<>T$7,INDEX(Inputs!$L$45:$L$61,U$7,1),T36*(1+U37)) -> 15.6 | V36: =+IF(V$7<>U$7,INDEX(Inputs!$L$45:$L$61,V$7,1),U36*(1+V37)) -> 15.8 | W36: =+IF(W$7<>V$7,INDEX(Inputs!$L$45:$L$61,W$7,1),V36*(1+W37)) -> 16.1 | X36: =+IF(X$7<>W$7,INDEX(Inputs!$L$45:$L$61,X$7,1),W36*(1+X37)) -> 16.4 | Y36: =+IF(Y$7<>X$7,INDEX(Inputs!$L$45:$L$61,Y$7,1),X36*(1+Y37)) -> 16.4 | Z36: =+IF(Z$7<>Y$7,INDEX(Inputs!$L$45:$L$61,Z$7,1),Y36*(1+Z37)) -> 16.4 | AA36: =+IF(AA$7<>Z$7,INDEX(Inputs!$L$45:$L$61,AA$7,1),Z36*(1+AA37)) -> 16.4 | AB36: =+IF(AB$7<>AA$7,INDEX(Inputs!$L$45:$L$61,AB$7,1),AA36*(1+AB37)) -> 16.4 | AC36: =+IF(AC$7<>AB$7,INDEX(Inputs!$L$45:$L$61,AC$7,1),AB36*(1+AC37)) -> 16.4 | AD36: =+IF(AD$7<>AC$7,INDEX(Inputs!$L$45:$L$61,AD$7,1),AC36*(1+AD37)) -> 16.4 | AE36: =+IF(AE$7<>AD$7,INDEX(Inputs!$L$45:$L$61,AE$7,1),AD36*(1+AE37)) -> 16.4 | AF36: =+IF(AF$7<>AE$7,INDEX(Inputs!$L$45:$L$61,AF$7,1),AE36*(1+AF37)) -> 16.4 | AG36: =+IF(AG$7<>AF$7,INDEX(Inputs!$L$45:$L$61,AG$7,1),AF36*(1+AG37)) -> 16.4 | AH36: =+IF(AH$7<>AG$7,INDEX(Inputs!$L$45:$L$61,AH$7,1),AG36*(1+AH37)) -> 16.4 | AI36: =+IF(AI$7<>AH$7,INDEX(Inputs!$L$45:$L$61,AI$7,1),AH36*(1+AI37)) -> 16.4 | AJ36: =+IF(AJ$7<>AI$7,INDEX(Inputs!$L$45:$L$61,AJ$7,1),AI36*(1+AJ37)) -> 16.4 | AK36: =+IF(AK$7<>AJ$7,INDEX(Inputs!$L$45:$L$61,AK$7,1),AJ36*(1+AK37)) -> 16.4 | AL36: =+IF(AL$7<>AK$7,INDEX(Inputs!$L$45:$L$61,AL$7,1),AK36*(1+AL37)) -> 16.4 | AM36: =+IF(AM$7<>AL$7,INDEX(Inputs!$L$45:$L$61,AM$7,1),AL36*(1+AM37)) -> 16.4 | AN36: =+IF(AN$7<>AM$7,INDEX(Inputs!$L$45:$L$61,AN$7,1),AM36*(1+AN37)) -> 16.4 | AO36: =+IF(AO$7<>AN$7,INDEX(Inputs!$L$45:$L$61,AO$7,1),AN36*(1+AO37)) -> 16.4 | AP36: =+IF(AP$7<>AO$7,INDEX(Inputs!$L$45:$L$61,AP$7,1),AO36*(1+AP37)) -> 16.4 | AQ36: =+IF(AQ$7<>AP$7,INDEX(Inputs!$L$45:$L$61,AQ$7,1),AP36*(1+AQ37)) -> 16.4 | AR36: =+IF(AR$7<>AQ$7,INDEX(Inputs!$L$45:$L$61,AR$7,1),AQ36*(1+AR37)) -> 16.4 | AS36: =+IF(AS$7<>AR$7,INDEX(Inputs!$L$45:$L$61,AS$7,1),AR36*(1+AS37)) -> 16.4 | AT36: =+IF(AT$7<>AS$7,INDEX(Inputs!$L$45:$L$61,AT$7,1),AS36*(1+AT37)) -> 16.4 | AU36: =+IF(AU$7<>AT$7,INDEX(Inputs!$L$45:$L$61,AU$7,1),AT36*(1+AU37)) -> 16.4 | AV36: =+IF(AV$7<>AU$7,INDEX(Inputs!$L$45:$L$61,AV$7,1),AU36*(1+AV37)) -> 16.4 | AW36: =+IF(AW$7<>AV$7,INDEX(Inputs!$L$45:$L$61,AW$7,1),AV36*(1+AW37)) -> 16.4 | AX36: =+IF(AX$7<>AW$7,INDEX(Inputs!$L$45:$L$61,AX$7,1),AW36*(1+AX37)) -> 16.4 | AY36: =+IF(AY$7<>AX$7,INDEX(Inputs!$L$45:$L$61,AY$7,1),AX36*(1+AY37)) -> 16.4 | AZ36: =+IF(AZ$7<>AY$7,INDEX(Inputs!$L$45:$L$61,AZ$7,1),AY36*(1+AZ37)) -> 16.4 | BA36: =+IF(BA$7<>AZ$7,INDEX(Inputs!$L$45:$L$61,BA$7,1),AZ36*(1+BA37)) -> 16.4 | BB36: =+IF(BB$7<>BA$7,INDEX(Inputs!$L$45:$L$61,BB$7,1),BA36*(1+BB37)) -> 16.4 | BC36: =+IF(BC$7<>BB$7,INDEX(Inputs!$L$45:$L$61,BC$7,1),BB36*(1+BC37)) -> 16.4 | BD36: =+IF(BD$7<>BC$7,INDEX(Inputs!$L$45:$L$61,BD$7,1),BC36*(1+BD37)) -> 16.4 | BE36: =+IF(BE$7<>BD$7,INDEX(Inputs!$L$45:$L$61,BE$7,1),BD36*(1+BE37)) -> 16.4 | BF36: =+IF(BF$7<>BE$7,INDEX(Inputs!$L$45:$L$61,BF$7,1),BE36*(1+BF37)) -> 16.4 | BG36: =+IF(BG$7<>BF$7,INDEX(Inputs!$L$45:$L$61,BG$7,1),BF36*(1+BG37)) -> 16.4 | BH36: =+IF(BH$7<>BG$7,INDEX(Inputs!$L$45:$L$61,BH$7,1),BG36*(1+BH37)) -> 16.4 | BI36: =+IF(BI$7<>BH$7,INDEX(Inputs!$L$45:$L$61,BI$7,1),BH36*(1+BI37)) -> 16.4 | BJ36: =+IF(BJ$7<>BI$7,INDEX(Inputs!$L$45:$L$61,BJ$7,1),BI36*(1+BJ37)) -> 16.4 | BK36: =+IF(BK$7<>BJ$7,INDEX(Inputs!$L$45:$L$61,BK$7,1),BJ36*(1+BK37)) -> 16.4 | BL36: =+IF(BL$7<>BK$7,INDEX(Inputs!$L$45:$L$61,BL$7,1),BK36*(1+BL37)) -> 16.4 | BM36: =+IF(BM$7<>BL$7,INDEX(Inputs!$L$45:$L$61,BM$7,1),BL36*(1+BM37)) -> 16.4 | BN36: =+IF(BN$7<>BM$7,INDEX(Inputs!$L$45:$L$61,BN$7,1),BM36*(1+BN37)) -> 16.4 | BO36: =+IF(BO$7<>BN$7,INDEX(Inputs!$L$45:$L$61,BO$7,1),BN36*(1+BO37)) -> 16.4 | BP36: =+IF(BP$7<>BO$7,INDEX(Inputs!$L$45:$L$61,BP$7,1),BO36*(1+BP37)) -> 16.4 | BQ36: =+IF(BQ$7<>BP$7,INDEX(Inputs!$L$45:$L$61,BQ$7,1),BP36*(1+BQ37)) -> 16.4 | BR36: =+IF(BR$7<>BQ$7,INDEX(Inputs!$L$45:$L$61,BR$7,1),BQ36*(1+BR37)) -> 16.4 | BS36: =+IF(BS$7<>BR$7,INDEX(Inputs!$L$45:$L$61,BS$7,1),BR36*(1+BS37)) -> 16.4 | BT36: =+IF(BT$7<>BS$7,INDEX(Inputs!$L$45:$L$61,BT$7,1),BS36*(1+BT37)) -> 16.4 | BU36: =+IF(BU$7<>BT$7,INDEX(Inputs!$L$45:$L$61,BU$7,1),BT36*(1+BU37)) -> 16.4 | BV36: =+IF(BV$7<>BU$7,INDEX(Inputs!$L$45:$L$61,BV$7,1),BU36*(1+BV37)) -> 16.4 | BW36: =+IF(BW$7<>BV$7,INDEX(Inputs!$L$45:$L$61,BW$7,1),BV36*(1+BW37)) -> 16.4 | BX36: =+IF(BX$7<>BW$7,INDEX(Inputs!$L$45:$L$61,BX$7,1),BW36*(1+BX37)) -> 16.4 | BY36: =+IF(BY$7<>BX$7,INDEX(Inputs!$L$45:$L$61,BY$7,1),BX36*(1+BY37)) -> 16.4 | BZ36: =+IF(BZ$7<>BY$7,INDEX(Inputs!$L$45:$L$61,BZ$7,1),BY36*(1+BZ37)) -> 16.4 | CA36: =+IF(CA$7<>BZ$7,INDEX(Inputs!$L$45:$L$61,CA$7,1),BZ36*(1+CA37)) -> 16.4 | CB36: =+IF(CB$7<>CA$7,INDEX(Inputs!$L$45:$L$61,CB$7,1),CA36*(1+CB37)) -> 16.4 | CC36: =+IF(CC$7<>CB$7,INDEX(Inputs!$L$45:$L$61,CC$7,1),CB36*(1+CC37)) -> 16.4 | CD36: =+IF(CD$7<>CC$7,INDEX(Inputs!$L$45:$L$61,CD$7,1),CC36*(1+CD37)) -> 16.4 | CE36: =+IF(CE$7<>CD$7,INDEX(Inputs!$L$45:$L$61,CE$7,1),CD36*(1+CE37)) -> 16.4 | CF36: =+IF(CF$7<>CE$7,INDEX(Inputs!$L$45:$L$61,CF$7,1),CE36*(1+CF37)) -> 16.4 | CG36: =+IF(CG$7<>CF$7,INDEX(Inputs!$L$45:$L$61,CG$7,1),CF36*(1+CG37)) -> 16.4 | CH36: =+IF(CH$7<>CG$7,INDEX(Inputs!$L$45:$L$61,CH$7,1),CG36*(1+CH37)) -> 16.4 | CI36: =+IF(CI$7<>CH$7,INDEX(Inputs!$L$45:$L$61,CI$7,1),CH36*(1+CI37)) -> 16.4 | CJ36: =+IF(CJ$7<>CI$7,INDEX(Inputs!$L$45:$L$61,CJ$7,1),CI36*(1+CJ37)) -> 16.4 | CK36: =+IF(CK$7<>CJ$7,INDEX(Inputs!$L$45:$L$61,CK$7,1),CJ36*(1+CK37)) -> 16.4 | CL36: =+IF(CL$7<>CK$7,INDEX(Inputs!$L$45:$L$61,CL$7,1),CK36*(1+CL37)) -> 16.4 | CM36: =+IF(CM$7<>CL$7,INDEX(Inputs!$L$45:$L$61,CM$7,1),CL36*(1+CM37)) -> 16.4 | CN36: =+IF(CN$7<>CM$7,INDEX(Inputs!$L$45:$L$61,CN$7,1),CM36*(1+CN37)) -> 16.4 | CO36: =+IF(CO$7<>CN$7,INDEX(Inputs!$L$45:$L$61,CO$7,1),CN36*(1+CO37)) -> 16.4 | CP36: =+IF(CP$7<>CO$7,INDEX(Inputs!$L$45:$L$61,CP$7,1),CO36*(1+CP37)) -> 16.4 | CQ36: =+IF(CQ$7<>CP$7,INDEX(Inputs!$L$45:$L$61,CQ$7,1),CP36*(1+CQ37)) -> 16.4 | CR36: =+IF(CR$7<>CQ$7,INDEX(Inputs!$L$45:$L$61,CR$7,1),CQ36*(1+CR37)) -> 16.4
B37: Growth | Q37: =+POWER(INDEX(Inputs!$L$45:$L$61,P$7+1,1)/INDEX(Inputs!$L$45:$L$61,P$7,1),1/(INDEX(Inputs!$B$45:$B$61,P$7+1,1)-INDEX(Inputs!$B$45:$B$61,P$7,1)))-1 -> -3.5% | R37: =+POWER(INDEX(Inputs!$L$45:$L$61,Q$7+1,1)/INDEX(Inputs!$L$45:$L$61,Q$7,1),1/(INDEX(Inputs!$B$45:$B$61,Q$7+1,1)-INDEX(Inputs!$B$45:$B$61,Q$7,1)))-1 -> -3.5% | S37: =+POWER(INDEX(Inputs!$L$45:$L$61,R$7+1,1)/INDEX(Inputs!$L$45:$L$61,R$7,1),1/(INDEX(Inputs!$B$45:$B$61,R$7+1,1)-INDEX(Inputs!$B$45:$B$61,R$7,1)))-1 -> -3.5% | T37: =+POWER(INDEX(Inputs!$L$45:$L$61,S$7+1,1)/INDEX(Inputs!$L$45:$L$61,S$7,1),1/(INDEX(Inputs!$B$45:$B$61,S$7+1,1)-INDEX(Inputs!$B$45:$B$61,S$7,1)))-1 -> 1.7% | U37: =+POWER(INDEX(Inputs!$L$45:$L$61,T$7+1,1)/INDEX(Inputs!$L$45:$L$61,T$7,1),1/(INDEX(Inputs!$B$45:$B$61,T$7+1,1)-INDEX(Inputs!$B$45:$B$61,T$7,1)))-1 -> 1.7% | V37: =+POWER(INDEX(Inputs!$L$45:$L$61,U$7+1,1)/INDEX(Inputs!$L$45:$L$61,U$7,1),1/(INDEX(Inputs!$B$45:$B$61,U$7+1,1)-INDEX(Inputs!$B$45:$B$61,U$7,1)))-1 -> 1.7% | W37: =+POWER(INDEX(Inputs!$L$45:$L$61,V$7+1,1)/INDEX(Inputs!$L$45:$L$61,V$7,1),1/(INDEX(Inputs!$B$45:$B$61,V$7+1,1)-INDEX(Inputs!$B$45:$B$61,V$7,1)))-1 -> 1.7% | X37: =+POWER(INDEX(Inputs!$L$45:$L$61,W$7+1,1)/INDEX(Inputs!$L$45:$L$61,W$7,1),1/(INDEX(Inputs!$B$45:$B$61,W$7+1,1)-INDEX(Inputs!$B$45:$B$61,W$7,1)))-1 -> 1.7% | Y37: =+POWER(INDEX(Inputs!$L$45:$L$61,X$7+1,1)/INDEX(Inputs!$L$45:$L$61,X$7,1),1/(INDEX(Inputs!$B$45:$B$61,X$7+1,1)-INDEX(Inputs!$B$45:$B$61,X$7,1)))-1 -> 0.0% | Z37: =+POWER(INDEX(Inputs!$L$45:$L$61,Y$7+1,1)/INDEX(Inputs!$L$45:$L$61,Y$7,1),1/(INDEX(Inputs!$B$45:$B$61,Y$7+1,1)-INDEX(Inputs!$B$45:$B$61,Y$7,1)))-1 -> 0.0% | AA37: =+POWER(INDEX(Inputs!$L$45:$L$61,Z$7+1,1)/INDEX(Inputs!$L$45:$L$61,Z$7,1),1/(INDEX(Inputs!$B$45:$B$61,Z$7+1,1)-INDEX(Inputs!$B$45:$B$61,Z$7,1)))-1 -> 0.0% | AB37: =+POWER(INDEX(Inputs!$L$45:$L$61,AA$7+1,1)/INDEX(Inputs!$L$45:$L$61,AA$7,1),1/(INDEX(Inputs!$B$45:$B$61,AA$7+1,1)-INDEX(Inputs!$B$45:$B$61,AA$7,1)))-1 -> 0.0% | AC37: =+POWER(INDEX(Inputs!$L$45:$L$61,AB$7+1,1)/INDEX(Inputs!$L$45:$L$61,AB$7,1),1/(INDEX(Inputs!$B$45:$B$61,AB$7+1,1)-INDEX(Inputs!$B$45:$B$61,AB$7,1)))-1 -> 0.0% | AD37: =+POWER(INDEX(Inputs!$L$45:$L$61,AC$7+1,1)/INDEX(Inputs!$L$45:$L$61,AC$7,1),1/(INDEX(Inputs!$B$45:$B$61,AC$7+1,1)-INDEX(Inputs!$B$45:$B$61,AC$7,1)))-1 -> 0.0% | AE37: =+POWER(INDEX(Inputs!$L$45:$L$61,AD$7+1,1)/INDEX(Inputs!$L$45:$L$61,AD$7,1),1/(INDEX(Inputs!$B$45:$B$61,AD$7+1,1)-INDEX(Inputs!$B$45:$B$61,AD$7,1)))-1 -> 0.0% | AF37: =+POWER(INDEX(Inputs!$L$45:$L$61,AE$7+1,1)/INDEX(Inputs!$L$45:$L$61,AE$7,1),1/(INDEX(Inputs!$B$45:$B$61,AE$7+1,1)-INDEX(Inputs!$B$45:$B$61,AE$7,1)))-1 -> 0.0% | AG37: =+POWER(INDEX(Inputs!$L$45:$L$61,AF$7+1,1)/INDEX(Inputs!$L$45:$L$61,AF$7,1),1/(INDEX(Inputs!$B$45:$B$61,AF$7+1,1)-INDEX(Inputs!$B$45:$B$61,AF$7,1)))-1 -> 0.0% | AH37: =+POWER(INDEX(Inputs!$L$45:$L$61,AG$7+1,1)/INDEX(Inputs!$L$45:$L$61,AG$7,1),1/(INDEX(Inputs!$B$45:$B$61,AG$7+1,1)-INDEX(Inputs!$B$45:$B$61,AG$7,1)))-1 -> 0.0% | AI37: =+POWER(INDEX(Inputs!$L$45:$L$61,AH$7+1,1)/INDEX(Inputs!$L$45:$L$61,AH$7,1),1/(INDEX(Inputs!$B$45:$B$61,AH$7+1,1)-INDEX(Inputs!$B$45:$B$61,AH$7,1)))-1 -> 0.0% | AJ37: =+POWER(INDEX(Inputs!$L$45:$L$61,AI$7+1,1)/INDEX(Inputs!$L$45:$L$61,AI$7,1),1/(INDEX(Inputs!$B$45:$B$61,AI$7+1,1)-INDEX(Inputs!$B$45:$B$61,AI$7,1)))-1 -> 0.0% | AK37: =+POWER(INDEX(Inputs!$L$45:$L$61,AJ$7+1,1)/INDEX(Inputs!$L$45:$L$61,AJ$7,1),1/(INDEX(Inputs!$B$45:$B$61,AJ$7+1,1)-INDEX(Inputs!$B$45:$B$61,AJ$7,1)))-1 -> 0.0% | AL37: =+POWER(INDEX(Inputs!$L$45:$L$61,AK$7+1,1)/INDEX(Inputs!$L$45:$L$61,AK$7,1),1/(INDEX(Inputs!$B$45:$B$61,AK$7+1,1)-INDEX(Inputs!$B$45:$B$61,AK$7,1)))-1 -> 0.0% | AM37: =+POWER(INDEX(Inputs!$L$45:$L$61,AL$7+1,1)/INDEX(Inputs!$L$45:$L$61,AL$7,1),1/(INDEX(Inputs!$B$45:$B$61,AL$7+1,1)-INDEX(Inputs!$B$45:$B$61,AL$7,1)))-1 -> 0.0% | AN37: =+POWER(INDEX(Inputs!$L$45:$L$61,AM$7+1,1)/INDEX(Inputs!$L$45:$L$61,AM$7,1),1/(INDEX(Inputs!$B$45:$B$61,AM$7+1,1)-INDEX(Inputs!$B$45:$B$61,AM$7,1)))-1 -> 0.0% | AO37: =+POWER(INDEX(Inputs!$L$45:$L$61,AN$7+1,1)/INDEX(Inputs!$L$45:$L$61,AN$7,1),1/(INDEX(Inputs!$B$45:$B$61,AN$7+1,1)-INDEX(Inputs!$B$45:$B$61,AN$7,1)))-1 -> 0.0% | AP37: =+POWER(INDEX(Inputs!$L$45:$L$61,AO$7+1,1)/INDEX(Inputs!$L$45:$L$61,AO$7,1),1/(INDEX(Inputs!$B$45:$B$61,AO$7+1,1)-INDEX(Inputs!$B$45:$B$61,AO$7,1)))-1 -> 0.0% | AQ37: =+POWER(INDEX(Inputs!$L$45:$L$61,AP$7+1,1)/INDEX(Inputs!$L$45:$L$61,AP$7,1),1/(INDEX(Inputs!$B$45:$B$61,AP$7+1,1)-INDEX(Inputs!$B$45:$B$61,AP$7,1)))-1 -> 0.0% | AR37: =+POWER(INDEX(Inputs!$L$45:$L$61,AQ$7+1,1)/INDEX(Inputs!$L$45:$L$61,AQ$7,1),1/(INDEX(Inputs!$B$45:$B$61,AQ$7+1,1)-INDEX(Inputs!$B$45:$B$61,AQ$7,1)))-1 -> 0.0% | AS37: =+POWER(INDEX(Inputs!$L$45:$L$61,AR$7+1,1)/INDEX(Inputs!$L$45:$L$61,AR$7,1),1/(INDEX(Inputs!$B$45:$B$61,AR$7+1,1)-INDEX(Inputs!$B$45:$B$61,AR$7,1)))-1 -> 0.0% | AT37: =+POWER(INDEX(Inputs!$L$45:$L$61,AS$7+1,1)/INDEX(Inputs!$L$45:$L$61,AS$7,1),1/(INDEX(Inputs!$B$45:$B$61,AS$7+1,1)-INDEX(Inputs!$B$45:$B$61,AS$7,1)))-1 -> 0.0% | AU37: =+POWER(INDEX(Inputs!$L$45:$L$61,AT$7+1,1)/INDEX(Inputs!$L$45:$L$61,AT$7,1),1/(INDEX(Inputs!$B$45:$B$61,AT$7+1,1)-INDEX(Inputs!$B$45:$B$61,AT$7,1)))-1 -> 0.0% | AV37: =+POWER(INDEX(Inputs!$L$45:$L$61,AU$7+1,1)/INDEX(Inputs!$L$45:$L$61,AU$7,1),1/(INDEX(Inputs!$B$45:$B$61,AU$7+1,1)-INDEX(Inputs!$B$45:$B$61,AU$7,1)))-1 -> 0.0% | AW37: =+POWER(INDEX(Inputs!$L$45:$L$61,AV$7+1,1)/INDEX(Inputs!$L$45:$L$61,AV$7,1),1/(INDEX(Inputs!$B$45:$B$61,AV$7+1,1)-INDEX(Inputs!$B$45:$B$61,AV$7,1)))-1 -> 0.0% | AX37: =+POWER(INDEX(Inputs!$L$45:$L$61,AW$7+1,1)/INDEX(Inputs!$L$45:$L$61,AW$7,1),1/(INDEX(Inputs!$B$45:$B$61,AW$7+1,1)-INDEX(Inputs!$B$45:$B$61,AW$7,1)))-1 -> 0.0% | AY37: =+POWER(INDEX(Inputs!$L$45:$L$61,AX$7+1,1)/INDEX(Inputs!$L$45:$L$61,AX$7,1),1/(INDEX(Inputs!$B$45:$B$61,AX$7+1,1)-INDEX(Inputs!$B$45:$B$61,AX$7,1)))-1 -> 0.0% | AZ37: =+POWER(INDEX(Inputs!$L$45:$L$61,AY$7+1,1)/INDEX(Inputs!$L$45:$L$61,AY$7,1),1/(INDEX(Inputs!$B$45:$B$61,AY$7+1,1)-INDEX(Inputs!$B$45:$B$61,AY$7,1)))-1 -> 0.0% | BA37: =+POWER(INDEX(Inputs!$L$45:$L$61,AZ$7+1,1)/INDEX(Inputs!$L$45:$L$61,AZ$7,1),1/(INDEX(Inputs!$B$45:$B$61,AZ$7+1,1)-INDEX(Inputs!$B$45:$B$61,AZ$7,1)))-1 -> 0.0% | BB37: =+POWER(INDEX(Inputs!$L$45:$L$61,BA$7+1,1)/INDEX(Inputs!$L$45:$L$61,BA$7,1),1/(INDEX(Inputs!$B$45:$B$61,BA$7+1,1)-INDEX(Inputs!$B$45:$B$61,BA$7,1)))-1 -> 0.0% | BC37: =+POWER(INDEX(Inputs!$L$45:$L$61,BB$7+1,1)/INDEX(Inputs!$L$45:$L$61,BB$7,1),1/(INDEX(Inputs!$B$45:$B$61,BB$7+1,1)-INDEX(Inputs!$B$45:$B$61,BB$7,1)))-1 -> 0.0% | BD37: =+POWER(INDEX(Inputs!$L$45:$L$61,BC$7+1,1)/INDEX(Inputs!$L$45:$L$61,BC$7,1),1/(INDEX(Inputs!$B$45:$B$61,BC$7+1,1)-INDEX(Inputs!$B$45:$B$61,BC$7,1)))-1 -> 0.0% | BE37: =+POWER(INDEX(Inputs!$L$45:$L$61,BD$7+1,1)/INDEX(Inputs!$L$45:$L$61,BD$7,1),1/(INDEX(Inputs!$B$45:$B$61,BD$7+1,1)-INDEX(Inputs!$B$45:$B$61,BD$7,1)))-1 -> 0.0% | BF37: =+POWER(INDEX(Inputs!$L$45:$L$61,BE$7+1,1)/INDEX(Inputs!$L$45:$L$61,BE$7,1),1/(INDEX(Inputs!$B$45:$B$61,BE$7+1,1)-INDEX(Inputs!$B$45:$B$61,BE$7,1)))-1 -> 0.0% | BG37: =+POWER(INDEX(Inputs!$L$45:$L$61,BF$7+1,1)/INDEX(Inputs!$L$45:$L$61,BF$7,1),1/(INDEX(Inputs!$B$45:$B$61,BF$7+1,1)-INDEX(Inputs!$B$45:$B$61,BF$7,1)))-1 -> 0.0% | BH37: =+POWER(INDEX(Inputs!$L$45:$L$61,BG$7+1,1)/INDEX(Inputs!$L$45:$L$61,BG$7,1),1/(INDEX(Inputs!$B$45:$B$61,BG$7+1,1)-INDEX(Inputs!$B$45:$B$61,BG$7,1)))-1 -> 0.0% | BI37: =+POWER(INDEX(Inputs!$L$45:$L$61,BH$7+1,1)/INDEX(Inputs!$L$45:$L$61,BH$7,1),1/(INDEX(Inputs!$B$45:$B$61,BH$7+1,1)-INDEX(Inputs!$B$45:$B$61,BH$7,1)))-1 -> 0.0% | BJ37: =+POWER(INDEX(Inputs!$L$45:$L$61,BI$7+1,1)/INDEX(Inputs!$L$45:$L$61,BI$7,1),1/(INDEX(Inputs!$B$45:$B$61,BI$7+1,1)-INDEX(Inputs!$B$45:$B$61,BI$7,1)))-1 -> 0.0% | BK37: =+POWER(INDEX(Inputs!$L$45:$L$61,BJ$7+1,1)/INDEX(Inputs!$L$45:$L$61,BJ$7,1),1/(INDEX(Inputs!$B$45:$B$61,BJ$7+1,1)-INDEX(Inputs!$B$45:$B$61,BJ$7,1)))-1 -> 0.0% | BL37: =+POWER(INDEX(Inputs!$L$45:$L$61,BK$7+1,1)/INDEX(Inputs!$L$45:$L$61,BK$7,1),1/(INDEX(Inputs!$B$45:$B$61,BK$7+1,1)-INDEX(Inputs!$B$45:$B$61,BK$7,1)))-1 -> 0.0% | BM37: =+POWER(INDEX(Inputs!$L$45:$L$61,BL$7+1,1)/INDEX(Inputs!$L$45:$L$61,BL$7,1),1/(INDEX(Inputs!$B$45:$B$61,BL$7+1,1)-INDEX(Inputs!$B$45:$B$61,BL$7,1)))-1 -> 0.0% | BN37: =+POWER(INDEX(Inputs!$L$45:$L$61,BM$7+1,1)/INDEX(Inputs!$L$45:$L$61,BM$7,1),1/(INDEX(Inputs!$B$45:$B$61,BM$7+1,1)-INDEX(Inputs!$B$45:$B$61,BM$7,1)))-1 -> 0.0% | BO37: =+POWER(INDEX(Inputs!$L$45:$L$61,BN$7+1,1)/INDEX(Inputs!$L$45:$L$61,BN$7,1),1/(INDEX(Inputs!$B$45:$B$61,BN$7+1,1)-INDEX(Inputs!$B$45:$B$61,BN$7,1)))-1 -> 0.0% | BP37: =+POWER(INDEX(Inputs!$L$45:$L$61,BO$7+1,1)/INDEX(Inputs!$L$45:$L$61,BO$7,1),1/(INDEX(Inputs!$B$45:$B$61,BO$7+1,1)-INDEX(Inputs!$B$45:$B$61,BO$7,1)))-1 -> 0.0% | BQ37: =+POWER(INDEX(Inputs!$L$45:$L$61,BP$7+1,1)/INDEX(Inputs!$L$45:$L$61,BP$7,1),1/(INDEX(Inputs!$B$45:$B$61,BP$7+1,1)-INDEX(Inputs!$B$45:$B$61,BP$7,1)))-1 -> 0.0% | BR37: =+POWER(INDEX(Inputs!$L$45:$L$61,BQ$7+1,1)/INDEX(Inputs!$L$45:$L$61,BQ$7,1),1/(INDEX(Inputs!$B$45:$B$61,BQ$7+1,1)-INDEX(Inputs!$B$45:$B$61,BQ$7,1)))-1 -> 0.0% | BS37: =+POWER(INDEX(Inputs!$L$45:$L$61,BR$7+1,1)/INDEX(Inputs!$L$45:$L$61,BR$7,1),1/(INDEX(Inputs!$B$45:$B$61,BR$7+1,1)-INDEX(Inputs!$B$45:$B$61,BR$7,1)))-1 -> 0.0% | BT37: =+POWER(INDEX(Inputs!$L$45:$L$61,BS$7+1,1)/INDEX(Inputs!$L$45:$L$61,BS$7,1),1/(INDEX(Inputs!$B$45:$B$61,BS$7+1,1)-INDEX(Inputs!$B$45:$B$61,BS$7,1)))-1 -> 0.0% | BU37: =+POWER(INDEX(Inputs!$L$45:$L$61,BT$7+1,1)/INDEX(Inputs!$L$45:$L$61,BT$7,1),1/(INDEX(Inputs!$B$45:$B$61,BT$7+1,1)-INDEX(Inputs!$B$45:$B$61,BT$7,1)))-1 -> 0.0% | BV37: =+POWER(INDEX(Inputs!$L$45:$L$61,BU$7+1,1)/INDEX(Inputs!$L$45:$L$61,BU$7,1),1/(INDEX(Inputs!$B$45:$B$61,BU$7+1,1)-INDEX(Inputs!$B$45:$B$61,BU$7,1)))-1 -> 0.0% | BW37: =+POWER(INDEX(Inputs!$L$45:$L$61,BV$7+1,1)/INDEX(Inputs!$L$45:$L$61,BV$7,1),1/(INDEX(Inputs!$B$45:$B$61,BV$7+1,1)-INDEX(Inputs!$B$45:$B$61,BV$7,1)))-1 -> 0.0% | BX37: =+POWER(INDEX(Inputs!$L$45:$L$61,BW$7+1,1)/INDEX(Inputs!$L$45:$L$61,BW$7,1),1/(INDEX(Inputs!$B$45:$B$61,BW$7+1,1)-INDEX(Inputs!$B$45:$B$61,BW$7,1)))-1 -> 0.0% | BY37: =+POWER(INDEX(Inputs!$L$45:$L$61,BX$7+1,1)/INDEX(Inputs!$L$45:$L$61,BX$7,1),1/(INDEX(Inputs!$B$45:$B$61,BX$7+1,1)-INDEX(Inputs!$B$45:$B$61,BX$7,1)))-1 -> 0.0% | BZ37: =+POWER(INDEX(Inputs!$L$45:$L$61,BY$7+1,1)/INDEX(Inputs!$L$45:$L$61,BY$7,1),1/(INDEX(Inputs!$B$45:$B$61,BY$7+1,1)-INDEX(Inputs!$B$45:$B$61,BY$7,1)))-1 -> 0.0% | CA37: =+POWER(INDEX(Inputs!$L$45:$L$61,BZ$7+1,1)/INDEX(Inputs!$L$45:$L$61,BZ$7,1),1/(INDEX(Inputs!$B$45:$B$61,BZ$7+1,1)-INDEX(Inputs!$B$45:$B$61,BZ$7,1)))-1 -> 0.0% | CB37: =+POWER(INDEX(Inputs!$L$45:$L$61,CA$7+1,1)/INDEX(Inputs!$L$45:$L$61,CA$7,1),1/(INDEX(Inputs!$B$45:$B$61,CA$7+1,1)-INDEX(Inputs!$B$45:$B$61,CA$7,1)))-1 -> 0.0% | CC37: =+POWER(INDEX(Inputs!$L$45:$L$61,CB$7+1,1)/INDEX(Inputs!$L$45:$L$61,CB$7,1),1/(INDEX(Inputs!$B$45:$B$61,CB$7+1,1)-INDEX(Inputs!$B$45:$B$61,CB$7,1)))-1 -> 0.0% | CD37: =+POWER(INDEX(Inputs!$L$45:$L$61,CC$7+1,1)/INDEX(Inputs!$L$45:$L$61,CC$7,1),1/(INDEX(Inputs!$B$45:$B$61,CC$7+1,1)-INDEX(Inputs!$B$45:$B$61,CC$7,1)))-1 -> 0.0% | CE37: =+POWER(INDEX(Inputs!$L$45:$L$61,CD$7+1,1)/INDEX(Inputs!$L$45:$L$61,CD$7,1),1/(INDEX(Inputs!$B$45:$B$61,CD$7+1,1)-INDEX(Inputs!$B$45:$B$61,CD$7,1)))-1 -> 0.0% | CF37: =+POWER(INDEX(Inputs!$L$45:$L$61,CE$7+1,1)/INDEX(Inputs!$L$45:$L$61,CE$7,1),1/(INDEX(Inputs!$B$45:$B$61,CE$7+1,1)-INDEX(Inputs!$B$45:$B$61,CE$7,1)))-1 -> 0.0% | CG37: =+POWER(INDEX(Inputs!$L$45:$L$61,CF$7+1,1)/INDEX(Inputs!$L$45:$L$61,CF$7,1),1/(INDEX(Inputs!$B$45:$B$61,CF$7+1,1)-INDEX(Inputs!$B$45:$B$61,CF$7,1)))-1 -> 0.0% | CH37: =+POWER(INDEX(Inputs!$L$45:$L$61,CG$7+1,1)/INDEX(Inputs!$L$45:$L$61,CG$7,1),1/(INDEX(Inputs!$B$45:$B$61,CG$7+1,1)-INDEX(Inputs!$B$45:$B$61,CG$7,1)))-1 -> 0.0% | CI37: =+POWER(INDEX(Inputs!$L$45:$L$61,CH$7+1,1)/INDEX(Inputs!$L$45:$L$61,CH$7,1),1/(INDEX(Inputs!$B$45:$B$61,CH$7+1,1)-INDEX(Inputs!$B$45:$B$61,CH$7,1)))-1 -> 0.0% | CJ37: =+POWER(INDEX(Inputs!$L$45:$L$61,CI$7+1,1)/INDEX(Inputs!$L$45:$L$61,CI$7,1),1/(INDEX(Inputs!$B$45:$B$61,CI$7+1,1)-INDEX(Inputs!$B$45:$B$61,CI$7,1)))-1 -> 0.0% | CK37: =+POWER(INDEX(Inputs!$L$45:$L$61,CJ$7+1,1)/INDEX(Inputs!$L$45:$L$61,CJ$7,1),1/(INDEX(Inputs!$B$45:$B$61,CJ$7+1,1)-INDEX(Inputs!$B$45:$B$61,CJ$7,1)))-1 -> 0.0% | CL37: =+POWER(INDEX(Inputs!$L$45:$L$61,CK$7+1,1)/INDEX(Inputs!$L$45:$L$61,CK$7,1),1/(INDEX(Inputs!$B$45:$B$61,CK$7+1,1)-INDEX(Inputs!$B$45:$B$61,CK$7,1)))-1 -> 0.0% | CM37: =+POWER(INDEX(Inputs!$L$45:$L$61,CL$7+1,1)/INDEX(Inputs!$L$45:$L$61,CL$7,1),1/(INDEX(Inputs!$B$45:$B$61,CL$7+1,1)-INDEX(Inputs!$B$45:$B$61,CL$7,1)))-1 -> 0.0% | CN37: =+POWER(INDEX(Inputs!$L$45:$L$61,CM$7+1,1)/INDEX(Inputs!$L$45:$L$61,CM$7,1),1/(INDEX(Inputs!$B$45:$B$61,CM$7+1,1)-INDEX(Inputs!$B$45:$B$61,CM$7,1)))-1 -> 0.0% | CO37: =+POWER(INDEX(Inputs!$L$45:$L$61,CN$7+1,1)/INDEX(Inputs!$L$45:$L$61,CN$7,1),1/(INDEX(Inputs!$B$45:$B$61,CN$7+1,1)-INDEX(Inputs!$B$45:$B$61,CN$7,1)))-1 -> 0.0% | CP37: =+POWER(INDEX(Inputs!$L$45:$L$61,CO$7+1,1)/INDEX(Inputs!$L$45:$L$61,CO$7,1),1/(INDEX(Inputs!$B$45:$B$61,CO$7+1,1)-INDEX(Inputs!$B$45:$B$61,CO$7,1)))-1 -> 0.0% | CQ37: =+POWER(INDEX(Inputs!$L$45:$L$61,CP$7+1,1)/INDEX(Inputs!$L$45:$L$61,CP$7,1),1/(INDEX(Inputs!$B$45:$B$61,CP$7+1,1)-INDEX(Inputs!$B$45:$B$61,CP$7,1)))-1 -> 0.0% | CR37: =+POWER(INDEX(Inputs!$L$45:$L$61,CQ$7+1,1)/INDEX(Inputs!$L$45:$L$61,CQ$7,1),1/(INDEX(Inputs!$B$45:$B$61,CQ$7+1,1)-INDEX(Inputs!$B$45:$B$61,CQ$7,1)))-1 -> 0.0%
B38: Nominal Contract Revenues from 407 East | K38: MCAD | M38: =SUM(O38:GJ38) -> 3,360 | P38: =P36*P$24 -> 17.3 | Q38: 17.0 | R38: =R36*R$24 -> 16.8 | S38: 16.5 | T38: 17.1 | U38: 17.8 | V38: 18.4 | W38: 19.1 | X38: 19.9 | Y38: 20.2 | Z38: 20.7 | AA38: 21.1 | AB38: 21.5 | AC38: 21.9 | AD38: 22.4 | AE38: 22.8 | AF38: 23.3 | AG38: 23.7 | AH38: 24.2 | AI38: 24.7 | AJ38: 25.2 | AK38: 25.7 | AL38: 26.2 | AM38: 26.7 | AN38: 27.3 | AO38: 27.8 | AP38: 28.4 | AQ38: 28.9 | AR38: 29.5 | AS38: 30.1 | AT38: 30.7 | AU38: 31.3 | AV38: 31.9 | AW38: 32.6 | AX38: 33.2 | AY38: 33.9 | AZ38: 34.6 | BA38: 35.3 | BB38: 36.0 | BC38: 36.7 | BD38: 37.4 | BE38: 38.2 | BF38: 38.9 | BG38: 39.7 | BH38: 40.5 | BI38: 41.3 | BJ38: 42.1 | BK38: 43.0 | BL38: 43.8 | BM38: 44.7 | BN38: 45.6 | BO38: 46.5 | BP38: 47.4 | BQ38: 48.4 | BR38: 49.4 | BS38: 50.4 | BT38: 51.4 | BU38: 52.4 | BV38: 53.4 | BW38: 54.5 | BX38: 55.6 | BY38: 56.7 | BZ38: 57.8 | CA38: 59.0 | CB38: 60.2 | CC38: 61.4 | CD38: =CD36*CD$24 -> 62.6 | CE38: 63.9 | CF38: 65.1 | CG38: 66.4 | CH38: 67.8 | CI38: 69.1 | CJ38: 70.5 | CK38: 71.9 | CL38: 73.4 | CM38: 74.8 | CN38: 76.3 | CO38: 77.8 | CP38: 79.4 | CQ38: 81.0 | CR38: 82.6
B40: TOTAL REVENUES | K40: MCAD | M40: =SUM(O40:GJ40) -> 713,485 | P40: =+P34+P38 -> 1,358.2 | Q40: =+Q34+Q38 -> 1,433.6 | R40: =+R34+R38 -> 1,501.5 | S40: 1,572.0 | T40: 1,665.1 | U40: 1,764.5 | V40: 1,870.1 | W40: 1,981.7 | X40: 2,100.1 | Y40: 2,214.7 | Z40: 2,335.2 | AA40: 2,462.0 | AB40: 2,595.9 | AC40: 2,737.1 | AD40: 2,851.7 | AE40: 2,969.3 | AF40: 3,091.8 | AG40: 3,219.5 | AH40: 3,352.6 | AI40: 3,486.6 | AJ40: 3,626.0 | AK40: 3,771.0 | AL40: 3,922.0 | AM40: 4,078.6 | AN40: 4,222.0 | AO40: 4,369.6 | AP40: 4,522.5 | AQ40: 4,680.3 | AR40: 4,843.9 | AS40: 5,020.3 | AT40: 5,203.7 | AU40: 5,393.2 | AV40: 5,589.9 | AW40: 5,793.9 | AX40: 5,970.4 | AY40: 6,150.1 | AZ40: 6,335.4 | BA40: 6,526.4 | BB40: 6,723.5 | BC40: 6,925.8 | BD40: 7,134.6 | BE40: 7,349.7 | BF40: 7,571.7 | BG40: 7,799.5 | BH40: 8,034.7 | BI40: 8,276.9 | BJ40: 8,526.9 | BK40: 8,783.5 | BL40: 9,048.3 | BM40: 9,321.1 | BN40: 9,602.7 | BO40: 9,891.7 | BP40: 10,190.0 | BQ40: 10,497.2 | BR40: 10,814.4 | BS40: 11,139.8 | BT40: 11,475.7 | BU40: 11,821.8 | BV40: 12,179.0 | BW40: 12,545.5 | BX40: 12,923.8 | BY40: 13,313.5 | BZ40: 13,715.8 | CA40: 14,128.7 | CB40: 14,554.7 | CC40: 14,993.6 | CD40: =+CD34+CD38 -> 15,446.7 | CE40: 15,911.7 | CF40: 16,391.5 | CG40: 16,885.9 | CH40: 17,396.2 | CI40: 17,919.8 | CJ40: 18,460.3 | CK40: 19,017.1 | CL40: 19,591.8 | CM40: 20,181.6 | CN40: 20,790.3 | CO40: 21,417.3 | CP40: 22,064.6 | CQ40: 22,728.9 | CR40: 23,414.4
B42: Opex
B44: Sensitivity | H44: =+Inputs!L103 -> 100% | K44: %
B45: Real OPEX (excluding PDA) | K45: MCAD | M45: =SUM(O45:GJ45) -> (11,110) | P45: =+IF(P$7<>O$7,INDEX(Inputs!$L$64:$L$80,P$7,1),O45*(1+P46)) -> (140.9) | Q45: =+IF(Q$7<>P$7,INDEX(Inputs!$L$64:$L$80,Q$7,1),P45*(1+Q46)) -> (138.6) | R45: =+IF(R$7<>Q$7,INDEX(Inputs!$L$64:$L$80,R$7,1),Q45*(1+R46)) -> (136.4) | S45: =+IF(S$7<>R$7,INDEX(Inputs!$L$64:$L$80,S$7,1),R45*(1+S46)) -> (134.2) | T45: =+IF(T$7<>S$7,INDEX(Inputs!$L$64:$L$80,T$7,1),S45*(1+T46)) -> (134.4) | U45: =+IF(U$7<>T$7,INDEX(Inputs!$L$64:$L$80,U$7,1),T45*(1+U46)) -> (134.6) | V45: =+IF(V$7<>U$7,INDEX(Inputs!$L$64:$L$80,V$7,1),U45*(1+V46)) -> (134.8) | W45: =+IF(W$7<>V$7,INDEX(Inputs!$L$64:$L$80,W$7,1),V45*(1+W46)) -> (135.0) | X45: =+IF(X$7<>W$7,INDEX(Inputs!$L$64:$L$80,X$7,1),W45*(1+X46)) -> (135.2) | Y45: =+IF(Y$7<>X$7,INDEX(Inputs!$L$64:$L$80,Y$7,1),X45*(1+Y46)) -> (135.3) | Z45: =+IF(Z$7<>Y$7,INDEX(Inputs!$L$64:$L$80,Z$7,1),Y45*(1+Z46)) -> (135.4) | AA45: =+IF(AA$7<>Z$7,INDEX(Inputs!$L$64:$L$80,AA$7,1),Z45*(1+AA46)) -> (135.5) | AB45: =+IF(AB$7<>AA$7,INDEX(Inputs!$L$64:$L$80,AB$7,1),AA45*(1+AB46)) -> (135.6) | AC45: =+IF(AC$7<>AB$7,INDEX(Inputs!$L$64:$L$80,AC$7,1),AB45*(1+AC46)) -> (135.7) | AD45: =+IF(AD$7<>AC$7,INDEX(Inputs!$L$64:$L$80,AD$7,1),AC45*(1+AD46)) -> (135.8) | AE45: =+IF(AE$7<>AD$7,INDEX(Inputs!$L$64:$L$80,AE$7,1),AD45*(1+AE46)) -> (135.8) | AF45: =+IF(AF$7<>AE$7,INDEX(Inputs!$L$64:$L$80,AF$7,1),AE45*(1+AF46)) -> (135.9) | AG45: =+IF(AG$7<>AF$7,INDEX(Inputs!$L$64:$L$80,AG$7,1),AF45*(1+AG46)) -> (136.0) | AH45: =+IF(AH$7<>AG$7,INDEX(Inputs!$L$64:$L$80,AH$7,1),AG45*(1+AH46)) -> (136.1) | AI45: =+IF(AI$7<>AH$7,INDEX(Inputs!$L$64:$L$80,AI$7,1),AH45*(1+AI46)) -> (136.2) | AJ45: =+IF(AJ$7<>AI$7,INDEX(Inputs!$L$64:$L$80,AJ$7,1),AI45*(1+AJ46)) -> (136.4) | AK45: =+IF(AK$7<>AJ$7,INDEX(Inputs!$L$64:$L$80,AK$7,1),AJ45*(1+AK46)) -> (136.5) | AL45: =+IF(AL$7<>AK$7,INDEX(Inputs!$L$64:$L$80,AL$7,1),AK45*(1+AL46)) -> (136.6) | AM45: =+IF(AM$7<>AL$7,INDEX(Inputs!$L$64:$L$80,AM$7,1),AL45*(1+AM46)) -> (136.8) | AN45: =+IF(AN$7<>AM$7,INDEX(Inputs!$L$64:$L$80,AN$7,1),AM45*(1+AN46)) -> (137.0) | AO45: =+IF(AO$7<>AN$7,INDEX(Inputs!$L$64:$L$80,AO$7,1),AN45*(1+AO46)) -> (137.1) | AP45: =+IF(AP$7<>AO$7,INDEX(Inputs!$L$64:$L$80,AP$7,1),AO45*(1+AP46)) -> (137.3) | AQ45: =+IF(AQ$7<>AP$7,INDEX(Inputs!$L$64:$L$80,AQ$7,1),AP45*(1+AQ46)) -> (137.5) | AR45: =+IF(AR$7<>AQ$7,INDEX(Inputs!$L$64:$L$80,AR$7,1),AQ45*(1+AR46)) -> (137.7) | AS45: =+IF(AS$7<>AR$7,INDEX(Inputs!$L$64:$L$80,AS$7,1),AR45*(1+AS46)) -> (137.7) | AT45: =+IF(AT$7<>AS$7,INDEX(Inputs!$L$64:$L$80,AT$7,1),AS45*(1+AT46)) -> (137.7) | AU45: =+IF(AU$7<>AT$7,INDEX(Inputs!$L$64:$L$80,AU$7,1),AT45*(1+AU46)) -> (137.7) | AV45: =+IF(AV$7<>AU$7,INDEX(Inputs!$L$64:$L$80,AV$7,1),AU45*(1+AV46)) -> (137.7) | AW45: =+IF(AW$7<>AV$7,INDEX(Inputs!$L$64:$L$80,AW$7,1),AV45*(1+AW46)) -> (137.7) | AX45: =+IF(AX$7<>AW$7,INDEX(Inputs!$L$64:$L$80,AX$7,1),AW45*(1+AX46)) -> (137.7) | AY45: =+IF(AY$7<>AX$7,INDEX(Inputs!$L$64:$L$80,AY$7,1),AX45*(1+AY46)) -> (137.7) | AZ45: =+IF(AZ$7<>AY$7,INDEX(Inputs!$L$64:$L$80,AZ$7,1),AY45*(1+AZ46)) -> (137.7) | BA45: =+IF(BA$7<>AZ$7,INDEX(Inputs!$L$64:$L$80,BA$7,1),AZ45*(1+BA46)) -> (137.7) | BB45: =+IF(BB$7<>BA$7,INDEX(Inputs!$L$64:$L$80,BB$7,1),BA45*(1+BB46)) -> (137.7) | BC45: =+IF(BC$7<>BB$7,INDEX(Inputs!$L$64:$L$80,BC$7,1),BB45*(1+BC46)) -> (137.7) | BD45: =+IF(BD$7<>BC$7,INDEX(Inputs!$L$64:$L$80,BD$7,1),BC45*(1+BD46)) -> (137.7) | BE45: =+IF(BE$7<>BD$7,INDEX(Inputs!$L$64:$L$80,BE$7,1),BD45*(1+BE46)) -> (137.7) | BF45: =+IF(BF$7<>BE$7,INDEX(Inputs!$L$64:$L$80,BF$7,1),BE45*(1+BF46)) -> (137.7) | BG45: =+IF(BG$7<>BF$7,INDEX(Inputs!$L$64:$L$80,BG$7,1),BF45*(1+BG46)) -> (137.7) | BH45: =+IF(BH$7<>BG$7,INDEX(Inputs!$L$64:$L$80,BH$7,1),BG45*(1+BH46)) -> (137.7) | BI45: =+IF(BI$7<>BH$7,INDEX(Inputs!$L$64:$L$80,BI$7,1),BH45*(1+BI46)) -> (137.7) | BJ45: =+IF(BJ$7<>BI$7,INDEX(Inputs!$L$64:$L$80,BJ$7,1),BI45*(1+BJ46)) -> (137.7) | BK45: =+IF(BK$7<>BJ$7,INDEX(Inputs!$L$64:$L$80,BK$7,1),BJ45*(1+BK46)) -> (137.7) | BL45: =+IF(BL$7<>BK$7,INDEX(Inputs!$L$64:$L$80,BL$7,1),BK45*(1+BL46)) -> (137.7) | BM45: =+IF(BM$7<>BL$7,INDEX(Inputs!$L$64:$L$80,BM$7,1),BL45*(1+BM46)) -> (137.7) | BN45: =+IF(BN$7<>BM$7,INDEX(Inputs!$L$64:$L$80,BN$7,1),BM45*(1+BN46)) -> (137.7) | BO45: =+IF(BO$7<>BN$7,INDEX(Inputs!$L$64:$L$80,BO$7,1),BN45*(1+BO46)) -> (137.7) | BP45: =+IF(BP$7<>BO$7,INDEX(Inputs!$L$64:$L$80,BP$7,1),BO45*(1+BP46)) -> (137.7) | BQ45: =+IF(BQ$7<>BP$7,INDEX(Inputs!$L$64:$L$80,BQ$7,1),BP45*(1+BQ46)) -> (137.7) | BR45: =+IF(BR$7<>BQ$7,INDEX(Inputs!$L$64:$L$80,BR$7,1),BQ45*(1+BR46)) -> (137.7) | BS45: =+IF(BS$7<>BR$7,INDEX(Inputs!$L$64:$L$80,BS$7,1),BR45*(1+BS46)) -> (137.7) | BT45: =+IF(BT$7<>BS$7,INDEX(Inputs!$L$64:$L$80,BT$7,1),BS45*(1+BT46)) -> (137.7) | BU45: =+IF(BU$7<>BT$7,INDEX(Inputs!$L$64:$L$80,BU$7,1),BT45*(1+BU46)) -> (137.7) | BV45: =+IF(BV$7<>BU$7,INDEX(Inputs!$L$64:$L$80,BV$7,1),BU45*(1+BV46)) -> (137.7) | BW45: =+IF(BW$7<>BV$7,INDEX(Inputs!$L$64:$L$80,BW$7,1),BV45*(1+BW46)) -> (137.7) | BX45: =+IF(BX$7<>BW$7,INDEX(Inputs!$L$64:$L$80,BX$7,1),BW45*(1+BX46)) -> (137.7) | BY45: =+IF(BY$7<>BX$7,INDEX(Inputs!$L$64:$L$80,BY$7,1),BX45*(1+BY46)) -> (137.7) | BZ45: =+IF(BZ$7<>BY$7,INDEX(Inputs!$L$64:$L$80,BZ$7,1),BY45*(1+BZ46)) -> (137.7) | CA45: =+IF(CA$7<>BZ$7,INDEX(Inputs!$L$64:$L$80,CA$7,1),BZ45*(1+CA46)) -> (137.7) | CB45: =+IF(CB$7<>CA$7,INDEX(Inputs!$L$64:$L$80,CB$7,1),CA45*(1+CB46)) -> (137.7) | CC45: =+IF(CC$7<>CB$7,INDEX(Inputs!$L$64:$L$80,CC$7,1),CB45*(1+CC46)) -> (137.7) | CD45: =+IF(CD$7<>CC$7,INDEX(Inputs!$L$64:$L$80,CD$7,1),CC45*(1+CD46)) -> (137.7) | CE45: =+IF(CE$7<>CD$7,INDEX(Inputs!$L$64:$L$80,CE$7,1),CD45*(1+CE46)) -> (137.7) | CF45: =+IF(CF$7<>CE$7,INDEX(Inputs!$L$64:$L$80,CF$7,1),CE45*(1+CF46)) -> (137.7) | CG45: =+IF(CG$7<>CF$7,INDEX(Inputs!$L$64:$L$80,CG$7,1),CF45*(1+CG46)) -> (137.7) | CH45: =+IF(CH$7<>CG$7,INDEX(Inputs!$L$64:$L$80,CH$7,1),CG45*(1+CH46)) -> (137.7) | CI45: =+IF(CI$7<>CH$7,INDEX(Inputs!$L$64:$L$80,CI$7,1),CH45*(1+CI46)) -> (137.7) | CJ45: =+IF(CJ$7<>CI$7,INDEX(Inputs!$L$64:$L$80,CJ$7,1),CI45*(1+CJ46)) -> (137.7) | CK45: =+IF(CK$7<>CJ$7,INDEX(Inputs!$L$64:$L$80,CK$7,1),CJ45*(1+CK46)) -> (137.7) | CL45: =+IF(CL$7<>CK$7,INDEX(Inputs!$L$64:$L$80,CL$7,1),CK45*(1+CL46)) -> (137.7) | CM45: =+IF(CM$7<>CL$7,INDEX(Inputs!$L$64:$L$80,CM$7,1),CL45*(1+CM46)) -> (137.7) | CN45: =+IF(CN$7<>CM$7,INDEX(Inputs!$L$64:$L$80,CN$7,1),CM45*(1+CN46)) -> (137.7) | CO45: =+IF(CO$7<>CN$7,INDEX(Inputs!$L$64:$L$80,CO$7,1),CN45*(1+CO46)) -> (137.7) | CP45: =+IF(CP$7<>CO$7,INDEX(Inputs!$L$64:$L$80,CP$7,1),CO45*(1+CP46)) -> (137.7) | CQ45: =+IF(CQ$7<>CP$7,INDEX(Inputs!$L$64:$L$80,CQ$7,1),CP45*(1+CQ46)) -> (137.7) | CR45: =+IF(CR$7<>CQ$7,INDEX(Inputs!$L$64:$L$80,CR$7,1),CQ45*(1+CR46)) -> (137.7)
B46: Growth | Q46: =+POWER(INDEX(Inputs!$L$64:$L$80,P$7+1,1)/INDEX(Inputs!$L$64:$L$80,P$7,1),1/(INDEX(Inputs!$B$64:$B$80,P$7+1,1)-INDEX(Inputs!$B$64:$B$80,P$7,1)))-1 -> -1.6% | R46: =+POWER(INDEX(Inputs!$L$64:$L$80,Q$7+1,1)/INDEX(Inputs!$L$64:$L$80,Q$7,1),1/(INDEX(Inputs!$B$64:$B$80,Q$7+1,1)-INDEX(Inputs!$B$64:$B$80,Q$7,1)))-1 -> -1.6% | S46: =+POWER(INDEX(Inputs!$L$64:$L$80,R$7+1,1)/INDEX(Inputs!$L$64:$L$80,R$7,1),1/(INDEX(Inputs!$B$64:$B$80,R$7+1,1)-INDEX(Inputs!$B$64:$B$80,R$7,1)))-1 -> -1.6% | T46: =+POWER(INDEX(Inputs!$L$64:$L$80,S$7+1,1)/INDEX(Inputs!$L$64:$L$80,S$7,1),1/(INDEX(Inputs!$B$64:$B$80,S$7+1,1)-INDEX(Inputs!$B$64:$B$80,S$7,1)))-1 -> 0.2% | U46: =+POWER(INDEX(Inputs!$L$64:$L$80,T$7+1,1)/INDEX(Inputs!$L$64:$L$80,T$7,1),1/(INDEX(Inputs!$B$64:$B$80,T$7+1,1)-INDEX(Inputs!$B$64:$B$80,T$7,1)))-1 -> 0.2% | V46: =+POWER(INDEX(Inputs!$L$64:$L$80,U$7+1,1)/INDEX(Inputs!$L$64:$L$80,U$7,1),1/(INDEX(Inputs!$B$64:$B$80,U$7+1,1)-INDEX(Inputs!$B$64:$B$80,U$7,1)))-1 -> 0.2% | W46: =+POWER(INDEX(Inputs!$L$64:$L$80,V$7+1,1)/INDEX(Inputs!$L$64:$L$80,V$7,1),1/(INDEX(Inputs!$B$64:$B$80,V$7+1,1)-INDEX(Inputs!$B$64:$B$80,V$7,1)))-1 -> 0.2% | X46: =+POWER(INDEX(Inputs!$L$64:$L$80,W$7+1,1)/INDEX(Inputs!$L$64:$L$80,W$7,1),1/(INDEX(Inputs!$B$64:$B$80,W$7+1,1)-INDEX(Inputs!$B$64:$B$80,W$7,1)))-1 -> 0.2% | Y46: =+POWER(INDEX(Inputs!$L$64:$L$80,X$7+1,1)/INDEX(Inputs!$L$64:$L$80,X$7,1),1/(INDEX(Inputs!$B$64:$B$80,X$7+1,1)-INDEX(Inputs!$B$64:$B$80,X$7,1)))-1 -> 0.1% | Z46: =+POWER(INDEX(Inputs!$L$64:$L$80,Y$7+1,1)/INDEX(Inputs!$L$64:$L$80,Y$7,1),1/(INDEX(Inputs!$B$64:$B$80,Y$7+1,1)-INDEX(Inputs!$B$64:$B$80,Y$7,1)))-1 -> 0.1% | AA46: =+POWER(INDEX(Inputs!$L$64:$L$80,Z$7+1,1)/INDEX(Inputs!$L$64:$L$80,Z$7,1),1/(INDEX(Inputs!$B$64:$B$80,Z$7+1,1)-INDEX(Inputs!$B$64:$B$80,Z$7,1)))-1 -> 0.1% | AB46: =+POWER(INDEX(Inputs!$L$64:$L$80,AA$7+1,1)/INDEX(Inputs!$L$64:$L$80,AA$7,1),1/(INDEX(Inputs!$B$64:$B$80,AA$7+1,1)-INDEX(Inputs!$B$64:$B$80,AA$7,1)))-1 -> 0.1% | AC46: =+POWER(INDEX(Inputs!$L$64:$L$80,AB$7+1,1)/INDEX(Inputs!$L$64:$L$80,AB$7,1),1/(INDEX(Inputs!$B$64:$B$80,AB$7+1,1)-INDEX(Inputs!$B$64:$B$80,AB$7,1)))-1 -> 0.1% | AD46: =+POWER(INDEX(Inputs!$L$64:$L$80,AC$7+1,1)/INDEX(Inputs!$L$64:$L$80,AC$7,1),1/(INDEX(Inputs!$B$64:$B$80,AC$7+1,1)-INDEX(Inputs!$B$64:$B$80,AC$7,1)))-1 -> 0.1% | AE46: =+POWER(INDEX(Inputs!$L$64:$L$80,AD$7+1,1)/INDEX(Inputs!$L$64:$L$80,AD$7,1),1/(INDEX(Inputs!$B$64:$B$80,AD$7+1,1)-INDEX(Inputs!$B$64:$B$80,AD$7,1)))-1 -> 0.1% | AF46: =+POWER(INDEX(Inputs!$L$64:$L$80,AE$7+1,1)/INDEX(Inputs!$L$64:$L$80,AE$7,1),1/(INDEX(Inputs!$B$64:$B$80,AE$7+1,1)-INDEX(Inputs!$B$64:$B$80,AE$7,1)))-1 -> 0.1% | AG46: =+POWER(INDEX(Inputs!$L$64:$L$80,AF$7+1,1)/INDEX(Inputs!$L$64:$L$80,AF$7,1),1/(INDEX(Inputs!$B$64:$B$80,AF$7+1,1)-INDEX(Inputs!$B$64:$B$80,AF$7,1)))-1 -> 0.1% | AH46: =+POWER(INDEX(Inputs!$L$64:$L$80,AG$7+1,1)/INDEX(Inputs!$L$64:$L$80,AG$7,1),1/(INDEX(Inputs!$B$64:$B$80,AG$7+1,1)-INDEX(Inputs!$B$64:$B$80,AG$7,1)))-1 -> 0.1% | AI46: =+POWER(INDEX(Inputs!$L$64:$L$80,AH$7+1,1)/INDEX(Inputs!$L$64:$L$80,AH$7,1),1/(INDEX(Inputs!$B$64:$B$80,AH$7+1,1)-INDEX(Inputs!$B$64:$B$80,AH$7,1)))-1 -> 0.1% | AJ46: =+POWER(INDEX(Inputs!$L$64:$L$80,AI$7+1,1)/INDEX(Inputs!$L$64:$L$80,AI$7,1),1/(INDEX(Inputs!$B$64:$B$80,AI$7+1,1)-INDEX(Inputs!$B$64:$B$80,AI$7,1)))-1 -> 0.1% | AK46: =+POWER(INDEX(Inputs!$L$64:$L$80,AJ$7+1,1)/INDEX(Inputs!$L$64:$L$80,AJ$7,1),1/(INDEX(Inputs!$B$64:$B$80,AJ$7+1,1)-INDEX(Inputs!$B$64:$B$80,AJ$7,1)))-1 -> 0.1% | AL46: =+POWER(INDEX(Inputs!$L$64:$L$80,AK$7+1,1)/INDEX(Inputs!$L$64:$L$80,AK$7,1),1/(INDEX(Inputs!$B$64:$B$80,AK$7+1,1)-INDEX(Inputs!$B$64:$B$80,AK$7,1)))-1 -> 0.1% | AM46: =+POWER(INDEX(Inputs!$L$64:$L$80,AL$7+1,1)/INDEX(Inputs!$L$64:$L$80,AL$7,1),1/(INDEX(Inputs!$B$64:$B$80,AL$7+1,1)-INDEX(Inputs!$B$64:$B$80,AL$7,1)))-1 -> 0.1% | AN46: =+POWER(INDEX(Inputs!$L$64:$L$80,AM$7+1,1)/INDEX(Inputs!$L$64:$L$80,AM$7,1),1/(INDEX(Inputs!$B$64:$B$80,AM$7+1,1)-INDEX(Inputs!$B$64:$B$80,AM$7,1)))-1 -> 0.1% | AO46: =+POWER(INDEX(Inputs!$L$64:$L$80,AN$7+1,1)/INDEX(Inputs!$L$64:$L$80,AN$7,1),1/(INDEX(Inputs!$B$64:$B$80,AN$7+1,1)-INDEX(Inputs!$B$64:$B$80,AN$7,1)))-1 -> 0.1% | AP46: =+POWER(INDEX(Inputs!$L$64:$L$80,AO$7+1,1)/INDEX(Inputs!$L$64:$L$80,AO$7,1),1/(INDEX(Inputs!$B$64:$B$80,AO$7+1,1)-INDEX(Inputs!$B$64:$B$80,AO$7,1)))-1 -> 0.1% | AQ46: =+POWER(INDEX(Inputs!$L$64:$L$80,AP$7+1,1)/INDEX(Inputs!$L$64:$L$80,AP$7,1),1/(INDEX(Inputs!$B$64:$B$80,AP$7+1,1)-INDEX(Inputs!$B$64:$B$80,AP$7,1)))-1 -> 0.1% | AR46: =+POWER(INDEX(Inputs!$L$64:$L$80,AQ$7+1,1)/INDEX(Inputs!$L$64:$L$80,AQ$7,1),1/(INDEX(Inputs!$B$64:$B$80,AQ$7+1,1)-INDEX(Inputs!$B$64:$B$80,AQ$7,1)))-1 -> 0.1% | AS46: =+POWER(INDEX(Inputs!$L$64:$L$80,AR$7+1,1)/INDEX(Inputs!$L$64:$L$80,AR$7,1),1/(INDEX(Inputs!$B$64:$B$80,AR$7+1,1)-INDEX(Inputs!$B$64:$B$80,AR$7,1)))-1 -> 0.0% | AT46: =+POWER(INDEX(Inputs!$L$64:$L$80,AS$7+1,1)/INDEX(Inputs!$L$64:$L$80,AS$7,1),1/(INDEX(Inputs!$B$64:$B$80,AS$7+1,1)-INDEX(Inputs!$B$64:$B$80,AS$7,1)))-1 -> 0.0% | AU46: =+POWER(INDEX(Inputs!$L$64:$L$80,AT$7+1,1)/INDEX(Inputs!$L$64:$L$80,AT$7,1),1/(INDEX(Inputs!$B$64:$B$80,AT$7+1,1)-INDEX(Inputs!$B$64:$B$80,AT$7,1)))-1 -> 0.0% | AV46: =+POWER(INDEX(Inputs!$L$64:$L$80,AU$7+1,1)/INDEX(Inputs!$L$64:$L$80,AU$7,1),1/(INDEX(Inputs!$B$64:$B$80,AU$7+1,1)-INDEX(Inputs!$B$64:$B$80,AU$7,1)))-1 -> 0.0% | AW46: =+POWER(INDEX(Inputs!$L$64:$L$80,AV$7+1,1)/INDEX(Inputs!$L$64:$L$80,AV$7,1),1/(INDEX(Inputs!$B$64:$B$80,AV$7+1,1)-INDEX(Inputs!$B$64:$B$80,AV$7,1)))-1 -> 0.0% | AX46: =+POWER(INDEX(Inputs!$L$64:$L$80,AW$7+1,1)/INDEX(Inputs!$L$64:$L$80,AW$7,1),1/(INDEX(Inputs!$B$64:$B$80,AW$7+1,1)-INDEX(Inputs!$B$64:$B$80,AW$7,1)))-1 -> 0.0% | AY46: =+POWER(INDEX(Inputs!$L$64:$L$80,AX$7+1,1)/INDEX(Inputs!$L$64:$L$80,AX$7,1),1/(INDEX(Inputs!$B$64:$B$80,AX$7+1,1)-INDEX(Inputs!$B$64:$B$80,AX$7,1)))-1 -> 0.0% | AZ46: =+POWER(INDEX(Inputs!$L$64:$L$80,AY$7+1,1)/INDEX(Inputs!$L$64:$L$80,AY$7,1),1/(INDEX(Inputs!$B$64:$B$80,AY$7+1,1)-INDEX(Inputs!$B$64:$B$80,AY$7,1)))-1 -> 0.0% | BA46: =+POWER(INDEX(Inputs!$L$64:$L$80,AZ$7+1,1)/INDEX(Inputs!$L$64:$L$80,AZ$7,1),1/(INDEX(Inputs!$B$64:$B$80,AZ$7+1,1)-INDEX(Inputs!$B$64:$B$80,AZ$7,1)))-1 -> 0.0% | BB46: =+POWER(INDEX(Inputs!$L$64:$L$80,BA$7+1,1)/INDEX(Inputs!$L$64:$L$80,BA$7,1),1/(INDEX(Inputs!$B$64:$B$80,BA$7+1,1)-INDEX(Inputs!$B$64:$B$80,BA$7,1)))-1 -> 0.0% | BC46: =+POWER(INDEX(Inputs!$L$64:$L$80,BB$7+1,1)/INDEX(Inputs!$L$64:$L$80,BB$7,1),1/(INDEX(Inputs!$B$64:$B$80,BB$7+1,1)-INDEX(Inputs!$B$64:$B$80,BB$7,1)))-1 -> 0.0% | BD46: =+POWER(INDEX(Inputs!$L$64:$L$80,BC$7+1,1)/INDEX(Inputs!$L$64:$L$80,BC$7,1),1/(INDEX(Inputs!$B$64:$B$80,BC$7+1,1)-INDEX(Inputs!$B$64:$B$80,BC$7,1)))-1 -> 0.0% | BE46: =+POWER(INDEX(Inputs!$L$64:$L$80,BD$7+1,1)/INDEX(Inputs!$L$64:$L$80,BD$7,1),1/(INDEX(Inputs!$B$64:$B$80,BD$7+1,1)-INDEX(Inputs!$B$64:$B$80,BD$7,1)))-1 -> 0.0% | BF46: =+POWER(INDEX(Inputs!$L$64:$L$80,BE$7+1,1)/INDEX(Inputs!$L$64:$L$80,BE$7,1),1/(INDEX(Inputs!$B$64:$B$80,BE$7+1,1)-INDEX(Inputs!$B$64:$B$80,BE$7,1)))-1 -> 0.0% | BG46: =+POWER(INDEX(Inputs!$L$64:$L$80,BF$7+1,1)/INDEX(Inputs!$L$64:$L$80,BF$7,1),1/(INDEX(Inputs!$B$64:$B$80,BF$7+1,1)-INDEX(Inputs!$B$64:$B$80,BF$7,1)))-1 -> 0.0% | BH46: =+POWER(INDEX(Inputs!$L$64:$L$80,BG$7+1,1)/INDEX(Inputs!$L$64:$L$80,BG$7,1),1/(INDEX(Inputs!$B$64:$B$80,BG$7+1,1)-INDEX(Inputs!$B$64:$B$80,BG$7,1)))-1 -> 0.0% | BI46: =+POWER(INDEX(Inputs!$L$64:$L$80,BH$7+1,1)/INDEX(Inputs!$L$64:$L$80,BH$7,1),1/(INDEX(Inputs!$B$64:$B$80,BH$7+1,1)-INDEX(Inputs!$B$64:$B$80,BH$7,1)))-1 -> 0.0% | BJ46: =+POWER(INDEX(Inputs!$L$64:$L$80,BI$7+1,1)/INDEX(Inputs!$L$64:$L$80,BI$7,1),1/(INDEX(Inputs!$B$64:$B$80,BI$7+1,1)-INDEX(Inputs!$B$64:$B$80,BI$7,1)))-1 -> 0.0% | BK46: =+POWER(INDEX(Inputs!$L$64:$L$80,BJ$7+1,1)/INDEX(Inputs!$L$64:$L$80,BJ$7,1),1/(INDEX(Inputs!$B$64:$B$80,BJ$7+1,1)-INDEX(Inputs!$B$64:$B$80,BJ$7,1)))-1 -> 0.0% | BL46: =+POWER(INDEX(Inputs!$L$64:$L$80,BK$7+1,1)/INDEX(Inputs!$L$64:$L$80,BK$7,1),1/(INDEX(Inputs!$B$64:$B$80,BK$7+1,1)-INDEX(Inputs!$B$64:$B$80,BK$7,1)))-1 -> 0.0% | BM46: =+POWER(INDEX(Inputs!$L$64:$L$80,BL$7+1,1)/INDEX(Inputs!$L$64:$L$80,BL$7,1),1/(INDEX(Inputs!$B$64:$B$80,BL$7+1,1)-INDEX(Inputs!$B$64:$B$80,BL$7,1)))-1 -> 0.0% | BN46: =+POWER(INDEX(Inputs!$L$64:$L$80,BM$7+1,1)/INDEX(Inputs!$L$64:$L$80,BM$7,1),1/(INDEX(Inputs!$B$64:$B$80,BM$7+1,1)-INDEX(Inputs!$B$64:$B$80,BM$7,1)))-1 -> 0.0% | BO46: =+POWER(INDEX(Inputs!$L$64:$L$80,BN$7+1,1)/INDEX(Inputs!$L$64:$L$80,BN$7,1),1/(INDEX(Inputs!$B$64:$B$80,BN$7+1,1)-INDEX(Inputs!$B$64:$B$80,BN$7,1)))-1 -> 0.0% | BP46: =+POWER(INDEX(Inputs!$L$64:$L$80,BO$7+1,1)/INDEX(Inputs!$L$64:$L$80,BO$7,1),1/(INDEX(Inputs!$B$64:$B$80,BO$7+1,1)-INDEX(Inputs!$B$64:$B$80,BO$7,1)))-1 -> 0.0% | BQ46: =+POWER(INDEX(Inputs!$L$64:$L$80,BP$7+1,1)/INDEX(Inputs!$L$64:$L$80,BP$7,1),1/(INDEX(Inputs!$B$64:$B$80,BP$7+1,1)-INDEX(Inputs!$B$64:$B$80,BP$7,1)))-1 -> 0.0% | BR46: =+POWER(INDEX(Inputs!$L$64:$L$80,BQ$7+1,1)/INDEX(Inputs!$L$64:$L$80,BQ$7,1),1/(INDEX(Inputs!$B$64:$B$80,BQ$7+1,1)-INDEX(Inputs!$B$64:$B$80,BQ$7,1)))-1 -> 0.0% | BS46: =+POWER(INDEX(Inputs!$L$64:$L$80,BR$7+1,1)/INDEX(Inputs!$L$64:$L$80,BR$7,1),1/(INDEX(Inputs!$B$64:$B$80,BR$7+1,1)-INDEX(Inputs!$B$64:$B$80,BR$7,1)))-1 -> 0.0% | BT46: =+POWER(INDEX(Inputs!$L$64:$L$80,BS$7+1,1)/INDEX(Inputs!$L$64:$L$80,BS$7,1),1/(INDEX(Inputs!$B$64:$B$80,BS$7+1,1)-INDEX(Inputs!$B$64:$B$80,BS$7,1)))-1 -> 0.0% | BU46: =+POWER(INDEX(Inputs!$L$64:$L$80,BT$7+1,1)/INDEX(Inputs!$L$64:$L$80,BT$7,1),1/(INDEX(Inputs!$B$64:$B$80,BT$7+1,1)-INDEX(Inputs!$B$64:$B$80,BT$7,1)))-1 -> 0.0% | BV46: =+POWER(INDEX(Inputs!$L$64:$L$80,BU$7+1,1)/INDEX(Inputs!$L$64:$L$80,BU$7,1),1/(INDEX(Inputs!$B$64:$B$80,BU$7+1,1)-INDEX(Inputs!$B$64:$B$80,BU$7,1)))-1 -> 0.0% | BW46: =+POWER(INDEX(Inputs!$L$64:$L$80,BV$7+1,1)/INDEX(Inputs!$L$64:$L$80,BV$7,1),1/(INDEX(Inputs!$B$64:$B$80,BV$7+1,1)-INDEX(Inputs!$B$64:$B$80,BV$7,1)))-1 -> 0.0% | BX46: =+POWER(INDEX(Inputs!$L$64:$L$80,BW$7+1,1)/INDEX(Inputs!$L$64:$L$80,BW$7,1),1/(INDEX(Inputs!$B$64:$B$80,BW$7+1,1)-INDEX(Inputs!$B$64:$B$80,BW$7,1)))-1 -> 0.0% | BY46: =+POWER(INDEX(Inputs!$L$64:$L$80,BX$7+1,1)/INDEX(Inputs!$L$64:$L$80,BX$7,1),1/(INDEX(Inputs!$B$64:$B$80,BX$7+1,1)-INDEX(Inputs!$B$64:$B$80,BX$7,1)))-1 -> 0.0% | BZ46: =+POWER(INDEX(Inputs!$L$64:$L$80,BY$7+1,1)/INDEX(Inputs!$L$64:$L$80,BY$7,1),1/(INDEX(Inputs!$B$64:$B$80,BY$7+1,1)-INDEX(Inputs!$B$64:$B$80,BY$7,1)))-1 -> 0.0% | CA46: =+POWER(INDEX(Inputs!$L$64:$L$80,BZ$7+1,1)/INDEX(Inputs!$L$64:$L$80,BZ$7,1),1/(INDEX(Inputs!$B$64:$B$80,BZ$7+1,1)-INDEX(Inputs!$B$64:$B$80,BZ$7,1)))-1 -> 0.0% | CB46: =+POWER(INDEX(Inputs!$L$64:$L$80,CA$7+1,1)/INDEX(Inputs!$L$64:$L$80,CA$7,1),1/(INDEX(Inputs!$B$64:$B$80,CA$7+1,1)-INDEX(Inputs!$B$64:$B$80,CA$7,1)))-1 -> 0.0% | CC46: =+POWER(INDEX(Inputs!$L$64:$L$80,CB$7+1,1)/INDEX(Inputs!$L$64:$L$80,CB$7,1),1/(INDEX(Inputs!$B$64:$B$80,CB$7+1,1)-INDEX(Inputs!$B$64:$B$80,CB$7,1)))-1 -> 0.0% | CD46: =+POWER(INDEX(Inputs!$L$64:$L$80,CC$7+1,1)/INDEX(Inputs!$L$64:$L$80,CC$7,1),1/(INDEX(Inputs!$B$64:$B$80,CC$7+1,1)-INDEX(Inputs!$B$64:$B$80,CC$7,1)))-1 -> 0.0% | CE46: =+POWER(INDEX(Inputs!$L$64:$L$80,CD$7+1,1)/INDEX(Inputs!$L$64:$L$80,CD$7,1),1/(INDEX(Inputs!$B$64:$B$80,CD$7+1,1)-INDEX(Inputs!$B$64:$B$80,CD$7,1)))-1 -> 0.0% | CF46: =+POWER(INDEX(Inputs!$L$64:$L$80,CE$7+1,1)/INDEX(Inputs!$L$64:$L$80,CE$7,1),1/(INDEX(Inputs!$B$64:$B$80,CE$7+1,1)-INDEX(Inputs!$B$64:$B$80,CE$7,1)))-1 -> 0.0% | CG46: =+POWER(INDEX(Inputs!$L$64:$L$80,CF$7+1,1)/INDEX(Inputs!$L$64:$L$80,CF$7,1),1/(INDEX(Inputs!$B$64:$B$80,CF$7+1,1)-INDEX(Inputs!$B$64:$B$80,CF$7,1)))-1 -> 0.0% | CH46: =+POWER(INDEX(Inputs!$L$64:$L$80,CG$7+1,1)/INDEX(Inputs!$L$64:$L$80,CG$7,1),1/(INDEX(Inputs!$B$64:$B$80,CG$7+1,1)-INDEX(Inputs!$B$64:$B$80,CG$7,1)))-1 -> 0.0% | CI46: =+POWER(INDEX(Inputs!$L$64:$L$80,CH$7+1,1)/INDEX(Inputs!$L$64:$L$80,CH$7,1),1/(INDEX(Inputs!$B$64:$B$80,CH$7+1,1)-INDEX(Inputs!$B$64:$B$80,CH$7,1)))-1 -> 0.0% | CJ46: =+POWER(INDEX(Inputs!$L$64:$L$80,CI$7+1,1)/INDEX(Inputs!$L$64:$L$80,CI$7,1),1/(INDEX(Inputs!$B$64:$B$80,CI$7+1,1)-INDEX(Inputs!$B$64:$B$80,CI$7,1)))-1 -> 0.0% | CK46: =+POWER(INDEX(Inputs!$L$64:$L$80,CJ$7+1,1)/INDEX(Inputs!$L$64:$L$80,CJ$7,1),1/(INDEX(Inputs!$B$64:$B$80,CJ$7+1,1)-INDEX(Inputs!$B$64:$B$80,CJ$7,1)))-1 -> 0.0% | CL46: =+POWER(INDEX(Inputs!$L$64:$L$80,CK$7+1,1)/INDEX(Inputs!$L$64:$L$80,CK$7,1),1/(INDEX(Inputs!$B$64:$B$80,CK$7+1,1)-INDEX(Inputs!$B$64:$B$80,CK$7,1)))-1 -> 0.0% | CM46: =+POWER(INDEX(Inputs!$L$64:$L$80,CL$7+1,1)/INDEX(Inputs!$L$64:$L$80,CL$7,1),1/(INDEX(Inputs!$B$64:$B$80,CL$7+1,1)-INDEX(Inputs!$B$64:$B$80,CL$7,1)))-1 -> 0.0% | CN46: =+POWER(INDEX(Inputs!$L$64:$L$80,CM$7+1,1)/INDEX(Inputs!$L$64:$L$80,CM$7,1),1/(INDEX(Inputs!$B$64:$B$80,CM$7+1,1)-INDEX(Inputs!$B$64:$B$80,CM$7,1)))-1 -> 0.0% | CO46: =+POWER(INDEX(Inputs!$L$64:$L$80,CN$7+1,1)/INDEX(Inputs!$L$64:$L$80,CN$7,1),1/(INDEX(Inputs!$B$64:$B$80,CN$7+1,1)-INDEX(Inputs!$B$64:$B$80,CN$7,1)))-1 -> 0.0% | CP46: =+POWER(INDEX(Inputs!$L$64:$L$80,CO$7+1,1)/INDEX(Inputs!$L$64:$L$80,CO$7,1),1/(INDEX(Inputs!$B$64:$B$80,CO$7+1,1)-INDEX(Inputs!$B$64:$B$80,CO$7,1)))-1 -> 0.0% | CQ46: =+POWER(INDEX(Inputs!$L$64:$L$80,CP$7+1,1)/INDEX(Inputs!$L$64:$L$80,CP$7,1),1/(INDEX(Inputs!$B$64:$B$80,CP$7+1,1)-INDEX(Inputs!$B$64:$B$80,CP$7,1)))-1 -> 0.0% | CR46: =+POWER(INDEX(Inputs!$L$64:$L$80,CQ$7+1,1)/INDEX(Inputs!$L$64:$L$80,CQ$7,1),1/(INDEX(Inputs!$B$64:$B$80,CQ$7+1,1)-INDEX(Inputs!$B$64:$B$80,CQ$7,1)))-1 -> 0.0%
B47: Nominal OPEX (excluding PDA) | K47: MCAD | M47: =SUM(O47:GJ47) -> (28,205) | P47: =+P45*$H$44*P$24 -> (145.6) | Q47: (146.1) | R47: =+R45*$H$44*R$24 -> (146.6) | S47: (147.1) | T47: (150.3) | U47: (153.5) | V47: (156.9) | W47: (160.2) | X47: (163.7) | Y47: (167.1) | Z47: (170.5) | AA47: (174.1) | AB47: (177.7) | AC47: (181.4) | AD47: (185.1) | AE47: (188.9) | AF47: (192.8) | AG47: (196.8) | AH47: (200.8) | AI47: (205.0) | AJ47: (209.4) | AK47: (213.8) | AL47: (218.3) | AM47: (222.9) | AN47: (227.6) | AO47: (232.5) | AP47: (237.4) | AQ47: (242.5) | AR47: (247.7) | AS47: (252.7) | AT47: (257.7) | AU47: (262.9) | AV47: (268.1) | AW47: (273.5) | AX47: (279.0) | AY47: (284.5) | AZ47: (290.2) | BA47: (296.0) | BB47: (301.9) | BC47: (308.0) | BD47: (314.1) | BE47: (320.4) | BF47: (326.8) | BG47: (333.4) | BH47: (340.0) | BI47: (346.8) | BJ47: (353.8) | BK47: (360.9) | BL47: (368.1) | BM47: (375.4) | BN47: (382.9) | BO47: (390.6) | BP47: (398.4) | BQ47: (406.4) | BR47: (414.5) | BS47: (422.8) | BT47: (431.3) | BU47: (439.9) | BV47: (448.7) | BW47: (457.6) | BX47: (466.8) | BY47: (476.1) | BZ47: (485.7) | CA47: (495.4) | CB47: (505.3) | CC47: (515.4) | CD47: =+CD45*$H$44*CD$24 -> (525.7) | CE47: (536.2) | CF47: (546.9) | CG47: (557.9) | CH47: (569.0) | CI47: (580.4) | CJ47: (592.0) | CK47: (603.9) | CL47: (615.9) | CM47: (628.3) | CN47: (640.8) | CO47: (653.6) | CP47: (666.7) | CQ47: (680.0) | CR47: (693.6)
B49: PDA | F49: % | H49: =+Inputs!L107 -> 3% | K49: MCAD | M49: =SUM(O49:GJ49) -> 21,290 | O49: 0 | P49: 26.6 | Q49: =Q34*$H$49 -> 42.5 | R49: =R34*$H$49 -> 44.5 | S49: 46.7 | T49: 49.4 | U49: 52.4 | V49: 55.5 | W49: 58.9 | X49: 62.4 | Y49: 65.8 | Z49: 69.4 | AA49: 73.2 | AB49: 77.2 | AC49: 81.5 | AD49: 84.9 | AE49: 88.4 | AF49: 92.1 | AG49: 95.9 | AH49: 99.9 | AI49: 103.9 | AJ49: 108.0 | AK49: 112.4 | AL49: 116.9 | AM49: 121.6 | AN49: 125.8 | AO49: 130.3 | AP49: 134.8 | AQ49: 139.5 | AR49: 144.4 | AS49: 149.7 | AT49: 155.2 | AU49: 160.9 | AV49: 166.7 | AW49: 172.8 | AX49: 178.1 | AY49: 183.5 | AZ49: 189.0 | BA49: 194.7 | BB49: 200.6 | BC49: 206.7 | BD49: 212.9 | BE49: 219.3 | BF49: 226.0 | BG49: 232.8 | BH49: 239.8 | BI49: 247.1 | BJ49: 254.5 | BK49: 262.2 | BL49: 270.1 | BM49: 278.3 | BN49: 286.7 | BO49: 295.4 | BP49: 304.3 | BQ49: 313.5 | BR49: 323.0 | BS49: 332.7 | BT49: 342.7 | BU49: 353.1 | BV49: 363.8 | BW49: 374.7 | BX49: 386.0 | BY49: 397.7 | BZ49: 409.7 | CA49: 422.1 | CB49: 434.8 | CC49: 448.0 | CD49: =CD34*$H$49 -> 461.5 | CE49: 475.4 | CF49: 489.8 | CG49: 504.6 | CH49: 519.9 | CI49: 535.5 | CJ49: 551.7 | CK49: 568.4 | CL49: 585.6 | CM49: 603.2 | CN49: 621.4 | CO49: 640.2 | CP49: 659.6 | CQ49: 679.4 | CR49: 700.0
B51: TOTAL OPEX | K51: MCAD | M51: =SUM(O51:GJ51) -> (49,495) | P51: =+P47-P49 -> (172.2) | Q51: (188.6) | R51: =+R47-R49 -> (191.2) | S51: (193.8) | T51: (199.7) | U51: (205.9) | V51: (212.4) | W51: (219.1) | X51: (226.1) | Y51: (232.9) | Z51: (240.0) | AA51: (247.3) | AB51: (254.9) | AC51: (262.8) | AD51: (270.0) | AE51: (277.3) | AF51: (284.9) | AG51: (292.6) | AH51: (300.7) | AI51: (308.9) | AJ51: (317.4) | AK51: (326.1) | AL51: (335.1) | AM51: (344.4) | AN51: (353.5) | AO51: (362.7) | AP51: (372.3) | AQ51: (382.1) | AR51: (392.1) | AS51: (402.4) | AT51: (412.9) | AU51: (423.7) | AV51: (434.9) | AW51: (446.3) | AX51: (457.1) | AY51: (468.0) | AZ51: (479.2) | BA51: (490.8) | BB51: (502.6) | BC51: (514.7) | BD51: (527.1) | BE51: (539.8) | BF51: (552.8) | BG51: (566.2) | BH51: (579.9) | BI51: (593.9) | BJ51: (608.3) | BK51: (623.1) | BL51: (638.2) | BM51: (653.7) | BN51: (669.7) | BO51: (686.0) | BP51: (702.7) | BQ51: (719.8) | BR51: (737.5) | BS51: (755.5) | BT51: (774.0) | BU51: (793.0) | BV51: (812.4) | BW51: (832.4) | BX51: (852.8) | BY51: (873.8) | BZ51: (895.4) | CA51: (917.5) | CB51: (940.1) | CC51: (963.4) | CD51: =+CD47-CD49 -> (987.2) | CE51: (1,011.6) | CF51: (1,036.7) | CG51: (1,062.5) | CH51: (1,088.9) | CI51: (1,115.9) | CJ51: (1,143.7) | CK51: (1,172.2) | CL51: (1,201.5) | CM51: (1,231.5) | CN51: (1,262.2) | CO51: (1,293.8) | CP51: (1,326.3) | CQ51: (1,359.5) | CR51: (1,393.6)
B53: Capex
B55: Sensitivity | H55: =+Inputs!L104 -> 100% | K55: %
B57: Real CAPEX | K57: MCAD | M57: =SUM(O57:GJ57) -> (5,222) | P57: =+IF(P$7<>O$7,INDEX(Inputs!$L$83:$L$99,P$7,1),O57*(1+P58)) -> (151.8) | Q57: =+IF(Q$7<>P$7,INDEX(Inputs!$L$83:$L$99,Q$7,1),P57*(1+Q58)) -> (116.5) | R57: =+IF(R$7<>Q$7,INDEX(Inputs!$L$83:$L$99,R$7,1),Q57*(1+R58)) -> (89.5) | S57: =+IF(S$7<>R$7,INDEX(Inputs!$L$83:$L$99,S$7,1),R57*(1+S58)) -> (68.7) | T57: =+IF(T$7<>S$7,INDEX(Inputs!$L$83:$L$99,T$7,1),S57*(1+T58)) -> (70.7) | U57: =+IF(U$7<>T$7,INDEX(Inputs!$L$83:$L$99,U$7,1),T57*(1+U58)) -> (72.7) | V57: =+IF(V$7<>U$7,INDEX(Inputs!$L$83:$L$99,V$7,1),U57*(1+V58)) -> (74.8) | W57: =+IF(W$7<>V$7,INDEX(Inputs!$L$83:$L$99,W$7,1),V57*(1+W58)) -> (77.0) | X57: =+IF(X$7<>W$7,INDEX(Inputs!$L$83:$L$99,X$7,1),W57*(1+X58)) -> (79.2) | Y57: =+IF(Y$7<>X$7,INDEX(Inputs!$L$83:$L$99,Y$7,1),X57*(1+Y58)) -> (75.5) | Z57: =+IF(Z$7<>Y$7,INDEX(Inputs!$L$83:$L$99,Z$7,1),Y57*(1+Z58)) -> (72.0) | AA57: =+IF(AA$7<>Z$7,INDEX(Inputs!$L$83:$L$99,AA$7,1),Z57*(1+AA58)) -> (68.6) | AB57: =+IF(AB$7<>AA$7,INDEX(Inputs!$L$83:$L$99,AB$7,1),AA57*(1+AB58)) -> (65.4) | AC57: =+IF(AC$7<>AB$7,INDEX(Inputs!$L$83:$L$99,AC$7,1),AB57*(1+AC58)) -> (62.4) | AD57: =+IF(AD$7<>AC$7,INDEX(Inputs!$L$83:$L$99,AD$7,1),AC57*(1+AD58)) -> (62.0) | AE57: =+IF(AE$7<>AD$7,INDEX(Inputs!$L$83:$L$99,AE$7,1),AD57*(1+AE58)) -> (61.6) | AF57: =+IF(AF$7<>AE$7,INDEX(Inputs!$L$83:$L$99,AF$7,1),AE57*(1+AF58)) -> (61.2) | AG57: =+IF(AG$7<>AF$7,INDEX(Inputs!$L$83:$L$99,AG$7,1),AF57*(1+AG58)) -> (60.8) | AH57: =+IF(AH$7<>AG$7,INDEX(Inputs!$L$83:$L$99,AH$7,1),AG57*(1+AH58)) -> (60.4) | AI57: =+IF(AI$7<>AH$7,INDEX(Inputs!$L$83:$L$99,AI$7,1),AH57*(1+AI58)) -> (61.5) | AJ57: =+IF(AJ$7<>AI$7,INDEX(Inputs!$L$83:$L$99,AJ$7,1),AI57*(1+AJ58)) -> (62.6) | AK57: =+IF(AK$7<>AJ$7,INDEX(Inputs!$L$83:$L$99,AK$7,1),AJ57*(1+AK58)) -> (63.7) | AL57: =+IF(AL$7<>AK$7,INDEX(Inputs!$L$83:$L$99,AL$7,1),AK57*(1+AL58)) -> (64.8) | AM57: =+IF(AM$7<>AL$7,INDEX(Inputs!$L$83:$L$99,AM$7,1),AL57*(1+AM58)) -> (66.0) | AN57: =+IF(AN$7<>AM$7,INDEX(Inputs!$L$83:$L$99,AN$7,1),AM57*(1+AN58)) -> (64.8) | AO57: =+IF(AO$7<>AN$7,INDEX(Inputs!$L$83:$L$99,AO$7,1),AN57*(1+AO58)) -> (63.7) | AP57: =+IF(AP$7<>AO$7,INDEX(Inputs!$L$83:$L$99,AP$7,1),AO57*(1+AP58)) -> (62.6) | AQ57: =+IF(AQ$7<>AP$7,INDEX(Inputs!$L$83:$L$99,AQ$7,1),AP57*(1+AQ58)) -> (61.5) | AR57: =+IF(AR$7<>AQ$7,INDEX(Inputs!$L$83:$L$99,AR$7,1),AQ57*(1+AR58)) -> (60.4) | AS57: =+IF(AS$7<>AR$7,INDEX(Inputs!$L$83:$L$99,AS$7,1),AR57*(1+AS58)) -> (60.4) | AT57: =+IF(AT$7<>AS$7,INDEX(Inputs!$L$83:$L$99,AT$7,1),AS57*(1+AT58)) -> (60.4) | AU57: =+IF(AU$7<>AT$7,INDEX(Inputs!$L$83:$L$99,AU$7,1),AT57*(1+AU58)) -> (60.4) | AV57: =+IF(AV$7<>AU$7,INDEX(Inputs!$L$83:$L$99,AV$7,1),AU57*(1+AV58)) -> (60.4) | AW57: =+IF(AW$7<>AV$7,INDEX(Inputs!$L$83:$L$99,AW$7,1),AV57*(1+AW58)) -> (60.4) | AX57: =+IF(AX$7<>AW$7,INDEX(Inputs!$L$83:$L$99,AX$7,1),AW57*(1+AX58)) -> (60.4) | AY57: =+IF(AY$7<>AX$7,INDEX(Inputs!$L$83:$L$99,AY$7,1),AX57*(1+AY58)) -> (60.4) | AZ57: =+IF(AZ$7<>AY$7,INDEX(Inputs!$L$83:$L$99,AZ$7,1),AY57*(1+AZ58)) -> (60.4) | BA57: =+IF(BA$7<>AZ$7,INDEX(Inputs!$L$83:$L$99,BA$7,1),AZ57*(1+BA58)) -> (60.4) | BB57: =+IF(BB$7<>BA$7,INDEX(Inputs!$L$83:$L$99,BB$7,1),BA57*(1+BB58)) -> (60.4) | BC57: =+IF(BC$7<>BB$7,INDEX(Inputs!$L$83:$L$99,BC$7,1),BB57*(1+BC58)) -> (60.4) | BD57: =+IF(BD$7<>BC$7,INDEX(Inputs!$L$83:$L$99,BD$7,1),BC57*(1+BD58)) -> (60.4) | BE57: =+IF(BE$7<>BD$7,INDEX(Inputs!$L$83:$L$99,BE$7,1),BD57*(1+BE58)) -> (60.4) | BF57: =+IF(BF$7<>BE$7,INDEX(Inputs!$L$83:$L$99,BF$7,1),BE57*(1+BF58)) -> (60.4) | BG57: =+IF(BG$7<>BF$7,INDEX(Inputs!$L$83:$L$99,BG$7,1),BF57*(1+BG58)) -> (60.4) | BH57: =+IF(BH$7<>BG$7,INDEX(Inputs!$L$83:$L$99,BH$7,1),BG57*(1+BH58)) -> (60.4) | BI57: =+IF(BI$7<>BH$7,INDEX(Inputs!$L$83:$L$99,BI$7,1),BH57*(1+BI58)) -> (60.4) | BJ57: =+IF(BJ$7<>BI$7,INDEX(Inputs!$L$83:$L$99,BJ$7,1),BI57*(1+BJ58)) -> (60.4) | BK57: =+IF(BK$7<>BJ$7,INDEX(Inputs!$L$83:$L$99,BK$7,1),BJ57*(1+BK58)) -> (60.4) | BL57: =+IF(BL$7<>BK$7,INDEX(Inputs!$L$83:$L$99,BL$7,1),BK57*(1+BL58)) -> (60.4) | BM57: =+IF(BM$7<>BL$7,INDEX(Inputs!$L$83:$L$99,BM$7,1),BL57*(1+BM58)) -> (60.4) | BN57: =+IF(BN$7<>BM$7,INDEX(Inputs!$L$83:$L$99,BN$7,1),BM57*(1+BN58)) -> (60.4) | BO57: =+IF(BO$7<>BN$7,INDEX(Inputs!$L$83:$L$99,BO$7,1),BN57*(1+BO58)) -> (60.4) | BP57: =+IF(BP$7<>BO$7,INDEX(Inputs!$L$83:$L$99,BP$7,1),BO57*(1+BP58)) -> (60.4) | BQ57: =+IF(BQ$7<>BP$7,INDEX(Inputs!$L$83:$L$99,BQ$7,1),BP57*(1+BQ58)) -> (60.4) | BR57: =+IF(BR$7<>BQ$7,INDEX(Inputs!$L$83:$L$99,BR$7,1),BQ57*(1+BR58)) -> (60.4) | BS57: =+IF(BS$7<>BR$7,INDEX(Inputs!$L$83:$L$99,BS$7,1),BR57*(1+BS58)) -> (60.4) | BT57: =+IF(BT$7<>BS$7,INDEX(Inputs!$L$83:$L$99,BT$7,1),BS57*(1+BT58)) -> (60.4) | BU57: =+IF(BU$7<>BT$7,INDEX(Inputs!$L$83:$L$99,BU$7,1),BT57*(1+BU58)) -> (60.4) | BV57: =+IF(BV$7<>BU$7,INDEX(Inputs!$L$83:$L$99,BV$7,1),BU57*(1+BV58)) -> (60.4) | BW57: =+IF(BW$7<>BV$7,INDEX(Inputs!$L$83:$L$99,BW$7,1),BV57*(1+BW58)) -> (60.4) | BX57: =+IF(BX$7<>BW$7,INDEX(Inputs!$L$83:$L$99,BX$7,1),BW57*(1+BX58)) -> (60.4) | BY57: =+IF(BY$7<>BX$7,INDEX(Inputs!$L$83:$L$99,BY$7,1),BX57*(1+BY58)) -> (60.4) | BZ57: =+IF(BZ$7<>BY$7,INDEX(Inputs!$L$83:$L$99,BZ$7,1),BY57*(1+BZ58)) -> (60.4) | CA57: =+IF(CA$7<>BZ$7,INDEX(Inputs!$L$83:$L$99,CA$7,1),BZ57*(1+CA58)) -> (60.4) | CB57: =+IF(CB$7<>CA$7,INDEX(Inputs!$L$83:$L$99,CB$7,1),CA57*(1+CB58)) -> (60.4) | CC57: =+IF(CC$7<>CB$7,INDEX(Inputs!$L$83:$L$99,CC$7,1),CB57*(1+CC58)) -> (60.4) | CD57: =+IF(CD$7<>CC$7,INDEX(Inputs!$L$83:$L$99,CD$7,1),CC57*(1+CD58)) -> (60.4) | CE57: =+IF(CE$7<>CD$7,INDEX(Inputs!$L$83:$L$99,CE$7,1),CD57*(1+CE58)) -> (60.4) | CF57: =+IF(CF$7<>CE$7,INDEX(Inputs!$L$83:$L$99,CF$7,1),CE57*(1+CF58)) -> (60.4) | CG57: =+IF(CG$7<>CF$7,INDEX(Inputs!$L$83:$L$99,CG$7,1),CF57*(1+CG58)) -> (60.4) | CH57: =+IF(CH$7<>CG$7,INDEX(Inputs!$L$83:$L$99,CH$7,1),CG57*(1+CH58)) -> (60.4) | CI57: =+IF(CI$7<>CH$7,INDEX(Inputs!$L$83:$L$99,CI$7,1),CH57*(1+CI58)) -> (60.4) | CJ57: =+IF(CJ$7<>CI$7,INDEX(Inputs!$L$83:$L$99,CJ$7,1),CI57*(1+CJ58)) -> (60.4) | CK57: =+IF(CK$7<>CJ$7,INDEX(Inputs!$L$83:$L$99,CK$7,1),CJ57*(1+CK58)) -> (60.4) | CL57: =+IF(CL$7<>CK$7,INDEX(Inputs!$L$83:$L$99,CL$7,1),CK57*(1+CL58)) -> (60.4) | CM57: =+IF(CM$7<>CL$7,INDEX(Inputs!$L$83:$L$99,CM$7,1),CL57*(1+CM58)) -> (60.4) | CN57: =+IF(CN$7<>CM$7,INDEX(Inputs!$L$83:$L$99,CN$7,1),CM57*(1+CN58)) -> (60.4) | CO57: =+IF(CO$7<>CN$7,INDEX(Inputs!$L$83:$L$99,CO$7,1),CN57*(1+CO58)) -> (60.4) | CP57: =+IF(CP$7<>CO$7,INDEX(Inputs!$L$83:$L$99,CP$7,1),CO57*(1+CP58)) -> (60.4) | CQ57: =+IF(CQ$7<>CP$7,INDEX(Inputs!$L$83:$L$99,CQ$7,1),CP57*(1+CQ58)) -> (60.4) | CR57: =+IF(CR$7<>CQ$7,INDEX(Inputs!$L$83:$L$99,CR$7,1),CQ57*(1+CR58)) -> (60.4)
B58: Growth | Q58: =+POWER(INDEX(Inputs!$L$83:$L$99,P$7+1,1)/INDEX(Inputs!$L$83:$L$99,P$7,1),1/(INDEX(Inputs!$B$83:$B$99,P$7+1,1)-INDEX(Inputs!$B$83:$B$99,P$7,1)))-1 -> -23.2% | R58: =+POWER(INDEX(Inputs!$L$83:$L$99,Q$7+1,1)/INDEX(Inputs!$L$83:$L$99,Q$7,1),1/(INDEX(Inputs!$B$83:$B$99,Q$7+1,1)-INDEX(Inputs!$B$83:$B$99,Q$7,1)))-1 -> -23.2% | S58: =+POWER(INDEX(Inputs!$L$83:$L$99,R$7+1,1)/INDEX(Inputs!$L$83:$L$99,R$7,1),1/(INDEX(Inputs!$B$83:$B$99,R$7+1,1)-INDEX(Inputs!$B$83:$B$99,R$7,1)))-1 -> -23.2% | T58: =+POWER(INDEX(Inputs!$L$83:$L$99,S$7+1,1)/INDEX(Inputs!$L$83:$L$99,S$7,1),1/(INDEX(Inputs!$B$83:$B$99,S$7+1,1)-INDEX(Inputs!$B$83:$B$99,S$7,1)))-1 -> 2.9% | U58: =+POWER(INDEX(Inputs!$L$83:$L$99,T$7+1,1)/INDEX(Inputs!$L$83:$L$99,T$7,1),1/(INDEX(Inputs!$B$83:$B$99,T$7+1,1)-INDEX(Inputs!$B$83:$B$99,T$7,1)))-1 -> 2.9% | V58: =+POWER(INDEX(Inputs!$L$83:$L$99,U$7+1,1)/INDEX(Inputs!$L$83:$L$99,U$7,1),1/(INDEX(Inputs!$B$83:$B$99,U$7+1,1)-INDEX(Inputs!$B$83:$B$99,U$7,1)))-1 -> 2.9% | W58: =+POWER(INDEX(Inputs!$L$83:$L$99,V$7+1,1)/INDEX(Inputs!$L$83:$L$99,V$7,1),1/(INDEX(Inputs!$B$83:$B$99,V$7+1,1)-INDEX(Inputs!$B$83:$B$99,V$7,1)))-1 -> 2.9% | X58: =+POWER(INDEX(Inputs!$L$83:$L$99,W$7+1,1)/INDEX(Inputs!$L$83:$L$99,W$7,1),1/(INDEX(Inputs!$B$83:$B$99,W$7+1,1)-INDEX(Inputs!$B$83:$B$99,W$7,1)))-1 -> 2.9% | Y58: =+POWER(INDEX(Inputs!$L$83:$L$99,X$7+1,1)/INDEX(Inputs!$L$83:$L$99,X$7,1),1/(INDEX(Inputs!$B$83:$B$99,X$7+1,1)-INDEX(Inputs!$B$83:$B$99,X$7,1)))-1 -> -4.7% | Z58: =+POWER(INDEX(Inputs!$L$83:$L$99,Y$7+1,1)/INDEX(Inputs!$L$83:$L$99,Y$7,1),1/(INDEX(Inputs!$B$83:$B$99,Y$7+1,1)-INDEX(Inputs!$B$83:$B$99,Y$7,1)))-1 -> -4.7% | AA58: =+POWER(INDEX(Inputs!$L$83:$L$99,Z$7+1,1)/INDEX(Inputs!$L$83:$L$99,Z$7,1),1/(INDEX(Inputs!$B$83:$B$99,Z$7+1,1)-INDEX(Inputs!$B$83:$B$99,Z$7,1)))-1 -> -4.7% | AB58: =+POWER(INDEX(Inputs!$L$83:$L$99,AA$7+1,1)/INDEX(Inputs!$L$83:$L$99,AA$7,1),1/(INDEX(Inputs!$B$83:$B$99,AA$7+1,1)-INDEX(Inputs!$B$83:$B$99,AA$7,1)))-1 -> -4.7% | AC58: =+POWER(INDEX(Inputs!$L$83:$L$99,AB$7+1,1)/INDEX(Inputs!$L$83:$L$99,AB$7,1),1/(INDEX(Inputs!$B$83:$B$99,AB$7+1,1)-INDEX(Inputs!$B$83:$B$99,AB$7,1)))-1 -> -4.7% | AD58: =+POWER(INDEX(Inputs!$L$83:$L$99,AC$7+1,1)/INDEX(Inputs!$L$83:$L$99,AC$7,1),1/(INDEX(Inputs!$B$83:$B$99,AC$7+1,1)-INDEX(Inputs!$B$83:$B$99,AC$7,1)))-1 -> -0.6% | AE58: =+POWER(INDEX(Inputs!$L$83:$L$99,AD$7+1,1)/INDEX(Inputs!$L$83:$L$99,AD$7,1),1/(INDEX(Inputs!$B$83:$B$99,AD$7+1,1)-INDEX(Inputs!$B$83:$B$99,AD$7,1)))-1 -> -0.6% | AF58: =+POWER(INDEX(Inputs!$L$83:$L$99,AE$7+1,1)/INDEX(Inputs!$L$83:$L$99,AE$7,1),1/(INDEX(Inputs!$B$83:$B$99,AE$7+1,1)-INDEX(Inputs!$B$83:$B$99,AE$7,1)))-1 -> -0.6% | AG58: =+POWER(INDEX(Inputs!$L$83:$L$99,AF$7+1,1)/INDEX(Inputs!$L$83:$L$99,AF$7,1),1/(INDEX(Inputs!$B$83:$B$99,AF$7+1,1)-INDEX(Inputs!$B$83:$B$99,AF$7,1)))-1 -> -0.6% | AH58: =+POWER(INDEX(Inputs!$L$83:$L$99,AG$7+1,1)/INDEX(Inputs!$L$83:$L$99,AG$7,1),1/(INDEX(Inputs!$B$83:$B$99,AG$7+1,1)-INDEX(Inputs!$B$83:$B$99,AG$7,1)))-1 -> -0.6% | AI58: =+POWER(INDEX(Inputs!$L$83:$L$99,AH$7+1,1)/INDEX(Inputs!$L$83:$L$99,AH$7,1),1/(INDEX(Inputs!$B$83:$B$99,AH$7+1,1)-INDEX(Inputs!$B$83:$B$99,AH$7,1)))-1 -> 1.8% | AJ58: =+POWER(INDEX(Inputs!$L$83:$L$99,AI$7+1,1)/INDEX(Inputs!$L$83:$L$99,AI$7,1),1/(INDEX(Inputs!$B$83:$B$99,AI$7+1,1)-INDEX(Inputs!$B$83:$B$99,AI$7,1)))-1 -> 1.8% | AK58: =+POWER(INDEX(Inputs!$L$83:$L$99,AJ$7+1,1)/INDEX(Inputs!$L$83:$L$99,AJ$7,1),1/(INDEX(Inputs!$B$83:$B$99,AJ$7+1,1)-INDEX(Inputs!$B$83:$B$99,AJ$7,1)))-1 -> 1.8% | AL58: =+POWER(INDEX(Inputs!$L$83:$L$99,AK$7+1,1)/INDEX(Inputs!$L$83:$L$99,AK$7,1),1/(INDEX(Inputs!$B$83:$B$99,AK$7+1,1)-INDEX(Inputs!$B$83:$B$99,AK$7,1)))-1 -> 1.8% | AM58: =+POWER(INDEX(Inputs!$L$83:$L$99,AL$7+1,1)/INDEX(Inputs!$L$83:$L$99,AL$7,1),1/(INDEX(Inputs!$B$83:$B$99,AL$7+1,1)-INDEX(Inputs!$B$83:$B$99,AL$7,1)))-1 -> 1.8% | AN58: =+POWER(INDEX(Inputs!$L$83:$L$99,AM$7+1,1)/INDEX(Inputs!$L$83:$L$99,AM$7,1),1/(INDEX(Inputs!$B$83:$B$99,AM$7+1,1)-INDEX(Inputs!$B$83:$B$99,AM$7,1)))-1 -> -1.8% | AO58: =+POWER(INDEX(Inputs!$L$83:$L$99,AN$7+1,1)/INDEX(Inputs!$L$83:$L$99,AN$7,1),1/(INDEX(Inputs!$B$83:$B$99,AN$7+1,1)-INDEX(Inputs!$B$83:$B$99,AN$7,1)))-1 -> -1.8% | AP58: =+POWER(INDEX(Inputs!$L$83:$L$99,AO$7+1,1)/INDEX(Inputs!$L$83:$L$99,AO$7,1),1/(INDEX(Inputs!$B$83:$B$99,AO$7+1,1)-INDEX(Inputs!$B$83:$B$99,AO$7,1)))-1 -> -1.8% | AQ58: =+POWER(INDEX(Inputs!$L$83:$L$99,AP$7+1,1)/INDEX(Inputs!$L$83:$L$99,AP$7,1),1/(INDEX(Inputs!$B$83:$B$99,AP$7+1,1)-INDEX(Inputs!$B$83:$B$99,AP$7,1)))-1 -> -1.8% | AR58: =+POWER(INDEX(Inputs!$L$83:$L$99,AQ$7+1,1)/INDEX(Inputs!$L$83:$L$99,AQ$7,1),1/(INDEX(Inputs!$B$83:$B$99,AQ$7+1,1)-INDEX(Inputs!$B$83:$B$99,AQ$7,1)))-1 -> -1.8% | AS58: =+POWER(INDEX(Inputs!$L$83:$L$99,AR$7+1,1)/INDEX(Inputs!$L$83:$L$99,AR$7,1),1/(INDEX(Inputs!$B$83:$B$99,AR$7+1,1)-INDEX(Inputs!$B$83:$B$99,AR$7,1)))-1 -> 0.0% | AT58: =+POWER(INDEX(Inputs!$L$83:$L$99,AS$7+1,1)/INDEX(Inputs!$L$83:$L$99,AS$7,1),1/(INDEX(Inputs!$B$83:$B$99,AS$7+1,1)-INDEX(Inputs!$B$83:$B$99,AS$7,1)))-1 -> 0.0% | AU58: =+POWER(INDEX(Inputs!$L$83:$L$99,AT$7+1,1)/INDEX(Inputs!$L$83:$L$99,AT$7,1),1/(INDEX(Inputs!$B$83:$B$99,AT$7+1,1)-INDEX(Inputs!$B$83:$B$99,AT$7,1)))-1 -> 0.0% | AV58: =+POWER(INDEX(Inputs!$L$83:$L$99,AU$7+1,1)/INDEX(Inputs!$L$83:$L$99,AU$7,1),1/(INDEX(Inputs!$B$83:$B$99,AU$7+1,1)-INDEX(Inputs!$B$83:$B$99,AU$7,1)))-1 -> 0.0% | AW58: =+POWER(INDEX(Inputs!$L$83:$L$99,AV$7+1,1)/INDEX(Inputs!$L$83:$L$99,AV$7,1),1/(INDEX(Inputs!$B$83:$B$99,AV$7+1,1)-INDEX(Inputs!$B$83:$B$99,AV$7,1)))-1 -> 0.0% | AX58: =+POWER(INDEX(Inputs!$L$83:$L$99,AW$7+1,1)/INDEX(Inputs!$L$83:$L$99,AW$7,1),1/(INDEX(Inputs!$B$83:$B$99,AW$7+1,1)-INDEX(Inputs!$B$83:$B$99,AW$7,1)))-1 -> 0.0% | AY58: =+POWER(INDEX(Inputs!$L$83:$L$99,AX$7+1,1)/INDEX(Inputs!$L$83:$L$99,AX$7,1),1/(INDEX(Inputs!$B$83:$B$99,AX$7+1,1)-INDEX(Inputs!$B$83:$B$99,AX$7,1)))-1 -> 0.0% | AZ58: =+POWER(INDEX(Inputs!$L$83:$L$99,AY$7+1,1)/INDEX(Inputs!$L$83:$L$99,AY$7,1),1/(INDEX(Inputs!$B$83:$B$99,AY$7+1,1)-INDEX(Inputs!$B$83:$B$99,AY$7,1)))-1 -> 0.0% | BA58: =+POWER(INDEX(Inputs!$L$83:$L$99,AZ$7+1,1)/INDEX(Inputs!$L$83:$L$99,AZ$7,1),1/(INDEX(Inputs!$B$83:$B$99,AZ$7+1,1)-INDEX(Inputs!$B$83:$B$99,AZ$7,1)))-1 -> 0.0% | BB58: =+POWER(INDEX(Inputs!$L$83:$L$99,BA$7+1,1)/INDEX(Inputs!$L$83:$L$99,BA$7,1),1/(INDEX(Inputs!$B$83:$B$99,BA$7+1,1)-INDEX(Inputs!$B$83:$B$99,BA$7,1)))-1 -> 0.0% | BC58: =+POWER(INDEX(Inputs!$L$83:$L$99,BB$7+1,1)/INDEX(Inputs!$L$83:$L$99,BB$7,1),1/(INDEX(Inputs!$B$83:$B$99,BB$7+1,1)-INDEX(Inputs!$B$83:$B$99,BB$7,1)))-1 -> 0.0% | BD58: =+POWER(INDEX(Inputs!$L$83:$L$99,BC$7+1,1)/INDEX(Inputs!$L$83:$L$99,BC$7,1),1/(INDEX(Inputs!$B$83:$B$99,BC$7+1,1)-INDEX(Inputs!$B$83:$B$99,BC$7,1)))-1 -> 0.0% | BE58: =+POWER(INDEX(Inputs!$L$83:$L$99,BD$7+1,1)/INDEX(Inputs!$L$83:$L$99,BD$7,1),1/(INDEX(Inputs!$B$83:$B$99,BD$7+1,1)-INDEX(Inputs!$B$83:$B$99,BD$7,1)))-1 -> 0.0% | BF58: =+POWER(INDEX(Inputs!$L$83:$L$99,BE$7+1,1)/INDEX(Inputs!$L$83:$L$99,BE$7,1),1/(INDEX(Inputs!$B$83:$B$99,BE$7+1,1)-INDEX(Inputs!$B$83:$B$99,BE$7,1)))-1 -> 0.0% | BG58: =+POWER(INDEX(Inputs!$L$83:$L$99,BF$7+1,1)/INDEX(Inputs!$L$83:$L$99,BF$7,1),1/(INDEX(Inputs!$B$83:$B$99,BF$7+1,1)-INDEX(Inputs!$B$83:$B$99,BF$7,1)))-1 -> 0.0% | BH58: =+POWER(INDEX(Inputs!$L$83:$L$99,BG$7+1,1)/INDEX(Inputs!$L$83:$L$99,BG$7,1),1/(INDEX(Inputs!$B$83:$B$99,BG$7+1,1)-INDEX(Inputs!$B$83:$B$99,BG$7,1)))-1 -> 0.0% | BI58: =+POWER(INDEX(Inputs!$L$83:$L$99,BH$7+1,1)/INDEX(Inputs!$L$83:$L$99,BH$7,1),1/(INDEX(Inputs!$B$83:$B$99,BH$7+1,1)-INDEX(Inputs!$B$83:$B$99,BH$7,1)))-1 -> 0.0% | BJ58: =+POWER(INDEX(Inputs!$L$83:$L$99,BI$7+1,1)/INDEX(Inputs!$L$83:$L$99,BI$7,1),1/(INDEX(Inputs!$B$83:$B$99,BI$7+1,1)-INDEX(Inputs!$B$83:$B$99,BI$7,1)))-1 -> 0.0% | BK58: =+POWER(INDEX(Inputs!$L$83:$L$99,BJ$7+1,1)/INDEX(Inputs!$L$83:$L$99,BJ$7,1),1/(INDEX(Inputs!$B$83:$B$99,BJ$7+1,1)-INDEX(Inputs!$B$83:$B$99,BJ$7,1)))-1 -> 0.0% | BL58: =+POWER(INDEX(Inputs!$L$83:$L$99,BK$7+1,1)/INDEX(Inputs!$L$83:$L$99,BK$7,1),1/(INDEX(Inputs!$B$83:$B$99,BK$7+1,1)-INDEX(Inputs!$B$83:$B$99,BK$7,1)))-1 -> 0.0% | BM58: =+POWER(INDEX(Inputs!$L$83:$L$99,BL$7+1,1)/INDEX(Inputs!$L$83:$L$99,BL$7,1),1/(INDEX(Inputs!$B$83:$B$99,BL$7+1,1)-INDEX(Inputs!$B$83:$B$99,BL$7,1)))-1 -> 0.0% | BN58: =+POWER(INDEX(Inputs!$L$83:$L$99,BM$7+1,1)/INDEX(Inputs!$L$83:$L$99,BM$7,1),1/(INDEX(Inputs!$B$83:$B$99,BM$7+1,1)-INDEX(Inputs!$B$83:$B$99,BM$7,1)))-1 -> 0.0% | BO58: =+POWER(INDEX(Inputs!$L$83:$L$99,BN$7+1,1)/INDEX(Inputs!$L$83:$L$99,BN$7,1),1/(INDEX(Inputs!$B$83:$B$99,BN$7+1,1)-INDEX(Inputs!$B$83:$B$99,BN$7,1)))-1 -> 0.0% | BP58: =+POWER(INDEX(Inputs!$L$83:$L$99,BO$7+1,1)/INDEX(Inputs!$L$83:$L$99,BO$7,1),1/(INDEX(Inputs!$B$83:$B$99,BO$7+1,1)-INDEX(Inputs!$B$83:$B$99,BO$7,1)))-1 -> 0.0% | BQ58: =+POWER(INDEX(Inputs!$L$83:$L$99,BP$7+1,1)/INDEX(Inputs!$L$83:$L$99,BP$7,1),1/(INDEX(Inputs!$B$83:$B$99,BP$7+1,1)-INDEX(Inputs!$B$83:$B$99,BP$7,1)))-1 -> 0.0% | BR58: =+POWER(INDEX(Inputs!$L$83:$L$99,BQ$7+1,1)/INDEX(Inputs!$L$83:$L$99,BQ$7,1),1/(INDEX(Inputs!$B$83:$B$99,BQ$7+1,1)-INDEX(Inputs!$B$83:$B$99,BQ$7,1)))-1 -> 0.0% | BS58: =+POWER(INDEX(Inputs!$L$83:$L$99,BR$7+1,1)/INDEX(Inputs!$L$83:$L$99,BR$7,1),1/(INDEX(Inputs!$B$83:$B$99,BR$7+1,1)-INDEX(Inputs!$B$83:$B$99,BR$7,1)))-1 -> 0.0% | BT58: =+POWER(INDEX(Inputs!$L$83:$L$99,BS$7+1,1)/INDEX(Inputs!$L$83:$L$99,BS$7,1),1/(INDEX(Inputs!$B$83:$B$99,BS$7+1,1)-INDEX(Inputs!$B$83:$B$99,BS$7,1)))-1 -> 0.0% | BU58: =+POWER(INDEX(Inputs!$L$83:$L$99,BT$7+1,1)/INDEX(Inputs!$L$83:$L$99,BT$7,1),1/(INDEX(Inputs!$B$83:$B$99,BT$7+1,1)-INDEX(Inputs!$B$83:$B$99,BT$7,1)))-1 -> 0.0% | BV58: =+POWER(INDEX(Inputs!$L$83:$L$99,BU$7+1,1)/INDEX(Inputs!$L$83:$L$99,BU$7,1),1/(INDEX(Inputs!$B$83:$B$99,BU$7+1,1)-INDEX(Inputs!$B$83:$B$99,BU$7,1)))-1 -> 0.0% | BW58: =+POWER(INDEX(Inputs!$L$83:$L$99,BV$7+1,1)/INDEX(Inputs!$L$83:$L$99,BV$7,1),1/(INDEX(Inputs!$B$83:$B$99,BV$7+1,1)-INDEX(Inputs!$B$83:$B$99,BV$7,1)))-1 -> 0.0% | BX58: =+POWER(INDEX(Inputs!$L$83:$L$99,BW$7+1,1)/INDEX(Inputs!$L$83:$L$99,BW$7,1),1/(INDEX(Inputs!$B$83:$B$99,BW$7+1,1)-INDEX(Inputs!$B$83:$B$99,BW$7,1)))-1 -> 0.0% | BY58: =+POWER(INDEX(Inputs!$L$83:$L$99,BX$7+1,1)/INDEX(Inputs!$L$83:$L$99,BX$7,1),1/(INDEX(Inputs!$B$83:$B$99,BX$7+1,1)-INDEX(Inputs!$B$83:$B$99,BX$7,1)))-1 -> 0.0% | BZ58: =+POWER(INDEX(Inputs!$L$83:$L$99,BY$7+1,1)/INDEX(Inputs!$L$83:$L$99,BY$7,1),1/(INDEX(Inputs!$B$83:$B$99,BY$7+1,1)-INDEX(Inputs!$B$83:$B$99,BY$7,1)))-1 -> 0.0% | CA58: =+POWER(INDEX(Inputs!$L$83:$L$99,BZ$7+1,1)/INDEX(Inputs!$L$83:$L$99,BZ$7,1),1/(INDEX(Inputs!$B$83:$B$99,BZ$7+1,1)-INDEX(Inputs!$B$83:$B$99,BZ$7,1)))-1 -> 0.0% | CB58: =+POWER(INDEX(Inputs!$L$83:$L$99,CA$7+1,1)/INDEX(Inputs!$L$83:$L$99,CA$7,1),1/(INDEX(Inputs!$B$83:$B$99,CA$7+1,1)-INDEX(Inputs!$B$83:$B$99,CA$7,1)))-1 -> 0.0% | CC58: =+POWER(INDEX(Inputs!$L$83:$L$99,CB$7+1,1)/INDEX(Inputs!$L$83:$L$99,CB$7,1),1/(INDEX(Inputs!$B$83:$B$99,CB$7+1,1)-INDEX(Inputs!$B$83:$B$99,CB$7,1)))-1 -> 0.0% | CD58: =+POWER(INDEX(Inputs!$L$83:$L$99,CC$7+1,1)/INDEX(Inputs!$L$83:$L$99,CC$7,1),1/(INDEX(Inputs!$B$83:$B$99,CC$7+1,1)-INDEX(Inputs!$B$83:$B$99,CC$7,1)))-1 -> 0.0% | CE58: =+POWER(INDEX(Inputs!$L$83:$L$99,CD$7+1,1)/INDEX(Inputs!$L$83:$L$99,CD$7,1),1/(INDEX(Inputs!$B$83:$B$99,CD$7+1,1)-INDEX(Inputs!$B$83:$B$99,CD$7,1)))-1 -> 0.0% | CF58: =+POWER(INDEX(Inputs!$L$83:$L$99,CE$7+1,1)/INDEX(Inputs!$L$83:$L$99,CE$7,1),1/(INDEX(Inputs!$B$83:$B$99,CE$7+1,1)-INDEX(Inputs!$B$83:$B$99,CE$7,1)))-1 -> 0.0% | CG58: =+POWER(INDEX(Inputs!$L$83:$L$99,CF$7+1,1)/INDEX(Inputs!$L$83:$L$99,CF$7,1),1/(INDEX(Inputs!$B$83:$B$99,CF$7+1,1)-INDEX(Inputs!$B$83:$B$99,CF$7,1)))-1 -> 0.0% | CH58: =+POWER(INDEX(Inputs!$L$83:$L$99,CG$7+1,1)/INDEX(Inputs!$L$83:$L$99,CG$7,1),1/(INDEX(Inputs!$B$83:$B$99,CG$7+1,1)-INDEX(Inputs!$B$83:$B$99,CG$7,1)))-1 -> 0.0% | CI58: =+POWER(INDEX(Inputs!$L$83:$L$99,CH$7+1,1)/INDEX(Inputs!$L$83:$L$99,CH$7,1),1/(INDEX(Inputs!$B$83:$B$99,CH$7+1,1)-INDEX(Inputs!$B$83:$B$99,CH$7,1)))-1 -> 0.0% | CJ58: =+POWER(INDEX(Inputs!$L$83:$L$99,CI$7+1,1)/INDEX(Inputs!$L$83:$L$99,CI$7,1),1/(INDEX(Inputs!$B$83:$B$99,CI$7+1,1)-INDEX(Inputs!$B$83:$B$99,CI$7,1)))-1 -> 0.0% | CK58: =+POWER(INDEX(Inputs!$L$83:$L$99,CJ$7+1,1)/INDEX(Inputs!$L$83:$L$99,CJ$7,1),1/(INDEX(Inputs!$B$83:$B$99,CJ$7+1,1)-INDEX(Inputs!$B$83:$B$99,CJ$7,1)))-1 -> 0.0% | CL58: =+POWER(INDEX(Inputs!$L$83:$L$99,CK$7+1,1)/INDEX(Inputs!$L$83:$L$99,CK$7,1),1/(INDEX(Inputs!$B$83:$B$99,CK$7+1,1)-INDEX(Inputs!$B$83:$B$99,CK$7,1)))-1 -> 0.0% | CM58: =+POWER(INDEX(Inputs!$L$83:$L$99,CL$7+1,1)/INDEX(Inputs!$L$83:$L$99,CL$7,1),1/(INDEX(Inputs!$B$83:$B$99,CL$7+1,1)-INDEX(Inputs!$B$83:$B$99,CL$7,1)))-1 -> 0.0% | CN58: =+POWER(INDEX(Inputs!$L$83:$L$99,CM$7+1,1)/INDEX(Inputs!$L$83:$L$99,CM$7,1),1/(INDEX(Inputs!$B$83:$B$99,CM$7+1,1)-INDEX(Inputs!$B$83:$B$99,CM$7,1)))-1 -> 0.0% | CO58: =+POWER(INDEX(Inputs!$L$83:$L$99,CN$7+1,1)/INDEX(Inputs!$L$83:$L$99,CN$7,1),1/(INDEX(Inputs!$B$83:$B$99,CN$7+1,1)-INDEX(Inputs!$B$83:$B$99,CN$7,1)))-1 -> 0.0% | CP58: =+POWER(INDEX(Inputs!$L$83:$L$99,CO$7+1,1)/INDEX(Inputs!$L$83:$L$99,CO$7,1),1/(INDEX(Inputs!$B$83:$B$99,CO$7+1,1)-INDEX(Inputs!$B$83:$B$99,CO$7,1)))-1 -> 0.0% | CQ58: =+POWER(INDEX(Inputs!$L$83:$L$99,CP$7+1,1)/INDEX(Inputs!$L$83:$L$99,CP$7,1),1/(INDEX(Inputs!$B$83:$B$99,CP$7+1,1)-INDEX(Inputs!$B$83:$B$99,CP$7,1)))-1 -> 0.0% | CR58: =+POWER(INDEX(Inputs!$L$83:$L$99,CQ$7+1,1)/INDEX(Inputs!$L$83:$L$99,CQ$7,1),1/(INDEX(Inputs!$B$83:$B$99,CQ$7+1,1)-INDEX(Inputs!$B$83:$B$99,CQ$7,1)))-1 -> 0.0%
B59: Nominal CAPEX | K59: MCAD | M59: =+SUM(P59:CS59) -> (12,776) | P59: =P57*P$24*$H$55 -> (156.8) | Q59: =Q57*Q$24*$H$55 -> (122.8) | R59: =R57*R$24*$H$55 -> (96.2) | S59: (75.3) | T59: (79.1) | U59: (83.0) | V59: (87.1) | W59: (91.4) | X59: (95.9) | Y59: (93.3) | Z59: (90.7) | AA59: (88.2) | AB59: (85.7) | AC59: (83.4) | AD59: (84.5) | AE59: (85.6) | AF59: (86.8) | AG59: (87.9) | AH59: (89.1) | AI59: (92.5) | AJ59: (96.1) | AK59: (99.7) | AL59: (103.6) | AM59: (107.5) | AN59: (107.7) | AO59: (108.0) | AP59: (108.2) | AQ59: (108.4) | AR59: (108.6) | AS59: (110.8) | AT59: (113.0) | AU59: (115.3) | AV59: (117.6) | AW59: (119.9) | AX59: (122.3) | AY59: (124.8) | AZ59: (127.3) | BA59: (129.8) | BB59: (132.4) | BC59: (135.0) | BD59: (137.7) | BE59: (140.5) | BF59: (143.3) | BG59: (146.2) | BH59: (149.1) | BI59: (152.1) | BJ59: (155.1) | BK59: (158.2) | BL59: (161.4) | BM59: (164.6) | BN59: (167.9) | BO59: (171.3) | BP59: (174.7) | BQ59: (178.2) | BR59: (181.8) | BS59: (185.4) | BT59: (189.1) | BU59: (192.9) | BV59: (196.7) | BW59: (200.7) | BX59: (204.7) | BY59: (208.8) | BZ59: (213.0) | CA59: (217.2) | CB59: (221.6) | CC59: (226.0) | CD59: =CD57*CD$24*$H$55 -> (230.5) | CE59: (235.1) | CF59: (239.8) | CG59: (244.6) | CH59: (249.5) | CI59: (254.5) | CJ59: (259.6) | CK59: (264.8) | CL59: (270.1) | CM59: (275.5) | CN59: (281.0) | CO59: (286.6) | CP59: (292.3) | CQ59: (298.2) | CR59: (304.2)
B61: Ancillary Calculations
B63: Accounts Receivable - Working Capital
B65: Net Accounts Receivable
B66: Opening Balance | K66: MCAD | P66: =O69 -> 194.1 | Q66: 218.0 | R66: =Q69 -> 230.3 | S66: =R69 -> 241.4 | T66: =S69 -> 252.9 | U66: =T69 -> 267.9 | V66: =U69 -> 284.0 | W66: =V69 -> 301.0 | X66: =W69 -> 319.1 | Y66: =X69 -> 338.2 | Z66: =Y69 -> 356.8 | AA66: =Z69 -> 376.3 | AB66: =AA69 -> 396.8 | AC66: =AB69 -> 418.5 | AD66: =AC69 -> 441.4 | AE66: =AD69 -> 460.0 | AF66: =AE69 -> 479.0 | AG66: =AF69 -> 498.9 | AH66: =AG69 -> 519.5 | AI66: =AH69 -> 541.1 | AJ66: =AI69 -> 562.8 | AK66: =AJ69 -> 585.4 | AL66: =AK69 -> 608.9 | AM66: =AL69 -> 633.4 | AN66: =AM69 -> 658.7 | AO66: =AN69 -> 682.0 | AP66: =AO69 -> 705.9 | AQ66: =AP69 -> 730.6 | AR66: =AQ69 -> 756.2 | AS66: =AR69 -> 782.7 | AT66: =AS69 -> 811.3 | AU66: =AT69 -> 841.0 | AV66: =AU69 -> 871.7 | AW66: =AV69 -> 903.6 | AX66: =AW69 -> 936.6 | AY66: =AX69 -> 965.2 | AZ66: =AY69 -> 994.3 | BA66: =AZ69 -> 1,024.4 | BB66: =BA69 -> 1,055.3 | BC66: =BB69 -> 1,087.2 | BD66: =BC69 -> 1,120.0 | BE66: =BD69 -> 1,153.8 | BF66: =BE69 -> 1,188.7 | BG66: =BF69 -> 1,224.6 | BH66: =BG69 -> 1,261.6 | BI66: =BH69 -> 1,299.6 | BJ66: =BI69 -> 1,338.9 | BK66: =BJ69 -> 1,379.4 | BL66: =BK69 -> 1,421.0 | BM66: =BL69 -> 1,463.9 | BN66: =BM69 -> 1,508.1 | BO66: =BN69 -> 1,553.7 | BP66: =BO69 -> 1,600.6 | BQ66: =BP69 -> 1,648.9 | BR66: =BQ69 -> 1,698.7 | BS66: =BR69 -> 1,750.1 | BT66: =BS69 -> 1,802.9 | BU66: =BT69 -> 1,857.3 | BV66: =BU69 -> 1,913.4 | BW66: =BV69 -> 1,971.3 | BX66: =BW69 -> 2,030.7 | BY66: =BX69 -> 2,092.0 | BZ66: =BY69 -> 2,155.2 | CA66: =BZ69 -> 2,220.4 | CB66: =CA69 -> 2,287.4 | CC66: =CB69 -> 2,356.4 | CD66: =CC69 -> 2,427.6 | CE66: =CD69 -> 2,501.1 | CF66: =CE69 -> 2,576.5 | CG66: =CF69 -> 2,654.3 | CH66: =CG69 -> 2,734.4 | CI66: =CH69 -> 2,817.2 | CJ66: =CI69 -> 2,902.1 | CK66: =CJ69 -> 2,989.7 | CL66: =CK69 -> 3,080.0 | CM66: =CL69 -> 3,173.2 | CN66: =CM69 -> 3,268.8 | CO66: =CN69 -> 3,367.6 | CP66: =CO69 -> 3,469.3 | CQ66: =CP69 -> 3,574.2 | CR66: =CQ69 -> 3,682.0
B67: PDA | K67: MCAD | M67: =SUM(O67:GJ67) -> (21,290) | P67: =-P$49 -> (26.6) | Q67: =-Q$49 -> (42.5) | R67: (44.5) | S67: (46.7) | T67: (49.4) | U67: (52.4) | V67: (55.5) | W67: (58.9) | X67: (62.4) | Y67: (65.8) | Z67: (69.4) | AA67: (73.2) | AB67: (77.2) | AC67: (81.5) | AD67: (84.9) | AE67: (88.4) | AF67: (92.1) | AG67: (95.9) | AH67: (99.9) | AI67: (103.9) | AJ67: (108.0) | AK67: (112.4) | AL67: (116.9) | AM67: (121.6) | AN67: (125.8) | AO67: (130.3) | AP67: (134.8) | AQ67: (139.5) | AR67: (144.4) | AS67: (149.7) | AT67: (155.2) | AU67: (160.9) | AV67: (166.7) | AW67: (172.8) | AX67: (178.1) | AY67: (183.5) | AZ67: (189.0) | BA67: (194.7) | BB67: (200.6) | BC67: (206.7) | BD67: (212.9) | BE67: (219.3) | BF67: (226.0) | BG67: (232.8) | BH67: (239.8) | BI67: (247.1) | BJ67: (254.5) | BK67: (262.2) | BL67: (270.1) | BM67: (278.3) | BN67: (286.7) | BO67: (295.4) | BP67: (304.3) | BQ67: (313.5) | BR67: (323.0) | BS67: (332.7) | BT67: (342.7) | BU67: (353.1) | BV67: (363.8) | BW67: (374.7) | BX67: (386.0) | BY67: (397.7) | BZ67: (409.7) | CA67: (422.1) | CB67: (434.8) | CC67: =-CC$49 -> (448.0) | CD67: (461.5) | CE67: (475.4) | CF67: (489.8) | CG67: (504.6) | CH67: (519.9) | CI67: (535.5) | CJ67: (551.7) | CK67: (568.4) | CL67: (585.6) | CM67: (603.2) | CN67: (621.4) | CO67: (640.2) | CP67: (659.6) | CQ67: (679.4) | CR67: (700.0)
B68: Movement | K68: MCAD | M68: =SUM(O68:GJ68) -> 21,096 | P68: 50.6 | Q68: =(-SUM(Q66:Q67)+P69/P$34*Q$34)*R12-SUM(Q66:Q67)*(1-R12) -> 54.8 | R68: =(-SUM(R66:R67)+Q69/Q$34*R$34)*S12-SUM(R66:R67)*(1-S12) -> 55.6 | S68: =(-SUM(S66:S67)+R69/R$34*S$34)*T12-SUM(S66:S67)*(1-T12) -> 58.2 | T68: =(-SUM(T66:T67)+S69/S$34*T$34)*U12-SUM(T66:T67)*(1-U12) -> 64.5 | U68: =(-SUM(U66:U67)+T69/T$34*U$34)*V12-SUM(U66:U67)*(1-V12) -> 68.5 | V68: =(-SUM(V66:V67)+U69/U$34*V$34)*W12-SUM(V66:V67)*(1-W12) -> 72.6 | W68: =(-SUM(W66:W67)+V69/V$34*W$34)*X12-SUM(W66:W67)*(1-X12) -> 76.9 | X68: =(-SUM(X66:X67)+W69/W$34*X$34)*Y12-SUM(X66:X67)*(1-Y12) -> 81.5 | Y68: =(-SUM(Y66:Y67)+X69/X$34*Y$34)*Z12-SUM(Y66:Y67)*(1-Z12) -> 84.4 | Z68: =(-SUM(Z66:Z67)+Y69/Y$34*Z$34)*AA12-SUM(Z66:Z67)*(1-AA12) -> 89.0 | AA68: =(-SUM(AA66:AA67)+Z69/Z$34*AA$34)*AB12-SUM(AA66:AA67)*(1-AB12) -> 93.8 | AB68: =(-SUM(AB66:AB67)+AA69/AA$34*AB$34)*AC12-SUM(AB66:AB67)*(1-AC12) -> 98.9 | AC68: =(-SUM(AC66:AC67)+AB69/AB$34*AC$34)*AD12-SUM(AC66:AC67)*(1-AD12) -> 104.3 | AD68: =(-SUM(AD66:AD67)+AC69/AC$34*AD$34)*AE12-SUM(AD66:AD67)*(1-AE12) -> 103.4 | AE68: =(-SUM(AE66:AE67)+AD69/AD$34*AE$34)*AF12-SUM(AE66:AE67)*(1-AF12) -> 107.4 | AF68: =(-SUM(AF66:AF67)+AE69/AE$34*AF$34)*AG12-SUM(AF66:AF67)*(1-AG12) -> 111.9 | AG68: =(-SUM(AG66:AG67)+AF69/AF$34*AG$34)*AH12-SUM(AG66:AG67)*(1-AH12) -> 116.5 | AH68: =(-SUM(AH66:AH67)+AG69/AG$34*AH$34)*AI12-SUM(AH66:AH67)*(1-AI12) -> 121.4 | AI68: =(-SUM(AI66:AI67)+AH69/AH$34*AI$34)*AJ12-SUM(AI66:AI67)*(1-AJ12) -> 125.6 | AJ68: =(-SUM(AJ66:AJ67)+AI69/AI$34*AJ$34)*AK12-SUM(AJ66:AJ67)*(1-AK12) -> 130.6 | AK68: =(-SUM(AK66:AK67)+AJ69/AJ$34*AK$34)*AL12-SUM(AK66:AK67)*(1-AL12) -> 135.8 | AL68: =(-SUM(AL66:AL67)+AK69/AK$34*AL$34)*AM12-SUM(AL66:AL67)*(1-AM12) -> 141.3 | AM68: =(-SUM(AM66:AM67)+AL69/AL$34*AM$34)*AN12-SUM(AM66:AM67)*(1-AN12) -> 146.9 | AN68: =(-SUM(AN66:AN67)+AM69/AM$34*AN$34)*AO12-SUM(AN66:AN67)*(1-AO12) -> 149.1 | AO68: =(-SUM(AO66:AO67)+AN69/AN$34*AO$34)*AP12-SUM(AO66:AO67)*(1-AP12) -> 154.2 | AP68: =(-SUM(AP66:AP67)+AO69/AO$34*AP$34)*AQ12-SUM(AP66:AP67)*(1-AQ12) -> 159.6 | AQ68: =(-SUM(AQ66:AQ67)+AP69/AP$34*AQ$34)*AR12-SUM(AQ66:AQ67)*(1-AR12) -> 165.1 | AR68: =(-SUM(AR66:AR67)+AQ69/AQ$34*AR$34)*AS12-SUM(AR66:AR67)*(1-AS12) -> 170.9 | AS68: =(-SUM(AS66:AS67)+AR69/AR$34*AS$34)*AT12-SUM(AS66:AS67)*(1-AT12) -> 178.3 | AT68: =(-SUM(AT66:AT67)+AS69/AS$34*AT$34)*AU12-SUM(AT66:AT67)*(1-AU12) -> 184.9 | AU68: =(-SUM(AU66:AU67)+AT69/AT$34*AU$34)*AV12-SUM(AU66:AU67)*(1-AV12) -> 191.6 | AV68: =(-SUM(AV66:AV67)+AU69/AU$34*AV$34)*AW12-SUM(AV66:AV67)*(1-AW12) -> 198.6 | AW68: =(-SUM(AW66:AW67)+AV69/AV$34*AW$34)*AX12-SUM(AW66:AW67)*(1-AX12) -> 205.9 | AX68: =(-SUM(AX66:AX67)+AW69/AW$34*AX$34)*AY12-SUM(AX66:AX67)*(1-AY12) -> 206.7 | AY68: =(-SUM(AY66:AY67)+AX69/AX$34*AY$34)*AZ12-SUM(AY66:AY67)*(1-AZ12) -> 212.6 | AZ68: =(-SUM(AZ66:AZ67)+AY69/AY$34*AZ$34)*BA12-SUM(AZ66:AZ67)*(1-BA12) -> 219.1 | BA68: =(-SUM(BA66:BA67)+AZ69/AZ$34*BA$34)*BB12-SUM(BA66:BA67)*(1-BB12) -> 225.7 | BB68: =(-SUM(BB66:BB67)+BA69/BA$34*BB$34)*BC12-SUM(BB66:BB67)*(1-BC12) -> 232.6 | BC68: =(-SUM(BC66:BC67)+BB69/BB$34*BC$34)*BD12-SUM(BC66:BC67)*(1-BD12) -> 239.4 | BD68: =(-SUM(BD66:BD67)+BC69/BC$34*BD$34)*BE12-SUM(BD66:BD67)*(1-BE12) -> 246.7 | BE68: =(-SUM(BE66:BE67)+BD69/BD$34*BE$34)*BF12-SUM(BE66:BE67)*(1-BF12) -> 254.2 | BF68: =(-SUM(BF66:BF67)+BE69/BE$34*BF$34)*BG12-SUM(BF66:BF67)*(1-BG12) -> 262.0 | BG68: =(-SUM(BG66:BG67)+BF69/BF$34*BG$34)*BH12-SUM(BG66:BG67)*(1-BH12) -> 269.7 | BH68: =(-SUM(BH66:BH67)+BG69/BG$34*BH$34)*BI12-SUM(BH66:BH67)*(1-BI12) -> 277.9 | BI68: =(-SUM(BI66:BI67)+BH69/BH$34*BI$34)*BJ12-SUM(BI66:BI67)*(1-BJ12) -> 286.3 | BJ68: =(-SUM(BJ66:BJ67)+BI69/BI$34*BJ$34)*BK12-SUM(BJ66:BJ67)*(1-BK12) -> 295.1 | BK68: =(-SUM(BK66:BK67)+BJ69/BJ$34*BK$34)*BL12-SUM(BK66:BK67)*(1-BL12) -> 303.8 | BL68: =(-SUM(BL66:BL67)+BK69/BK$34*BL$34)*BM12-SUM(BL66:BL67)*(1-BM12) -> 313.0 | BM68: =(-SUM(BM66:BM67)+BL69/BL$34*BM$34)*BN12-SUM(BM66:BM67)*(1-BN12) -> 322.5 | BN68: =(-SUM(BN66:BN67)+BM69/BM$34*BN$34)*BO12-SUM(BN66:BN67)*(1-BO12) -> 332.4 | BO68: =(-SUM(BO66:BO67)+BN69/BN$34*BO$34)*BP12-SUM(BO66:BO67)*(1-BP12) -> 342.2 | BP68: =(-SUM(BP66:BP67)+BO69/BO$34*BP$34)*BQ12-SUM(BP66:BP67)*(1-BQ12) -> 352.6 | BQ68: =(-SUM(BQ66:BQ67)+BP69/BP$34*BQ$34)*BR12-SUM(BQ66:BQ67)*(1-BR12) -> 363.3 | BR68: =(-SUM(BR66:BR67)+BQ69/BQ$34*BR$34)*BS12-SUM(BR66:BR67)*(1-BS12) -> 374.4 | BS68: =(-SUM(BS66:BS67)+BR69/BR$34*BS$34)*BT12-SUM(BS66:BS67)*(1-BT12) -> 385.4 | BT68: =(-SUM(BT66:BT67)+BS69/BS$34*BT$34)*BU12-SUM(BT66:BT67)*(1-BU12) -> 397.2 | BU68: =(-SUM(BU66:BU67)+BT69/BT$34*BU$34)*BV12-SUM(BU66:BU67)*(1-BV12) -> 409.2 | BV68: =(-SUM(BV66:BV67)+BU69/BU$34*BV$34)*BW12-SUM(BV66:BV67)*(1-BW12) -> 421.7 | BW68: =(-SUM(BW66:BW67)+BV69/BV$34*BW$34)*BX12-SUM(BW66:BW67)*(1-BX12) -> 434.1 | BX68: =(-SUM(BX66:BX67)+BW69/BW$34*BX$34)*BY12-SUM(BX66:BX67)*(1-BY12) -> 447.4 | BY68: =(-SUM(BY66:BY67)+BX69/BX$34*BY$34)*BZ12-SUM(BY66:BY67)*(1-BZ12) -> 460.9 | BZ68: =(-SUM(BZ66:BZ67)+BY69/BY$34*BZ$34)*CA12-SUM(BZ66:BZ67)*(1-CA12) -> 475.0 | CA68: =(-SUM(CA66:CA67)+BZ69/BZ$34*CA$34)*CB12-SUM(CA66:CA67)*(1-CB12) -> 489.0 | CB68: =(-SUM(CB66:CB67)+CA69/CA$34*CB$34)*CC12-SUM(CB66:CB67)*(1-CC12) -> 503.9 | CC68: =(-SUM(CC66:CC67)+CB69/CB$34*CC$34)*CD12-SUM(CC66:CC67)*(1-CD12) -> 519.1 | CD68: =(-SUM(CD66:CD67)+CC69/CC$34*CD$34)*CE12-SUM(CD66:CD67)*(1-CE12) -> 535.0 | CE68: =(-SUM(CE66:CE67)+CD69/CD$34*CE$34)*CF12-SUM(CE66:CE67)*(1-CF12) -> 550.8 | CF68: =(-SUM(CF66:CF67)+CE69/CE$34*CF$34)*CG12-SUM(CF66:CF67)*(1-CG12) -> 567.6 | CG68: =(-SUM(CG66:CG67)+CF69/CF$34*CG$34)*CH12-SUM(CG66:CG67)*(1-CH12) -> 584.7 | CH68: =(-SUM(CH66:CH67)+CG69/CG$34*CH$34)*CI12-SUM(CH66:CH67)*(1-CI12) -> 602.6 | CI68: =(-SUM(CI66:CI67)+CH69/CH$34*CI$34)*CJ12-SUM(CI66:CI67)*(1-CJ12) -> 620.4 | CJ68: =(-SUM(CJ66:CJ67)+CI69/CI$34*CJ$34)*CK12-SUM(CJ66:CJ67)*(1-CK12) -> 639.3 | CK68: =(-SUM(CK66:CK67)+CJ69/CJ$34*CK$34)*CL12-SUM(CK66:CK67)*(1-CL12) -> 658.6 | CL68: =(-SUM(CL66:CL67)+CK69/CK$34*CL$34)*CM12-SUM(CL66:CL67)*(1-CM12) -> 678.8 | CM68: =(-SUM(CM66:CM67)+CL69/CL$34*CM$34)*CN12-SUM(CM66:CM67)*(1-CN12) -> 698.8 | CN68: =(-SUM(CN66:CN67)+CM69/CM$34*CN$34)*CO12-SUM(CN66:CN67)*(1-CO12) -> 720.1 | CO68: =(-SUM(CO66:CO67)+CN69/CN$34*CO$34)*CP12-SUM(CO66:CO67)*(1-CP12) -> 741.9 | CP68: =(-SUM(CP66:CP67)+CO69/CO$34*CP$34)*CQ12-SUM(CP66:CP67)*(1-CQ12) -> 764.5 | CQ68: =(-SUM(CQ66:CQ67)+CP69/CP$34*CQ$34)*CR12-SUM(CQ66:CQ67)*(1-CR12) -> 787.2 | CR68: =(-SUM(CR66:CR67)+CQ69/CQ$34*CR$34)*CS12-SUM(CR66:CR67)*(1-CS12) -> (2,982.0)
B69: Closing Balance | K69: MCAD | O69: =+Inputs!L237 -> 194.1 | P69: =+SUM(P66:P68) -> 218.0 | Q69: =+SUM(Q66:Q68) -> 230.3 | R69: =+SUM(R66:R68) -> 241.4 | S69: 252.9 | T69: 267.9 | U69: 284.0 | V69: 301.0 | W69: 319.1 | X69: 338.2 | Y69: 356.8 | Z69: 376.3 | AA69: 396.8 | AB69: 418.5 | AC69: 441.4 | AD69: 460.0 | AE69: 479.0 | AF69: 498.9 | AG69: 519.5 | AH69: 541.1 | AI69: 562.8 | AJ69: 585.4 | AK69: 608.9 | AL69: 633.4 | AM69: 658.7 | AN69: 682.0 | AO69: 705.9 | AP69: 730.6 | AQ69: 756.2 | AR69: 782.7 | AS69: 811.3 | AT69: 841.0 | AU69: 871.7 | AV69: 903.6 | AW69: 936.6 | AX69: 965.2 | AY69: 994.3 | AZ69: 1,024.4 | BA69: 1,055.3 | BB69: 1,087.2 | BC69: 1,120.0 | BD69: 1,153.8 | BE69: 1,188.7 | BF69: 1,224.6 | BG69: 1,261.6 | BH69: 1,299.6 | BI69: 1,338.9 | BJ69: 1,379.4 | BK69: 1,421.0 | BL69: 1,463.9 | BM69: 1,508.1 | BN69: 1,553.7 | BO69: 1,600.6 | BP69: 1,648.9 | BQ69: 1,698.7 | BR69: 1,750.1 | BS69: 1,802.9 | BT69: 1,857.3 | BU69: 1,913.4 | BV69: 1,971.3 | BW69: 2,030.7 | BX69: 2,092.0 | BY69: 2,155.2 | BZ69: 2,220.4 | CA69: 2,287.4 | CB69: 2,356.4 | CC69: 2,427.6 | CD69: =+SUM(CD66:CD68) -> 2,501.1 | CE69: 2,576.5 | CF69: 2,654.3 | CG69: 2,734.4 | CH69: 2,817.2 | CI69: 2,902.1 | CJ69: 2,989.7 | CK69: 3,080.0 | CL69: 3,173.2 | CM69: 3,268.8 | CN69: 3,367.6 | CO69: 3,469.3 | CP69: 3,574.2 | CQ69: 3,682.0 | CR69: 0
B71: Total Cash Receipts
B72: Change in Account Receivable Working Capital | K72: MCAD | M72: =SUM(O72:GJ72) -> 0 | O72: =-O69+O66 -> (194.1) | P72: (24.0) | Q72: =-Q69+Q66 -> (12.3) | R72: =-R69+R66 -> (11.1) | S72: (11.5) | T72: (15.0) | U72: (16.1) | V72: (17.0) | W72: (18.0) | X72: (19.1) | Y72: (18.6) | Z72: (19.5) | AA72: (20.6) | AB72: (21.7) | AC72: (22.9) | AD72: (18.6) | AE72: (19.0) | AF72: (19.9) | AG72: (20.7) | AH72: (21.6) | AI72: (21.7) | AJ72: (22.6) | AK72: (23.5) | AL72: (24.5) | AM72: (25.4) | AN72: (23.2) | AO72: (23.9) | AP72: (24.8) | AQ72: (25.6) | AR72: (26.5) | AS72: (28.6) | AT72: (29.7) | AU72: (30.7) | AV72: (31.9) | AW72: (33.0) | AX72: (28.6) | AY72: (29.1) | AZ72: (30.0) | BA72: (30.9) | BB72: (31.9) | BC72: (32.8) | BD72: (33.8) | BE72: (34.8) | BF72: (36.0) | BG72: (36.9) | BH72: (38.1) | BI72: (39.2) | BJ72: (40.5) | BK72: (41.6) | BL72: (42.9) | BM72: (44.2) | BN72: (45.6) | BO72: (46.8) | BP72: (48.3) | BQ72: (49.8) | BR72: (51.4) | BS72: (52.8) | BT72: (54.4) | BU72: (56.1) | BV72: (57.9) | BW72: (59.4) | BX72: (61.3) | BY72: (63.2) | BZ72: (65.2) | CA72: (66.9) | CB72: (69.1) | CC72: (71.2) | CD72: =-CD69+CD66 -> (73.5) | CE72: (75.4) | CF72: (77.8) | CG72: (80.2) | CH72: (82.7) | CI72: (84.9) | CJ72: (87.6) | CK72: (90.3) | CL72: (93.2) | CM72: (95.6) | CN72: (98.7) | CO72: (101.7) | CP72: (105.0) | CQ72: (107.7) | CR72: 3,682.0
B73: Toll revenues | K73: MCAD | M73: =SUM(O73:GJ73) -> 710,124 | O73: =+O$34 -> 0 | P73: 1,340.9 | Q73: 1,416.5 | R73: 1,484.7 | S73: 1,555.5 | T73: 1,648.0 | U73: 1,746.8 | V73: 1,851.6 | W73: 1,962.5 | X73: 2,080.2 | Y73: 2,194.4 | Z73: 2,314.5 | AA73: 2,440.9 | AB73: 2,574.4 | AC73: 2,715.2 | AD73: 2,829.3 | AE73: 2,946.5 | AF73: 3,068.6 | AG73: 3,195.7 | AH73: 3,328.4 | AI73: 3,461.9 | AJ73: 3,600.8 | AK73: 3,745.3 | AL73: 3,895.8 | AM73: 4,051.9 | AN73: 4,194.7 | AO73: 4,341.8 | AP73: 4,494.2 | AQ73: 4,651.4 | AR73: 4,814.4 | AS73: 4,990.2 | AT73: 5,173.0 | AU73: 5,361.9 | AV73: 5,558.0 | AW73: 5,761.3 | AX73: 5,937.2 | AY73: 6,116.2 | AZ73: 6,300.9 | BA73: 6,491.2 | BB73: 6,687.6 | BC73: 6,889.2 | BD73: 7,097.2 | BE73: 7,311.5 | BF73: 7,532.8 | BG73: 7,759.8 | BH73: 7,994.2 | BI73: 8,235.6 | BJ73: 8,484.8 | BK73: 8,740.6 | BL73: 9,004.5 | BM73: 9,276.4 | BN73: 9,557.1 | BO73: 9,845.2 | BP73: 10,142.5 | BQ73: 10,448.8 | BR73: 10,765.0 | BS73: 11,089.5 | BT73: 11,424.4 | BU73: 11,769.4 | BV73: 12,125.5 | BW73: 12,491.0 | BX73: 12,868.2 | BY73: 13,256.8 | BZ73: 13,658.0 | CA73: =+CA$34 -> 14,069.7 | CB73: 14,494.5 | CC73: 14,932.3 | CD73: 15,384.1 | CE73: 15,847.8 | CF73: 16,326.4 | CG73: 16,819.4 | CH73: 17,328.4 | CI73: 17,850.7 | CJ73: 18,389.8 | CK73: 18,945.1 | CL73: 19,518.4 | CM73: 20,106.8 | CN73: 20,713.9 | CO73: 21,339.5 | CP73: 21,985.2 | CQ73: 22,647.9 | CR73: 23,331.8
B74: PDA | K74: MCAD | M74: =SUM(O74:GJ74) -> (21,290) | O74: =+O67 -> 0 | P74: (26.6) | Q74: =+Q67 -> (42.5) | R74: =+R67 -> (44.5) | S74: (46.7) | T74: (49.4) | U74: (52.4) | V74: (55.5) | W74: (58.9) | X74: (62.4) | Y74: (65.8) | Z74: (69.4) | AA74: (73.2) | AB74: (77.2) | AC74: (81.5) | AD74: (84.9) | AE74: (88.4) | AF74: (92.1) | AG74: (95.9) | AH74: (99.9) | AI74: (103.9) | AJ74: (108.0) | AK74: (112.4) | AL74: (116.9) | AM74: (121.6) | AN74: (125.8) | AO74: (130.3) | AP74: (134.8) | AQ74: (139.5) | AR74: (144.4) | AS74: (149.7) | AT74: (155.2) | AU74: (160.9) | AV74: (166.7) | AW74: (172.8) | AX74: (178.1) | AY74: (183.5) | AZ74: (189.0) | BA74: (194.7) | BB74: (200.6) | BC74: (206.7) | BD74: (212.9) | BE74: (219.3) | BF74: (226.0) | BG74: (232.8) | BH74: (239.8) | BI74: (247.1) | BJ74: (254.5) | BK74: (262.2) | BL74: (270.1) | BM74: (278.3) | BN74: (286.7) | BO74: (295.4) | BP74: (304.3) | BQ74: (313.5) | BR74: (323.0) | BS74: (332.7) | BT74: (342.7) | BU74: (353.1) | BV74: (363.8) | BW74: (374.7) | BX74: (386.0) | BY74: (397.7) | BZ74: (409.7) | CA74: (422.1) | CB74: (434.8) | CC74: (448.0) | CD74: =+CD67 -> (461.5) | CE74: (475.4) | CF74: (489.8) | CG74: (504.6) | CH74: (519.9) | CI74: (535.5) | CJ74: (551.7) | CK74: (568.4) | CL74: (585.6) | CM74: (603.2) | CN74: (621.4) | CO74: (640.2) | CP74: (659.6) | CQ74: (679.4) | CR74: (700.0)
B75: Total Cash Receipts | K75: MCAD | M75: =SUM(O75:GJ75) -> 688,834 | O75: =SUM(O72:O74) -> (194.1) | P75: 1,290.4 | Q75: 1,361.7 | R75: =SUM(R72:R74) -> 1,429.1 | S75: 1,497.3 | T75: 1,583.5 | U75: 1,678.3 | V75: 1,779.0 | W75: 1,885.6 | X75: 1,998.7 | Y75: 2,110.0 | Z75: 2,225.6 | AA75: 2,347.2 | AB75: 2,475.5 | AC75: 2,610.8 | AD75: 2,725.9 | AE75: 2,839.0 | AF75: 2,956.7 | AG75: 3,079.2 | AH75: 3,207.0 | AI75: 3,336.3 | AJ75: 3,470.2 | AK75: 3,609.5 | AL75: 3,754.5 | AM75: 3,905.0 | AN75: 4,045.7 | AO75: 4,187.6 | AP75: 4,334.6 | AQ75: 4,486.3 | AR75: 4,643.5 | AS75: 4,811.9 | AT75: 4,988.1 | AU75: 5,170.3 | AV75: 5,359.4 | AW75: 5,555.4 | AX75: 5,730.5 | AY75: 5,903.6 | AZ75: 6,081.8 | BA75: 6,265.5 | BB75: 6,455.0 | BC75: 6,649.7 | BD75: 6,850.5 | BE75: 7,057.3 | BF75: 7,270.8 | BG75: 7,490.1 | BH75: 7,716.2 | BI75: 7,949.3 | BJ75: 8,189.7 | BK75: 8,436.8 | BL75: 8,691.4 | BM75: 8,953.9 | BN75: 9,224.8 | BO75: 9,503.0 | BP75: 9,789.9 | BQ75: 10,085.6 | BR75: 10,390.6 | BS75: 10,704.0 | BT75: 11,027.2 | BU75: 11,360.2 | BV75: 11,703.9 | BW75: 12,056.9 | BX75: 12,420.8 | BY75: 12,795.9 | BZ75: 13,183.0 | CA75: 13,580.6 | CB75: 13,990.6 | CC75: 14,413.1 | CD75: =SUM(CD72:CD74) -> 14,849.1 | CE75: 15,297.0 | CF75: 15,758.8 | CG75: 16,234.7 | CH75: 16,725.8 | CI75: 17,230.3 | CJ75: 17,750.4 | CK75: 18,286.5 | CL75: 18,839.7 | CM75: 19,407.9 | CN75: 19,993.8 | CO75: 20,597.6 | CP75: 21,220.7 | CQ75: 21,860.7 | CR75: 26,313.9
B77: Interest Charge Accounts Receivable
B78: Current Net A/R | H78: =30 -> 30 days | K78: MCAD | M78: =SUM(O78:GJ78) -> 58,327 | O78: =O$34/O13*$H$78 -> 0 | P78: 110.2 | Q78: =Q$34/Q13*$H$78 -> 116.4 | R78: =R$34/R13*$H$78 -> 121.7 | S78: 127.8 | T78: 135.5 | U78: 143.6 | V78: 151.8 | W78: 161.3 | X78: 171.0 | Y78: 180.4 | Z78: 189.7 | AA78: 200.6 | AB78: 211.6 | AC78: 223.2 | AD78: 231.9 | AE78: 242.2 | AF78: 252.2 | AG78: 262.7 | AH78: 272.8 | AI78: 284.5 | AJ78: 296.0 | AK78: 307.8 | AL78: 319.3 | AM78: 333.0 | AN78: 344.8 | AO78: 356.9 | AP78: 368.4 | AQ78: 382.3 | AR78: 395.7 | AS78: 410.2 | AT78: 424.0 | AU78: 440.7 | AV78: 456.8 | AW78: 473.5 | AX78: 486.7 | AY78: 502.7 | AZ78: 517.9 | BA78: 533.5 | BB78: 548.2 | BC78: 566.2 | BD78: 583.3 | BE78: 600.9 | BF78: 617.4 | BG78: 637.8 | BH78: 657.1 | BI78: 676.9 | BJ78: 695.5 | BK78: 718.4 | BL78: 740.1 | BM78: 762.4 | BN78: 783.4 | BO78: 809.2 | BP78: 833.6 | BQ78: 858.8 | BR78: 882.4 | BS78: 911.5 | BT78: 939.0 | BU78: 967.3 | BV78: 993.9 | BW78: 1,026.7 | BX78: 1,057.7 | BY78: 1,089.6 | BZ78: 1,119.5 | CA78: 1,156.4 | CB78: 1,191.3 | CC78: 1,227.3 | CD78: =CD$34/CD13*$H$78 -> 1,261.0 | CE78: 1,302.6 | CF78: 1,341.9 | CG78: 1,382.4 | CH78: 1,420.4 | CI78: 1,467.2 | CJ78: 1,511.5 | CK78: 1,557.1 | CL78: 1,599.9 | CM78: 1,652.6 | CN78: 1,702.5 | CO78: 1,753.9 | CP78: 1,802.1 | CQ78: 1,861.5 | CR78: 1,917.7
B79: Delinquent Net A/R | K79: MCAD | M79: =SUM(O79:GJ79) -> 53,522 | O79: =O66-O78 -> 0 | P79: 83.8 | Q79: 101.6 | R79: =R66-R78 -> 108.6 | S79: 113.5 | T79: 117.4 | U79: 124.3 | V79: 132.2 | W79: 139.7 | X79: 148.1 | Y79: 157.8 | Z79: 167.0 | AA79: 175.7 | AB79: 185.2 | AC79: 195.4 | AD79: 209.5 | AE79: 217.8 | AF79: 226.8 | AG79: 236.2 | AH79: 246.7 | AI79: 256.6 | AJ79: 266.9 | AK79: 277.6 | AL79: 289.6 | AM79: 300.3 | AN79: 314.0 | AO79: 325.1 | AP79: 337.5 | AQ79: 348.3 | AR79: 360.5 | AS79: 372.5 | AT79: 387.3 | AU79: 400.3 | AV79: 414.9 | AW79: 430.1 | AX79: 450.0 | AY79: 462.5 | AZ79: 476.5 | BA79: 490.8 | BB79: 507.1 | BC79: 521.0 | BD79: 536.7 | BE79: 552.9 | BF79: 571.2 | BG79: 586.8 | BH79: 604.5 | BI79: 622.8 | BJ79: 643.4 | BK79: 661.0 | BL79: 680.9 | BM79: 701.5 | BN79: 724.7 | BO79: 744.6 | BP79: 766.9 | BQ79: 790.1 | BR79: 816.3 | BS79: 838.7 | BT79: 863.9 | BU79: 890.0 | BV79: 919.5 | BW79: 944.6 | BX79: 973.1 | BY79: 1,002.4 | BZ79: 1,035.7 | CA79: 1,064.0 | CB79: 1,096.0 | CC79: 1,129.1 | CD79: =CD66-CD78 -> 1,166.6 | CE79: 1,198.5 | CF79: 1,234.6 | CG79: 1,271.8 | CH79: 1,314.1 | CI79: 1,350.0 | CJ79: 1,390.6 | CK79: 1,432.6 | CL79: 1,480.1 | CM79: 1,520.6 | CN79: 1,566.3 | CO79: 1,613.6 | CP79: 1,667.2 | CQ79: 1,712.8 | CR79: 1,764.3
B81: Net Interest Charge (Copy) | H81: =+Inputs!L106 -> 2% | K81: MCAD | M81: =SUM(O81:GJ81) -> 14,349 | O81: 0 | P81: 14.9 | Q81: =Q79*((1+$H$81)^12-1) -> 27.2 | R81: 29.1 | S81: 30.5 | T81: 31.5 | U81: 33.4 | V81: 35.5 | W81: 37.5 | X81: 39.7 | Y81: 42.3 | Z81: 44.8 | AA81: 47.1 | AB81: 49.7 | AC81: 52.4 | AD81: 56.2 | AE81: 58.4 | AF81: 60.8 | AG81: 63.4 | AH81: 66.2 | AI81: 68.8 | AJ81: 71.6 | AK81: 74.5 | AL81: 77.7 | AM81: 80.6 | AN81: 84.2 | AO81: 87.2 | AP81: 90.5 | AQ81: 93.4 | AR81: 96.7 | AS81: 99.9 | AT81: 103.9 | AU81: 107.4 | AV81: 111.3 | AW81: =AW79*((1+$H$81)^12-1) -> 115.4 | AX81: 120.7 | AY81: 124.1 | AZ81: 127.8 | BA81: 131.7 | BB81: 136.0 | BC81: 139.8 | BD81: 144.0 | BE81: 148.3 | BF81: 153.2 | BG81: 157.4 | BH81: 162.2 | BI81: 167.0 | BJ81: 172.6 | BK81: 177.3 | BL81: 182.6 | BM81: 188.2 | BN81: 194.4 | BO81: 199.7 | BP81: 205.7 | BQ81: 211.9 | BR81: 219.0 | BS81: 225.0 | BT81: 231.7 | BU81: 238.7 | BV81: 246.6 | BW81: 253.4 | BX81: 261.0 | BY81: 268.9 | BZ81: 277.8 | CA81: 285.4 | CB81: 294.0 | CC81: =CC79*((1+$H$81)^12-1) -> 302.9 | CD81: 312.9 | CE81: 321.5 | CF81: 331.2 | CG81: 341.2 | CH81: 352.5 | CI81: 362.1 | CJ81: 373.0 | CK81: 384.3 | CL81: 397.0 | CM81: 407.9 | CN81: 420.2 | CO81: 432.8 | CP81: 447.2 | CQ81: 459.4 | CR81: 473.3
B82: Net Interest Charge (Paste) | K82: MCAD | M82: =SUM(O82:GJ82) -> 14,349 | O82: =+Mac!O31 -> 0 | P82: =+Mac!P31 -> 14.9 | Q82: =+Mac!Q31 -> 27.2 | R82: =+Mac!R31 -> 29.1 | S82: =+Mac!S31 -> 30.5 | T82: =+Mac!T31 -> 31.5 | U82: =+Mac!U31 -> 33.4 | V82: =+Mac!V31 -> 35.5 | W82: =+Mac!W31 -> 37.5 | X82: =+Mac!X31 -> 39.7 | Y82: =+Mac!Y31 -> 42.3 | Z82: =+Mac!Z31 -> 44.8 | AA82: =+Mac!AA31 -> 47.1 | AB82: =+Mac!AB31 -> 49.7 | AC82: =+Mac!AC31 -> 52.4 | AD82: =+Mac!AD31 -> 56.2 | AE82: =+Mac!AE31 -> 58.4 | AF82: =+Mac!AF31 -> 60.8 | AG82: =+Mac!AG31 -> 63.4 | AH82: =+Mac!AH31 -> 66.2 | AI82: =+Mac!AI31 -> 68.8 | AJ82: =+Mac!AJ31 -> 71.6 | AK82: =+Mac!AK31 -> 74.5 | AL82: =+Mac!AL31 -> 77.7 | AM82: =+Mac!AM31 -> 80.6 | AN82: =+Mac!AN31 -> 84.2 | AO82: =+Mac!AO31 -> 87.2 | AP82: =+Mac!AP31 -> 90.5 | AQ82: =+Mac!AQ31 -> 93.4 | AR82: =+Mac!AR31 -> 96.7 | AS82: =+Mac!AS31 -> 99.9 | AT82: =+Mac!AT31 -> 103.9 | AU82: =+Mac!AU31 -> 107.4 | AV82: =+Mac!AV31 -> 111.3 | AW82: =+Mac!AW31 -> 115.4 | AX82: =+Mac!AX31 -> 120.7 | AY82: =+Mac!AY31 -> 124.1 | AZ82: =+Mac!AZ31 -> 127.8 | BA82: =+Mac!BA31 -> 131.7 | BB82: =+Mac!BB31 -> 136.0 | BC82: =+Mac!BC31 -> 139.8 | BD82: =+Mac!BD31 -> 144.0 | BE82: =+Mac!BE31 -> 148.3 | BF82: =+Mac!BF31 -> 153.2 | BG82: =+Mac!BG31 -> 157.4 | BH82: =+Mac!BH31 -> 162.2 | BI82: =+Mac!BI31 -> 167.0 | BJ82: =+Mac!BJ31 -> 172.6 | BK82: =+Mac!BK31 -> 177.3 | BL82: =+Mac!BL31 -> 182.6 | BM82: =+Mac!BM31 -> 188.2 | BN82: =+Mac!BN31 -> 194.4 | BO82: =+Mac!BO31 -> 199.7 | BP82: =+Mac!BP31 -> 205.7 | BQ82: =+Mac!BQ31 -> 211.9 | BR82: =+Mac!BR31 -> 219.0 | BS82: =+Mac!BS31 -> 225.0 | BT82: =+Mac!BT31 -> 231.7 | BU82: =+Mac!BU31 -> 238.7 | BV82: =+Mac!BV31 -> 246.6 | BW82: =+Mac!BW31 -> 253.4 | BX82: =+Mac!BX31 -> 261.0 | BY82: =+Mac!BY31 -> 268.9 | BZ82: =+Mac!BZ31 -> 277.8 | CA82: =+Mac!CA31 -> 285.4 | CB82: =+Mac!CB31 -> 294.0 | CC82: =+Mac!CC31 -> 302.9 | CD82: =+Mac!CD31 -> 312.9 | CE82: =+Mac!CE31 -> 321.5 | CF82: =+Mac!CF31 -> 331.2 | CG82: =+Mac!CG31 -> 341.2 | CH82: =+Mac!CH31 -> 352.5 | CI82: =+Mac!CI31 -> 362.1 | CJ82: =+Mac!CJ31 -> 373.0 | CK82: =+Mac!CK31 -> 384.3 | CL82: =+Mac!CL31 -> 397.0 | CM82: =+Mac!CM31 -> 407.9 | CN82: =+Mac!CN31 -> 420.2 | CO82: =+Mac!CO31 -> 432.8 | CP82: =+Mac!CP31 -> 447.2 | CQ82: =+Mac!CQ31 -> 459.4 | CR82: =+Mac!CR31 -> 473.3

Sheet Fin
B2: Project: | G2: 407ETR
B3: Worksheet: | G3: Financing Figures
B4: Model Integrity | G4: =+Mac!G4 -> 0 of 6 checks fail
B5: Scenario | G5: =+Inputs!G5 -> Base Case
K7: Units | M7: Sum | P7: =+IFERROR(INDEX(Inputs!$A$112:$A$121,MATCH(O8,Inputs!$B$112:$B$121,0),1),O6) -> 0 | Q7: =+IFERROR(INDEX(Inputs!$A$112:$A$121,MATCH(P8,Inputs!$B$112:$B$121,0),1),P7) -> 1 | R7: =+IFERROR(INDEX(Inputs!$A$112:$A$121,MATCH(Q8,Inputs!$B$112:$B$121,0),1),Q7) -> 1 | S7: =+IFERROR(INDEX(Inputs!$A$112:$A$121,MATCH(R8,Inputs!$B$112:$B$121,0),1),R7) -> 1 | T7: =+IFERROR(INDEX(Inputs!$A$112:$A$121,MATCH(S8,Inputs!$B$112:$B$121,0),1),S7) -> 2 | U7: =+IFERROR(INDEX(Inputs!$A$112:$A$121,MATCH(T8,Inputs!$B$112:$B$121,0),1),T7) -> 2 | V7: =+IFERROR(INDEX(Inputs!$A$112:$A$121,MATCH(U8,Inputs!$B$112:$B$121,0),1),U7) -> 2 | W7: =+IFERROR(INDEX(Inputs!$A$112:$A$121,MATCH(V8,Inputs!$B$112:$B$121,0),1),V7) -> 2 | X7: =+IFERROR(INDEX(Inputs!$A$112:$A$121,MATCH(W8,Inputs!$B$112:$B$121,0),1),W7) -> 2 | Y7: =+IFERROR(INDEX(Inputs!$A$112:$A$121,MATCH(X8,Inputs!$B$112:$B$121,0),1),X7) -> 3 | Z7: =+IFERROR(INDEX(Inputs!$A$112:$A$121,MATCH(Y8,Inputs!$B$112:$B$121,0),1),Y7) -> 3 | AA7: =+IFERROR(INDEX(Inputs!$A$112:$A$121,MATCH(Z8,Inputs!$B$112:$B$121,0),1),Z7) -> 3 | AB7: =+IFERROR(INDEX(Inputs!$A$112:$A$121,MATCH(AA8,Inputs!$B$112:$B$121,0),1),AA7) -> 3 | AC7: =+IFERROR(INDEX(Inputs!$A$112:$A$121,MATCH(AB8,Inputs!$B$112:$B$121,0),1),AB7) -> 3 | AD7: =+IFERROR(INDEX(Inputs!$A$112:$A$121,MATCH(AC8,Inputs!$B$112:$B$121,0),1),AC7) -> 4 | AE7: =+IFERROR(INDEX(Inputs!$A$112:$A$121,MATCH(AD8,Inputs!$B$112:$B$121,0),1),AD7) -> 4 | AF7: =+IFERROR(INDEX(Inputs!$A$112:$A$121,MATCH(AE8,Inputs!$B$112:$B$121,0),1),AE7) -> 4 | AG7: =+IFERROR(INDEX(Inputs!$A$112:$A$121,MATCH(AF8,Inputs!$B$112:$B$121,0),1),AF7) -> 4 | AH7: =+IFERROR(INDEX(Inputs!$A$112:$A$121,MATCH(AG8,Inputs!$B$112:$B$121,0),1),AG7) -> 4 | AI7: =+IFERROR(INDEX(Inputs!$A$112:$A$121,MATCH(AH8,Inputs!$B$112:$B$121,0),1),AH7) -> 5 | AJ7: =+IFERROR(INDEX(Inputs!$A$112:$A$121,MATCH(AI8,Inputs!$B$112:$B$121,0),1),AI7) -> 5 | AK7: =+IFERROR(INDEX(Inputs!$A$112:$A$121,MATCH(AJ8,Inputs!$B$112:$B$121,0),1),AJ7) -> 5 | AL7: =+IFERROR(INDEX(Inputs!$A$112:$A$121,MATCH(AK8,Inputs!$B$112:$B$121,0),1),AK7) -> 5 | AM7: =+IFERROR(INDEX(Inputs!$A$112:$A$121,MATCH(AL8,Inputs!$B$112:$B$121,0),1),AL7) -> 5 | AN7: =+IFERROR(INDEX(Inputs!$A$112:$A$121,MATCH(AM8,Inputs!$B$112:$B$121,0),1),AM7) -> 6 | AO7: =+IFERROR(INDEX(Inputs!$A$112:$A$121,MATCH(AN8,Inputs!$B$112:$B$121,0),1),AN7) -> 6 | AP7: =+IFERROR(INDEX(Inputs!$A$112:$A$121,MATCH(AO8,Inputs!$B$112:$B$121,0),1),AO7) -> 6 | AQ7: =+IFERROR(INDEX(Inputs!$A$112:$A$121,MATCH(AP8,Inputs!$B$112:$B$121,0),1),AP7) -> 6 | AR7: =+IFERROR(INDEX(Inputs!$A$112:$A$121,MATCH(AQ8,Inputs!$B$112:$B$121,0),1),AQ7) -> 6 | AS7: =+IFERROR(INDEX(Inputs!$A$112:$A$121,MATCH(AR8,Inputs!$B$112:$B$121,0),1),AR7) -> 7 | AT7: =+IFERROR(INDEX(Inputs!$A$112:$A$121,MATCH(AS8,Inputs!$B$112:$B$121,0),1),AS7) -> 7 | AU7: =+IFERROR(INDEX(Inputs!$A$112:$A$121,MATCH(AT8,Inputs!$B$112:$B$121,0),1),AT7) -> 7 | AV7: =+IFERROR(INDEX(Inputs!$A$112:$A$121,MATCH(AU8,Inputs!$B$112:$B$121,0),1),AU7) -> 7 | AW7: =+IFERROR(INDEX(Inputs!$A$112:$A$121,MATCH(AV8,Inputs!$B$112:$B$121,0),1),AV7) -> 7 | AX7: =+IFERROR(INDEX(Inputs!$A$112:$A$121,MATCH(AW8,Inputs!$B$112:$B$121,0),1),AW7) -> 8 | AY7: =+IFERROR(INDEX(Inputs!$A$112:$A$121,MATCH(AX8,Inputs!$B$112:$B$121,0),1),AX7) -> 8 | AZ7: =+IFERROR(INDEX(Inputs!$A$112:$A$121,MATCH(AY8,Inputs!$B$112:$B$121,0),1),AY7) -> 8 | BA7: =+IFERROR(INDEX(Inputs!$A$112:$A$121,MATCH(AZ8,Inputs!$B$112:$B$121,0),1),AZ7) -> 8 | BB7: =+IFERROR(INDEX(Inputs!$A$112:$A$121,MATCH(BA8,Inputs!$B$112:$B$121,0),1),BA7) -> 8 | BC7: =+IFERROR(INDEX(Inputs!$A$112:$A$121,MATCH(BB8,Inputs!$B$112:$B$121,0),1),BB7) -> 9 | BD7: =+IFERROR(INDEX(Inputs!$A$112:$A$121,MATCH(BC8,Inputs!$B$112:$B$121,0),1),BC7) -> 9 | BE7: =+IFERROR(INDEX(Inputs!$A$112:$A$121,MATCH(BD8,Inputs!$B$112:$B$121,0),1),BD7) -> 9 | BF7: =+IFERROR(INDEX(Inputs!$A$112:$A$121,MATCH(BE8,Inputs!$B$112:$B$121,0),1),BE7) -> 10 | BG7: =+IFERROR(INDEX(Inputs!$A$112:$A$121,MATCH(BF8,Inputs!$B$112:$B$121,0),1),BF7) -> 10 | BH7: =+IFERROR(INDEX(Inputs!$A$112:$A$121,MATCH(BG8,Inputs!$B$112:$B$121,0),1),BG7) -> 10 | BI7: =+IFERROR(INDEX(Inputs!$A$112:$A$121,MATCH(BH8,Inputs!$B$112:$B$121,0),1),BH7) -> 10 | BJ7: =+IFERROR(INDEX(Inputs!$A$112:$A$121,MATCH(BI8,Inputs!$B$112:$B$121,0),1),BI7) -> 10 | BK7: =+IFERROR(INDEX(Inputs!$A$112:$A$121,MATCH(BJ8,Inputs!$B$112:$B$121,0),1),BJ7) -> 10 | BL7: =+IFERROR(INDEX(Inputs!$A$112:$A$121,MATCH(BK8,Inputs!$B$112:$B$121,0),1),BK7) -> 10 | BM7: =+IFERROR(INDEX(Inputs!$A$112:$A$121,MATCH(BL8,Inputs!$B$112:$B$121,0),1),BL7) -> 10 | BN7: =+IFERROR(INDEX(Inputs!$A$112:$A$121,MATCH(BM8,Inputs!$B$112:$B$121,0),1),BM7) -> 10 | BO7: =+IFERROR(INDEX(Inputs!$A$112:$A$121,MATCH(BN8,Inputs!$B$112:$B$121,0),1),BN7) -> 10 | BP7: =+IFERROR(INDEX(Inputs!$A$112:$A$121,MATCH(BO8,Inputs!$B$112:$B$121,0),1),BO7) -> 10 | BQ7: =+IFERROR(INDEX(Inputs!$A$112:$A$121,MATCH(BP8,Inputs!$B$112:$B$121,0),1),BP7) -> 10 | BR7: =+IFERROR(INDEX(Inputs!$A$112:$A$121,MATCH(BQ8,Inputs!$B$112:$B$121,0),1),BQ7) -> 10 | BS7: =+IFERROR(INDEX(Inputs!$A$112:$A$121,MATCH(BR8,Inputs!$B$112:$B$121,0),1),BR7) -> 10 | BT7: =+IFERROR(INDEX(Inputs!$A$112:$A$121,MATCH(BS8,Inputs!$B$112:$B$121,0),1),BS7) -> 10 | BU7: =+IFERROR(INDEX(Inputs!$A$112:$A$121,MATCH(BT8,Inputs!$B$112:$B$121,0),1),BT7) -> 10 | BV7: =+IFERROR(INDEX(Inputs!$A$112:$A$121,MATCH(BU8,Inputs!$B$112:$B$121,0),1),BU7) -> 10 | BW7: =+IFERROR(INDEX(Inputs!$A$112:$A$121,MATCH(BV8,Inputs!$B$112:$B$121,0),1),BV7) -> 10 | BX7: =+IFERROR(INDEX(Inputs!$A$112:$A$121,MATCH(BW8,Inputs!$B$112:$B$121,0),1),BW7) -> 10 | BY7: =+IFERROR(INDEX(Inputs!$A$112:$A$121,MATCH(BX8,Inputs!$B$112:$B$121,0),1),BX7) -> 10 | BZ7: =+IFERROR(INDEX(Inputs!$A$112:$A$121,MATCH(BY8,Inputs!$B$112:$B$121,0),1),BY7) -> 10 | CA7: =+IFERROR(INDEX(Inputs!$A$112:$A$121,MATCH(BZ8,Inputs!$B$112:$B$121,0),1),BZ7) -> 10 | CB7: =+IFERROR(INDEX(Inputs!$A$112:$A$121,MATCH(CA8,Inputs!$B$112:$B$121,0),1),CA7) -> 10 | CC7: =+IFERROR(INDEX(Inputs!$A$112:$A$121,MATCH(CB8,Inputs!$B$112:$B$121,0),1),CB7) -> 10 | CD7: =+IFERROR(INDEX(Inputs!$A$112:$A$121,MATCH(CC8,Inputs!$B$112:$B$121,0),1),CC7) -> 10 | CE7: =+IFERROR(INDEX(Inputs!$A$112:$A$121,MATCH(CD8,Inputs!$B$112:$B$121,0),1),CD7) -> 10 | CF7: =+IFERROR(INDEX(Inputs!$A$112:$A$121,MATCH(CE8,Inputs!$B$112:$B$121,0),1),CE7) -> 10 | CG7: =+IFERROR(INDEX(Inputs!$A$112:$A$121,MATCH(CF8,Inputs!$B$112:$B$121,0),1),CF7) -> 10 | CH7: =+IFERROR(INDEX(Inputs!$A$112:$A$121,MATCH(CG8,Inputs!$B$112:$B$121,0),1),CG7) -> 10 | CI7: =+IFERROR(INDEX(Inputs!$A$112:$A$121,MATCH(CH8,Inputs!$B$112:$B$121,0),1),CH7) -> 10 | CJ7: =+IFERROR(INDEX(Inputs!$A$112:$A$121,MATCH(CI8,Inputs!$B$112:$B$121,0),1),CI7) -> 10 | CK7: =+IFERROR(INDEX(Inputs!$A$112:$A$121,MATCH(CJ8,Inputs!$B$112:$B$121,0),1),CJ7) -> 10 | CL7: =+IFERROR(INDEX(Inputs!$A$112:$A$121,MATCH(CK8,Inputs!$B$112:$B$121,0),1),CK7) -> 10 | CM7: =+IFERROR(INDEX(Inputs!$A$112:$A$121,MATCH(CL8,Inputs!$B$112:$B$121,0),1),CL7) -> 10 | CN7: =+IFERROR(INDEX(Inputs!$A$112:$A$121,MATCH(CM8,Inputs!$B$112:$B$121,0),1),CM7) -> 10 | CO7: =+IFERROR(INDEX(Inputs!$A$112:$A$121,MATCH(CN8,Inputs!$B$112:$B$121,0),1),CN7) -> 10 | CP7: =+IFERROR(INDEX(Inputs!$A$112:$A$121,MATCH(CO8,Inputs!$B$112:$B$121,0),1),CO7) -> 10 | CQ7: =+IFERROR(INDEX(Inputs!$A$112:$A$121,MATCH(CP8,Inputs!$B$112:$B$121,0),1),CP7) -> 10 | CR7: =+IFERROR(INDEX(Inputs!$A$112:$A$121,MATCH(CQ8,Inputs!$B$112:$B$121,0),1),CQ7) -> 10
B8: Year | K8: Year | O8: =+Oper!O8 -> 2017 | P8: =+Oper!P8 -> 2018 | Q8: =+Oper!Q8 -> 2019 | R8: =+Oper!R8 -> 2020 | S8: =+Oper!S8 -> 2021 | T8: =+Oper!T8 -> 2022 | U8: =+Oper!U8 -> 2023 | V8: =+Oper!V8 -> 2024 | W8: =+Oper!W8 -> 2025 | X8: =+Oper!X8 -> 2026 | Y8: =+Oper!Y8 -> 2027 | Z8: =+Oper!Z8 -> 2028 | AA8: =+Oper!AA8 -> 2029 | AB8: =+Oper!AB8 -> 2030 | AC8: =+Oper!AC8 -> 2031 | AD8: =+Oper!AD8 -> 2032 | AE8: =+Oper!AE8 -> 2033 | AF8: =+Oper!AF8 -> 2034 | AG8: =+Oper!AG8 -> 2035 | AH8: =+Oper!AH8 -> 2036 | AI8: =+Oper!AI8 -> 2037 | AJ8: =+Oper!AJ8 -> 2038 | AK8: =+Oper!AK8 -> 2039 | AL8: =+Oper!AL8 -> 2040 | AM8: =+Oper!AM8 -> 2041 | AN8: =+Oper!AN8 -> 2042 | AO8: =+Oper!AO8 -> 2043 | AP8: =+Oper!AP8 -> 2044 | AQ8: =+Oper!AQ8 -> 2045 | AR8: =+Oper!AR8 -> 2046 | AS8: =+Oper!AS8 -> 2047 | AT8: =+Oper!AT8 -> 2048 | AU8: =+Oper!AU8 -> 2049 | AV8: =+Oper!AV8 -> 2050 | AW8: =+Oper!AW8 -> 2051 | AX8: =+Oper!AX8 -> 2052 | AY8: =+Oper!AY8 -> 2053 | AZ8: =+Oper!AZ8 -> 2054 | BA8: =+Oper!BA8 -> 2055 | BB8: =+Oper!BB8 -> 2056 | BC8: =+Oper!BC8 -> 2057 | BD8: =+Oper!BD8 -> 2058 | BE8: =+Oper!BE8 -> 2059 | BF8: =+Oper!BF8 -> 2060 | BG8: =+Oper!BG8 -> 2061 | BH8: =+Oper!BH8 -> 2062 | BI8: =+Oper!BI8 -> 2063 | BJ8: =+Oper!BJ8 -> 2064 | BK8: =+Oper!BK8 -> 2065 | BL8: =+Oper!BL8 -> 2066 | BM8: =+Oper!BM8 -> 2067 | BN8: =+Oper!BN8 -> 2068 | BO8: =+Oper!BO8 -> 2069 | BP8: =+Oper!BP8 -> 2070 | BQ8: =+Oper!BQ8 -> 2071 | BR8: =+Oper!BR8 -> 2072 | BS8: =+Oper!BS8 -> 2073 | BT8: =+Oper!BT8 -> 2074 | BU8: =+Oper!BU8 -> 2075 | BV8: =+Oper!BV8 -> 2076 | BW8: =+Oper!BW8 -> 2077 | BX8: =+Oper!BX8 -> 2078 | BY8: =+Oper!BY8 -> 2079 | BZ8: =+Oper!BZ8 -> 2080 | CA8: =+Oper!CA8 -> 2081 | CB8: =+Oper!CB8 -> 2082 | CC8: =+Oper!CC8 -> 2083 | CD8: =+Oper!CD8 -> 2084 | CE8: =+Oper!CE8 -> 2085 | CF8: =+Oper!CF8 -> 2086 | CG8: =+Oper!CG8 -> 2087 | CH8: =+Oper!CH8 -> 2088 | CI8: =+Oper!CI8 -> 2089 | CJ8: =+Oper!CJ8 -> 2090 | CK8: =+Oper!CK8 -> 2091 | CL8: =+Oper!CL8 -> 2092 | CM8: =+Oper!CM8 -> 2093 | CN8: =+Oper!CN8 -> 2094 | CO8: =+Oper!CO8 -> 2095 | CP8: =+Oper!CP8 -> 2096 | CQ8: =+Oper!CQ8 -> 2097 | CR8: =+Oper!CR8 -> 2098
B9: Period start date | K9: Date | O9: =+Oper!O9 -> 2017-01-01 | P9: =+Oper!P9 -> 2018-01-01 | Q9: =+Oper!Q9 -> 2019-01-01 | R9: =+Oper!R9 -> 2020-01-01 | S9: =+Oper!S9 -> 2021-01-01 | T9: =+Oper!T9 -> 2022-01-01 | U9: =+Oper!U9 -> 2023-01-01 | V9: =+Oper!V9 -> 2024-01-01 | W9: =+Oper!W9 -> 2025-01-01 | X9: =+Oper!X9 -> 2026-01-01 | Y9: =+Oper!Y9 -> 2027-01-01 | Z9: =+Oper!Z9 -> 2028-01-01 | AA9: =+Oper!AA9 -> 2029-01-01 | AB9: =+Oper!AB9 -> 2030-01-01 | AC9: =+Oper!AC9 -> 2031-01-01 | AD9: =+Oper!AD9 -> 2032-01-01 | AE9: =+Oper!AE9 -> 2033-01-01 | AF9: =+Oper!AF9 -> 2034-01-01 | AG9: =+Oper!AG9 -> 2035-01-01 | AH9: =+Oper!AH9 -> 2036-01-01 | AI9: =+Oper!AI9 -> 2037-01-01 | AJ9: =+Oper!AJ9 -> 2038-01-01 | AK9: =+Oper!AK9 -> 2039-01-01 | AL9: =+Oper!AL9 -> 2040-01-01 | AM9: =+Oper!AM9 -> 2041-01-01 | AN9: =+Oper!AN9 -> 2042-01-01 | AO9: =+Oper!AO9 -> 2043-01-01 | AP9: =+Oper!AP9 -> 2044-01-01 | AQ9: =+Oper!AQ9 -> 2045-01-01 | AR9: =+Oper!AR9 -> 2046-01-01 | AS9: =+Oper!AS9 -> 2047-01-01 | AT9: =+Oper!AT9 -> 2048-01-01 | AU9: =+Oper!AU9 -> 2049-01-01 | AV9: =+Oper!AV9 -> 2050-01-01 | AW9: =+Oper!AW9 -> 2051-01-01 | AX9: =+Oper!AX9 -> 2052-01-01 | AY9: =+Oper!AY9 -> 2053-01-01 | AZ9: =+Oper!AZ9 -> 2054-01-01 | BA9: =+Oper!BA9 -> 2055-01-01 | BB9: =+Oper!BB9 -> 2056-01-01 | BC9: =+Oper!BC9 -> 2057-01-01 | BD9: =+Oper!BD9 -> 2058-01-01 | BE9: =+Oper!BE9 -> 2059-01-01 | BF9: =+Oper!BF9 -> 2060-01-01 | BG9: =+Oper!BG9 -> 2061-01-01 | BH9: =+Oper!BH9 -> 2062-01-01 | BI9: =+Oper!BI9 -> 2063-01-01 | BJ9: =+Oper!BJ9 -> 2064-01-01 | BK9: =+Oper!BK9 -> 2065-01-01 | BL9: =+Oper!BL9 -> 2066-01-01 | BM9: =+Oper!BM9 -> 2067-01-01 | BN9: =+Oper!BN9 -> 2068-01-01 | BO9: =+Oper!BO9 -> 2069-01-01 | BP9: =+Oper!BP9 -> 2070-01-01 | BQ9: =+Oper!BQ9 -> 2071-01-01 | BR9: =+Oper!BR9 -> 2072-01-01 | BS9: =+Oper!BS9 -> 2073-01-01 | BT9: =+Oper!BT9 -> 2074-01-01 | BU9: =+Oper!BU9 -> 2075-01-01 | BV9: =+Oper!BV9 -> 2076-01-01 | BW9: =+Oper!BW9 -> 2077-01-01 | BX9: =+Oper!BX9 -> 2078-01-01 | BY9: =+Oper!BY9 -> 2079-01-01 | BZ9: =+Oper!BZ9 -> 2080-01-01 | CA9: =+Oper!CA9 -> 2081-01-01 | CB9: =+Oper!CB9 -> 2082-01-01 | CC9: =+Oper!CC9 -> 2083-01-01 | CD9: =+Oper!CD9 -> 2084-01-01 | CE9: =+Oper!CE9 -> 2085-01-01 | CF9: =+Oper!CF9 -> 2086-01-01 | CG9: =+Oper!CG9 -> 2087-01-01 | CH9: =+Oper!CH9 -> 2088-01-01 | CI9: =+Oper!CI9 -> 2089-01-01 | CJ9: =+Oper!CJ9 -> 2090-01-01 | CK9: =+Oper!CK9 -> 2091-01-01 | CL9: =+Oper!CL9 -> 2092-01-01 | CM9: =+Oper!CM9 -> 2093-01-01 | CN9: =+Oper!CN9 -> 2094-01-01 | CO9: =+Oper!CO9 -> 2095-01-01 | CP9: =+Oper!CP9 -> 2096-01-01 | CQ9: =+Oper!CQ9 -> 2097-01-01 | CR9: =+Oper!CR9 -> 2098-01-01
B10: Period end date | K10: Date | O10: =+Oper!O10 -> 2017-12-31 | P10: =+Oper!P10 -> 2018-12-31 | Q10: =+Oper!Q10 -> 2019-12-31 | R10: =+Oper!R10 -> 2020-12-31 | S10: =+Oper!S10 -> 2021-12-31 | T10: =+Oper!T10 -> 2022-12-31 | U10: =+Oper!U10 -> 2023-12-31 | V10: =+Oper!V10 -> 2024-12-31 | W10: =+Oper!W10 -> 2025-12-31 | X10: =+Oper!X10 -> 2026-12-31 | Y10: =+Oper!Y10 -> 2027-12-31 | Z10: =+Oper!Z10 -> 2028-12-31 | AA10: =+Oper!AA10 -> 2029-12-31 | AB10: =+Oper!AB10 -> 2030-12-31 | AC10: =+Oper!AC10 -> 2031-12-31 | AD10: =+Oper!AD10 -> 2032-12-31 | AE10: =+Oper!AE10 -> 2033-12-31 | AF10: =+Oper!AF10 -> 2034-12-31 | AG10: =+Oper!AG10 -> 2035-12-31 | AH10: =+Oper!AH10 -> 2036-12-31 | AI10: =+Oper!AI10 -> 2037-12-31 | AJ10: =+Oper!AJ10 -> 2038-12-31 | AK10: =+Oper!AK10 -> 2039-12-31 | AL10: =+Oper!AL10 -> 2040-12-31 | AM10: =+Oper!AM10 -> 2041-12-31 | AN10: =+Oper!AN10 -> 2042-12-31 | AO10: =+Oper!AO10 -> 2043-12-31 | AP10: =+Oper!AP10 -> 2044-12-31 | AQ10: =+Oper!AQ10 -> 2045-12-31 | AR10: =+Oper!AR10 -> 2046-12-31 | AS10: =+Oper!AS10 -> 2047-12-31 | AT10: =+Oper!AT10 -> 2048-12-31 | AU10: =+Oper!AU10 -> 2049-12-31 | AV10: =+Oper!AV10 -> 2050-12-31 | AW10: =+Oper!AW10 -> 2051-12-31 | AX10: =+Oper!AX10 -> 2052-12-31 | AY10: =+Oper!AY10 -> 2053-12-31 | AZ10: =+Oper!AZ10 -> 2054-12-31 | BA10: =+Oper!BA10 -> 2055-12-31 | BB10: =+Oper!BB10 -> 2056-12-31 | BC10: =+Oper!BC10 -> 2057-12-31 | BD10: =+Oper!BD10 -> 2058-12-31 | BE10: =+Oper!BE10 -> 2059-12-31 | BF10: =+Oper!BF10 -> 2060-12-31 | BG10: =+Oper!BG10 -> 2061-12-31 | BH10: =+Oper!BH10 -> 2062-12-31 | BI10: =+Oper!BI10 -> 2063-12-31 | BJ10: =+Oper!BJ10 -> 2064-12-31 | BK10: =+Oper!BK10 -> 2065-12-31 | BL10: =+Oper!BL10 -> 2066-12-31 | BM10: =+Oper!BM10 -> 2067-12-31 | BN10: =+Oper!BN10 -> 2068-12-31 | BO10: =+Oper!BO10 -> 2069-12-31 | BP10: =+Oper!BP10 -> 2070-12-31 | BQ10: =+Oper!BQ10 -> 2071-12-31 | BR10: =+Oper!BR10 -> 2072-12-31 | BS10: =+Oper!BS10 -> 2073-12-31 | BT10: =+Oper!BT10 -> 2074-12-31 | BU10: =+Oper!BU10 -> 2075-12-31 | BV10: =+Oper!BV10 -> 2076-12-31 | BW10: =+Oper!BW10 -> 2077-12-31 | BX10: =+Oper!BX10 -> 2078-12-31 | BY10: =+Oper!BY10 -> 2079-12-31 | BZ10: =+Oper!BZ10 -> 2080-12-31 | CA10: =+Oper!CA10 -> 2081-12-31 | CB10: =+Oper!CB10 -> 2082-12-31 | CC10: =+Oper!CC10 -> 2083-12-31 | CD10: =+Oper!CD10 -> 2084-12-31 | CE10: =+Oper!CE10 -> 2085-12-31 | CF10: =+Oper!CF10 -> 2086-12-31 | CG10: =+Oper!CG10 -> 2087-12-31 | CH10: =+Oper!CH10 -> 2088-12-31 | CI10: =+Oper!CI10 -> 2089-12-31 | CJ10: =+Oper!CJ10 -> 2090-12-31 | CK10: =+Oper!CK10 -> 2091-12-31 | CL10: =+Oper!CL10 -> 2092-12-31 | CM10: =+Oper!CM10 -> 2093-12-31 | CN10: =+Oper!CN10 -> 2094-12-31 | CO10: =+Oper!CO10 -> 2095-12-31 | CP10: =+Oper!CP10 -> 2096-12-31 | CQ10: =+Oper!CQ10 -> 2097-12-31 | CR10: =+Oper!CR10 -> 2098-12-31
B12: Concession Period Flag | K12: Flag | O12: =+IF(O$10<=Inputs!$L$16,1,0) -> 1 | P12: =+IF(P$10<=Inputs!$L$16,1,0) -> 1 | Q12: =+IF(Q$10<=Inputs!$L$16,1,0) -> 1 | R12: =+IF(R$10<=Inputs!$L$16,1,0) -> 1 | S12: =+IF(S$10<=Inputs!$L$16,1,0) -> 1 | T12: =+IF(T$10<=Inputs!$L$16,1,0) -> 1 | U12: =+IF(U$10<=Inputs!$L$16,1,0) -> 1 | V12: =+IF(V$10<=Inputs!$L$16,1,0) -> 1 | W12: =+IF(W$10<=Inputs!$L$16,1,0) -> 1 | X12: =+IF(X$10<=Inputs!$L$16,1,0) -> 1 | Y12: =+IF(Y$10<=Inputs!$L$16,1,0) -> 1 | Z12: =+IF(Z$10<=Inputs!$L$16,1,0) -> 1 | AA12: =+IF(AA$10<=Inputs!$L$16,1,0) -> 1 | AB12: =+IF(AB$10<=Inputs!$L$16,1,0) -> 1 | AC12: =+IF(AC$10<=Inputs!$L$16,1,0) -> 1 | AD12: =+IF(AD$10<=Inputs!$L$16,1,0) -> 1 | AE12: =+IF(AE$10<=Inputs!$L$16,1,0) -> 1 | AF12: =+IF(AF$10<=Inputs!$L$16,1,0) -> 1 | AG12: =+IF(AG$10<=Inputs!$L$16,1,0) -> 1 | AH12: =+IF(AH$10<=Inputs!$L$16,1,0) -> 1 | AI12: =+IF(AI$10<=Inputs!$L$16,1,0) -> 1 | AJ12: =+IF(AJ$10<=Inputs!$L$16,1,0) -> 1 | AK12: =+IF(AK$10<=Inputs!$L$16,1,0) -> 1 | AL12: =+IF(AL$10<=Inputs!$L$16,1,0) -> 1 | AM12: =+IF(AM$10<=Inputs!$L$16,1,0) -> 1 | AN12: =+IF(AN$10<=Inputs!$L$16,1,0) -> 1 | AO12: =+IF(AO$10<=Inputs!$L$16,1,0) -> 1 | AP12: =+IF(AP$10<=Inputs!$L$16,1,0) -> 1 | AQ12: =+IF(AQ$10<=Inputs!$L$16,1,0) -> 1 | AR12: =+IF(AR$10<=Inputs!$L$16,1,0) -> 1 | AS12: =+IF(AS$10<=Inputs!$L$16,1,0) -> 1 | AT12: =+IF(AT$10<=Inputs!$L$16,1,0) -> 1 | AU12: =+IF(AU$10<=Inputs!$L$16,1,0) -> 1 | AV12: =+IF(AV$10<=Inputs!$L$16,1,0) -> 1 | AW12: =+IF(AW$10<=Inputs!$L$16,1,0) -> 1 | AX12: =+IF(AX$10<=Inputs!$L$16,1,0) -> 1 | AY12: =+IF(AY$10<=Inputs!$L$16,1,0) -> 1 | AZ12: =+IF(AZ$10<=Inputs!$L$16,1,0) -> 1 | BA12: =+IF(BA$10<=Inputs!$L$16,1,0) -> 1 | BB12: =+IF(BB$10<=Inputs!$L$16,1,0) -> 1 | BC12: =+IF(BC$10<=Inputs!$L$16,1,0) -> 1 | BD12: =+IF(BD$10<=Inputs!$L$16,1,0) -> 1 | BE12: =+IF(BE$10<=Inputs!$L$16,1,0) -> 1 | BF12: =+IF(BF$10<=Inputs!$L$16,1,0) -> 1 | BG12: =+IF(BG$10<=Inputs!$L$16,1,0) -> 1 | BH12: =+IF(BH$10<=Inputs!$L$16,1,0) -> 1 | BI12: =+IF(BI$10<=Inputs!$L$16,1,0) -> 1 | BJ12: =+IF(BJ$10<=Inputs!$L$16,1,0) -> 1 | BK12: =+IF(BK$10<=Inputs!$L$16,1,0) -> 1 | BL12: =+IF(BL$10<=Inputs!$L$16,1,0) -> 1 | BM12: =+IF(BM$10<=Inputs!$L$16,1,0) -> 1 | BN12: =+IF(BN$10<=Inputs!$L$16,1,0) -> 1 | BO12: =+IF(BO$10<=Inputs!$L$16,1,0) -> 1 | BP12: =+IF(BP$10<=Inputs!$L$16,1,0) -> 1 | BQ12: =+IF(BQ$10<=Inputs!$L$16,1,0) -> 1 | BR12: =+IF(BR$10<=Inputs!$L$16,1,0) -> 1 | BS12: =+IF(BS$10<=Inputs!$L$16,1,0) -> 1 | BT12: =+IF(BT$10<=Inputs!$L$16,1,0) -> 1 | BU12: =+IF(BU$10<=Inputs!$L$16,1,0) -> 1 | BV12: =+IF(BV$10<=Inputs!$L$16,1,0) -> 1 | BW12: =+IF(BW$10<=Inputs!$L$16,1,0) -> 1 | BX12: =+IF(BX$10<=Inputs!$L$16,1,0) -> 1 | BY12: =+IF(BY$10<=Inputs!$L$16,1,0) -> 1 | BZ12: =+IF(BZ$10<=Inputs!$L$16,1,0) -> 1 | CA12: =+IF(CA$10<=Inputs!$L$16,1,0) -> 1 | CB12: =+IF(CB$10<=Inputs!$L$16,1,0) -> 1 | CC12: =+IF(CC$10<=Inputs!$L$16,1,0) -> 1 | CD12: =+IF(CD$10<=Inputs!$L$16,1,0) -> 1 | CE12: =+IF(CE$10<=Inputs!$L$16,1,0) -> 1 | CF12: =+IF(CF$10<=Inputs!$L$16,1,0) -> 1 | CG12: =+IF(CG$10<=Inputs!$L$16,1,0) -> 1 | CH12: =+IF(CH$10<=Inputs!$L$16,1,0) -> 1 | CI12: =+IF(CI$10<=Inputs!$L$16,1,0) -> 1 | CJ12: =+IF(CJ$10<=Inputs!$L$16,1,0) -> 1 | CK12: =+IF(CK$10<=Inputs!$L$16,1,0) -> 1 | CL12: =+IF(CL$10<=Inputs!$L$16,1,0) -> 1 | CM12: =+IF(CM$10<=Inputs!$L$16,1,0) -> 1 | CN12: =+IF(CN$10<=Inputs!$L$16,1,0) -> 1 | CO12: =+IF(CO$10<=Inputs!$L$16,1,0) -> 1 | CP12: =+IF(CP$10<=Inputs!$L$16,1,0) -> 1 | CQ12: =+IF(CQ$10<=Inputs!$L$16,1,0) -> 1 | CR12: =+IF(CR$10<=Inputs!$L$16,1,0) -> 1
B13: Days in the period | K13: Days | O13: =+O10-O9+1 -> 365 | P13: 365 | Q13: 365 | R13: 366 | S13: 365 | T13: 365 | U13: 365 | V13: 366 | W13: 365 | X13: 365 | Y13: 365 | Z13: 366 | AA13: 365 | AB13: 365 | AC13: 365 | AD13: 366 | AE13: 365 | AF13: 365 | AG13: 365 | AH13: 366 | AI13: 365 | AJ13: 365 | AK13: 365 | AL13: 366 | AM13: 365 | AN13: 365 | AO13: 365 | AP13: 366 | AQ13: 365 | AR13: 365 | AS13: 365 | AT13: 366 | AU13: =+AU10-AU9+1 -> 365 | AV13: 365 | AW13: 365 | AX13: 366 | AY13: 365 | AZ13: 365 | BA13: 365 | BB13: 366 | BC13: 365 | BD13: 365 | BE13: 365 | BF13: 366 | BG13: 365 | BH13: 365 | BI13: 365 | BJ13: 366 | BK13: 365 | BL13: 365 | BM13: 365 | BN13: 366 | BO13: 365 | BP13: 365 | BQ13: 365 | BR13: 366 | BS13: 365 | BT13: 365 | BU13: 365 | BV13: 366 | BW13: 365 | BX13: 365 | BY13: 365 | BZ13: 366 | CA13: =+CA10-CA9+1 -> 365 | CB13: 365 | CC13: 365 | CD13: 366 | CE13: 365 | CF13: 365 | CG13: 365 | CH13: 366 | CI13: 365 | CJ13: 365 | CK13: 365 | CL13: 366 | CM13: 365 | CN13: 365 | CO13: 365 | CP13: 366 | CQ13: 365 | CR13: 365
B15: Summary
B17: Total Debt
B18: Opening Balance | K18: MCAD | P18: =+O21 -> 8,340.3 | Q18: 8,684.3 | R18: =+Q21 -> 8,948.5 | S18: =+R21 -> 9,220.6 | T18: =+S21 -> 9,501.0 | U18: =+T21 -> 9,943.1 | V18: =+U21 -> 10,405.6 | W18: =+V21 -> 10,889.5 | X18: =+W21 -> 11,395.8 | Y18: =+X21 -> 11,925.6 | Z18: =+Y21 -> 12,320.4 | AA18: =+Z21 -> 12,728.2 | AB18: =+AA21 -> 13,149.4 | AC18: =+AB21 -> 13,584.5 | AD18: =+AC21 -> 14,034.0 | AE18: =+AD21 -> 14,330.8 | AF18: =+AE21 -> 14,633.8 | AG18: =+AF21 -> 14,943.2 | AH18: =+AG21 -> 15,259.1 | AI18: =+AH21 -> 15,581.7 | AJ18: =+AI21 -> 15,706.6 | AK18: =+AJ21 -> 15,832.6 | AL18: =+AK21 -> 15,959.6 | AM18: =+AL21 -> 16,087.6 | AN18: =+AM21 -> 16,216.6 | AO18: =+AN21 -> 16,216.6 | AP18: =+AO21 -> 16,216.6 | AQ18: =+AP21 -> 16,216.6 | AR18: =+AQ21 -> 16,216.6 | AS18: =+AR21 -> 16,216.6 | AT18: =+AS21 -> 16,216.6 | AU18: =+AT21 -> 16,216.6 | AV18: =+AU21 -> 16,216.6 | AW18: =+AV21 -> 16,216.6 | AX18: =+AW21 -> 16,216.6 | AY18: =+AX21 -> 16,216.6 | AZ18: =+AY21 -> 16,216.6 | BA18: =+AZ21 -> 16,216.6 | BB18: =+BA21 -> 16,216.6 | BC18: =+BB21 -> 16,216.6 | BD18: =+BC21 -> 16,216.6 | BE18: =+BD21 -> 16,216.6 | BF18: =+BE21 -> 16,216.6 | BG18: =+BF21 -> 16,051.7 | BH18: =+BG21 -> 15,851.1 | BI18: =+BH21 -> 15,610.2 | BJ18: =+BI21 -> 15,326.9 | BK18: =+BJ21 -> 14,997.5 | BL18: =+BK21 -> 14,620.8 | BM18: =+BL21 -> 14,525.4 | BN18: =+BM21 -> 14,400.3 | BO18: =+BN21 -> 14,242.9 | BP18: =+BO21 -> 14,052.5 | BQ18: =+BP21 -> 13,825.0 | BR18: =+BQ21 -> 13,558.3 | BS18: =+BR21 -> 13,248.9 | BT18: =+BS21 -> 12,895.9 | BU18: =+BT21 -> 12,494.4 | BV18: =+BU21 -> 12,041.5 | BW18: =+BV21 -> 11,533.1 | BX18: =+BW21 -> 10,967.7 | BY18: =+BX21 -> 10,339.4 | BZ18: =+BY21 -> 9,644.7 | CA18: =+BZ21 -> 8,878.3 | CB18: =+CA21 -> 8,038.4 | CC18: =+CB21 -> 7,117.5 | CD18: =+CC21 -> 6,111.4 | CE18: =+CD21 -> 5,013.7 | CF18: =+CE21 -> 3,821.6 | CG18: =+CF21 -> 2,526.3 | CH18: =+CG21 -> 1,122.4 | CI18: =+CH21 -> 0.0 | CJ18: =+CI21 -> 0.0 | CK18: =+CJ21 -> 0.0 | CL18: =+CK21 -> 0.0 | CM18: =+CL21 -> 0.0 | CN18: =+CM21 -> 0.0 | CO18: =+CN21 -> 0.0 | CP18: =+CO21 -> 0.0 | CQ18: =+CP21 -> 0.0 | CR18: =+CQ21 -> 0.0
B19: Draw | K19: MCAD | M19: =+SUM(P19:CS19) -> 17,017 | P19: =+P25+P31 -> 800.0 | Q19: =+Q25+Q31 -> 282.4 | R19: =+R25+R31 -> 591.1 | S19: 1,020.0 | T19: 762.6 | U19: 483.9 | V19: 756.2 | W19: 529.6 | X19: 907.1 | Y19: 770.0 | Z19: 434.1 | AA19: 848.7 | AB19: 463.8 | AC19: 869.2 | AD19: 327.9 | AE19: 585.5 | AF19: 343.4 | AG19: 691.4 | AH19: 839.6 | AI19: 163.7 | AJ19: 157.1 | AK19: 167.3 | AL19: 293.0 | AM19: 479.0 | AN19: 400.0 | AO19: 0 | AP19: 500.0 | AQ19: 150.0 | AR19: 500.0 | AS19: 500.0 | AT19: 0 | AU19: 800.0 | AV19: 0 | AW19: 0 | AX19: 400.0 | AY19: 200.0 | AZ19: 0 | BA19: 0 | BB19: 0 | BC19: 0 | BD19: 0 | BE19: 0 | BF19: 0 | BG19: 0 | BH19: 0 | BI19: 0 | BJ19: 0 | BK19: 0 | BL19: 0 | BM19: 0 | BN19: 0 | BO19: 0 | BP19: 0 | BQ19: 0 | BR19: 0 | BS19: 0 | BT19: 0 | BU19: 0 | BV19: 0 | BW19: 0 | BX19: 0 | BY19: 0 | BZ19: 0 | CA19: 0 | CB19: 0 | CC19: 0 | CD19: =+CD25+CD31 -> 0 | CE19: 0 | CF19: 0 | CG19: 0 | CH19: 0 | CI19: 0 | CJ19: 0 | CK19: 0 | CL19: 0 | CM19: 0 | CN19: 0 | CO19: 0 | CP19: 0 | CQ19: 0 | CR19: 0
B20: Principal repayments | K20: MCAD | M20: =+SUM(P20:CS20) -> (25,357) | P20: =+P26+P32 -> (456.0) | Q20: (18.2) | R20: =+R26+R32 -> (319.0) | S20: (739.6) | T20: (320.6) | U20: (21.4) | V20: (272.3) | W20: (23.2) | X20: (377.3) | Y20: (375.2) | Z20: (26.3) | AA20: (427.4) | AB20: (28.6) | AC20: (419.7) | AD20: (31.2) | AE20: (282.5) | AF20: (34.0) | AG20: (375.5) | AH20: (517.0) | AI20: (38.7) | AJ20: (31.2) | AK20: (40.3) | AL20: (165.0) | AM20: (350.0) | AN20: (400.0) | AO20: 0 | AP20: (500.0) | AQ20: (150.0) | AR20: (500.0) | AS20: (500.0) | AT20: 0 | AU20: (800.0) | AV20: 0 | AW20: 0 | AX20: (400.0) | AY20: (200.0) | AZ20: 0 | BA20: 0 | BB20: 0 | BC20: 0 | BD20: 0 | BE20: 0 | BF20: (164.9) | BG20: (200.6) | BH20: (240.8) | BI20: (283.3) | BJ20: (329.4) | BK20: (376.7) | BL20: (95.5) | BM20: (125.1) | BN20: (157.4) | BO20: (190.4) | BP20: (227.5) | BQ20: (266.7) | BR20: (309.4) | BS20: (353.0) | BT20: (401.6) | BU20: (452.9) | BV20: (508.4) | BW20: (565.3) | BX20: (628.3) | BY20: (694.7) | BZ20: (766.3) | CA20: (840.0) | CB20: (920.9) | CC20: (1,006.1) | CD20: =+CD26+CD32 -> (1,097.7) | CE20: (1,192.1) | CF20: (1,295.3) | CG20: (1,403.9) | CH20: (1,122.4) | CI20: 0 | CJ20: 0 | CK20: 0 | CL20: 0 | CM20: 0 | CN20: 0 | CO20: 0 | CP20: 0 | CQ20: 0 | CR20: 0
B21: Closing Balance | K21: MCAD | O21: =+O27+O33 -> 8,340.3 | P21: =+SUM(P18:P20) -> 8,684.3 | Q21: 8,948.5 | R21: =+SUM(R18:R20) -> 9,220.6 | S21: 9,501.0 | T21: 9,943.1 | U21: 10,405.6 | V21: 10,889.5 | W21: 11,395.8 | X21: 11,925.6 | Y21: 12,320.4 | Z21: 12,728.2 | AA21: 13,149.4 | AB21: 13,584.5 | AC21: 14,034.0 | AD21: 14,330.8 | AE21: 14,633.8 | AF21: 14,943.2 | AG21: 15,259.1 | AH21: 15,581.7 | AI21: 15,706.6 | AJ21: 15,832.6 | AK21: 15,959.6 | AL21: 16,087.6 | AM21: 16,216.6 | AN21: 16,216.6 | AO21: 16,216.6 | AP21: 16,216.6 | AQ21: 16,216.6 | AR21: 16,216.6 | AS21: 16,216.6 | AT21: 16,216.6 | AU21: 16,216.6 | AV21: 16,216.6 | AW21: 16,216.6 | AX21: 16,216.6 | AY21: 16,216.6 | AZ21: 16,216.6 | BA21: 16,216.6 | BB21: 16,216.6 | BC21: 16,216.6 | BD21: 16,216.6 | BE21: 16,216.6 | BF21: 16,051.7 | BG21: 15,851.1 | BH21: 15,610.2 | BI21: 15,326.9 | BJ21: 14,997.5 | BK21: 14,620.8 | BL21: 14,525.4 | BM21: 14,400.3 | BN21: 14,242.9 | BO21: 14,052.5 | BP21: 13,825.0 | BQ21: 13,558.3 | BR21: 13,248.9 | BS21: 12,895.9 | BT21: 12,494.4 | BU21: 12,041.5 | BV21: 11,533.1 | BW21: 10,967.7 | BX21: 10,339.4 | BY21: 9,644.7 | BZ21: 8,878.3 | CA21: 8,038.4 | CB21: 7,117.5 | CC21: 6,111.4 | CD21: =+SUM(CD18:CD20) -> 5,013.7 | CE21: 3,821.6 | CF21: 2,526.3 | CG21: 1,122.4 | CH21: 0.0 | CI21: 0.0 | CJ21: 0.0 | CK21: 0.0 | CL21: 0.0 | CM21: 0.0 | CN21: 0.0 | CO21: 0.0 | CP21: 0.0 | CQ21: 0.0 | CR21: 0.0
B23: Current Debt
B24: Opening Balance | K24: MCAD | P24: =+O27 -> 8,340.3 | Q24: 8,684.3 | R24: =+Q27 -> 8,666.1 | S24: =+R27 -> 8,347.1 | T24: =+S27 -> 7,607.5 | U24: =+T27 -> 7,287.0 | V24: =+U27 -> 7,265.6 | W24: =+V27 -> 6,993.2 | X24: =+W27 -> 6,970.0 | Y24: =+X27 -> 6,592.7 | Z24: =+Y27 -> 6,217.4 | AA24: =+Z27 -> 6,191.1 | AB24: =+AA27 -> 5,763.7 | AC24: =+AB27 -> 5,735.0 | AD24: =+AC27 -> 5,315.3 | AE24: =+AD27 -> 5,284.1 | AF24: =+AE27 -> 5,001.6 | AG24: =+AF27 -> 4,967.7 | AH24: =+AG27 -> 4,592.2 | AI24: =+AH27 -> 4,075.2 | AJ24: =+AI27 -> 4,036.5 | AK24: =+AJ27 -> 4,005.3 | AL24: =+AK27 -> 3,965.0 | AM24: =+AL27 -> 3,800.0 | AN24: =+AM27 -> 3,450.0 | AO24: =+AN27 -> 3,050.0 | AP24: =+AO27 -> 3,050.0 | AQ24: =+AP27 -> 2,550.0 | AR24: =+AQ27 -> 2,400.0 | AS24: =+AR27 -> 1,900.0 | AT24: =+AS27 -> 1,400.0 | AU24: =+AT27 -> 1,400.0 | AV24: =+AU27 -> 600.0 | AW24: =+AV27 -> 600.0 | AX24: =+AW27 -> 600.0 | AY24: =+AX27 -> 200.0 | AZ24: =+AY27 -> 0.0 | BA24: =+AZ27 -> 0.0 | BB24: =+BA27 -> 0.0 | BC24: =+BB27 -> 0.0 | BD24: =+BC27 -> 0.0 | BE24: =+BD27 -> 0.0 | BF24: =+BE27 -> 0.0 | BG24: =+BF27 -> 0.0 | BH24: =+BG27 -> 0.0 | BI24: =+BH27 -> 0.0 | BJ24: =+BI27 -> 0.0 | BK24: =+BJ27 -> 0.0 | BL24: =+BK27 -> 0.0 | BM24: =+BL27 -> 0.0 | BN24: =+BM27 -> 0.0 | BO24: =+BN27 -> 0.0 | BP24: =+BO27 -> 0.0 | BQ24: =+BP27 -> 0.0 | BR24: =+BQ27 -> 0.0 | BS24: =+BR27 -> 0.0 | BT24: =+BS27 -> 0.0 | BU24: =+BT27 -> 0.0 | BV24: =+BU27 -> 0.0 | BW24: =+BV27 -> 0.0 | BX24: =+BW27 -> 0.0 | BY24: =+BX27 -> 0.0 | BZ24: =+BY27 -> 0.0 | CA24: =+BZ27 -> 0.0 | CB24: =+CA27 -> 0.0 | CC24: =+CB27 -> 0.0 | CD24: =+CC27 -> 0.0 | CE24: =+CD27 -> 0.0 | CF24: =+CE27 -> 0.0 | CG24: =+CF27 -> 0.0 | CH24: =+CG27 -> 0.0 | CI24: =+CH27 -> 0.0 | CJ24: =+CI27 -> 0.0 | CK24: =+CJ27 -> 0.0 | CL24: =+CK27 -> 0.0 | CM24: =+CL27 -> 0.0 | CN24: =+CM27 -> 0.0 | CO24: =+CN27 -> 0.0 | CP24: =+CO27 -> 0.0 | CQ24: =+CP27 -> 0.0 | CR24: =+CQ27 -> 0.0
B25: Draw | K25: MCAD | M25: =+SUM(P25:CS25) -> 800 | P25: =+P53 -> 800.0 | Q25: =+Q53 -> 0 | R25: =+R53 -> 0 | S25: 0 | T25: 0 | U25: 0 | V25: 0 | W25: 0 | X25: 0 | Y25: 0 | Z25: 0 | AA25: 0 | AB25: 0 | AC25: 0 | AD25: 0 | AE25: 0 | AF25: 0 | AG25: 0 | AH25: 0 | AI25: 0 | AJ25: 0 | AK25: 0 | AL25: 0 | AM25: 0 | AN25: 0 | AO25: 0 | AP25: 0 | AQ25: 0 | AR25: 0 | AS25: 0 | AT25: 0 | AU25: 0 | AV25: 0 | AW25: 0 | AX25: 0 | AY25: 0 | AZ25: 0 | BA25: 0 | BB25: 0 | BC25: 0 | BD25: 0 | BE25: 0 | BF25: 0 | BG25: 0 | BH25: 0 | BI25: 0 | BJ25: 0 | BK25: 0 | BL25: 0 | BM25: 0 | BN25: 0 | BO25: 0 | BP25: 0 | BQ25: 0 | BR25: 0 | BS25: 0 | BT25: 0 | BU25: 0 | BV25: 0 | BW25: 0 | BX25: 0 | BY25: 0 | BZ25: 0 | CA25: 0 | CB25: 0 | CC25: 0 | CD25: =+CD53 -> 0 | CE25: 0 | CF25: 0 | CG25: 0 | CH25: 0 | CI25: 0 | CJ25: 0 | CK25: 0 | CL25: 0 | CM25: 0 | CN25: 0 | CO25: 0 | CP25: 0 | CQ25: 0 | CR25: 0
B26: Principal repayments | K26: MCAD | M26: =+SUM(P26:CS26) -> (9,140) | P26: =+P54 -> (456.0) | Q26: (18.2) | R26: =+R54 -> (319.0) | S26: (739.6) | T26: (320.6) | U26: (21.4) | V26: (272.3) | W26: (23.2) | X26: (377.3) | Y26: (375.2) | Z26: (26.3) | AA26: (427.4) | AB26: (28.6) | AC26: (419.7) | AD26: (31.2) | AE26: (282.5) | AF26: (34.0) | AG26: (375.5) | AH26: (517.0) | AI26: (38.7) | AJ26: (31.2) | AK26: (40.3) | AL26: (165.0) | AM26: (350.0) | AN26: (400.0) | AO26: 0 | AP26: (500.0) | AQ26: (150.0) | AR26: (500.0) | AS26: (500.0) | AT26: 0 | AU26: (800.0) | AV26: 0 | AW26: 0 | AX26: (400.0) | AY26: (200.0) | AZ26: 0 | BA26: 0 | BB26: 0 | BC26: 0 | BD26: 0 | BE26: 0 | BF26: 0 | BG26: 0 | BH26: 0 | BI26: 0 | BJ26: 0 | BK26: 0 | BL26: 0 | BM26: 0 | BN26: 0 | BO26: 0 | BP26: 0 | BQ26: 0 | BR26: 0 | BS26: 0 | BT26: 0 | BU26: 0 | BV26: 0 | BW26: 0 | BX26: 0 | BY26: 0 | BZ26: 0 | CA26: 0 | CB26: 0 | CC26: 0 | CD26: =+CD54 -> 0 | CE26: 0 | CF26: 0 | CG26: 0 | CH26: 0 | CI26: 0 | CJ26: 0 | CK26: 0 | CL26: 0 | CM26: 0 | CN26: 0 | CO26: 0 | CP26: 0 | CQ26: 0 | CR26: 0
B27: Closing Balance | K27: MCAD | O27: =+O55 -> 8,340.3 | P27: =+SUM(P24:P26) -> 8,684.3 | Q27: 8,666.1 | R27: =+SUM(R24:R26) -> 8,347.1 | S27: 7,607.5 | T27: 7,287.0 | U27: 7,265.6 | V27: 6,993.2 | W27: 6,970.0 | X27: 6,592.7 | Y27: 6,217.4 | Z27: 6,191.1 | AA27: 5,763.7 | AB27: 5,735.0 | AC27: 5,315.3 | AD27: 5,284.1 | AE27: 5,001.6 | AF27: 4,967.7 | AG27: 4,592.2 | AH27: 4,075.2 | AI27: 4,036.5 | AJ27: 4,005.3 | AK27: 3,965.0 | AL27: 3,800.0 | AM27: 3,450.0 | AN27: 3,050.0 | AO27: 3,050.0 | AP27: 2,550.0 | AQ27: 2,400.0 | AR27: 1,900.0 | AS27: 1,400.0 | AT27: 1,400.0 | AU27: 600.0 | AV27: 600.0 | AW27: 600.0 | AX27: 200.0 | AY27: 0.0 | AZ27: 0.0 | BA27: 0.0 | BB27: 0.0 | BC27: 0.0 | BD27: 0.0 | BE27: 0.0 | BF27: 0.0 | BG27: 0.0 | BH27: 0.0 | BI27: 0.0 | BJ27: 0.0 | BK27: 0.0 | BL27: 0.0 | BM27: 0.0 | BN27: 0.0 | BO27: 0.0 | BP27: 0.0 | BQ27: 0.0 | BR27: 0.0 | BS27: 0.0 | BT27: 0.0 | BU27: 0.0 | BV27: 0.0 | BW27: 0.0 | BX27: 0.0 | BY27: 0.0 | BZ27: 0.0 | CA27: 0.0 | CB27: 0.0 | CC27: 0.0 | CD27: =+SUM(CD24:CD26) -> 0.0 | CE27: 0.0 | CF27: 0.0 | CG27: 0.0 | CH27: 0.0 | CI27: 0.0 | CJ27: 0.0 | CK27: 0.0 | CL27: 0.0 | CM27: 0.0 | CN27: 0.0 | CO27: 0.0 | CP27: 0.0 | CQ27: 0.0 | CR27: 0.0
B29: Refinancing/Senior additional leverage
B30: Opening Balance | K30: MCAD | P30: =+O33 -> 0 | Q30: 0 | R30: =+Q33 -> 282.4 | S30: =+R33 -> 873.5 | T30: =+S33 -> 1,893.5 | U30: =+T33 -> 2,656.1 | V30: =+U33 -> 3,140.0 | W30: =+V33 -> 3,896.2 | X30: =+W33 -> 4,425.8 | Y30: =+X33 -> 5,332.9 | Z30: =+Y33 -> 6,102.9 | AA30: =+Z33 -> 6,537.1 | AB30: =+AA33 -> 7,385.7 | AC30: =+AB33 -> 7,849.5 | AD30: =+AC33 -> 8,718.7 | AE30: =+AD33 -> 9,046.6 | AF30: =+AE33 -> 9,632.2 | AG30: =+AF33 -> 9,975.5 | AH30: =+AG33 -> 10,666.9 | AI30: =+AH33 -> 11,506.5 | AJ30: =+AI33 -> 11,670.2 | AK30: =+AJ33 -> 11,827.3 | AL30: =+AK33 -> 11,994.6 | AM30: =+AL33 -> 12,287.6 | AN30: =+AM33 -> 12,766.6 | AO30: =+AN33 -> 13,166.6 | AP30: =+AO33 -> 13,166.6 | AQ30: =+AP33 -> 13,666.6 | AR30: =+AQ33 -> 13,816.6 | AS30: =+AR33 -> 14,316.6 | AT30: =+AS33 -> 14,816.6 | AU30: =+AT33 -> 14,816.6 | AV30: =+AU33 -> 15,616.6 | AW30: =+AV33 -> 15,616.6 | AX30: =+AW33 -> 15,616.6 | AY30: =+AX33 -> 16,016.6 | AZ30: =+AY33 -> 16,216.6 | BA30: =+AZ33 -> 16,216.6 | BB30: =+BA33 -> 16,216.6 | BC30: =+BB33 -> 16,216.6 | BD30: =+BC33 -> 16,216.6 | BE30: =+BD33 -> 16,216.6 | BF30: =+BE33 -> 16,216.6 | BG30: =+BF33 -> 16,051.7 | BH30: =+BG33 -> 15,851.1 | BI30: =+BH33 -> 15,610.2 | BJ30: =+BI33 -> 15,326.9 | BK30: =+BJ33 -> 14,997.5 | BL30: =+BK33 -> 14,620.8 | BM30: =+BL33 -> 14,525.4 | BN30: =+BM33 -> 14,400.3 | BO30: =+BN33 -> 14,242.9 | BP30: =+BO33 -> 14,052.5 | BQ30: =+BP33 -> 13,825.0 | BR30: =+BQ33 -> 13,558.3 | BS30: =+BR33 -> 13,248.9 | BT30: =+BS33 -> 12,895.9 | BU30: =+BT33 -> 12,494.4 | BV30: =+BU33 -> 12,041.5 | BW30: =+BV33 -> 11,533.1 | BX30: =+BW33 -> 10,967.7 | BY30: =+BX33 -> 10,339.4 | BZ30: =+BY33 -> 9,644.7 | CA30: =+BZ33 -> 8,878.3 | CB30: =+CA33 -> 8,038.4 | CC30: =+CB33 -> 7,117.5 | CD30: =+CC33 -> 6,111.4 | CE30: =+CD33 -> 5,013.7 | CF30: =+CE33 -> 3,821.6 | CG30: =+CF33 -> 2,526.3 | CH30: =+CG33 -> 1,122.4 | CI30: =+CH33 -> 0.0 | CJ30: =+CI33 -> 0.0 | CK30: =+CJ33 -> 0.0 | CL30: =+CK33 -> 0.0 | CM30: =+CL33 -> 0.0 | CN30: =+CM33 -> 0.0 | CO30: =+CN33 -> 0.0 | CP30: =+CO33 -> 0.0 | CQ30: =+CP33 -> 0.0 | CR30: =+CQ33 -> 0.0
B31: Draw | K31: MCAD | M31: =+SUM(P31:CS31) -> 16,217 | P31: =+SUM(P71:P73) -> 0 | Q31: =+SUM(Q71:Q73) -> 282.4 | R31: =+SUM(R71:R73) -> 591.1 | S31: 1,020.0 | T31: 762.6 | U31: 483.9 | V31: 756.2 | W31: 529.6 | X31: 907.1 | Y31: 770.0 | Z31: 434.1 | AA31: 848.7 | AB31: 463.8 | AC31: 869.2 | AD31: 327.9 | AE31: 585.5 | AF31: 343.4 | AG31: 691.4 | AH31: 839.6 | AI31: 163.7 | AJ31: 157.1 | AK31: 167.3 | AL31: 293.0 | AM31: 479.0 | AN31: 400.0 | AO31: 0 | AP31: 500.0 | AQ31: 150.0 | AR31: 500.0 | AS31: 500.0 | AT31: 0 | AU31: 800.0 | AV31: 0 | AW31: 0 | AX31: 400.0 | AY31: 200.0 | AZ31: 0 | BA31: 0 | BB31: 0 | BC31: 0 | BD31: 0 | BE31: 0 | BF31: 0 | BG31: 0 | BH31: 0 | BI31: 0 | BJ31: 0 | BK31: 0 | BL31: 0 | BM31: 0 | BN31: 0 | BO31: 0 | BP31: 0 | BQ31: 0 | BR31: 0 | BS31: 0 | BT31: 0 | BU31: 0 | BV31: 0 | BW31: 0 | BX31: 0 | BY31: 0 | BZ31: 0 | CA31: 0 | CB31: 0 | CC31: 0 | CD31: =+SUM(CD71:CD73) -> 0 | CE31: 0 | CF31: 0 | CG31: 0 | CH31: 0 | CI31: 0 | CJ31: 0 | CK31: 0 | CL31: 0 | CM31: 0 | CN31: 0 | CO31: 0 | CP31: 0 | CQ31: 0 | CR31: 0
B32: Principal repayments | K32: MCAD | M32: =+SUM(P32:CS32) -> (16,217) | P32: =+P74 -> 0 | Q32: 0 | R32: =+R74 -> 0 | S32: 0 | T32: 0 | U32: 0 | V32: 0 | W32: 0 | X32: 0 | Y32: 0 | Z32: 0 | AA32: 0 | AB32: 0 | AC32: 0 | AD32: 0 | AE32: 0 | AF32: 0 | AG32: 0 | AH32: 0 | AI32: 0 | AJ32: 0 | AK32: 0 | AL32: 0 | AM32: 0 | AN32: 0 | AO32: 0 | AP32: 0 | AQ32: 0 | AR32: 0 | AS32: 0 | AT32: 0 | AU32: 0 | AV32: 0 | AW32: 0 | AX32: 0 | AY32: 0 | AZ32: 0 | BA32: 0 | BB32: 0 | BC32: 0 | BD32: 0 | BE32: 0 | BF32: (164.9) | BG32: (200.6) | BH32: (240.8) | BI32: (283.3) | BJ32: (329.4) | BK32: (376.7) | BL32: (95.5) | BM32: (125.1) | BN32: (157.4) | BO32: (190.4) | BP32: (227.5) | BQ32: (266.7) | BR32: (309.4) | BS32: (353.0) | BT32: (401.6) | BU32: (452.9) | BV32: (508.4) | BW32: (565.3) | BX32: (628.3) | BY32: (694.7) | BZ32: (766.3) | CA32: (840.0) | CB32: (920.9) | CC32: (1,006.1) | CD32: =+CD74 -> (1,097.7) | CE32: (1,192.1) | CF32: (1,295.3) | CG32: (1,403.9) | CH32: (1,122.4) | CI32: 0 | CJ32: 0 | CK32: 0 | CL32: 0 | CM32: 0 | CN32: 0 | CO32: 0 | CP32: 0 | CQ32: 0 | CR32: 0
B33: Closing Balance | K33: MCAD | O33: =+O75 -> 0 | P33: =+SUM(P30:P32) -> 0 | Q33: 282.4 | R33: =+SUM(R30:R32) -> 873.5 | S33: 1,893.5 | T33: 2,656.1 | U33: 3,140.0 | V33: 3,896.2 | W33: 4,425.8 | X33: 5,332.9 | Y33: 6,102.9 | Z33: 6,537.1 | AA33: 7,385.7 | AB33: 7,849.5 | AC33: 8,718.7 | AD33: 9,046.6 | AE33: 9,632.2 | AF33: 9,975.5 | AG33: 10,666.9 | AH33: 11,506.5 | AI33: 11,670.2 | AJ33: 11,827.3 | AK33: 11,994.6 | AL33: 12,287.6 | AM33: 12,766.6 | AN33: 13,166.6 | AO33: 13,166.6 | AP33: 13,666.6 | AQ33: 13,816.6 | AR33: 14,316.6 | AS33: 14,816.6 | AT33: 14,816.6 | AU33: 15,616.6 | AV33: 15,616.6 | AW33: 15,616.6 | AX33: 16,016.6 | AY33: 16,216.6 | AZ33: 16,216.6 | BA33: 16,216.6 | BB33: 16,216.6 | BC33: 16,216.6 | BD33: 16,216.6 | BE33: 16,216.6 | BF33: 16,051.7 | BG33: 15,851.1 | BH33: 15,610.2 | BI33: 15,326.9 | BJ33: 14,997.5 | BK33: 14,620.8 | BL33: 14,525.4 | BM33: 14,400.3 | BN33: 14,242.9 | BO33: 14,052.5 | BP33: 13,825.0 | BQ33: 13,558.3 | BR33: 13,248.9 | BS33: 12,895.9 | BT33: 12,494.4 | BU33: 12,041.5 | BV33: 11,533.1 | BW33: 10,967.7 | BX33: 10,339.4 | BY33: 9,644.7 | BZ33: 8,878.3 | CA33: 8,038.4 | CB33: 7,117.5 | CC33: 6,111.4 | CD33: =+SUM(CD30:CD32) -> 5,013.7 | CE33: 3,821.6 | CF33: 2,526.3 | CG33: 1,122.4 | CH33: 0.0 | CI33: 0.0 | CJ33: 0.0 | CK33: 0.0 | CL33: 0.0 | CM33: 0.0 | CN33: 0.0 | CO33: 0.0 | CP33: 0.0 | CQ33: 0.0 | CR33: 0.0
B35: Cash Accounts
B36: =+B96 -> R&R Reserve Fund | K36: MCAD | P36: =+P111 -> 68.0 | Q36: =+Q111 -> 83.4 | R36: =+R111 -> 81.1 | S36: 85.1 | T36: 89.3 | U36: 91.9 | V36: 92.8 | W36: 92.0 | X36: 89.5 | Y36: 87.0 | Z36: 85.4 | AA36: 84.8 | AB36: 85.1 | AC36: 86.2 | AD36: 87.4 | AE36: 89.1 | AF36: 91.4 | AG36: 94.4 | AH36: 98.0 | AI36: 101.7 | AJ36: 104.6 | AK36: 106.7 | AL36: 107.9 | AM36: 108.1 | AN36: 108.3 | AO36: 109.0 | AP36: 110.2 | AQ36: 111.9 | AR36: 114.2 | AS36: 116.4 | AT36: 118.8 | AU36: 121.1 | AV36: 123.6 | AW36: 126.0 | AX36: 128.6 | AY36: 131.1 | AZ36: 133.7 | BA36: 136.4 | BB36: 139.2 | BC36: 141.9 | BD36: 144.8 | BE36: 147.7 | BF36: 150.6 | BG36: 153.6 | BH36: 156.7 | BI36: 159.8 | BJ36: 163.0 | BK36: 166.3 | BL36: 169.6 | BM36: 173.0 | BN36: 176.5 | BO36: 180.0 | BP36: 183.6 | BQ36: 187.3 | BR36: 191.0 | BS36: 194.8 | BT36: 198.7 | BU36: 202.7 | BV36: 206.8 | BW36: 210.9 | BX36: 215.1 | BY36: 219.4 | BZ36: 223.8 | CA36: 228.3 | CB36: 232.9 | CC36: 237.5 | CD36: =+CD111 -> 242.3 | CE36: 247.1 | CF36: 252.1 | CG36: 257.1 | CH36: 262.2 | CI36: 267.5 | CJ36: 272.8 | CK36: 278.3 | CL36: 283.9 | CM36: 289.5 | CN36: 295.3 | CO36: 223.7 | CP36: 150.6 | CQ36: 76.0 | CR36: 0
B37: =+B113 -> O&M Reserve Fund | K37: MCAD | P37: =+P127 -> 90.0 | Q37: =+Q127 -> 100.7 | R37: =+R127 -> 104.1 | S37: 109.7 | T37: 115.9 | U37: 122.2 | V37: 128.9 | W37: 135.5 | X37: 142.8 | Y37: 150.0 | Z37: 157.4 | AA37: 166.2 | AB37: 175.2 | AC37: 183.4 | AD37: 191.0 | AE37: 199.0 | AF37: 206.9 | AG37: 216.8 | AH37: 226.2 | AI37: 236.0 | AJ37: 247.2 | AK37: 261.5 | AL37: 273.0 | AM37: 284.4 | AN37: 295.8 | AO37: 306.7 | AP37: 319.4 | AQ37: 331.8 | AR37: 345.0 | AS37: 358.9 | AT37: 372.1 | AU37: 387.9 | AV37: 403.5 | AW37: 416.3 | AX37: 430.3 | AY37: 444.9 | AZ37: 464.6 | BA37: 481.7 | BB37: 497.3 | BC37: 513.4 | BD37: 530.0 | BE37: 545.8 | BF37: 563.9 | BG37: 582.8 | BH37: 602.3 | BI37: 622.3 | BJ37: 643.0 | BK37: 663.8 | BL37: 685.0 | BM37: 707.1 | BN37: 729.8 | BO37: 753.3 | BP37: 777.6 | BQ37: 802.8 | BR37: 828.8 | BS37: 855.7 | BT37: 883.5 | BU37: 912.4 | BV37: 942.1 | BW37: 973.0 | BX37: 1,004.9 | BY37: 1,037.9 | BZ37: 1,072.0 | CA37: 1,107.4 | CB37: 1,144.0 | CC37: 1,182.0 | CD37: =+CD127 -> 1,221.2 | CE37: 1,261.8 | CF37: 1,303.8 | CG37: 1,346.4 | CH37: 1,387.6 | CI37: 1,429.4 | CJ37: 1,471.9 | CK37: 1,515.3 | CL37: 1,559.0 | CM37: 1,603.2 | CN37: 1,647.7 | CO37: 1,692.6 | CP37: 1,741.7 | CQ37: 1,741.7 | CR37: 0
B38: =+B129 -> East Tolling Reserve | K38: MCAD | P38: =+P131 -> 9.0 | Q38: =+Q131 -> 9.0 | R38: =+R131 -> 9.0 | S38: 9.0 | T38: 9.0 | U38: 9.0 | V38: 9.0 | W38: 9.0 | X38: 9.0 | Y38: 9.0 | Z38: 9.0 | AA38: 9.0 | AB38: 9.0 | AC38: 9.0 | AD38: 9.0 | AE38: 9.0 | AF38: 9.0 | AG38: 9.0 | AH38: 9.0 | AI38: 9.0 | AJ38: 9.0 | AK38: 9.0 | AL38: 9.0 | AM38: 9.0 | AN38: 9.0 | AO38: 9.0 | AP38: 9.0 | AQ38: 0 | AR38: 0 | AS38: 0 | AT38: 0 | AU38: 0 | AV38: 0 | AW38: 0 | AX38: 0 | AY38: 0 | AZ38: 0 | BA38: 0 | BB38: 0 | BC38: 0 | BD38: 0 | BE38: 0 | BF38: 0 | BG38: 0 | BH38: 0 | BI38: 0 | BJ38: 0 | BK38: 0 | BL38: 0 | BM38: 0 | BN38: 0 | BO38: 0 | BP38: 0 | BQ38: 0 | BR38: 0 | BS38: 0 | BT38: 0 | BU38: 0 | BV38: 0 | BW38: 0 | BX38: 0 | BY38: 0 | BZ38: 0 | CA38: 0 | CB38: 0 | CC38: 0 | CD38: =+CD131 -> 0 | CE38: 0 | CF38: 0 | CG38: 0 | CH38: 0 | CI38: 0 | CJ38: 0 | CK38: 0 | CL38: 0 | CM38: 0 | CN38: 0 | CO38: 0 | CP38: 0 | CQ38: 0 | CR38: 0
B39: =+B133 -> Debt Service Reserve Fund | K39: MCAD | P39: =+P142 -> 458.2 | Q39: =+Q142 -> 477.8 | R39: =+R142 -> 493.2 | S39: 498.3 | T39: 526.4 | U39: 554.3 | V39: 569.9 | W39: 604.5 | X39: 635.5 | Y39: 649.2 | Z39: 681.2 | AA39: 682.9 | AB39: 716.2 | AC39: 735.0 | AD39: 757.9 | AE39: 767.7 | AF39: 793.6 | AG39: 807.3 | AH39: 832.4 | AI39: 840.4 | AJ39: 848.6 | AK39: 811.1 | AL39: 817.2 | AM39: 817.9 | AN39: 804.3 | AO39: 816.8 | AP39: 805.5 | AQ39: 813.9 | AR39: 810.7 | AS39: 795.8 | AT39: 815.8 | AU39: 789.8 | AV39: 789.8 | AW39: 799.8 | AX39: 791.8 | AY39: 784.3 | AZ39: 784.3 | BA39: 784.3 | BB39: 784.3 | BC39: 784.3 | BD39: 784.3 | BE39: 971.7 | BF39: 998.2 | BG39: 1,027.4 | BH39: 1,056.7 | BI39: 1,087.6 | BJ39: 1,117.1 | BK39: 824.1 | BL39: 848.2 | BM39: 873.5 | BN39: 897.8 | BO39: 924.5 | BP39: 951.3 | BQ39: 979.6 | BR39: 1,006.6 | BS39: 1,036.3 | BT39: 1,066.3 | BU39: 1,097.8 | BV39: 1,127.9 | BW39: 1,161.0 | BX39: 1,194.3 | BY39: 1,229.4 | BZ39: 1,262.9 | CA39: 1,299.8 | CB39: 1,336.8 | CC39: 1,375.8 | CD39: =+CD142 -> 1,413.0 | CE39: 1,454.0 | CF39: 1,495.1 | CG39: 1,150.4 | CH39: 0 | CI39: 0.0 | CJ39: 0.0 | CK39: 0.0 | CL39: 0.0 | CM39: 0.0 | CN39: 0.0 | CO39: 0.0 | CP39: 0.0 | CQ39: 0.0 | CR39: 0
B40: =+B144 -> Debt Service Fund | K40: MCAD | P40: =+P146 -> 84.3 | Q40: =+Q146 -> 69.0 | R40: =+R146 -> 69.0 | S40: 69.0 | T40: 69.0 | U40: 69.0 | V40: 69.0 | W40: 69.0 | X40: 69.0 | Y40: 69.0 | Z40: 69.0 | AA40: 69.0 | AB40: 69.0 | AC40: 69.0 | AD40: 69.0 | AE40: 69.0 | AF40: 69.0 | AG40: 69.0 | AH40: 69.0 | AI40: 69.0 | AJ40: 69.0 | AK40: 69.0 | AL40: 69.0 | AM40: 69.0 | AN40: 69.0 | AO40: 69.0 | AP40: 69.0 | AQ40: 69.0 | AR40: 69.0 | AS40: 69.0 | AT40: 69.0 | AU40: 69.0 | AV40: 69.0 | AW40: 69.0 | AX40: 69.0 | AY40: 69.0 | AZ40: 69.0 | BA40: 69.0 | BB40: 69.0 | BC40: 69.0 | BD40: 69.0 | BE40: 69.0 | BF40: 69.0 | BG40: 69.0 | BH40: 69.0 | BI40: 69.0 | BJ40: 69.0 | BK40: 69.0 | BL40: 69.0 | BM40: 69.0 | BN40: 69.0 | BO40: 69.0 | BP40: 69.0 | BQ40: 69.0 | BR40: 69.0 | BS40: 69.0 | BT40: 69.0 | BU40: 69.0 | BV40: 69.0 | BW40: 69.0 | BX40: 69.0 | BY40: 69.0 | BZ40: 69.0 | CA40: 69.0 | CB40: 69.0 | CC40: 69.0 | CD40: =+CD146 -> 69.0 | CE40: 69.0 | CF40: 69.0 | CG40: 69.0 | CH40: 0 | CI40: 0 | CJ40: 0 | CK40: 0 | CL40: 0 | CM40: 0 | CN40: 0 | CO40: 0 | CP40: 0 | CQ40: 0 | CR40: 0
B41: =+B148 -> Working Capital Reserve | K41: MCAD | P41: =+P150 -> 10.0 | Q41: =+Q150 -> 10.0 | R41: =+R150 -> 10.0 | S41: 10.0 | T41: 10.0 | U41: 10.0 | V41: 10.0 | W41: 10.0 | X41: 10.0 | Y41: 10.0 | Z41: 10.0 | AA41: 10.0 | AB41: 10.0 | AC41: 10.0 | AD41: 10.0 | AE41: 10.0 | AF41: 10.0 | AG41: 10.0 | AH41: 10.0 | AI41: 10.0 | AJ41: 10.0 | AK41: 10.0 | AL41: 10.0 | AM41: 10.0 | AN41: 10.0 | AO41: 10.0 | AP41: 10.0 | AQ41: 10.0 | AR41: 10.0 | AS41: 10.0 | AT41: 10.0 | AU41: 10.0 | AV41: 10.0 | AW41: 10.0 | AX41: 10.0 | AY41: 10.0 | AZ41: 10.0 | BA41: 10.0 | BB41: 10.0 | BC41: 10.0 | BD41: 10.0 | BE41: 10.0 | BF41: 10.0 | BG41: 10.0 | BH41: 10.0 | BI41: 10.0 | BJ41: 10.0 | BK41: 10.0 | BL41: 10.0 | BM41: 10.0 | BN41: 10.0 | BO41: 10.0 | BP41: 10.0 | BQ41: 10.0 | BR41: 10.0 | BS41: 10.0 | BT41: 10.0 | BU41: 10.0 | BV41: 10.0 | BW41: 10.0 | BX41: 10.0 | BY41: 10.0 | BZ41: 10.0 | CA41: 10.0 | CB41: 10.0 | CC41: 10.0 | CD41: =+CD150 -> 10.0 | CE41: 10.0 | CF41: 10.0 | CG41: 10.0 | CH41: 10.0 | CI41: 10.0 | CJ41: 10.0 | CK41: 10.0 | CL41: 10.0 | CM41: 10.0 | CN41: 10.0 | CO41: 10.0 | CP41: 10.0 | CQ41: 10.0 | CR41: 0
B42: General funds | K42: MCAD | P42: =+CF!P55 -> 549.1 | Q42: =+CF!Q55 -> 372.3 | R42: =+CF!R55 -> 220.1 | S42: =+CF!S55 -> 61.1 | T42: =+CF!T55 -> 60.0 | U42: =+CF!U55 -> 80.6 | V42: =+CF!V55 -> 133.4 | W42: =+CF!W55 -> 190.7 | X42: =+CF!X55 -> 236.5 | Y42: =+CF!Y55 -> 188.3 | Z42: =+CF!Z55 -> 151.3 | AA42: =+CF!AA55 -> 174.2 | AB42: =+CF!AB55 -> 208.3 | AC42: =+CF!AC55 -> 301.5 | AD42: =+CF!AD55 -> 269.4 | AE42: =+CF!AE55 -> 273.5 | AF42: =+CF!AF55 -> 287.7 | AG42: =+CF!AG55 -> 335.5 | AH42: =+CF!AH55 -> 415.4 | AI42: =+CF!AI55 -> 349.1 | AJ42: =+CF!AJ55 -> 312.0 | AK42: =+CF!AK55 -> 363.7 | AL42: =+CF!AL55 -> 455.1 | AM42: =+CF!AM55 -> 599.9 | AN42: =+CF!AN55 -> 643.7 | AO42: =+CF!AO55 -> 667.2 | AP42: =+CF!AP55 -> 707.6 | AQ42: =+CF!AQ55 -> 746.7 | AR42: =+CF!AR55 -> 788.6 | AS42: =+CF!AS55 -> 840.0 | AT42: =+CF!AT55 -> 859.2 | AU42: =+CF!AU55 -> 910.1 | AV42: =+CF!AV55 -> 946.3 | AW42: =+CF!AW55 -> 976.8 | AX42: =+CF!AX55 -> 1,025.1 | AY42: =+CF!AY55 -> 987.6 | AZ42: =+CF!AZ55 -> 1,029.5 | BA42: =+CF!BA55 -> 1,055.1 | BB42: =+CF!BB55 -> 1,074.6 | BC42: =+CF!BC55 -> 1,148.8 | BD42: =+CF!BD55 -> 1,280.8 | BE42: =+CF!BE55 -> 1,288.2 | BF42: =+CF!BF55 -> 1,338.2 | BG42: =+CF!BG55 -> 1,422.1 | BH42: =+CF!BH55 -> 1,447.9 | BI42: =+CF!BI55 -> 1,409.3 | BJ42: =+CF!BJ55 -> 1,303.1 | BK42: =+CF!BK55 -> 1,446.7 | BL42: =+CF!BL55 -> 1,519.2 | BM42: =+CF!BM55 -> 1,595.2 | BN42: =+CF!BN55 -> 1,676.8 | BO42: =+CF!BO55 -> 1,761.7 | BP42: =+CF!BP55 -> 1,850.6 | BQ42: =+CF!BQ55 -> 1,942.9 | BR42: =+CF!BR55 -> 2,040.5 | BS42: =+CF!BS55 -> 2,140.6 | BT42: =+CF!BT55 -> 2,244.0 | BU42: =+CF!BU55 -> 2,349.8 | BV42: =+CF!BV55 -> 2,460.6 | BW42: =+CF!BW55 -> 2,578.7 | BX42: =+CF!BX55 -> 2,705.1 | BY42: =+CF!BY55 -> 2,839.3 | BZ42: =+CF!BZ55 -> 2,984.5 | CA42: =+CF!CA55 -> 3,137.5 | CB42: =+CF!CB55 -> 3,297.0 | CC42: =+CF!CC55 -> 3,462.1 | CD42: =+CF!CD55 -> 3,636.1 | CE42: =+CF!CE55 -> 3,815.2 | CF42: =+CF!CF55 -> 4,000.5 | CG42: =+CF!CG55 -> 4,265.6 | CH42: =+CF!CH55 -> 5,457.6 | CI42: =+CF!CI55 -> 6,267.3 | CJ42: =+CF!CJ55 -> 6,752.8 | CK42: =+CF!CK55 -> 6,876.5 | CL42: =+CF!CL55 -> 6,388.2 | CM42: =+CF!CM55 -> 5,210.0 | CN42: =+CF!CN55 -> 3,258.6 | CO42: =+CF!CO55 -> 520.6 | CP42: =+CF!CP55 -> 60.0 | CQ42: =+CF!CQ55 -> 60.0 | CR42: =+CF!CR55 -> 0
B43: Total Cash Balances | K43: MCAD | P43: =+SUM(P36:P42) -> 1,268.5 | Q43: =+SUM(Q36:Q42) -> 1,122.1 | R43: =+SUM(R36:R42) -> 986.4 | S43: 842.2 | T43: 879.6 | U43: 936.9 | V43: 1,013.0 | W43: 1,110.7 | X43: 1,192.2 | Y43: 1,162.4 | Z43: 1,163.4 | AA43: 1,196.0 | AB43: 1,272.7 | AC43: 1,394.1 | AD43: 1,393.5 | AE43: 1,417.2 | AF43: 1,467.5 | AG43: 1,542.0 | AH43: 1,659.9 | AI43: 1,615.2 | AJ43: 1,600.4 | AK43: 1,631.0 | AL43: 1,741.1 | AM43: 1,898.3 | AN43: 1,940.1 | AO43: 1,987.7 | AP43: 2,030.7 | AQ43: 2,083.2 | AR43: 2,137.4 | AS43: 2,190.1 | AT43: 2,244.7 | AU43: 2,287.8 | AV43: 2,342.0 | AW43: 2,397.8 | AX43: 2,454.7 | AY43: 2,426.9 | AZ43: 2,491.1 | BA43: 2,536.5 | BB43: 2,574.3 | BC43: 2,667.3 | BD43: 2,818.8 | BE43: 3,032.2 | BF43: 3,129.9 | BG43: 3,264.9 | BH43: 3,342.5 | BI43: 3,358.0 | BJ43: 3,305.2 | BK43: 3,179.8 | BL43: 3,301.0 | BM43: 3,427.7 | BN43: 3,559.7 | BO43: 3,698.4 | BP43: 3,842.1 | BQ43: 3,991.5 | BR43: 4,145.8 | BS43: 4,306.4 | BT43: 4,471.5 | BU43: 4,641.6 | BV43: 4,816.4 | BW43: 5,002.6 | BX43: 5,198.4 | BY43: 5,405.0 | BZ43: 5,622.2 | CA43: 5,852.0 | CB43: 6,089.7 | CC43: 6,336.4 | CD43: =+SUM(CD36:CD42) -> 6,591.5 | CE43: 6,857.1 | CF43: 7,130.5 | CG43: 7,098.4 | CH43: 7,117.5 | CI43: 7,974.2 | CJ43: 8,507.5 | CK43: 8,680.1 | CL43: 8,241.1 | CM43: 7,112.7 | CN43: 5,211.6 | CO43: 2,446.8 | CP43: 1,962.3 | CQ43: 1,887.8 | CR43: 0
B45: Interest Income | K45: MCAD | P45: =+P168 -> 20.3 | Q45: =+Q168 -> 25.4 | R45: =+R168 -> 22.4 | S45: 19.7 | T45: 16.8 | U45: 17.6 | V45: 18.7 | W45: 20.3 | X45: 22.2 | Y45: 23.8 | Z45: 23.2 | AA45: 23.3 | AB45: 23.9 | AC45: 25.5 | AD45: 27.9 | AE45: 27.9 | AF45: 28.3 | AG45: 29.4 | AH45: 30.8 | AI45: 33.2 | AJ45: 32.3 | AK45: 32.0 | AL45: 32.6 | AM45: 34.8 | AN45: 38.0 | AO45: 38.8 | AP45: 39.8 | AQ45: 40.6 | AR45: 41.7 | AS45: 42.7 | AT45: 43.8 | AU45: 44.9 | AV45: 45.8 | AW45: 46.8 | AX45: 48.0 | AY45: 49.1 | AZ45: 48.5 | BA45: 49.8 | BB45: 50.7 | BC45: 51.5 | BD45: 53.3 | BE45: 56.4 | BF45: 60.6 | BG45: 62.6 | BH45: 65.3 | BI45: 66.8 | BJ45: 67.2 | BK45: 66.1 | BL45: 63.6 | BM45: 66.0 | BN45: 68.6 | BO45: 71.2 | BP45: 74.0 | BQ45: 76.8 | BR45: 79.8 | BS45: 82.9 | BT45: 86.1 | BU45: 89.4 | BV45: 92.8 | BW45: 96.3 | BX45: 100.1 | BY45: 104.0 | BZ45: 108.1 | CA45: 112.4 | CB45: 117.0 | CC45: 121.8 | CD45: =+CD168 -> 126.7 | CE45: 131.8 | CF45: 137.1 | CG45: 142.6 | CH45: 142.0 | CI45: 142.4 | CJ45: 159.5 | CK45: 170.2 | CL45: 173.6 | CM45: 164.8 | CN45: 142.3 | CO45: 104.2 | CP45: 48.9 | CQ45: 39.2 | CR45: 37.8
B47: Debt Structure
B49: Current Debt
B51: Control account
B52: Opening balance | K52: MCAD | P52: =+O55 -> 8,340.3 | Q52: =+P55 -> 8,684.3 | R52: =+Q55 -> 8,666.1 | S52: 8,347.1 | T52: 7,607.5 | U52: 7,287.0 | V52: 7,265.6 | W52: 6,993.2 | X52: 6,970.0 | Y52: 6,592.7 | Z52: 6,217.4 | AA52: 6,191.1 | AB52: 5,763.7 | AC52: 5,735.0 | AD52: 5,315.3 | AE52: 5,284.1 | AF52: 5,001.6 | AG52: 4,967.7 | AH52: 4,592.2 | AI52: 4,075.2 | AJ52: 4,036.5 | AK52: 4,005.3 | AL52: 3,965.0 | AM52: 3,800.0 | AN52: 3,450.0 | AO52: 3,050.0 | AP52: 3,050.0 | AQ52: 2,550.0 | AR52: 2,400.0 | AS52: 1,900.0 | AT52: 1,400.0 | AU52: 1,400.0 | AV52: 600.0 | AW52: 600.0 | AX52: 600.0 | AY52: 200.0 | AZ52: 0.0 | BA52: 0.0 | BB52: 0.0 | BC52: 0.0 | BD52: 0.0 | BE52: 0.0 | BF52: 0.0 | BG52: 0.0 | BH52: 0.0 | BI52: 0.0 | BJ52: 0.0 | BK52: 0.0 | BL52: 0.0 | BM52: 0.0 | BN52: 0.0 | BO52: 0.0 | BP52: 0.0 | BQ52: 0.0 | BR52: 0.0 | BS52: 0.0 | BT52: 0.0 | BU52: 0.0 | BV52: 0.0 | BW52: 0.0 | BX52: 0.0 | BY52: 0.0 | BZ52: 0.0 | CA52: 0.0 | CB52: 0.0 | CC52: 0.0 | CD52: =+CC55 -> 0.0 | CE52: 0.0 | CF52: 0.0 | CG52: 0.0 | CH52: 0.0 | CI52: 0.0 | CJ52: 0.0 | CK52: 0.0 | CL52: 0.0 | CM52: 0.0 | CN52: 0.0 | CO52: 0.0 | CP52: 0.0 | CQ52: 0.0 | CR52: 0.0
B53: Draws | K53: MCAD | M53: =+SUM(P53:CS53) -> 800 | P53: 800.0 | Q53: 0 | R53: 0 | S53: 0 | T53: 0 | U53: 0 | V53: 0 | W53: 0 | X53: 0 | Y53: 0 | Z53: 0 | AA53: 0 | AB53: 0 | AC53: 0 | AD53: 0 | AE53: 0 | AF53: 0 | AG53: 0 | AH53: 0 | AI53: 0 | AJ53: 0 | AK53: 0 | AL53: 0 | AM53: 0 | AN53: 0 | AO53: 0 | AP53: 0 | AQ53: 0 | AR53: 0 | AS53: 0 | AT53: 0 | AU53: 0 | AV53: 0 | AW53: 0 | AX53: 0 | AY53: 0 | AZ53: 0 | BA53: 0 | BB53: 0 | BC53: 0 | BD53: 0 | BE53: 0 | BF53: 0 | BG53: 0 | BH53: 0 | BI53: 0 | BJ53: 0 | BK53: 0 | BL53: 0 | BM53: 0 | BN53: 0 | BO53: 0 | BP53: 0 | BQ53: 0 | BR53: 0 | BS53: 0 | BT53: 0 | BU53: 0 | BV53: 0 | BW53: 0 | BX53: 0 | BY53: 0 | BZ53: 0 | CA53: 0 | CB53: 0 | CC53: 0 | CD53: 0 | CE53: 0 | CF53: 0 | CG53: 0 | CH53: 0 | CI53: 0 | CJ53: 0 | CK53: 0 | CL53: 0 | CM53: 0 | CN53: 0 | CO53: 0 | CP53: 0 | CQ53: 0 | CR53: 0
B54: Principal Repayments | K54: MCAD | M54: =+SUM(P54:CS54) -> (9,140) | P54: =+P57 -> (456.0) | Q54: (18.2) | R54: =+R57 -> (319.0) | S54: (739.6) | T54: (320.6) | U54: (21.4) | V54: (272.3) | W54: (23.2) | X54: (377.3) | Y54: (375.2) | Z54: (26.3) | AA54: (427.4) | AB54: (28.6) | AC54: (419.7) | AD54: (31.2) | AE54: (282.5) | AF54: (34.0) | AG54: (375.5) | AH54: (517.0) | AI54: (38.7) | AJ54: (31.2) | AK54: (40.3) | AL54: (165.0) | AM54: (350.0) | AN54: (400.0) | AO54: 0 | AP54: (500.0) | AQ54: (150.0) | AR54: (500.0) | AS54: (500.0) | AT54: 0 | AU54: (800.0) | AV54: 0 | AW54: 0 | AX54: (400.0) | AY54: (200.0) | AZ54: 0 | BA54: 0 | BB54: 0 | BC54: 0 | BD54: 0 | BE54: 0 | BF54: 0 | BG54: 0 | BH54: 0 | BI54: 0 | BJ54: 0 | BK54: 0 | BL54: 0 | BM54: 0 | BN54: 0 | BO54: 0 | BP54: 0 | BQ54: 0 | BR54: 0 | BS54: 0 | BT54: 0 | BU54: 0 | BV54: 0 | BW54: 0 | BX54: 0 | BY54: 0 | BZ54: 0 | CA54: 0 | CB54: 0 | CC54: 0 | CD54: =+CD57 -> 0 | CE54: 0 | CF54: 0 | CG54: 0 | CH54: 0 | CI54: 0 | CJ54: 0 | CK54: 0 | CL54: 0 | CM54: 0 | CN54: 0 | CO54: 0 | CP54: 0 | CQ54: 0 | CR54: 0
B55: Closing Balance | D55: =+IF(ROUND(CI55,4)=0,1,0) -> 1 | K55: MCAD | O55: 8,340.3 | P55: =+SUM(P52:P54) -> 8,684.3 | Q55: =+SUM(Q52:Q54) -> 8,666.1 | R55: =+SUM(R52:R54) -> 8,347.1 | S55: 7,607.5 | T55: 7,287.0 | U55: 7,265.6 | V55: 6,993.2 | W55: 6,970.0 | X55: 6,592.7 | Y55: 6,217.4 | Z55: 6,191.1 | AA55: 5,763.7 | AB55: 5,735.0 | AC55: 5,315.3 | AD55: 5,284.1 | AE55: 5,001.6 | AF55: 4,967.7 | AG55: 4,592.2 | AH55: 4,075.2 | AI55: 4,036.5 | AJ55: 4,005.3 | AK55: 3,965.0 | AL55: 3,800.0 | AM55: 3,450.0 | AN55: 3,050.0 | AO55: 3,050.0 | AP55: 2,550.0 | AQ55: 2,400.0 | AR55: 1,900.0 | AS55: 1,400.0 | AT55: 1,400.0 | AU55: 600.0 | AV55: 600.0 | AW55: 600.0 | AX55: 200.0 | AY55: 0.0 | AZ55: 0.0 | BA55: 0.0 | BB55: 0.0 | BC55: 0.0 | BD55: 0.0 | BE55: 0.0 | BF55: 0.0 | BG55: 0.0 | BH55: 0.0 | BI55: 0.0 | BJ55: 0.0 | BK55: 0.0 | BL55: 0.0 | BM55: 0.0 | BN55: 0.0 | BO55: 0.0 | BP55: 0.0 | BQ55: 0.0 | BR55: 0.0 | BS55: 0.0 | BT55: 0.0 | BU55: 0.0 | BV55: 0.0 | BW55: 0.0 | BX55: 0.0 | BY55: 0.0 | BZ55: 0.0 | CA55: 0.0 | CB55: 0.0 | CC55: 0.0 | CD55: =+SUM(CD52:CD54) -> 0.0 | CE55: 0.0 | CF55: 0.0 | CG55: 0.0 | CH55: 0.0 | CI55: 0.0 | CJ55: 0.0 | CK55: 0.0 | CL55: 0.0 | CM55: 0.0 | CN55: 0.0 | CO55: 0.0 | CP55: 0.0 | CQ55: 0.0 | CR55: 0.0
B57: Scheduled repayment | K57: MCAD | M57: =+SUM(P57:CS57) -> (9,140) | P57: (456.0) | Q57: (18.2) | R57: (319.0) | S57: (739.6) | T57: (320.6) | U57: (21.4) | V57: (272.3) | W57: (23.2) | X57: (377.3) | Y57: (375.2) | Z57: (26.3) | AA57: (427.4) | AB57: (28.6) | AC57: (419.7) | AD57: (31.2) | AE57: (282.5) | AF57: (34.0) | AG57: (375.5) | AH57: (517.0) | AI57: (38.7) | AJ57: (31.2) | AK57: (40.3) | AL57: (165.0) | AM57: (350.0) | AN57: (400.0) | AO57: 0 | AP57: (500.0) | AQ57: (150.0) | AR57: (500.0) | AS57: (500.0) | AT57: 0 | AU57: (800.0) | AV57: 0 | AW57: 0 | AX57: (400.0) | AY57: (200.0) | AZ57: 0 | BA57: 0 | BB57: 0 | BC57: 0 | BD57: 0 | BE57: 0 | BF57: 0 | BG57: 0 | BH57: 0 | BI57: 0 | BJ57: 0 | BK57: 0 | BL57: 0 | BM57: 0 | BN57: 0 | BO57: 0 | BP57: 0 | BQ57: 0 | BR57: 0 | BS57: 0 | BT57: 0 | BU57: 0 | BV57: 0 | BW57: 0 | BX57: 0 | BY57: 0 | BZ57: 0 | CA57: 0 | CB57: 0 | CC57: 0 | CD57: 0 | CE57: 0 | CF57: 0 | CG57: 0 | CH57: 0 | CI57: 0 | CJ57: 0 | CK57: 0 | CL57: 0 | CM57: 0 | CN57: 0 | CO57: 0 | CP57: 0 | CQ57: 0 | CR57: 0
B60: Interests
B61: Average current debt cost | K61: % | P61: 4.4% | Q61: 4.5% | R61: 4.5% | S61: 4.7% | T61: 4.7% | U61: 4.7% | V61: 4.7% | W61: 4.8% | X61: 5.0% | Y61: 4.9% | Z61: 5.0% | AA61: 5.2% | AB61: 5.1% | AC61: 5.2% | AD61: 5.0% | AE61: 5.1% | AF61: 5.2% | AG61: 5.4% | AH61: 5.1% | AI61: 5.2% | AJ61: 5.5% | AK61: 5.3% | AL61: 4.1% | AM61: 4.1% | AN61: 3.9% | AO61: 3.9% | AP61: 4.3% | AQ61: 3.9% | AR61: 4.0% | AS61: 4.1% | AT61: 4.1% | AU61: 5.7% | AV61: 4.2% | AW61: 4.2% | AX61: 6.6% | AY61: 9.5% | AZ61: 0.0% | BA61: 0.0% | BB61: 0.0% | BC61: 0.0% | BD61: 0.0% | BE61: 0.0% | BF61: 0.0% | BG61: 0.0% | BH61: 0.0% | BI61: 0.0% | BJ61: 0.0% | BK61: 0.0% | BL61: 0.0% | BM61: 0.0% | BN61: 0.0% | BO61: 0.0% | BP61: 0.0% | BQ61: 0.0% | BR61: 0.0% | BS61: 0.0% | BT61: 0.0% | BU61: 0.0% | BV61: 0.0% | BW61: 0.0% | BX61: 0.0% | BY61: 0.0% | BZ61: 0.0% | CA61: 0.0% | CB61: 0.0% | CC61: 0.0% | CD61: 0.0% | CE61: 0.0% | CF61: 0.0% | CG61: 0.0% | CH61: 0.0% | CI61: 0.0% | CJ61: 0.0% | CK61: 0.0% | CL61: 0.0% | CM61: 0.0% | CN61: 0.0% | CO61: 0.0% | CP61: 0.0% | CQ61: 0.0% | CR61: 0.0%
B62: Interest | K62: MCAD | M62: =+SUM(P62:CS62) -> 7,773 | P62: =+P61*(P52+P53/2+P54/2) -> 378.1 | Q62: 394.6 | R62: 385.3 | S62: 371.1 | T62: 349.0 | U62: 340.6 | V62: 338.1 | W62: 334.7 | X62: 336.1 | Y62: 313.9 | Z62: 310.6 | AA62: 308.9 | AB62: 295.0 | AC62: 285.7 | AD62: 265.4 | AE62: 261.7 | AF62: 257.4 | AG62: 257.3 | AH62: 222.2 | AI62: 210.0 | AJ62: 219.3 | AK62: 212.0 | AL62: 160.2 | AM62: 150.2 | AN62: 126.3 | AO62: 117.6 | AP62: 119.8 | AQ62: 97.6 | AR62: 85.6 | AS62: 67.0 | AT62: 57.3 | AU62: 57.3 | AV62: =+AV61*(AV52+AV53/2+AV54/2) -> 25.3 | AW62: 25.3 | AX62: 26.5 | AY62: 9.5 | AZ62: 0.0 | BA62: 0.0 | BB62: 0.0 | BC62: 0.0 | BD62: 0.0 | BE62: 0.0 | BF62: 0.0 | BG62: 0.0 | BH62: 0.0 | BI62: 0.0 | BJ62: 0.0 | BK62: 0.0 | BL62: 0.0 | BM62: 0.0 | BN62: 0.0 | BO62: 0.0 | BP62: 0.0 | BQ62: 0.0 | BR62: 0.0 | BS62: 0.0 | BT62: 0.0 | BU62: 0.0 | BV62: 0.0 | BW62: 0.0 | BX62: 0.0 | BY62: 0.0 | BZ62: 0.0 | CA62: 0.0 | CB62: 0.0 | CC62: 0.0 | CD62: 0.0 | CE62: 0.0 | CF62: 0.0 | CG62: 0.0 | CH62: 0.0 | CI62: 0.0 | CJ62: 0.0 | CK62: 0.0 | CL62: 0.0 | CM62: 0.0 | CN62: 0.0 | CO62: 0.0 | CP62: 0.0 | CQ62: 0.0 | CR62: 0.0
B64: Refinancing/Senior additional leverage
B65: Total debt target balance (until 2059) | K65: MCAD | P65: =+IFERROR(INDEX(Inputs!$L$112:$L$121,MATCH(P8,Inputs!$B$112:$B$121,0),1),O65*(1+P66)) -> 8,726.0 | Q65: =+IFERROR(INDEX(Inputs!$L$112:$L$121,MATCH(Q8,Inputs!$B$112:$B$121,0),1),P65*(1+Q66)) -> 8,990.2 | R65: =+IFERROR(INDEX(Inputs!$L$112:$L$121,MATCH(R8,Inputs!$B$112:$B$121,0),1),Q65*(1+R66)) -> 9,262.3 | S65: =+IFERROR(INDEX(Inputs!$L$112:$L$121,MATCH(S8,Inputs!$B$112:$B$121,0),1),R65*(1+S66)) -> 9,542.7 | T65: =+IFERROR(INDEX(Inputs!$L$112:$L$121,MATCH(T8,Inputs!$B$112:$B$121,0),1),S65*(1+T66)) -> 9,984.8 | U65: =+IFERROR(INDEX(Inputs!$L$112:$L$121,MATCH(U8,Inputs!$B$112:$B$121,0),1),T65*(1+U66)) -> 10,447.2 | V65: =+IFERROR(INDEX(Inputs!$L$112:$L$121,MATCH(V8,Inputs!$B$112:$B$121,0),1),U65*(1+V66)) -> 10,931.2 | W65: =+IFERROR(INDEX(Inputs!$L$112:$L$121,MATCH(W8,Inputs!$B$112:$B$121,0),1),V65*(1+W66)) -> 11,437.5 | X65: =+IFERROR(INDEX(Inputs!$L$112:$L$121,MATCH(X8,Inputs!$B$112:$B$121,0),1),W65*(1+X66)) -> 11,967.3 | Y65: =+IFERROR(INDEX(Inputs!$L$112:$L$121,MATCH(Y8,Inputs!$B$112:$B$121,0),1),X65*(1+Y66)) -> 12,362.1 | Z65: =+IFERROR(INDEX(Inputs!$L$112:$L$121,MATCH(Z8,Inputs!$B$112:$B$121,0),1),Y65*(1+Z66)) -> 12,769.8 | AA65: =+IFERROR(INDEX(Inputs!$L$112:$L$121,MATCH(AA8,Inputs!$B$112:$B$121,0),1),Z65*(1+AA66)) -> 13,191.1 | AB65: =+IFERROR(INDEX(Inputs!$L$112:$L$121,MATCH(AB8,Inputs!$B$112:$B$121,0),1),AA65*(1+AB66)) -> 13,626.2 | AC65: =+IFERROR(INDEX(Inputs!$L$112:$L$121,MATCH(AC8,Inputs!$B$112:$B$121,0),1),AB65*(1+AC66)) -> 14,075.7 | AD65: =+IFERROR(INDEX(Inputs!$L$112:$L$121,MATCH(AD8,Inputs!$B$112:$B$121,0),1),AC65*(1+AD66)) -> 14,372.4 | AE65: =+IFERROR(INDEX(Inputs!$L$112:$L$121,MATCH(AE8,Inputs!$B$112:$B$121,0),1),AD65*(1+AE66)) -> 14,675.5 | AF65: =+IFERROR(INDEX(Inputs!$L$112:$L$121,MATCH(AF8,Inputs!$B$112:$B$121,0),1),AE65*(1+AF66)) -> 14,984.9 | AG65: =+IFERROR(INDEX(Inputs!$L$112:$L$121,MATCH(AG8,Inputs!$B$112:$B$121,0),1),AF65*(1+AG66)) -> 15,300.8 | AH65: =+IFERROR(INDEX(Inputs!$L$112:$L$121,MATCH(AH8,Inputs!$B$112:$B$121,0),1),AG65*(1+AH66)) -> 15,623.4 | AI65: =+IFERROR(INDEX(Inputs!$L$112:$L$121,MATCH(AI8,Inputs!$B$112:$B$121,0),1),AH65*(1+AI66)) -> 15,748.3 | AJ65: =+IFERROR(INDEX(Inputs!$L$112:$L$121,MATCH(AJ8,Inputs!$B$112:$B$121,0),1),AI65*(1+AJ66)) -> 15,874.3 | AK65: =+IFERROR(INDEX(Inputs!$L$112:$L$121,MATCH(AK8,Inputs!$B$112:$B$121,0),1),AJ65*(1+AK66)) -> 16,001.3 | AL65: =+IFERROR(INDEX(Inputs!$L$112:$L$121,MATCH(AL8,Inputs!$B$112:$B$121,0),1),AK65*(1+AL66)) -> 16,129.3 | AM65: =+IFERROR(INDEX(Inputs!$L$112:$L$121,MATCH(AM8,Inputs!$B$112:$B$121,0),1),AL65*(1+AM66)) -> 16,258.3 | AN65: =+IFERROR(INDEX(Inputs!$L$112:$L$121,MATCH(AN8,Inputs!$B$112:$B$121,0),1),AM65*(1+AN66)) -> 16,258.3 | AO65: =+IFERROR(INDEX(Inputs!$L$112:$L$121,MATCH(AO8,Inputs!$B$112:$B$121,0),1),AN65*(1+AO66)) -> 16,258.3 | AP65: =+IFERROR(INDEX(Inputs!$L$112:$L$121,MATCH(AP8,Inputs!$B$112:$B$121,0),1),AO65*(1+AP66)) -> 16,258.3 | AQ65: =+IFERROR(INDEX(Inputs!$L$112:$L$121,MATCH(AQ8,Inputs!$B$112:$B$121,0),1),AP65*(1+AQ66)) -> 16,258.3 | AR65: =+IFERROR(INDEX(Inputs!$L$112:$L$121,MATCH(AR8,Inputs!$B$112:$B$121,0),1),AQ65*(1+AR66)) -> 16,258.3 | AS65: =+IFERROR(INDEX(Inputs!$L$112:$L$121,MATCH(AS8,Inputs!$B$112:$B$121,0),1),AR65*(1+AS66)) -> 16,258.3 | AT65: =+IFERROR(INDEX(Inputs!$L$112:$L$121,MATCH(AT8,Inputs!$B$112:$B$121,0),1),AS65*(1+AT66)) -> 16,258.3 | AU65: =+IFERROR(INDEX(Inputs!$L$112:$L$121,MATCH(AU8,Inputs!$B$112:$B$121,0),1),AT65*(1+AU66)) -> 16,258.3 | AV65: =+IFERROR(INDEX(Inputs!$L$112:$L$121,MATCH(AV8,Inputs!$B$112:$B$121,0),1),AU65*(1+AV66)) -> 16,258.3 | AW65: =+IFERROR(INDEX(Inputs!$L$112:$L$121,MATCH(AW8,Inputs!$B$112:$B$121,0),1),AV65*(1+AW66)) -> 16,258.3 | AX65: =+IFERROR(INDEX(Inputs!$L$112:$L$121,MATCH(AX8,Inputs!$B$112:$B$121,0),1),AW65*(1+AX66)) -> 16,258.3 | AY65: =+IFERROR(INDEX(Inputs!$L$112:$L$121,MATCH(AY8,Inputs!$B$112:$B$121,0),1),AX65*(1+AY66)) -> 16,258.3 | AZ65: =+IFERROR(INDEX(Inputs!$L$112:$L$121,MATCH(AZ8,Inputs!$B$112:$B$121,0),1),AY65*(1+AZ66)) -> 16,258.3 | BA65: =+IFERROR(INDEX(Inputs!$L$112:$L$121,MATCH(BA8,Inputs!$B$112:$B$121,0),1),AZ65*(1+BA66)) -> 16,258.3 | BB65: =+IFERROR(INDEX(Inputs!$L$112:$L$121,MATCH(BB8,Inputs!$B$112:$B$121,0),1),BA65*(1+BB66)) -> 16,258.3 | BC65: =+IFERROR(INDEX(Inputs!$L$112:$L$121,MATCH(BC8,Inputs!$B$112:$B$121,0),1),BB65*(1+BC66)) -> 16,258.3 | BD65: =+IFERROR(INDEX(Inputs!$L$112:$L$121,MATCH(BD8,Inputs!$B$112:$B$121,0),1),BC65*(1+BD66)) -> 16,258.3 | BE65: =+IFERROR(INDEX(Inputs!$L$112:$L$121,MATCH(BE8,Inputs!$B$112:$B$121,0),1),BD65*(1+BE66)) -> 16,258.3
B66: CAGR | Q66: =+POWER(INDEX(Inputs!$L$112:$L$121,MATCH(Q7+1,Inputs!$A$112:$A$121,0),1)/INDEX(Inputs!$L$112:$L$121,MATCH(Q7,Inputs!$A$112:$A$121,0),1),1/(INDEX(Inputs!$B$112:$B$121,MATCH(Q7+1,Inputs!$A$112:$A$121,0),1)-INDEX(Inputs!$B$112:$B$121,MATCH(Q7,Inputs!$A$112:$A$121,0),1)))-1 -> 3.03% | R66: =+POWER(INDEX(Inputs!$L$112:$L$121,MATCH(R7+1,Inputs!$A$112:$A$121,0),1)/INDEX(Inputs!$L$112:$L$121,MATCH(R7,Inputs!$A$112:$A$121,0),1),1/(INDEX(Inputs!$B$112:$B$121,MATCH(R7+1,Inputs!$A$112:$A$121,0),1)-INDEX(Inputs!$B$112:$B$121,MATCH(R7,Inputs!$A$112:$A$121,0),1)))-1 -> 3.03% | S66: =+POWER(INDEX(Inputs!$L$112:$L$121,MATCH(S7+1,Inputs!$A$112:$A$121,0),1)/INDEX(Inputs!$L$112:$L$121,MATCH(S7,Inputs!$A$112:$A$121,0),1),1/(INDEX(Inputs!$B$112:$B$121,MATCH(S7+1,Inputs!$A$112:$A$121,0),1)-INDEX(Inputs!$B$112:$B$121,MATCH(S7,Inputs!$A$112:$A$121,0),1)))-1 -> 3.03% | T66: =+POWER(INDEX(Inputs!$L$112:$L$121,MATCH(T7+1,Inputs!$A$112:$A$121,0),1)/INDEX(Inputs!$L$112:$L$121,MATCH(T7,Inputs!$A$112:$A$121,0),1),1/(INDEX(Inputs!$B$112:$B$121,MATCH(T7+1,Inputs!$A$112:$A$121,0),1)-INDEX(Inputs!$B$112:$B$121,MATCH(T7,Inputs!$A$112:$A$121,0),1)))-1 -> 4.63% | U66: =+POWER(INDEX(Inputs!$L$112:$L$121,MATCH(U7+1,Inputs!$A$112:$A$121,0),1)/INDEX(Inputs!$L$112:$L$121,MATCH(U7,Inputs!$A$112:$A$121,0),1),1/(INDEX(Inputs!$B$112:$B$121,MATCH(U7+1,Inputs!$A$112:$A$121,0),1)-INDEX(Inputs!$B$112:$B$121,MATCH(U7,Inputs!$A$112:$A$121,0),1)))-1 -> 4.63% | V66: =+POWER(INDEX(Inputs!$L$112:$L$121,MATCH(V7+1,Inputs!$A$112:$A$121,0),1)/INDEX(Inputs!$L$112:$L$121,MATCH(V7,Inputs!$A$112:$A$121,0),1),1/(INDEX(Inputs!$B$112:$B$121,MATCH(V7+1,Inputs!$A$112:$A$121,0),1)-INDEX(Inputs!$B$112:$B$121,MATCH(V7,Inputs!$A$112:$A$121,0),1)))-1 -> 4.63% | W66: =+POWER(INDEX(Inputs!$L$112:$L$121,MATCH(W7+1,Inputs!$A$112:$A$121,0),1)/INDEX(Inputs!$L$112:$L$121,MATCH(W7,Inputs!$A$112:$A$121,0),1),1/(INDEX(Inputs!$B$112:$B$121,MATCH(W7+1,Inputs!$A$112:$A$121,0),1)-INDEX(Inputs!$B$112:$B$121,MATCH(W7,Inputs!$A$112:$A$121,0),1)))-1 -> 4.63% | X66: =+POWER(INDEX(Inputs!$L$112:$L$121,MATCH(X7+1,Inputs!$A$112:$A$121,0),1)/INDEX(Inputs!$L$112:$L$121,MATCH(X7,Inputs!$A$112:$A$121,0),1),1/(INDEX(Inputs!$B$112:$B$121,MATCH(X7+1,Inputs!$A$112:$A$121,0),1)-INDEX(Inputs!$B$112:$B$121,MATCH(X7,Inputs!$A$112:$A$121,0),1)))-1 -> 4.63% | Y66: =+POWER(INDEX(Inputs!$L$112:$L$121,MATCH(Y7+1,Inputs!$A$112:$A$121,0),1)/INDEX(Inputs!$L$112:$L$121,MATCH(Y7,Inputs!$A$112:$A$121,0),1),1/(INDEX(Inputs!$B$112:$B$121,MATCH(Y7+1,Inputs!$A$112:$A$121,0),1)-INDEX(Inputs!$B$112:$B$121,MATCH(Y7,Inputs!$A$112:$A$121,0),1)))-1 -> 3.30% | Z66: =+POWER(INDEX(Inputs!$L$112:$L$121,MATCH(Z7+1,Inputs!$A$112:$A$121,0),1)/INDEX(Inputs!$L$112:$L$121,MATCH(Z7,Inputs!$A$112:$A$121,0),1),1/(INDEX(Inputs!$B$112:$B$121,MATCH(Z7+1,Inputs!$A$112:$A$121,0),1)-INDEX(Inputs!$B$112:$B$121,MATCH(Z7,Inputs!$A$112:$A$121,0),1)))-1 -> 3.30% | AA66: =+POWER(INDEX(Inputs!$L$112:$L$121,MATCH(AA7+1,Inputs!$A$112:$A$121,0),1)/INDEX(Inputs!$L$112:$L$121,MATCH(AA7,Inputs!$A$112:$A$121,0),1),1/(INDEX(Inputs!$B$112:$B$121,MATCH(AA7+1,Inputs!$A$112:$A$121,0),1)-INDEX(Inputs!$B$112:$B$121,MATCH(AA7,Inputs!$A$112:$A$121,0),1)))-1 -> 3.30% | AB66: =+POWER(INDEX(Inputs!$L$112:$L$121,MATCH(AB7+1,Inputs!$A$112:$A$121,0),1)/INDEX(Inputs!$L$112:$L$121,MATCH(AB7,Inputs!$A$112:$A$121,0),1),1/(INDEX(Inputs!$B$112:$B$121,MATCH(AB7+1,Inputs!$A$112:$A$121,0),1)-INDEX(Inputs!$B$112:$B$121,MATCH(AB7,Inputs!$A$112:$A$121,0),1)))-1 -> 3.30% | AC66: =+POWER(INDEX(Inputs!$L$112:$L$121,MATCH(AC7+1,Inputs!$A$112:$A$121,0),1)/INDEX(Inputs!$L$112:$L$121,MATCH(AC7,Inputs!$A$112:$A$121,0),1),1/(INDEX(Inputs!$B$112:$B$121,MATCH(AC7+1,Inputs!$A$112:$A$121,0),1)-INDEX(Inputs!$B$112:$B$121,MATCH(AC7,Inputs!$A$112:$A$121,0),1)))-1 -> 3.30% | AD66: =+POWER(INDEX(Inputs!$L$112:$L$121,MATCH(AD7+1,Inputs!$A$112:$A$121,0),1)/INDEX(Inputs!$L$112:$L$121,MATCH(AD7,Inputs!$A$112:$A$121,0),1),1/(INDEX(Inputs!$B$112:$B$121,MATCH(AD7+1,Inputs!$A$112:$A$121,0),1)-INDEX(Inputs!$B$112:$B$121,MATCH(AD7,Inputs!$A$112:$A$121,0),1)))-1 -> 2.11% | AE66: =+POWER(INDEX(Inputs!$L$112:$L$121,MATCH(AE7+1,Inputs!$A$112:$A$121,0),1)/INDEX(Inputs!$L$112:$L$121,MATCH(AE7,Inputs!$A$112:$A$121,0),1),1/(INDEX(Inputs!$B$112:$B$121,MATCH(AE7+1,Inputs!$A$112:$A$121,0),1)-INDEX(Inputs!$B$112:$B$121,MATCH(AE7,Inputs!$A$112:$A$121,0),1)))-1 -> 2.11% | AF66: =+POWER(INDEX(Inputs!$L$112:$L$121,MATCH(AF7+1,Inputs!$A$112:$A$121,0),1)/INDEX(Inputs!$L$112:$L$121,MATCH(AF7,Inputs!$A$112:$A$121,0),1),1/(INDEX(Inputs!$B$112:$B$121,MATCH(AF7+1,Inputs!$A$112:$A$121,0),1)-INDEX(Inputs!$B$112:$B$121,MATCH(AF7,Inputs!$A$112:$A$121,0),1)))-1 -> 2.11% | AG66: =+POWER(INDEX(Inputs!$L$112:$L$121,MATCH(AG7+1,Inputs!$A$112:$A$121,0),1)/INDEX(Inputs!$L$112:$L$121,MATCH(AG7,Inputs!$A$112:$A$121,0),1),1/(INDEX(Inputs!$B$112:$B$121,MATCH(AG7+1,Inputs!$A$112:$A$121,0),1)-INDEX(Inputs!$B$112:$B$121,MATCH(AG7,Inputs!$A$112:$A$121,0),1)))-1 -> 2.11% | AH66: =+POWER(INDEX(Inputs!$L$112:$L$121,MATCH(AH7+1,Inputs!$A$112:$A$121,0),1)/INDEX(Inputs!$L$112:$L$121,MATCH(AH7,Inputs!$A$112:$A$121,0),1),1/(INDEX(Inputs!$B$112:$B$121,MATCH(AH7+1,Inputs!$A$112:$A$121,0),1)-INDEX(Inputs!$B$112:$B$121,MATCH(AH7,Inputs!$A$112:$A$121,0),1)))-1 -> 2.11% | AI66: =+POWER(INDEX(Inputs!$L$112:$L$121,MATCH(AI7+1,Inputs!$A$112:$A$121,0),1)/INDEX(Inputs!$L$112:$L$121,MATCH(AI7,Inputs!$A$112:$A$121,0),1),1/(INDEX(Inputs!$B$112:$B$121,MATCH(AI7+1,Inputs!$A$112:$A$121,0),1)-INDEX(Inputs!$B$112:$B$121,MATCH(AI7,Inputs!$A$112:$A$121,0),1)))-1 -> 0.80% | AJ66: =+POWER(INDEX(Inputs!$L$112:$L$121,MATCH(AJ7+1,Inputs!$A$112:$A$121,0),1)/INDEX(Inputs!$L$112:$L$121,MATCH(AJ7,Inputs!$A$112:$A$121,0),1),1/(INDEX(Inputs!$B$112:$B$121,MATCH(AJ7+1,Inputs!$A$112:$A$121,0),1)-INDEX(Inputs!$B$112:$B$121,MATCH(AJ7,Inputs!$A$112:$A$121,0),1)))-1 -> 0.80% | AK66: =+POWER(INDEX(Inputs!$L$112:$L$121,MATCH(AK7+1,Inputs!$A$112:$A$121,0),1)/INDEX(Inputs!$L$112:$L$121,MATCH(AK7,Inputs!$A$112:$A$121,0),1),1/(INDEX(Inputs!$B$112:$B$121,MATCH(AK7+1,Inputs!$A$112:$A$121,0),1)-INDEX(Inputs!$B$112:$B$121,MATCH(AK7,Inputs!$A$112:$A$121,0),1)))-1 -> 0.80% | AL66: =+POWER(INDEX(Inputs!$L$112:$L$121,MATCH(AL7+1,Inputs!$A$112:$A$121,0),1)/INDEX(Inputs!$L$112:$L$121,MATCH(AL7,Inputs!$A$112:$A$121,0),1),1/(INDEX(Inputs!$B$112:$B$121,MATCH(AL7+1,Inputs!$A$112:$A$121,0),1)-INDEX(Inputs!$B$112:$B$121,MATCH(AL7,Inputs!$A$112:$A$121,0),1)))-1 -> 0.80% | AM66: =+POWER(INDEX(Inputs!$L$112:$L$121,MATCH(AM7+1,Inputs!$A$112:$A$121,0),1)/INDEX(Inputs!$L$112:$L$121,MATCH(AM7,Inputs!$A$112:$A$121,0),1),1/(INDEX(Inputs!$B$112:$B$121,MATCH(AM7+1,Inputs!$A$112:$A$121,0),1)-INDEX(Inputs!$B$112:$B$121,MATCH(AM7,Inputs!$A$112:$A$121,0),1)))-1 -> 0.80% | AN66: =+POWER(INDEX(Inputs!$L$112:$L$121,MATCH(AN7+1,Inputs!$A$112:$A$121,0),1)/INDEX(Inputs!$L$112:$L$121,MATCH(AN7,Inputs!$A$112:$A$121,0),1),1/(INDEX(Inputs!$B$112:$B$121,MATCH(AN7+1,Inputs!$A$112:$A$121,0),1)-INDEX(Inputs!$B$112:$B$121,MATCH(AN7,Inputs!$A$112:$A$121,0),1)))-1 -> 0.00% | AO66: =+POWER(INDEX(Inputs!$L$112:$L$121,MATCH(AO7+1,Inputs!$A$112:$A$121,0),1)/INDEX(Inputs!$L$112:$L$121,MATCH(AO7,Inputs!$A$112:$A$121,0),1),1/(INDEX(Inputs!$B$112:$B$121,MATCH(AO7+1,Inputs!$A$112:$A$121,0),1)-INDEX(Inputs!$B$112:$B$121,MATCH(AO7,Inputs!$A$112:$A$121,0),1)))-1 -> 0.00% | AP66: =+POWER(INDEX(Inputs!$L$112:$L$121,MATCH(AP7+1,Inputs!$A$112:$A$121,0),1)/INDEX(Inputs!$L$112:$L$121,MATCH(AP7,Inputs!$A$112:$A$121,0),1),1/(INDEX(Inputs!$B$112:$B$121,MATCH(AP7+1,Inputs!$A$112:$A$121,0),1)-INDEX(Inputs!$B$112:$B$121,MATCH(AP7,Inputs!$A$112:$A$121,0),1)))-1 -> 0.00% | AQ66: =+POWER(INDEX(Inputs!$L$112:$L$121,MATCH(AQ7+1,Inputs!$A$112:$A$121,0),1)/INDEX(Inputs!$L$112:$L$121,MATCH(AQ7,Inputs!$A$112:$A$121,0),1),1/(INDEX(Inputs!$B$112:$B$121,MATCH(AQ7+1,Inputs!$A$112:$A$121,0),1)-INDEX(Inputs!$B$112:$B$121,MATCH(AQ7,Inputs!$A$112:$A$121,0),1)))-1 -> 0.00% | AR66: =+POWER(INDEX(Inputs!$L$112:$L$121,MATCH(AR7+1,Inputs!$A$112:$A$121,0),1)/INDEX(Inputs!$L$112:$L$121,MATCH(AR7,Inputs!$A$112:$A$121,0),1),1/(INDEX(Inputs!$B$112:$B$121,MATCH(AR7+1,Inputs!$A$112:$A$121,0),1)-INDEX(Inputs!$B$112:$B$121,MATCH(AR7,Inputs!$A$112:$A$121,0),1)))-1 -> 0.00% | AS66: =+POWER(INDEX(Inputs!$L$112:$L$121,MATCH(AS7+1,Inputs!$A$112:$A$121,0),1)/INDEX(Inputs!$L$112:$L$121,MATCH(AS7,Inputs!$A$112:$A$121,0),1),1/(INDEX(Inputs!$B$112:$B$121,MATCH(AS7+1,Inputs!$A$112:$A$121,0),1)-INDEX(Inputs!$B$112:$B$121,MATCH(AS7,Inputs!$A$112:$A$121,0),1)))-1 -> 0.00% | AT66: =+POWER(INDEX(Inputs!$L$112:$L$121,MATCH(AT7+1,Inputs!$A$112:$A$121,0),1)/INDEX(Inputs!$L$112:$L$121,MATCH(AT7,Inputs!$A$112:$A$121,0),1),1/(INDEX(Inputs!$B$112:$B$121,MATCH(AT7+1,Inputs!$A$112:$A$121,0),1)-INDEX(Inputs!$B$112:$B$121,MATCH(AT7,Inputs!$A$112:$A$121,0),1)))-1 -> 0.00% | AU66: =+POWER(INDEX(Inputs!$L$112:$L$121,MATCH(AU7+1,Inputs!$A$112:$A$121,0),1)/INDEX(Inputs!$L$112:$L$121,MATCH(AU7,Inputs!$A$112:$A$121,0),1),1/(INDEX(Inputs!$B$112:$B$121,MATCH(AU7+1,Inputs!$A$112:$A$121,0),1)-INDEX(Inputs!$B$112:$B$121,MATCH(AU7,Inputs!$A$112:$A$121,0),1)))-1 -> 0.00% | AV66: =+POWER(INDEX(Inputs!$L$112:$L$121,MATCH(AV7+1,Inputs!$A$112:$A$121,0),1)/INDEX(Inputs!$L$112:$L$121,MATCH(AV7,Inputs!$A$112:$A$121,0),1),1/(INDEX(Inputs!$B$112:$B$121,MATCH(AV7+1,Inputs!$A$112:$A$121,0),1)-INDEX(Inputs!$B$112:$B$121,MATCH(AV7,Inputs!$A$112:$A$121,0),1)))-1 -> 0.00% | AW66: =+POWER(INDEX(Inputs!$L$112:$L$121,MATCH(AW7+1,Inputs!$A$112:$A$121,0),1)/INDEX(Inputs!$L$112:$L$121,MATCH(AW7,Inputs!$A$112:$A$121,0),1),1/(INDEX(Inputs!$B$112:$B$121,MATCH(AW7+1,Inputs!$A$112:$A$121,0),1)-INDEX(Inputs!$B$112:$B$121,MATCH(AW7,Inputs!$A$112:$A$121,0),1)))-1 -> 0.00% | AX66: =+POWER(INDEX(Inputs!$L$112:$L$121,MATCH(AX7+1,Inputs!$A$112:$A$121,0),1)/INDEX(Inputs!$L$112:$L$121,MATCH(AX7,Inputs!$A$112:$A$121,0),1),1/(INDEX(Inputs!$B$112:$B$121,MATCH(AX7+1,Inputs!$A$112:$A$121,0),1)-INDEX(Inputs!$B$112:$B$121,MATCH(AX7,Inputs!$A$112:$A$121,0),1)))-1 -> 0.00% | AY66: =+POWER(INDEX(Inputs!$L$112:$L$121,MATCH(AY7+1,Inputs!$A$112:$A$121,0),1)/INDEX(Inputs!$L$112:$L$121,MATCH(AY7,Inputs!$A$112:$A$121,0),1),1/(INDEX(Inputs!$B$112:$B$121,MATCH(AY7+1,Inputs!$A$112:$A$121,0),1)-INDEX(Inputs!$B$112:$B$121,MATCH(AY7,Inputs!$A$112:$A$121,0),1)))-1 -> 0.00% | AZ66: =+POWER(INDEX(Inputs!$L$112:$L$121,MATCH(AZ7+1,Inputs!$A$112:$A$121,0),1)/INDEX(Inputs!$L$112:$L$121,MATCH(AZ7,Inputs!$A$112:$A$121,0),1),1/(INDEX(Inputs!$B$112:$B$121,MATCH(AZ7+1,Inputs!$A$112:$A$121,0),1)-INDEX(Inputs!$B$112:$B$121,MATCH(AZ7,Inputs!$A$112:$A$121,0),1)))-1 -> 0.00% | BA66: =+POWER(INDEX(Inputs!$L$112:$L$121,MATCH(BA7+1,Inputs!$A$112:$A$121,0),1)/INDEX(Inputs!$L$112:$L$121,MATCH(BA7,Inputs!$A$112:$A$121,0),1),1/(INDEX(Inputs!$B$112:$B$121,MATCH(BA7+1,Inputs!$A$112:$A$121,0),1)-INDEX(Inputs!$B$112:$B$121,MATCH(BA7,Inputs!$A$112:$A$121,0),1)))-1 -> 0.00% | BB66: =+POWER(INDEX(Inputs!$L$112:$L$121,MATCH(BB7+1,Inputs!$A$112:$A$121,0),1)/INDEX(Inputs!$L$112:$L$121,MATCH(BB7,Inputs!$A$112:$A$121,0),1),1/(INDEX(Inputs!$B$112:$B$121,MATCH(BB7+1,Inputs!$A$112:$A$121,0),1)-INDEX(Inputs!$B$112:$B$121,MATCH(BB7,Inputs!$A$112:$A$121,0),1)))-1 -> 0.00% | BC66: =+POWER(INDEX(Inputs!$L$112:$L$121,MATCH(BC7+1,Inputs!$A$112:$A$121,0),1)/INDEX(Inputs!$L$112:$L$121,MATCH(BC7,Inputs!$A$112:$A$121,0),1),1/(INDEX(Inputs!$B$112:$B$121,MATCH(BC7+1,Inputs!$A$112:$A$121,0),1)-INDEX(Inputs!$B$112:$B$121,MATCH(BC7,Inputs!$A$112:$A$121,0),1)))-1 -> 0.00% | BD66: =+POWER(INDEX(Inputs!$L$112:$L$121,MATCH(BD7+1,Inputs!$A$112:$A$121,0),1)/INDEX(Inputs!$L$112:$L$121,MATCH(BD7,Inputs!$A$112:$A$121,0),1),1/(INDEX(Inputs!$B$112:$B$121,MATCH(BD7+1,Inputs!$A$112:$A$121,0),1)-INDEX(Inputs!$B$112:$B$121,MATCH(BD7,Inputs!$A$112:$A$121,0),1)))-1 -> 0.00% | BE66: =+POWER(INDEX(Inputs!$L$112:$L$121,MATCH(BE7+1,Inputs!$A$112:$A$121,0),1)/INDEX(Inputs!$L$112:$L$121,MATCH(BE7,Inputs!$A$112:$A$121,0),1),1/(INDEX(Inputs!$B$112:$B$121,MATCH(BE7+1,Inputs!$A$112:$A$121,0),1)-INDEX(Inputs!$B$112:$B$121,MATCH(BE7,Inputs!$A$112:$A$121,0),1)))-1 -> 0.00%
B67: Senior additional leverage (until 2059) | K67: MCAD | M67: =+SUM(P67:CS67) -> 7,532 | P67: 0.0 | Q67: =+Q65-P65 -> 264.2 | R67: 272.2 | S67: 280.4 | T67: 442.0 | U67: 462.5 | V67: 483.9 | W67: 506.3 | X67: 529.8 | Y67: 394.8 | Z67: 407.8 | AA67: 421.2 | AB67: 435.1 | AC67: 449.5 | AD67: 296.8 | AE67: 303.0 | AF67: 309.4 | AG67: 315.9 | AH67: 322.6 | AI67: 125.0 | AJ67: 126.0 | AK67: 127.0 | AL67: 128.0 | AM67: 129.0 | AN67: 0.0 | AO67: 0.0 | AP67: 0.0 | AQ67: 0.0 | AR67: 0.0 | AS67: 0.0 | AT67: 0.0 | AU67: 0.0 | AV67: 0.0 | AW67: 0.0 | AX67: 0.0 | AY67: 0.0 | AZ67: 0.0 | BA67: 0.0 | BB67: 0.0 | BC67: 0.0 | BD67: 0.0 | BE67: 0.0
B69: Control account
B70: Opening balance | K70: MCAD | P70: 0 | Q70: =+P75 -> 0 | R70: =+Q75 -> 282.4 | S70: =+R75 -> 873.5 | T70: =+S75 -> 1,893.5 | U70: =+T75 -> 2,656.1 | V70: =+U75 -> 3,140.0 | W70: =+V75 -> 3,896.2 | X70: =+W75 -> 4,425.8 | Y70: =+X75 -> 5,332.9 | Z70: =+Y75 -> 6,102.9 | AA70: =+Z75 -> 6,537.1 | AB70: =+AA75 -> 7,385.7 | AC70: =+AB75 -> 7,849.5 | AD70: =+AC75 -> 8,718.7 | AE70: =+AD75 -> 9,046.6 | AF70: =+AE75 -> 9,632.2 | AG70: =+AF75 -> 9,975.5 | AH70: =+AG75 -> 10,666.9 | AI70: =+AH75 -> 11,506.5 | AJ70: =+AI75 -> 11,670.2 | AK70: =+AJ75 -> 11,827.3 | AL70: =+AK75 -> 11,994.6 | AM70: =+AL75 -> 12,287.6 | AN70: =+AM75 -> 12,766.6 | AO70: =+AN75 -> 13,166.6 | AP70: =+AO75 -> 13,166.6 | AQ70: =+AP75 -> 13,666.6 | AR70: =+AQ75 -> 13,816.6 | AS70: =+AR75 -> 14,316.6 | AT70: =+AS75 -> 14,816.6 | AU70: =+AT75 -> 14,816.6 | AV70: =+AU75 -> 15,616.6 | AW70: =+AV75 -> 15,616.6 | AX70: =+AW75 -> 15,616.6 | AY70: =+AX75 -> 16,016.6 | AZ70: =+AY75 -> 16,216.6 | BA70: =+AZ75 -> 16,216.6 | BB70: =+BA75 -> 16,216.6 | BC70: =+BB75 -> 16,216.6 | BD70: =+BC75 -> 16,216.6 | BE70: =+BD75 -> 16,216.6 | BF70: =+BE75 -> 16,216.6 | BG70: =+BF75 -> 16,051.7 | BH70: =+BG75 -> 15,851.1 | BI70: =+BH75 -> 15,610.2 | BJ70: =+BI75 -> 15,326.9 | BK70: =+BJ75 -> 14,997.5 | BL70: =+BK75 -> 14,620.8 | BM70: =+BL75 -> 14,525.4 | BN70: =+BM75 -> 14,400.3 | BO70: =+BN75 -> 14,242.9 | BP70: =+BO75 -> 14,052.5 | BQ70: =+BP75 -> 13,825.0 | BR70: =+BQ75 -> 13,558.3 | BS70: =+BR75 -> 13,248.9 | BT70: =+BS75 -> 12,895.9 | BU70: =+BT75 -> 12,494.4 | BV70: =+BU75 -> 12,041.5 | BW70: =+BV75 -> 11,533.1 | BX70: =+BW75 -> 10,967.7 | BY70: =+BX75 -> 10,339.4 | BZ70: =+BY75 -> 9,644.7 | CA70: =+BZ75 -> 8,878.3 | CB70: =+CA75 -> 8,038.4 | CC70: =+CB75 -> 7,117.5 | CD70: =+CC75 -> 6,111.4 | CE70: =+CD75 -> 5,013.7 | CF70: =+CE75 -> 3,821.6 | CG70: =+CF75 -> 2,526.3 | CH70: =+CG75 -> 1,122.4 | CI70: =+CH75 -> 0.0 | CJ70: =+CI75 -> 0.0 | CK70: =+CJ75 -> 0.0 | CL70: =+CK75 -> 0.0 | CM70: =+CL75 -> 0.0 | CN70: =+CM75 -> 0.0 | CO70: =+CN75 -> 0.0 | CP70: =+CO75 -> 0.0 | CQ70: =+CP75 -> 0.0 | CR70: =+CQ75 -> 0.0
